Workbook

Sheet dummy database (hidden)
A1: Crop | B1: Biofuel Conversión (L/t dry) | C1: Oil/TFS/starch content (%) | D1: Solvent | E1: Oil/sugar/starch Recovery (%) | F1: References
A2: Barley | B2: 402 | C2: 0.642 | D2: no | E2: 0.6 | F2: http://www.sciencedirect.com/science/article/pii/S0308814604008544
A3: Cassava | B3: 180 | C3: 0.265 | D3: no | E3: 0.6 | F3: Dry Cassava
A4: Maize | B4: 410 | C4: 0.778 | D4: no | E4: 0.52
A5: Soybean | B5: 183 | C5: 0.209 | D5: yes | E5: 0.8
A6: Sugarbeet | B6: 90 | C6: 0.2 | D6: no | E6: 0.75 | F6: http://fins.uns.ac.rs/index.php?mact=Magazines,cntnt01,details,0&cntnt01hierarchyid=8&cntnt01sortby=magazine_id&cntnt01sortorder=asc&cntnt01summarytemplate=current&cntnt01detailtemplate=detaljno&cntnt01cd_origpage=180&cntnt01magazineid=67&cntnt01returnid=188
A7: Sugarcane | B7: 81 | C7: 0.18 | D7: no | E7: 0.74 | F7: Burned & Cropped (B&C) SUGAR cane
A8: Sorghum | B8: 420 | C8: 0.7 | D8: no | E8: 0.6 | F8: http://www.scielo.br/scielo.php?pid=S0104-66322011000400005&script=sci_arttext
A9: Wheat | B9: 389 | C9: 0.737 | D9: no | E9: 0.55 | F9: http://www.mhprofessional.com/downloads/products/0071487492/DrapchoCh4.pdf
A10: Feedstock 1
A11: Feedstock 2
A12: Feedstock 3
A13: Feedstock 4
A19: Data for fuels
B20: Energy content | C20: Density
B21: MJ/L | C21: kg/L
A22: Ethanol | B22: 21.2 | C22: 0.789
A23: Gasoline | B23: 32.1 | C23: 0.745 | Z23: Wood forest residues
Z24: Wood processing residues
A26: Emission Rates for electricity | B26: gCO2 /kWh | E26: logic | F26: Pretreatment
A27: Please Select | D27: User Defined | E27: yes | F27: Please Select | J27: Data of chemical composition of raw materials used in the calculation of mass and energy balances
A28: Albania | B28: 11 | C28: 2012 Climate Registry Default Emission Factors, Released: January 6, 2012 | D28: Default by Country | E28: no | F28: Diluted Acid
A29: Algeria | B29: 576 | F29: Steam Explosion | L29: Raw materials
A30: Angola | B30: 237 | J30: Composition - dry basis | L30: Wheat Straw | M30: Maize Stover | N30: Miscanthus giganteus | O30: Arundo donax | P30: Barley straw | Q30: Oat straw | R30: Rice straw | S30: Sorghum straw | T30: Sugarcane bagasse | U30: Napier grass | V30: Oil palm empty fruit bunch | W30: Switchgrass | X30: Willow | Y30: Poplar | Z30: Wood processing residues | AA30: Spruce | AB30: Wood forest residues
A31: Argentina | B31: 355 | J31: Cellulose | K31: wt.% | L31: 0.348812095 | M31: 0.450867052 | N31: 0.4468085106 | O31: 0.3301013073 | P31: 0.325 | Q31: 0.371 | R31: 0.37 | S31: 0.3587 | T31: 0.336 | U31: 0.3634 | V31: 0.237 | W31: 0.37 | X31: 0.385 | Y31: 0.403 | Z31: 0.411 | AA31: 0.411 | AB31: 0.411
A32: Armenia | B32: 108 | J32: Hemicellulose | K32: wt.% | L32: 0.2548596112 | M32: 0.2208092486 | N32: 0.1803444782 | O32: 0.2723929252 | P32: 0.257 | Q32: 0.249 | R32: 0.227 | S32: 0.2604 | T32: 0.29 | U32: 0.3012 | V32: 0.216 | W32: 0.316 | X32: 0.176 | Y32: 0.329 | Z32: 0.209 | AA32: 0.209 | AB32: 0.209
A33: Australia | B33: 853 | J33: Lignin | K33: wt.% | L33: 0.1846652268 | M33: 0.174566474 | N33: 0.2188449848 | O33: 0.1802133137 | P33: 0.23 | Q33: 0.154 | R33: 0.136 | S33: 0.0752 | T33: 0.185 | U33: 0.274 | V33: 0.292 | W33: 0.216 | X33: 0.263 | Y33: 0.256 | Z33: 0.28 | AA33: 0.28 | AB33: 0.28
A34: Austria | B34: 163 | J34: Ash | K34: wt.% | L34: 0.08639308855 | M34: 0.04971098266 | N34: 0.02634245187 | O34: 0.04212778762 | P34: 0.098 | Q34: 0.059 | R34: 0.1564 | S34: 0.0149 | T34: 0.0149 | U34: 0.057 | V34: 0.0754 | W34: 0.004 | X34: =1-SUM(X31:X33,X35:X36) -> 0.055 | Y34: 0.005 | Z34: 0.003 | AA34: 0.003 | AB34: 0.003
A35: Azerbaijan | B35: 443 | J35: Extractives | K35: wt.% | L35: 0.05831533477 | M35: 0.05780346821 | N35: 0.1063829787 | O35: 0.1484168645 | P35: 0.09 | Q35: 0.167 | R35: 0.1106 | S35: 0.2908 | T35: 0.1741 | U35: 0.0044 | V35: =0.1796/2 -> 0.0898 | W35: 0.064 | X35: =2.6%+1%+2.4% -> 0.06 | Y35: =0.3% -> 0.003 | Z35: =(1-SUM($AB$31:$AB$34))/2 -> 0.0485 | AA35: =(1-SUM($AA$31:$AA$34))/2 -> 0.0485 | AB35: =(1-SUM($AB$31:$AB$34))/2 -> 0.0485
A36: Bahrain | B36: 665 | J36: Others | K36: wt.% | L36: 0.06695464363 | M36: 0.04624277457 | N36: 0.02127659574 | O36: 0.02674780167 | P36: 0 | Q36: 0 | R36: 0 | S36: 0 | T36: 0 | U36: 0 | V36: =0.1796/2 -> 0.0898 | W36: 0.03 | X36: 0.061 | Y36: =1-SUM(Y31:Y35) -> 0.004 | Z36: =(1-SUM($AB$31:$AB$34))/2 -> 0.0485 | AA36: =(1-SUM($AA$31:$AA$34))/2 -> 0.0485 | AB36: =(1-SUM($AB$31:$AB$34))/2 -> 0.0485
A37: Bangladesh | B37: 585 | K37: Total | L37: =SUM(L31:L36) -> 1 | M37: 1 | N37: 1 | O37: 1 | P37: 1 | Q37: 1 | R37: 1 | S37: 1 | T37: 1 | U37: 1 | V37: =SUM(V31:V36) -> 1 | W37: 1 | X37: 1 | Y37: =SUM(Y31:Y36) -> 1 | Z37: =SUM(Z31:Z36) -> 1 | AA37: 1 | AB37: =SUM(AB31:AB36) -> 1
A38: Belarus | B38: 302
A39: Belgium | B39: 218 | J39: Moisture | K39: wt.% | L39: 0.06 | M39: 0.09 | N39: 0.15 | O39: 0.15 | P39: 0.069 | Q39: 0.082 | R39: 0.0701 | S39: 0.07 | T39: 0.07 | U39: 0.05 | V39: 0.15 | W39: 0.13 | X39: 0.111 | Y39: 0.15 | Z39: 0.1 | AA39: 0.1 | AB39: 0.1
A40: Benin | B40: 725 | J40: Source: Energy research center of the Netherlands (ECN). Phyllis 2 database
A41: Bolivia | B41: 393 | J41: https://www.ecn.nl/phyllis2/Browse/Standard/ECN-Phyllis#barley straw
A42: Bosnia and Herzegovina | B42: 776 | J42: https://www.ecn.nl/phyllis2/Browse/Standard/ECN-Phyllis#corn stover
A43: Botswana | B43: 2063 | J43: https://www.ecn.nl/phyllis2/Browse/Standard/ECN-Phyllis#oat | AP43: Sugar Analysis
A44: Brazil | B44: 64 | J44: https://www.ecn.nl/phyllis2/Browse/Standard/ECN-Phyllis#rice straw | AR44: Sugar Analysis
A45: Brunei Darus salam | B45: 755 | J45: http://www.scielo.br/scielo.php?pid=S0100-40422013000500002&script=sci_arttext | AR45: Measured
A46: Bulgaria | B46: 463 | J46: https://www.ecn.nl/phyllis2/Browse/Standard/ECN-Phyllis#wheat straw | AR46: Measured
A47: Cambodia | B47: 1151 | J47: https://www.ecn.nl/phyllis2/Browse/Standard/ECN-Phyllis#bagasse | AR47: Measured
A48: Cameroon | B48: 243 | J48: https://www.ecn.nl/phyllis2/Browse/Standard/ECN-Phyllis#miscanthus | AR48: Measured
A49: Chile | B49: 373 | J49: http://www.sciencedirect.com/science/article/pii/S0144861712010144 | AR49: Measured
A50: Taiwan | B50: 743 | J50: https://www.ecn.nl/phyllis2/Browse/Standard/ECN-Phyllis#empty fruit | AR50: Measured
A51: Chinese Taipei | B51: 635 | AR51: Measured
A52: Colombia | B52: 175
A53: Congo | B53: 207
A54: Costa Rica | B54: 40
A55: Côted'Ivoire | B55: 426
A56: Croatia | B56: 283
A57: Cuba | B57: 752
A58: Cyprus | B58: 744
A59: Czech Republic | B59: 514
A60: Dem. Rep. of Congo | B60: 3
A61: Denmark | B61: 303
A62: Dominican Republic | B62: 591
A63: DPR of Korea | B63: 499
A64: Ecuador | B64: 290
A65: Egypt | B65: 466
A66: El Salvador | B66: 319
A67: Eritrea | B67: 672
A68: Estonia | B68: 704
A69: Ethiopia | B69: 118
A70: Finland | B70: 205
A71: France | B71: 90
A72: FYR of Macedonia | B72: 710
A73: Gabon | B73: 322
A74: Georgia | B74: 129
A75: Germany | B75: 430
A76: Ghana | B76: 187
A77: Gibraltar | B77: 740
A78: Greece | B78: 722
A79: Guatemala | B79: 349
A80: Haiti | B80: 547
A81: Honduras | B81: 344
A82: HongKong, China | B82: 763
A83: Hungary | B83: 302
A84: Iceland | B84: 0
A85: India | B85: 951
A86: Indonesia | B86: 746
A87: Iraq | B87: 684
A88: Ireland | B88: 465
A89: Islamic Rep. Of Iran | B89: 630
A90: Israel | B90: 695
A91: Italy | B91: 386
A92: Jamaica | B92: 544
A93: Japan | B93: 415
A94: Jordan | B94: 581
A95: Kazakhstan | B95: 480
A96: Kenya | B96: 395
A97: Korea | B97: 498
A98: Kuwait | B98: 870
A99: Kyrgyzstan | B99: 81
A100: Latvia | B100: 153
A101: Lebanon | B101: 717
A102: Libyan Arab Jamahiriya | B102: 872
A103: Lithuania | B103: 111
A104: Luxembourg | B104: 384
A105: Malaysia | B105: 649
A106: Malta | B106: 850
A107: Mongolia | B107: 535
A108: Morocco | B108: 638
A109: Mozambique | B109: 1
A110: Myanmar | B110: 196
A111: Namibia | B111: 237
A112: Nepal | B112: 4
A113: Netherlands | B113: 374
A114: Netherlands Antilles | B114: 707
A115: New Zealand | B115: 167
A116: Nicaragua | B116: 506
A117: Nigeria | B117: 416
A118: Norway | B118: 17
A119: Oman | B119: 842
A120: Pakistan | B120: 458
A121: Panama | B121: 302
A122: People's Rep. of China | B122: 743
A123: Peru | B123: 236
A124: Philippines | B124: 478
A125: Poland | B125: 640
A126: Portugal | B126: 368
A127: Qatar | B127: 494
A128: Republic of Moldova | B128: 400
A129: Romania | B129: 414
A130: Russian Federation | B130: 317
A131: Saudi Arabia | B131: 757
A132: Senegal | B132: 614
A133: Serbia | B133: 680
A134: Singapore | B134: 519
A135: Slovak Republic | B135: 222
A136: Slovenia | B136: 316
A137: South Africa | B137: 926
A138: Spain | B138: 299
A139: SriLanka | B139: 460
A140: Sudan | B140: 356
A141: Sweden | B141: 43
A142: Switzerland | B142: 40
A143: Syrian Arab Republic | B143: 641
A144: Tajikistan | B144: 29
A145: Thailand | B145: 513
A146: Togo | B146: 202
A147: Trinidad and Tobago | B147: 719
A148: Tunisia | B148: 538
A149: Turkey | B149: 480
A150: Turkmenistan | B150: 789
A151: Ukraine | B151: 374
A152: United Arab Emirates | B152: 631
A153: United Kingdom | B153: 450
A154: United Rep.of Tanzania | B154: 281
A155: Uruguay | B155: 253
A156: Uzbekistan | B156: 461
A157: Venezuela | B157: 199
A158: Vietnam | B158: 384
A159: Yemen | B159: 630
A160: Zambia | B160: 3
A161: Zimbabwe | B161: 619

Sheet Allocator (hidden)
B3: Selection of pretreatment technology
B4: Pretreatment | C4: =+'Data Entry Needs'!C26 -> Diluted Acid | D4: =VLOOKUP($C$4,$E$4:$F$5,2,FALSE) -> DA | E4: Diluted Acid | F4: DA
E5: Steam Explosion | F5: SE
B8: Ethanol Yields
B9: Yields calculated based on mass balances per technology and feedstock | G9: 140000 | H9: =G9/$G$12 -> 0.5447470817
G10: 17000 | H10: =G10/$G$12 -> 0.06614785992
C11: Yield - L/t (wet) | G11: 100000 | H11: =G11/$G$12 -> 0.3891050584
B12: Feedstock | C12: =D4 -> DA | G12: =SUM(G9:G11) -> 257000
A13: FS1 | B13: ='Data Entry Needs'!$E$11 ->  | C13: =INDIRECT("B_"&$D$4&"_"&A13&"!$C$74") -> 0
A14: FS2 | B14: ='Data Entry Needs'!$F$11 ->  | C14: =INDIRECT("B_"&$D$4&"_"&A14&"!$C$74") -> 0 | I14: Efficiency of turbine
A15: FS3 | B15: ='Data Entry Needs'!$G$11 ->  | C15: =INDIRECT("B_"&$D$4&"_"&A15&"!$C$74") -> 0 | I15: 0.85
A16: FS4 | B16: ='Data Entry Needs'!$H$11 ->  | C16: =INDIRECT("B_"&$D$4&"_"&A16&"!$C$74") -> 0
A17: MFS | B17: Multifeedstock | C17: =INDIRECT("B_"&$D$4&"_"&A17&"!$C$74") -> 0 | I17: Multiplier for cogeneration and selection of Cogeneration technology - single feedstock
I18: ='Data Entry Needs'!$M$26 -> 1
B20: Biomass Requirements | I20: Multiplier for cogeneration and selection of Cogeneration technology - multifeedstock | N20: Cogeneration | O20: Thermal Efficiency | P20: Electric efficiency | Q20: Capex factor
I21: ='Data Entry Needs'!$M$26 -> 1 | N21: No Cogeneration | O21: 0.2 | P21: 0.2 | R21: For calculations only
C22: t dry/year | N22: Simple | O22: 0.2 | P22: 0.2 | Q22: 2.5
B23: Feedstock | C23: 5 ML | D23: 25 ML | E23: 50 ML | F23: 100 ML | I23: ='Data Entry Needs'!F26 -> Simple | N23: Semi-Advanced | O23: 0.63 | P23: 0.2 | Q23: 1
A24: FS1 | B24: ='Data Entry Needs'!$E$11 ->  | C24: =IFERROR(5000000/$C13,0) -> 0 | D24: =IFERROR(25000000/$C13,0) -> 0 | E24: =IFERROR(50000000/$C13,0) -> 0 | F24: =IFERROR(100000000/$C13,0) -> 0 | I24: Electrical efficiency | J24: =VLOOKUP($I$23,$N$21:$Q$24,3,FALSE) -> 0.2 | N24: Advanced | O24: 0.71 | P24: 0.3 | Q24: 0.48
A25: FS2 | B25: ='Data Entry Needs'!$F$11 ->  | C25: =IFERROR(5000000/$C14,0) -> 0 | D25: =IFERROR(25000000/$C14,0) -> 0 | E25: =IFERROR(50000000/$C14,0) -> 0 | F25: =IFERROR(100000000/$C14,0) -> 0 | I25: Thermal Efficiency | J25: =VLOOKUP($I$23,$N$21:$Q$24,2,FALSE) -> 0.2
A26: FS3 | B26: ='Data Entry Needs'!$G$11 ->  | C26: =IFERROR(5000000/$C15,0) -> 0 | D26: =IFERROR(25000000/$C15,0) -> 0 | E26: =IFERROR(50000000/$C15,0) -> 0 | F26: =IFERROR(100000000/$C15,0) -> 0
A27: FS4 | B27: ='Data Entry Needs'!$H$11 ->  | C27: =IFERROR(5000000/$C16,0) -> 0 | D27: =IFERROR(25000000/$C16,0) -> 0 | E27: =IFERROR(50000000/$C16,0) -> 0 | F27: =IFERROR(100000000/$C16,0) -> 0 | I27: Capex factor | J27: =VLOOKUP($I$23,$N$21:$Q$24,4,FALSE) -> 2.5
A28: MFS | B28: Multifeedstock | C28: =IFERROR(5000000/$C17,0) -> 0 | D28: =IFERROR(25000000/$C17,0) -> 0 | E28: =IFERROR(50000000/$C17,0) -> 0 | F28: =IFERROR(100000000/$C17,0) -> 0
B31: Inputs/outputs for costs and financial analyses | J31: Capital Investment all plant: Ethanol + cogeneration
L32: Plant cost index oct/2015 | N32: 142 | P32: Plant cost index updated
J33: Investemt in USD | P33: =IF('Data Entry Needs'!H80=0,142,'Data Entry Needs'!H80) -> 142
B34: FS1 | C34: Unit | D34: 5 ML | E34: 25 ML | F34: 50 ML | G34: 100 ML | I34: All feedstocks | J34: 5 ML | K34: 25 ML | L34: 50 ML | M34: 100 ML
B35: Biomass | C35: t/year | D35: =INDIRECT("B_"&$D$4&"_"&B34&"!AI28")*1000 ->  | E35: =INDIRECT("B_"&$D$4&"_"&B34&"!AK28")*1000 ->  | F35: =INDIRECT("B_"&$D$4&"_"&B34&"!AM28")*1000 ->  | G35: =INDIRECT("B_"&$D$4&"_"&B34&"!AO28")*1000 ->  | I35: Buildings | J35: =INDIRECT("B_"&$D$4&"_"&$B$34&"!AI69")*($P$33/$N$32) -> 7418000 | K35: =INDIRECT("B_"&$D$4&"_"&$B$34&"!Aj69")*($P$33/$N$32) -> 19482000 | L35: =INDIRECT("B_"&$D$4&"_"&$B$34&"!Ak69")*($P$33/$N$32) -> 29528000 | M35: =INDIRECT("B_"&$D$4&"_"&$B$34&"!Al69")*($P$33/$N$32) -> 44757000
B36: Sulfuric Acid | C36: t/year | D36: =INDIRECT("B_"&$D$4&"_"&B34&"!AI29")*1000 ->  | E36: =INDIRECT("B_"&$D$4&"_"&B34&"!Ak29")*1000 ->  | F36: =INDIRECT("B_"&$D$4&"_"&B34&"!Am29")*1000 ->  | G36: =INDIRECT("B_"&$D$4&"_"&B34&"!Ao29")*1000 ->  | I36: Plant & Equipment | J36: =INDIRECT("B_"&$D$4&"_"&$B$34&"!AI70")*($P$33/$N$32) -> 28290000 | K36: =INDIRECT("B_"&$D$4&"_"&$B$34&"!Aj70")*($P$33/$N$32) -> 74303000 | L36: =INDIRECT("B_"&$D$4&"_"&$B$34&"!Ak70")*($P$33/$N$32) -> 112622000 | M36: =INDIRECT("B_"&$D$4&"_"&$B$34&"!Al70")*($P$33/$N$32) -> 170703000
B37: Water | C37: m3/year | D37: =INDIRECT("B_"&$D$4&"_"&B34&"!AI30")*1000 ->  | E37: =INDIRECT("B_"&$D$4&"_"&B34&"!AK30")*1000 ->  | F37: =INDIRECT("B_"&$D$4&"_"&B34&"!AM30")*1000 ->  | G37: =INDIRECT("B_"&$D$4&"_"&B34&"!AO30")*1000 ->  | I37: Total | J37: =SUM(J35:J36) -> 35708000 | K37: =SUM(K35:K36) -> 93785000 | L37: =SUM(L35:L36) -> 142150000 | M37: =SUM(M35:M36) -> 215460000
B38: Ammonia | C38: t/year | D38: =INDIRECT("B_"&$D$4&"_"&B34&"!AI32")*1000 ->  | E38: =INDIRECT("B_"&$D$4&"_"&B34&"!AK32")*1000 ->  | F38: =INDIRECT("B_"&$D$4&"_"&B34&"!AM32")*1000 ->  | G38: =INDIRECT("B_"&$D$4&"_"&B34&"!AO32")*1000 -> 
B39: Enzyme | C39: t/year | D39: =INDIRECT("B_"&$D$4&"_"&B34&"!AI33")*1000 ->  | E39: =INDIRECT("B_"&$D$4&"_"&B34&"!AK33")*1000 ->  | F39: =INDIRECT("B_"&$D$4&"_"&B34&"!AM33")*1000 ->  | G39: =INDIRECT("B_"&$D$4&"_"&B34&"!AO33")*1000 -> 
B40: Yeast | C40: t/year | D40: =INDIRECT("B_"&$D$4&"_"&B34&"!AI34")*1000 ->  | E40: =INDIRECT("B_"&$D$4&"_"&B34&"!AK34")*1000 ->  | F40: =INDIRECT("B_"&$D$4&"_"&B34&"!AM34")*1000 ->  | G40: =INDIRECT("B_"&$D$4&"_"&B34&"!AO34")*1000 ->  | J40: Investment cogeneration system
B41: Steam | C41: t/y | D41: =INDIRECT("B_"&$D$4&"_"&B34&"!AI56")/(2.2026*1000) ->  | E41: =INDIRECT("B_"&$D$4&"_"&B34&"!Ak56")/(2.2026*1000) ->  | F41: =INDIRECT("B_"&$D$4&"_"&B34&"!Am56")/(2.2026*1000) ->  | G41: =INDIRECT("B_"&$D$4&"_"&B34&"!AO56")/(2.2026*1000) -> 
B42: Electricity | C42: kWh/y | D42: =INDIRECT("B_"&$D$4&"_"&B34&"!AI57") ->  | E42: =INDIRECT("B_"&$D$4&"_"&B34&"!AK57") ->  | F42: =INDIRECT("B_"&$D$4&"_"&B34&"!AM57") ->  | G42: =INDIRECT("B_"&$D$4&"_"&B34&"!AO57") ->  | J42: Investemt in USD
I43: All feedstocks | J43: 5 ML | K43: 25 ML | L43: 50 ML | M43: 100 ML
B44: Co-products | I44: Buildings | J44: =INDIRECT("B_"&$D$4&"_"&$B$34&"!AI75")*('Data Entry Needs'!$H$80/$N$32) -> 0 | K44: =INDIRECT("B_"&$D$4&"_"&$B$34&"!Aj75")*('Data Entry Needs'!$H$80/$N$32) -> 0 | L44: =INDIRECT("B_"&$D$4&"_"&$B$34&"!Ak75")*('Data Entry Needs'!$H$80/$N$32) -> 0 | M44: =INDIRECT("B_"&$D$4&"_"&$B$34&"!Al75")*('Data Entry Needs'!$H$80/$N$32) -> 0
B45: Electricity | C45: kWh/y | D45: =INDIRECT("B_"&$D$4&"_"&B34&"!AJ57") ->  | E45: =INDIRECT("B_"&$D$4&"_"&B34&"!AL57") ->  | F45: =INDIRECT("B_"&$D$4&"_"&B34&"!AN57") ->  | G45: =INDIRECT("B_"&$D$4&"_"&B34&"!AP57") ->  | I45: Plant & Equipment | J45: =INDIRECT("B_"&$D$4&"_"&$B$34&"!AI76")*('Data Entry Needs'!$H$80/$N$32) -> 0 | K45: =INDIRECT("B_"&$D$4&"_"&$B$34&"!Aj76")*('Data Entry Needs'!$H$80/$N$32) -> 0 | L45: =INDIRECT("B_"&$D$4&"_"&$B$34&"!Ak76")*('Data Entry Needs'!$H$80/$N$32) -> 0 | M45: =INDIRECT("B_"&$D$4&"_"&$B$34&"!Al76")*('Data Entry Needs'!$H$80/$N$32) -> 0
B46: Yeast | C46: t/year | D46: =INDIRECT("B_"&$D$4&"_"&B34&"!AJ34")*1000*(1-$I$18) -> 0 | E46: =INDIRECT("B_"&$D$4&"_"&B34&"!Al34")*1000*(1-$I$18) -> 0 | F46: =INDIRECT("B_"&$D$4&"_"&B34&"!An34")*1000*(1-$I$18) -> 0 | G46: =INDIRECT("B_"&$D$4&"_"&B34&"!Ap34")*1000*(1-$I$18) -> 0 | I46: Total | J46: =SUM(J44:J45) -> 0 | K46: =SUM(K44:K45) -> 0 | L46: =SUM(L44:L45) -> 0 | M46: =SUM(M44:M45) -> 0
B47: CO2 | C47: t/year | D47: =INDIRECT("B_"&$D$4&"_"&B34&"!AJ37")*1000 ->  | E47: =INDIRECT("B_"&$D$4&"_"&B34&"!Al37")*1000 ->  | F47: =INDIRECT("B_"&$D$4&"_"&B34&"!An37")*1000 ->  | G47: =INDIRECT("B_"&$D$4&"_"&B34&"!Ap37")*1000 -> 
B48: Lignin | C48: t/year | D48: =INDIRECT("B_"&$D$4&"_"&B34&"!AJ35")*1000*(1-$I$18) ->  | E48: =INDIRECT("B_"&$D$4&"_"&B34&"!Al35")*1000*(1-$I$18) ->  | F48: =INDIRECT("B_"&$D$4&"_"&B34&"!An35")*1000*(1-$I$18) ->  | G48: =INDIRECT("B_"&$D$4&"_"&B34&"!Ap35")*1000*(1-$I$18) -> 
B50: FS2 | C50: Unit | D50: 5 ML | E50: 25 ML | F50: 50 ML | G50: 100 ML
B51: Biomass | C51: t/year | D51: =INDIRECT("B_"&$D$4&"_"&B50&"!AI28")*1000 ->  | E51: =INDIRECT("B_"&$D$4&"_"&B50&"!AK28")*1000 ->  | F51: =INDIRECT("B_"&$D$4&"_"&B50&"!AM28")*1000 ->  | G51: =INDIRECT("B_"&$D$4&"_"&B50&"!AO28")*1000 -> 
B52: Sulfuric Acid | C52: t/year | D52: =INDIRECT("B_"&$D$4&"_"&B50&"!AI29")*1000 ->  | E52: =INDIRECT("B_"&$D$4&"_"&B50&"!Ak29")*1000 ->  | F52: =INDIRECT("B_"&$D$4&"_"&B50&"!Am29")*1000 ->  | G52: =INDIRECT("B_"&$D$4&"_"&B50&"!Ao29")*1000 -> 
B53: Water | C53: m3/year | D53: =INDIRECT("B_"&$D$4&"_"&B50&"!AI30")*1000 ->  | E53: =INDIRECT("B_"&$D$4&"_"&B50&"!AK30")*1000 ->  | F53: =INDIRECT("B_"&$D$4&"_"&B50&"!AM30")*1000 ->  | G53: =INDIRECT("B_"&$D$4&"_"&B50&"!AO30")*1000 -> 
B54: Ammonia | C54: t/year | D54: =INDIRECT("B_"&$D$4&"_"&B50&"!AI32")*1000 ->  | E54: =INDIRECT("B_"&$D$4&"_"&B50&"!AK32")*1000 ->  | F54: =INDIRECT("B_"&$D$4&"_"&B50&"!AM32")*1000 ->  | G54: =INDIRECT("B_"&$D$4&"_"&B50&"!AO32")*1000 -> 
B55: Enzyme | C55: t/year | D55: =INDIRECT("B_"&$D$4&"_"&B50&"!AI33")*1000 ->  | E55: =INDIRECT("B_"&$D$4&"_"&B50&"!AK33")*1000 ->  | F55: =INDIRECT("B_"&$D$4&"_"&B50&"!AM33")*1000 ->  | G55: =INDIRECT("B_"&$D$4&"_"&B50&"!AO33")*1000 -> 
B56: Yeast | C56: t/year | D56: =INDIRECT("B_"&$D$4&"_"&B50&"!AI34")*1000 ->  | E56: =INDIRECT("B_"&$D$4&"_"&B50&"!AK34")*1000 ->  | F56: =INDIRECT("B_"&$D$4&"_"&B50&"!AM34")*1000 ->  | G56: =INDIRECT("B_"&$D$4&"_"&B50&"!AO34")*1000 -> 
B57: Steam | C57: t/y | D57: =INDIRECT("B_"&$D$4&"_"&B50&"!AI56")/(2.2026*1000) ->  | E57: =INDIRECT("B_"&$D$4&"_"&B50&"!Ak56")/(2.2026*1000) ->  | F57: =INDIRECT("B_"&$D$4&"_"&B50&"!Am56")/(2.2026*1000) ->  | G57: =INDIRECT("B_"&$D$4&"_"&B50&"!AO56")/(2.2026*1000) -> 
B58: Electricity | C58: kWh/y | D58: =INDIRECT("B_"&$D$4&"_"&B50&"!AI57") ->  | E58: =INDIRECT("B_"&$D$4&"_"&B50&"!AK57") ->  | F58: =INDIRECT("B_"&$D$4&"_"&B50&"!AM57") ->  | G58: =INDIRECT("B_"&$D$4&"_"&B50&"!AO57") -> 
B60: Co-products
B61: Electricity | C61: kWh/y | D61: =INDIRECT("B_"&$D$4&"_"&B50&"!AJ57") ->  | E61: =INDIRECT("B_"&$D$4&"_"&B50&"!AL57") ->  | F61: =INDIRECT("B_"&$D$4&"_"&B50&"!AN57") ->  | G61: =INDIRECT("B_"&$D$4&"_"&B50&"!AP57") -> 
B62: Yeast | C62: t/year | D62: =INDIRECT("B_"&$D$4&"_"&B50&"!AJ34")*1000*(1-$I$18) -> 0 | E62: =INDIRECT("B_"&$D$4&"_"&B50&"!Al34")*1000*(1-$I$18) -> 0 | F62: =INDIRECT("B_"&$D$4&"_"&B50&"!An34")*1000*(1-$I$18) -> 0 | G62: =INDIRECT("B_"&$D$4&"_"&B50&"!Ap34")*1000*(1-$I$18) -> 0
B63: CO2 | C63: t/year | D63: =INDIRECT("B_"&$D$4&"_"&B50&"!AJ37")*1000 ->  | E63: =INDIRECT("B_"&$D$4&"_"&B50&"!Al37")*1000 ->  | F63: =INDIRECT("B_"&$D$4&"_"&B50&"!An37")*1000 ->  | G63: =INDIRECT("B_"&$D$4&"_"&B50&"!Ap37")*1000 -> 
B64: Lignin | C64: t/year | D64: =INDIRECT("B_"&$D$4&"_"&B50&"!AJ35")*1000*(1-$I$18) ->  | E64: =INDIRECT("B_"&$D$4&"_"&B50&"!Al35")*1000*(1-$I$18) ->  | F64: =INDIRECT("B_"&$D$4&"_"&B50&"!An35")*1000*(1-$I$18) ->  | G64: =INDIRECT("B_"&$D$4&"_"&B50&"!Ap35")*1000*(1-$I$18) -> 
B66: FS3 | C66: Unit | D66: 5 ML | E66: 25 ML | F66: 50 ML | G66: 100 ML
B67: Biomass | C67: t/year | D67: =INDIRECT("B_"&$D$4&"_"&B66&"!AI28")*1000 ->  | E67: =INDIRECT("B_"&$D$4&"_"&B66&"!AK28")*1000 ->  | F67: =INDIRECT("B_"&$D$4&"_"&B66&"!AM28")*1000 ->  | G67: =INDIRECT("B_"&$D$4&"_"&B66&"!AO28")*1000 -> 
B68: Sulfuric Acid | C68: t/year | D68: =INDIRECT("B_"&$D$4&"_"&B66&"!AI29")*1000 ->  | E68: =INDIRECT("B_"&$D$4&"_"&B66&"!Ak29")*1000 ->  | F68: =INDIRECT("B_"&$D$4&"_"&B66&"!Am29")*1000 ->  | G68: =INDIRECT("B_"&$D$4&"_"&B66&"!Ao29")*1000 -> 
B69: Water | C69: m3/year | D69: =INDIRECT("B_"&$D$4&"_"&B66&"!AI30")*1000 ->  | E69: =INDIRECT("B_"&$D$4&"_"&B66&"!AK30")*1000 ->  | F69: =INDIRECT("B_"&$D$4&"_"&B66&"!AM30")*1000 ->  | G69: =INDIRECT("B_"&$D$4&"_"&B66&"!AO30")*1000 -> 
B70: Ammonia | C70: t/year | D70: =INDIRECT("B_"&$D$4&"_"&B66&"!AI32")*1000 ->  | E70: =INDIRECT("B_"&$D$4&"_"&B66&"!AK32")*1000 ->  | F70: =INDIRECT("B_"&$D$4&"_"&B66&"!AM32")*1000 ->  | G70: =INDIRECT("B_"&$D$4&"_"&B66&"!AO32")*1000 -> 
B71: Enzyme | C71: t/year | D71: =INDIRECT("B_"&$D$4&"_"&B66&"!AI33")*1000 ->  | E71: =INDIRECT("B_"&$D$4&"_"&B66&"!AK33")*1000 ->  | F71: =INDIRECT("B_"&$D$4&"_"&B66&"!AM33")*1000 ->  | G71: =INDIRECT("B_"&$D$4&"_"&B66&"!AO33")*1000 -> 
B72: Yeast | C72: t/year | D72: =INDIRECT("B_"&$D$4&"_"&B66&"!AI34")*1000 ->  | E72: =INDIRECT("B_"&$D$4&"_"&B66&"!AK34")*1000 ->  | F72: =INDIRECT("B_"&$D$4&"_"&B66&"!AM34")*1000 ->  | G72: =INDIRECT("B_"&$D$4&"_"&B66&"!AO34")*1000 -> 
B73: Steam | C73: t/y | D73: =INDIRECT("B_"&$D$4&"_"&B66&"!AI56")/(2.2026*1000) ->  | E73: =INDIRECT("B_"&$D$4&"_"&B66&"!Ak56")/(2.2026*1000) ->  | F73: =INDIRECT("B_"&$D$4&"_"&B66&"!Am56")/(2.2026*1000) ->  | G73: =INDIRECT("B_"&$D$4&"_"&B66&"!AO56")/(2.2026*1000) -> 
B74: Electricity | C74: kWh/y | D74: =INDIRECT("B_"&$D$4&"_"&B66&"!AI57") ->  | E74: =INDIRECT("B_"&$D$4&"_"&B66&"!AK57") ->  | F74: =INDIRECT("B_"&$D$4&"_"&B66&"!AM57") ->  | G74: =INDIRECT("B_"&$D$4&"_"&B66&"!AO57") -> 
B76: Co-products
B77: Electricity | C77: kWh/y | D77: =INDIRECT("B_"&$D$4&"_"&B66&"!AJ57") ->  | E77: =INDIRECT("B_"&$D$4&"_"&B66&"!AL57") ->  | F77: =INDIRECT("B_"&$D$4&"_"&B66&"!AN57") ->  | G77: =INDIRECT("B_"&$D$4&"_"&B66&"!AP57") -> 
B78: Yeast | C78: t/year | D78: =INDIRECT("B_"&$D$4&"_"&B66&"!AJ34")*1000*(1-$I$18) -> 0 | E78: =INDIRECT("B_"&$D$4&"_"&B66&"!Al34")*1000*(1-$I$18) -> 0 | F78: =INDIRECT("B_"&$D$4&"_"&B66&"!An34")*1000*(1-$I$18) -> 0 | G78: =INDIRECT("B_"&$D$4&"_"&B66&"!Ap34")*1000*(1-$I$18) -> 0
B79: CO2 | C79: t/year | D79: =INDIRECT("B_"&$D$4&"_"&B66&"!AJ37")*1000 ->  | E79: =INDIRECT("B_"&$D$4&"_"&B66&"!Al37")*1000 ->  | F79: =INDIRECT("B_"&$D$4&"_"&B66&"!An37")*1000 ->  | G79: =INDIRECT("B_"&$D$4&"_"&B66&"!Ap37")*1000 -> 
B80: Lignin | C80: t/year | D80: =INDIRECT("B_"&$D$4&"_"&B66&"!AJ35")*1000*(1-$I$18) ->  | E80: =INDIRECT("B_"&$D$4&"_"&B66&"!Al35")*1000*(1-$I$18) ->  | F80: =INDIRECT("B_"&$D$4&"_"&B66&"!An35")*1000*(1-$I$18) ->  | G80: =INDIRECT("B_"&$D$4&"_"&B66&"!Ap35")*1000*(1-$I$18) -> 
B82: FS4 | C82: Unit | D82: 5 ML | E82: 25 ML | F82: 50 ML | G82: 100 ML
B83: Biomass | C83: t/year | D83: =INDIRECT("B_"&$D$4&"_"&B82&"!AI28")*1000 ->  | E83: =INDIRECT("B_"&$D$4&"_"&B82&"!AK28")*1000 ->  | F83: =INDIRECT("B_"&$D$4&"_"&B82&"!AM28")*1000 ->  | G83: =INDIRECT("B_"&$D$4&"_"&B82&"!AO28")*1000 -> 
B84: Sulfuric Acid | C84: t/year | D84: =INDIRECT("B_"&$D$4&"_"&B82&"!AI29")*1000 ->  | E84: =INDIRECT("B_"&$D$4&"_"&B82&"!Ak29")*1000 ->  | F84: =INDIRECT("B_"&$D$4&"_"&B82&"!Am29")*1000 ->  | G84: =INDIRECT("B_"&$D$4&"_"&B82&"!Ao29")*1000 -> 
B85: Water | C85: m3/year | D85: =INDIRECT("B_"&$D$4&"_"&B82&"!AI30")*1000 ->  | E85: =INDIRECT("B_"&$D$4&"_"&B82&"!AK30")*1000 ->  | F85: =INDIRECT("B_"&$D$4&"_"&B82&"!AM30")*1000 ->  | G85: =INDIRECT("B_"&$D$4&"_"&B82&"!AO30")*1000 -> 
B86: Ammonia | C86: t/year | D86: =INDIRECT("B_"&$D$4&"_"&B82&"!AI32")*1000 ->  | E86: =INDIRECT("B_"&$D$4&"_"&B82&"!AK32")*1000 ->  | F86: =INDIRECT("B_"&$D$4&"_"&B82&"!AM32")*1000 ->  | G86: =INDIRECT("B_"&$D$4&"_"&B82&"!AO32")*1000 -> 
B87: Enzyme | C87: t/year | D87: =INDIRECT("B_"&$D$4&"_"&B82&"!AI33")*1000 ->  | E87: =INDIRECT("B_"&$D$4&"_"&B82&"!AK33")*1000 ->  | F87: =INDIRECT("B_"&$D$4&"_"&B82&"!AM33")*1000 ->  | G87: =INDIRECT("B_"&$D$4&"_"&B82&"!AO33")*1000 -> 
B88: Yeast | C88: t/year | D88: =INDIRECT("B_"&$D$4&"_"&B82&"!AI34")*1000 ->  | E88: =INDIRECT("B_"&$D$4&"_"&B82&"!AK34")*1000 ->  | F88: =INDIRECT("B_"&$D$4&"_"&B82&"!AM34")*1000 ->  | G88: =INDIRECT("B_"&$D$4&"_"&B82&"!AO34")*1000 -> 
B89: Steam | C89: t/y | D89: =INDIRECT("B_"&$D$4&"_"&B82&"!AI56")/(2.2026*1000) ->  | E89: =INDIRECT("B_"&$D$4&"_"&B82&"!Ak56")/(2.2026*1000) ->  | F89: =INDIRECT("B_"&$D$4&"_"&B82&"!Am56")/(2.2026*1000) ->  | G89: =INDIRECT("B_"&$D$4&"_"&B82&"!AO56")/(2.2026*1000) -> 
B90: Electricity | C90: kWh/y | D90: =INDIRECT("B_"&$D$4&"_"&B82&"!AI57") ->  | E90: =INDIRECT("B_"&$D$4&"_"&B82&"!AK57") ->  | F90: =INDIRECT("B_"&$D$4&"_"&B82&"!AM57") ->  | G90: =INDIRECT("B_"&$D$4&"_"&B82&"!AO57") -> 
B92: Co-products
B93: Electricity | C93: kWh/y | D93: =INDIRECT("B_"&$D$4&"_"&B82&"!AJ57") ->  | E93: =INDIRECT("B_"&$D$4&"_"&B82&"!AL57") ->  | F93: =INDIRECT("B_"&$D$4&"_"&B82&"!AN57") ->  | G93: =INDIRECT("B_"&$D$4&"_"&B82&"!AP57") -> 
B94: Yeast | C94: t/year | D94: =INDIRECT("B_"&$D$4&"_"&B82&"!AJ34")*1000*(1-$I$18) -> 0 | E94: =INDIRECT("B_"&$D$4&"_"&B82&"!Al34")*1000*(1-$I$18) -> 0 | F94: =INDIRECT("B_"&$D$4&"_"&B82&"!An34")*1000*(1-$I$18) -> 0 | G94: =INDIRECT("B_"&$D$4&"_"&B82&"!Ap34")*1000*(1-$I$18) -> 0
B95: CO2 | C95: t/year | D95: =INDIRECT("B_"&$D$4&"_"&B82&"!AJ37")*1000 ->  | E95: =INDIRECT("B_"&$D$4&"_"&B82&"!Al37")*1000 ->  | F95: =INDIRECT("B_"&$D$4&"_"&B82&"!An37")*1000 ->  | G95: =INDIRECT("B_"&$D$4&"_"&B82&"!Ap37")*1000 -> 
B96: Lignin | C96: t/year | D96: =INDIRECT("B_"&$D$4&"_"&B82&"!AJ35")*1000*(1-$I$18) ->  | E96: =INDIRECT("B_"&$D$4&"_"&B82&"!Al35")*1000*(1-$I$18) ->  | F96: =INDIRECT("B_"&$D$4&"_"&B82&"!An35")*1000*(1-$I$18) ->  | G96: =INDIRECT("B_"&$D$4&"_"&B82&"!Ap35")*1000*(1-$I$18) -> 
B99: MFS | C99: Unit | D99: 5 ML | E99: 25 ML | F99: 50 ML | G99: 100 ML
B100: Biomass | C100: t/year | D100: =INDIRECT("B_"&$D$4&"_"&B99&"!AI28")*1000 ->  | E100: =INDIRECT("B_"&$D$4&"_"&B99&"!AK28")*1000 ->  | F100: =INDIRECT("B_"&$D$4&"_"&B99&"!AM28")*1000 ->  | G100: =INDIRECT("B_"&$D$4&"_"&B99&"!AO28")*1000 -> 
B101: Sulfuric Acid | C101: t/year | D101: =INDIRECT("B_"&$D$4&"_"&B99&"!AI29")*1000 ->  | E101: =INDIRECT("B_"&$D$4&"_"&B99&"!Ak29")*1000 ->  | F101: =INDIRECT("B_"&$D$4&"_"&B99&"!Am29")*1000 ->  | G101: =INDIRECT("B_"&$D$4&"_"&B99&"!Ao29")*1000 -> 
B102: Water | C102: m3/year | D102: =INDIRECT("B_"&$D$4&"_"&B99&"!AI30")*1000 ->  | E102: =INDIRECT("B_"&$D$4&"_"&B99&"!AK30")*1000 ->  | F102: =INDIRECT("B_"&$D$4&"_"&B99&"!AM30")*1000 ->  | G102: =INDIRECT("B_"&$D$4&"_"&B99&"!AO30")*1000 -> 
B103: Ammonia | C103: t/year | D103: =INDIRECT("B_"&$D$4&"_"&B99&"!AI32")*1000 ->  | E103: =INDIRECT("B_"&$D$4&"_"&B99&"!AK32")*1000 ->  | F103: =INDIRECT("B_"&$D$4&"_"&B99&"!AM32")*1000 ->  | G103: =INDIRECT("B_"&$D$4&"_"&B99&"!AO32")*1000 -> 
B104: Enzyme | C104: t/year | D104: =INDIRECT("B_"&$D$4&"_"&B99&"!AI33")*1000 ->  | E104: =INDIRECT("B_"&$D$4&"_"&B99&"!AK33")*1000 ->  | F104: =INDIRECT("B_"&$D$4&"_"&B99&"!AM33")*1000 ->  | G104: =INDIRECT("B_"&$D$4&"_"&B99&"!AO33")*1000 -> 
B105: Yeast | C105: t/year | D105: =INDIRECT("B_"&$D$4&"_"&B99&"!AI34")*1000 ->  | E105: =INDIRECT("B_"&$D$4&"_"&B99&"!AK34")*1000 ->  | F105: =INDIRECT("B_"&$D$4&"_"&B99&"!AM34")*1000 ->  | G105: =INDIRECT("B_"&$D$4&"_"&B99&"!AO34")*1000 -> 
B106: Steam | C106: t/y | D106: =INDIRECT("B_"&$D$4&"_"&B99&"!AI56")/(2.2026*1000) ->  | E106: =INDIRECT("B_"&$D$4&"_"&B99&"!Ak56")/(2.2026*1000) ->  | F106: =INDIRECT("B_"&$D$4&"_"&B99&"!Am56")/(2.2026*1000) ->  | G106: =INDIRECT("B_"&$D$4&"_"&B99&"!AO56")/(2.2026*1000) -> 
B107: Electricity | C107: kWh/y | D107: =INDIRECT("B_"&$D$4&"_"&B99&"!AI57") ->  | E107: =INDIRECT("B_"&$D$4&"_"&B99&"!AK57") ->  | F107: =INDIRECT("B_"&$D$4&"_"&B99&"!AM57") ->  | G107: =INDIRECT("B_"&$D$4&"_"&B99&"!AO57") -> 
B109: Co-products
B110: Electricity | C110: kWh/y | D110: =INDIRECT("B_"&$D$4&"_"&B99&"!AJ57") ->  | E110: =INDIRECT("B_"&$D$4&"_"&B99&"!AL57") ->  | F110: =INDIRECT("B_"&$D$4&"_"&B99&"!AN57") ->  | G110: =INDIRECT("B_"&$D$4&"_"&B99&"!AP57") -> 
B111: Yeast | C111: t/year | D111: =INDIRECT("B_"&$D$4&"_"&B99&"!AJ34")*1000*(1-$I$21) -> 0 | E111: =INDIRECT("B_"&$D$4&"_"&B99&"!Al34")*1000*(1-$I$21) -> 0 | F111: =INDIRECT("B_"&$D$4&"_"&B99&"!An34")*1000*(1-$I$21) -> 0 | G111: =INDIRECT("B_"&$D$4&"_"&B99&"!Ap34")*1000*(1-$I$21) -> 0
B112: CO2 | C112: t/year | D112: =INDIRECT("B_"&$D$4&"_"&B99&"!AJ37")*1000 ->  | E112: =INDIRECT("B_"&$D$4&"_"&B99&"!Al37")*1000 ->  | F112: =INDIRECT("B_"&$D$4&"_"&B99&"!An37")*1000 ->  | G112: =INDIRECT("B_"&$D$4&"_"&B99&"!Ap37")*1000 -> 
B113: Lignin | C113: t/year | D113: =INDIRECT("B_"&$D$4&"_"&B99&"!AJ35")*1000*(1-$I$21) ->  | E113: =INDIRECT("B_"&$D$4&"_"&B99&"!Al35")*1000*(1-$I$21) ->  | F113: =INDIRECT("B_"&$D$4&"_"&B99&"!An35")*1000*(1-$I$21) ->  | G113: =INDIRECT("B_"&$D$4&"_"&B99&"!Ap35")*1000*(1-$I$21) -> 

Sheet START
C30: Disclaimer
C31: FAO declines all responsibility for errors or deficiencies in the database or software or in the documentation accompanying it, for program maintenance and upgrading as well as for any damage that may arise from them. FAO also declines any responsibility for updating the data and assumes no responsibility for errors and omissions in the data provided. Users are, however, kindly asked to report any errors or deficiencies in this product to FAO. The choices of calculation made in this tool are those of the author(s) and do not necessarily reflect the views and choices of the Food and Agriculture Organization of the United Nations.
C35: © FAO, 2016

Sheet Biofuel Demand
C3: FUEL CONSUMPTION AND BLENDING TARGETS FOR ETHANOL
C5: Domestic fossil fuel consumption
D7: Consumption | E7: Unit
C8: Gasoline | E8: ML/year
C10: Domestic blending target
D12: Blending target | E12: Biofuel demand
C13: Ethanol (ML/year) | E13: =D13*$D$8 -> 0
C15: Biofuel production and trade
D17: Domestic production | E17: Imports | F17: Exports | G17: Net balance
C18: Ethanol (ML/year) | G18: =D18+E18-F18 -> 0
C20: Target domestic biofuel production
C23: Ethanol (ML/year) | D23: =+E13-G18 -> 0

Sheet Process Description
C3: PROCESSING SYSTEMS OF ETHANOL FOR TRANSPORTATION
C6: ETHANOL PRODUCTION FROM LIGNOCELLULOSIC FEEDSTOCKS
C8: Features:
C10: * Two preteatment technologies included in this tool: i) Steam Explosion, and ii) Dilute Acid
C12: * Two types of lignocellulosic biomass are possible to be assessed: i) Lignocellulosic Energy Crops
C13: (e.g., Arundo donax, Miscanthus giganteus) and ii) Lignocellulosic Residues (e.g., Wheat Straw, Corn Stover)
C15: * As default configuration, the ethanol processing from lignocellulosic biomass assumes integration with
C16: a cogeneration system using the lignin residue from the biomass pretreatment stage
C18: ETHANOL PRODUCTION USING STEAM EXPLOSION PRETREATMENT
I20: Steam/Energy Inputs | L20: Chemical/Energy Inputs
O22: Ethanol Transportation
O27: Energy Demand Biofuel Plant
D29: Feedstocks
D30: Lignocellulosic Residues | G30: Lignocellulosic Energy Crops
D31: Barley straw | G31: Miscanthus giganteus
D32: Maize stover | G32: Napier grass
D33: Oat straw | G33: Arundo donax
D34: Rice straw | G34: Switchgrass
D35: Sorghum straw | G35: Willow
D36: Wheat straw | G36: Poplar
D37: Sugarcane bagasse | G37: Spruce
D38: Oil palm empty fruit bunch
D39: Wood forest residues | O39: Surplus to central grid
D40: Wood processing residues
C42: ETHANOL PRODUCTION USING DILUTE ACID PRETREATMENT
I44: Dilute Acid/Energy Inputs | L44: Chemical/Energy Inputs
O46: Ethanol Transportation
O51: Energy Demand Biofuel Plant
D53: Feedstocks
D54: Lignocellulosic Residues | G54: Lignocellulosic Energy Crops
D55: Barley straw | G55: Miscanthus giganteus
D56: Maize stover | G56: Napier grass
D57: Oat straw | G57: Arundo donax
D58: Rice straw | G58: Switchgrass
D59: Sorghum straw | G59: Willow
D60: Wheat straw | G60: Poplar
D61: Sugarcane bagasse | G61: Spruce
D62: Oil palm empty fruit bunch
D63: Wood forest residues | O63: Surplus to central grid
D64: Wood processing residues
C65: COGENERATION PROCESS (INTEGRATED WITH ETHANOL PRODUCTION)
K67: Water | P67: Energy Demand Biofuel Plant
E76: Biomass Residues from
E77: feedstock production or processing
O79: Surplus to central grid

Sheet Data Entry Needs
C3: DATA ENTRY FOR ETHANOL PRODUCTION
C6: Use white cells to input data | D6: Grey cells are used for calculations | F6: 3. Spruce | H6: cassava stalk | S6: =IF($S$16=2,TRUE,FALSE) -> FALSE
C7: Feedstock Availability and Cost
C8: =IF($S$16=1,TRUE,FALSE) -> TRUE | D8: =IF($S$16=2,TRUE,FALSE) -> FALSE
C9: Single feedstock | E9: Feedstock 1 | F9: Feedstock 2 | G9: Feedstock 3 | H9: Feedstock 4
C10: Multifeedstock | E10: Please Select | F10: Please Select | G10: Please Select | H10: Please Select | M10: Feedstock 1 | N10: Feedstock 2 | O10: Feedstock 3 | P10: Feedstock 4
C11: Feedstock | M11: =IF(E10="Please Select",TRUE,FALSE) -> TRUE | N11: =IF(F10="Please Select",TRUE,FALSE) -> TRUE | O11: =IF(G10="Please Select",TRUE,FALSE) -> TRUE | P11: =IF(H10="Please Select",TRUE,FALSE) -> TRUE
C12: Feedstock potential (t/year)
C13: Crop or Residue yield (t/ha)
C14: Feedstock Ligno. Energy Crop cost (cost of production) (USD/t)
C15: Feedstock Ligno. Energy Crop cost (market price) (USD/t)
C16: Feedstock Ligno. Residue price (USD/t) | E16: =IF(E$10="Ligno. Energy Crop",TRUE,FALSE) -> FALSE | F16: =IF(F$10="CONVENTIONAL",TRUE,FALSE) -> FALSE | G16: =IF(G$10="CONVENTIONAL",TRUE,FALSE) -> FALSE | H16: =IF(H$10="CONVENTIONAL",TRUE,FALSE) -> FALSE | M16: Feedstock 1 | N16: Feedstock 2 | O16: Feedstock 3 | P16: Feedstock 4 | R16: Modo de operación | S16: 1
E17: =IF(E10="Ligno. Energy Crops","Crop input data above!",+IF($E$10="Please Select",0,IF($C$18=FALSE,PRICE_RES1!$I$26,"Input data below!"))) -> 0 | F17: =IF(F10="Ligno. Energy Crops","Crop input data above!",+IF($F$10="Please Select",0,IF($C$18=FALSE,PRICE_RES2!$I$26,"Input data below!"))) -> 0 | G17: =IF(G10="Ligno. Energy Crops","Crop input data above!",+IF($G$10="Please Select",0,IF($C$18=FALSE,PRICE_RES3!$I$26,"Input data below!"))) -> 0 | H17: =IF(H10="Ligno. Energy Crops","Crop input data above!",+IF($H$10="Please Select",0,IF($C$18=FALSE,PRICE_RES4!$I$26,"Input data below!"))) -> 0 | M17: =IF(E17="Crop input data above!",TRUE,FALSE) -> FALSE | N17: =IF(F17="Crop input data above!",TRUE,FALSE) -> FALSE | O17: =IF(G17="Crop input data above!",TRUE,FALSE) -> FALSE | P17: =IF(H17="Crop input data above!",TRUE,FALSE) -> FALSE
C18: FALSE | M18: =IF($C$18,FALSE,TRUE) -> TRUE
C19: Feedstock storage cost (USD/t)
M20: =IF(M17,FALSE,TRUE) -> TRUE | N20: =IF(N17,FALSE,TRUE) -> TRUE | O20: =IF(O17,FALSE,TRUE) -> TRUE | P20: =IF(P17,FALSE,TRUE) -> TRUE
C21: Biofuel Production Cost and Financial Parameters
C24: Selection of technologies | M24: Cogeneration multiplier
C25: Pretreatment technology | F25: Cogeneration technology | M25: =IF(F26="No Cogeneration",TRUE,FALSE) -> FALSE
C26: Diluted Acid | F26: Simple | M26: =IF($M$25,0,1) -> 1
C27: ="Preteatment Technology with "&N123&" as agent " -> Preteatment Technology with Acid as agent | F27: ="Cog. Technology: "&N129 -> Cog. Technology: Condensing Turbine
C30: Chemical inputs* | E30: Unit | H30: Unit
C31: Ethanol inputs | F31: Ethanol inputs
C32: Ammonia | E32: USD/t | F32: Enzyme | H32: USD/t
C33: Yeast | E33: USD/t
C34: Sulfuric acid | E34: USD/t
C35: http://www.icis.com/chemicals/channel-info-chemicals-a-z/
C37: Utilities | E37: Unit
C38: Heat carrier | E38: USD/t
C39: Water | E39: USD/m3
C40: Electricity | E40: USD/kWh
C42: Labour | E42: Unit | H42: Unit
C43: Unskilled worker (Industry) | E43: USD/person-hour | F43: Working days per year | H43: days/year
C44: Skilled worker (Industry) | E44: USD/person-hour | F44: Miscellaneous cost (%)
C45: Unskilled worker (Agriculture - Collection) | E45: USD/person-hour
C46: Skilled worker (Agriculture - Collection) | E46: USD/person-hour
C48: Feedstock collection | E48: Unit | H48: Unit
C49: Working hours per day (manual) | E49: h/day | F49: Working hours per day (mechanized) | H49: h/day
C50: Diesel price | E50: USD/l
C52: Transportation | E52: Unit
C53: Feedstock (farm to plant) | E53: USD/t/km
C54: Biofuel (plant to distribution point) | E54: USD/t/km
C56: Storage | E56: Unit
C57: Ethanol storage cost | E57: USD/l/year | F57: Storage rate of ethanol
C59: Other costs
C60: Maintenance (%)
C61: Plant overhead (%)
C62: General and administrative (%)
C64: Price of co-products | E64: Unit | H64: Unit
C65: Carbon Dioxide from fermentation (CO2) | E65: USD/t | F65: Feed-in Tariff Electricity | H65: USD/kWh
C66: Lignin | E66: USD/t
C67: http://www.icis.com/chemicals/channel-info-chemicals-a-z/
C69: Price of transport fuels and net trade balance | E69: Unit | H69: Unit
C70: Net trade position – fossil fuels | E70: Is the main port located at the main city in the Country?
C71: Net trade position – biofuels
E73: Unit | H73: Unit
C74: =IF(U212="Net Importer","Gasoline FOB price","Gasoline FGP price") -> Gasoline FGP price | E74: USD/l | F74: =IF(U213="Net Exporter","Ethanol FGP price","Ethanol FOB price") -> Ethanol FGP price | H74: USD/l
C76: Distance from port to main city | E76: km
F77: TRUE
C78: Financial parameters | F78: FALSE
C79: Discount rate (%)
C80: Loan interest rate (%) | F80: =+"Plant Cost Index"&" during "&MONTH(TODAY())&"/"&YEAR(TODAY()) -> Plant Cost Index during 4/2017
C81: Loan term (years) | F81: http://www.intratec.us/free-tools/intratec-construction-index
C83: Loan ratio
C84: 5 ML/year | F84: FALSE
C85: 25 ML/year
C86: 50 ML/year
C87: 100 ML/year
C89: Labour and Land Parameters
E91: =+E11 ->  | F91: =+F11 ->  | G91: =+G11 ->  | H91: =+H11 -> 
C92: Crop/Residue yield (t/ha) | D92: Outgrowers | N92: Button mass balance
C93: Labour manual (person-day/ha) | D93: Outgrowers
C94: Labour machinery (person-hour/ha) | D94: Outgrowers
C95: Crop/Residue Yield (t/ha) | D95: Own Production
C96: Labour manual (person-day/ha) | D96: Own Production
C97: Labour machinery (person-hour/ha) | D97: Own Production
AD98: =+LEFT(C40,3) -> Ele | AE98: =+G40 -> 0 | AF98: =+J40 -> 0 | AG98: =+M40 -> 0 | AH98: =+P40 -> 0
C99: Additional Calculations/Analyses
C102: Greenhouse Gases (GHG) Assessment
C105: This analysis continues the environmental assesment started in crop tool for each feedstock, completing a cradle to gate assessment.
C106: Additional information and decissions are required, in order to complete GHG analysis.
C107: Please use the navigation buttons below to complete the information required for each feedstock.
N113: TRUE
N114: TRUE
C115: Mass & Energy balances
C117: This analysis shows the inputs and outputs of each technology for producing ethanol at the different plant capacities
N118: TRUE
N119: FALSE
N121: Diluted Acid | O121: Acid
N122: Steam Explosion | O122: Steam
N123: =IFERROR(VLOOKUP(C26,$N$121:$O$122,2,FALSE),"") -> Acid
N125: No Cogeneration | O125: Cogeneration is NOT considered in the analysis!
N126: Simple | O126: Condensing Turbine
N127: Semi-Advanced | O127: Back-pressure Steam Turbine
N128: Advanced | O128: BIGCC (Biomass Gasification Combined Cycle)
N129: =IFERROR(VLOOKUP(F26,$N$125:$O$128,2,FALSE),"") -> Condensing Turbine
S131: Wage1 | T131: =IF(OR($D$44="",$D$44=" "),TRUE,FALSE) -> TRUE
N132: Output calculated usin formulas presented in: | S132: Wage2 | T132: =IF(OR($D$43="",$D$43=" "),TRUE,FALSE) -> TRUE
N133: Cogeneration | S133: Diesel | T133: =IF(OR($D$50="",$D$50=" "),TRUE,FALSE) -> TRUE
N134: No Cogeneration | S134: Decision1 | T134: =+OR(T131,T132,T133) -> TRUE
N135: Simple | S135: Decision2 | T135: =+C18 -> FALSE
N136: Semi-Advanced
N137: Advanced
N142: List1 | O142: List2 | P142: List 3 | S142: =+$N$143&N162 -> Ligno. Residues1 | T142: =O144 -> Barley straw
L143: Please Select | M143: 1 | N143: Ligno. Residues | O143: Ligno. Residues | P143: Ligno. Energy Crops | S143: =+$N$143&N163 -> Ligno. Residues2 | T143: =O145 -> Maize stover
L144: Ligno. Residues | M144: 2 | N144: Ligno. Energy Crops | O144: Barley straw | P144: Miscanthus giganteus | S144: Ligno. Residues3 | T144: Oat straw
L145: Ligno. Energy Crops | M145: 3 | O145: Maize stover | P145: Napier grass | S145: Ligno. Residues4 | T145: Rice straw
M146: 4 | O146: Oat straw | P146: Arundo donax | S146: Ligno. Residues5 | T146: Sorghum straw
M147: 5 | O147: Rice straw | P147: Switchgrass | S147: Ligno. Residues6 | T147: Wheat straw
M148: 6 | O148: Sorghum straw | P148: Willow | S148: Ligno. Residues7 | T148: Sugarcane bagasse
M149: 7 | O149: Wheat straw | P149: Poplar | S149: Ligno. Residues8 | T149: Oil palm empty fruit bunch
M150: 8 | O150: Sugarcane bagasse | P150: Spruce | S150: Ligno. Residues9 | T150: Wood forest residues
M151: 9 | O151: Oil palm empty fruit bunch | S151: =+$N$143&N171 -> Ligno. Residues10 | T151: =O153 -> Wood processing residues
M152: 10 | O152: Wood forest residues | S152: =+$N$144&N162 -> Ligno. Energy Crops1 | T152: =P144 -> Miscanthus giganteus
M153: 11 | O153: Wood processing residues | S153: Ligno. Energy Crops2 | T153: Napier grass
S154: Ligno. Energy Crops3 | T154: Arundo donax
S155: Ligno. Energy Crops4 | T155: Switchgrass
S156: Ligno. Energy Crops5 | T156: Willow
S157: Ligno. Energy Crops6 | T157: Poplar
S158: Ligno. Energy Crops7 | T158: Spruce
U159: Please Select
N160: Feedstock 1 | O160: Selection Crop | P160: Crop
O161: =+E10 -> Please Select
N162: 1 | P162: =+IFERROR(VLOOKUP($O$161&N162,$S$142:$T$158,2,FALSE),"") -> 
N163: 2 | S163: PCI | T163: =IF(OR($H$80="",$H$80=" "),TRUE,FALSE) -> TRUE
N164: 3
N165: 4
N166: 5
N167: 6
N168: 7 | U168: FS1 | V168: FS2 | W168: FS3 | X168: FS4
N169: 8
N170: 9
N171: 10 | T171: Co-products | U171: =IFERROR(IF(VLOOKUP(E11,$T$142:$U$158,2,FALSE)="ethanol1",FALSE,TRUE),TRUE) -> TRUE | V171: =IFERROR(IF(VLOOKUP(F11,$T$142:$U$158,2,FALSE)="ethanol1",FALSE,TRUE),TRUE) -> TRUE | W171: =IFERROR(IF(VLOOKUP(G11,$T$142:$U$158,2,FALSE)="ethanol1",FALSE,TRUE),TRUE) -> TRUE | X171: =IFERROR(IF(VLOOKUP(H11,$T$142:$U$158,2,FALSE)="ethanol1",FALSE,TRUE),TRUE) -> TRUE | Y171: =+OR($U$171:$X$171) -> TRUE
N172: 11 | T172: Market Price | U172: =IFERROR(IF(VLOOKUP(E11,$T$142:$U$158,2,FALSE)="ethanol3",TRUE,FALSE),FALSE) -> FALSE | V172: =IFERROR(IF(VLOOKUP(F11,$T$142:$U$158,2,FALSE)="ethanol3",TRUE,FALSE),FALSE) -> FALSE | W172: =IFERROR(IF(VLOOKUP(G11,$T$142:$U$158,2,FALSE)="ethanol3",TRUE,FALSE),FALSE) -> FALSE | X172: =IFERROR(IF(VLOOKUP(H11,$T$142:$U$158,2,FALSE)="ethanol3",TRUE,FALSE),FALSE) -> FALSE | Y172: =+OR($U$172:$X$172) -> FALSE
N173: Feedstock 2 | O173: Selection Crop | P173: Crop
O174: =+$F$10 -> Please Select
N175: 1 | P175: =+IFERROR(VLOOKUP($O$174&N175,$S$142:$T$158,2,FALSE),"") -> 
N176: 2
N177: 3
N178: 4
N179: 5
N180: 6
N181: 7
N182: 8
N183: 9
N184: 10 | Z184: Criteria lvl2
N185: 11 | V185: ethanol3 | W185: ethanol1 | X185: ethanol2 | Z185: ethanol3 | AA185: ethanol1 | AB185: ethanol2
N186: Feedstock 3 | O186: Selection Crop | P186: Crop | U186: Feedstock 1 | V186: =IFERROR(IF($V$185=VLOOKUP($E$11,$T$142:$U$158,2,FALSE),1,0),0) -> 0 | W186: =IFERROR(IF($W$185=VLOOKUP($E$11,$T$142:$U$158,2,FALSE),1,0),0) -> 0 | X186: =IFERROR(IF($X$185=VLOOKUP($E$11,$T$142:$U$158,2,FALSE),1,0),0) -> 0 | Y186: Feedstock 1 | Z186: =IF(OR(IFERROR(V$185=VLOOKUP($E$11,$T$142:$U$159,2,FALSE),FALSE),$E$10="please select"),1,0) -> 1 | AA186: =IF(OR(IFERROR(W$185=VLOOKUP($E$11,$T$142:$U$159,2,FALSE),FALSE),$E$10="please select"),1,0) -> 1 | AB186: =IF(OR(IFERROR(X$185=VLOOKUP($E$11,$T$142:$U$159,2,FALSE),FALSE),$E$10="please select"),1,0) -> 1
O187: =+$G$10 -> Please Select | U187: Feedstock 2 | V187: =IFERROR(IF($V$185=VLOOKUP($F$11,$T$142:$U$158,2,FALSE),1,0),0) -> 0 | W187: =IFERROR(IF($W$185=VLOOKUP($F$11,$T$142:$U$158,2,FALSE),1,0),0) -> 0 | X187: =IFERROR(IF($X$185=VLOOKUP($F$11,$T$142:$U$158,2,FALSE),1,0),0) -> 0 | Y187: Feedstock 2 | Z187: =IF(OR(IFERROR(V$185=VLOOKUP($F$11,$T$142:$U$159,2,FALSE),FALSE),$F$10="please select"),1,0) -> 1 | AA187: =IF(OR(IFERROR(W$185=VLOOKUP($F$11,$T$142:$U$159,2,FALSE),FALSE),$F$10="please select"),1,0) -> 1 | AB187: =IF(OR(IFERROR(X$185=VLOOKUP($F$11,$T$142:$U$159,2,FALSE),FALSE),$F$10="please select"),1,0) -> 1
N188: 1 | P188: =+IFERROR(VLOOKUP($O$187&N188,$S$142:$T$158,2,FALSE),"") ->  | U188: Feedstock 3 | V188: =+IFERROR(IF($V$185=VLOOKUP($G$11,$T$142:$U$158,2,FALSE),1,0),0) -> 0 | W188: =IFERROR(IF($W$185=VLOOKUP($G$11,$T$142:$U$158,2,FALSE),1,0),0) -> 0 | X188: =IFERROR(IF($X$185=VLOOKUP($G$11,$T$142:$U$158,2,FALSE),1,0),0) -> 0 | Y188: Feedstock 3 | Z188: =IF(OR(IFERROR(V$185=VLOOKUP($G$11,$T$142:$U$159,2,FALSE),FALSE),$G$10="please select"),1,0) -> 1 | AA188: =IF(OR(IFERROR(W$185=VLOOKUP($G$11,$T$142:$U$159,2,FALSE),FALSE),$G$10="please select"),1,0) -> 1 | AB188: =IF(OR(IFERROR(X$185=VLOOKUP($G$11,$T$142:$U$159,2,FALSE),FALSE),$G$10="please select"),1,0) -> 1
N189: 2 | U189: Feedstock 4 | V189: =IFERROR(IF($V$185=VLOOKUP($H$11,$T$142:$U$158,2,FALSE),1,0),0) -> 0 | W189: =IFERROR(IF($W$185=VLOOKUP($H$11,$T$142:$U$158,2,FALSE),1,0),0) -> 0 | X189: =IFERROR(IF($X$185=VLOOKUP($H$11,$T$142:$U$158,2,FALSE),1,0),0) -> 0 | Y189: Feedstock 4 | Z189: =IF(OR(IFERROR(V$185=VLOOKUP($H$11,$T$142:$U$159,2,FALSE),FALSE),$H$10="please select"),1,0) -> 1 | AA189: =IF(OR(IFERROR(W$185=VLOOKUP($H$11,$T$142:$U$159,2,FALSE),FALSE),$H$10="please select"),1,0) -> 1 | AB189: =IF(OR(IFERROR(X$185=VLOOKUP($H$11,$T$142:$U$159,2,FALSE),FALSE),$H$10="please select"),1,0) -> 1
N190: 3 | V190: =SUM(V186:V189) -> 0 | W190: =SUM(W186:W189) -> 0 | X190: =SUM(X186:X189) -> 0 | Z190: =SUM(Z186:Z189) -> 4 | AA190: =SUM(AA186:AA189) -> 4 | AB190: =SUM(AB186:AB189) -> 4
N191: 4 | V191: =+IF(V190>0,TRUE,FALSE) -> FALSE | W191: =+IF(W190>0,TRUE,FALSE) -> FALSE | X191: =+IF(X190>0,TRUE,FALSE) -> FALSE
N192: 5 | U192: Conventional3 | V192: =+IF($V$191=TRUE,FALSE,TRUE) -> TRUE | W192: Solvent | X192: =+NOT(OR(Allocator!#REF!)) -> 
N193: 6 | U193: Conventional1 | V193: =+IF(OR($W$191,$X$191)=TRUE,FALSE,TRUE) -> TRUE | W193: Lime | X193: =+NOT(W191) -> TRUE
N194: 7 | U194: Conventional2 | V194: =+IF($X$191=TRUE,FALSE,TRUE) -> TRUE
N195: 8
N196: 9
N197: 10
N198: 11
N199: Feedstock 4 | O199: Selection Crop | P199: Crop
O200: =+$H$10 -> Please Select
N201: 1 | P201: =+IFERROR(VLOOKUP($O$200&N201,$S$142:$T$158,2,FALSE),"") -> 
N202: 2
N203: 3
N204: 4
N205: 5
N206: 6
N207: 7 | Q207: yes
N208: 8 | Q208: no
N209: 9 | Q209: FS1 | R209: FS2 | S209: FS3 | T209: FS4
N210: 10 | Q210: =+IF($E$10="please select",TRUE,FALSE) -> TRUE | R210: =+IF($F$10="please select",TRUE,FALSE) -> TRUE | S210: =+IF($G$10="please select",TRUE,FALSE) -> TRUE | T210: =+IF($H$10="please select",TRUE,FALSE) -> TRUE | V210: =+IF(U214="no",FALSE,TRUE) -> TRUE
N211: 11 | V211: Logic
Q212: fossil fuel | R212: biofuel | T212: fossil fuel | U212: Net exporter | V212: =+IF($U$212="net exporter",TRUE,FALSE) -> TRUE
Q213: Net importer | R213: Net importer | T213: biofuel | U213: Net exporter | V213: =+IF($U$213="net exporter",TRUE,FALSE) -> TRUE
Q214: Net exporter | R214: Net exporter | T214: Transportation | U214: yes | V214: =+IF(U214="yes",0,1) -> 0 | W214: =+$D$76 -> 0
R215: Interested in exporting | V215: =+IF(U214="no",TRUE,FALSE) -> FALSE
R216: Transportation | U216: Price | V216: Kg/L | W216: Transportation | X216: Total
T217: Gasoline | U217: =+$D$74 -> 0 | V217: 0.745 | W217: =+VLOOKUP($T$212&$U$212,$P$217:$R$225,3,FALSE)*$V217*$V$214*$W$214/1000 -> 0 | X217: =+W217+U217 -> 0
N218: fossil fuel | O218: Net importer | P218: =+N218&O218 -> fossil fuelNet importer | Q218: Gasoline FOB price | R218: 1 | T218: Ethanol | U218: =+$G$74 -> 0 | V218: 0.789 | W218: =+VLOOKUP($T$213&$U$213,$P$217:$R$225,3,FALSE)*$V218*$V$214*$W$214/1000 -> 0 | X218: =+W218+U218 -> 0
N219: fossil fuel | O219: Net exporter | P219: =+N219&O219 -> fossil fuelNet exporter | Q219: Gasoline FGP price | R219: 0 | T219: Condicional transportation
N220: biofuel | O220: Net importer | P220: =+N220&O220 -> biofuelNet importer | Q220: Conventional FOB price | R220: 1 | T220: =+IF(U214="no",FALSE,TRUE) -> TRUE
N221: biofuel | O221: Net exporter | P221: =+N221&O221 -> biofuelNet exporter | Q221: Conventional FGP price | R221: 0
N222: biofuel | O222: Interested in exporting | P222: =+N222&O222 -> biofuelInterested in exporting | Q222: Conventional FOB price | R222: -1
O224: 14 | P224: 15 | Q224: 17 | R224: 18 | S224: 19
N225: c | O225: Conventional | R225: Residues | S225: FALSE
O226: Production Cost | P226: Market Price | R226: Collection Cost | S226: Market Price | U226: Own Production | V226: Outgowers
M227: e | N227: Feedstock 1 | O227: =+INDIRECT($M227&O$224) -> 0 | P227: 0 | Q227: 0 | R227: =+INDIRECT($M227&R$224) -> 0 | S227: 0 | T227: =ABS((12-COUNTBLANK(Planner_MFS!$G$12:$R$12))/12) -> 1 | U227: =+IF($Q227,$O227,0) -> 0 | V227: =+IF($Q227,$P227,IF($S$225,$R227,$S227)) -> 0
M228: f | N228: Feedstock 2 | O228: 0 | P228: 0 | Q228: 0 | R228: 0 | S228: 0 | T228: =ABS((12-COUNTBLANK(Planner_MFS!$G$13:$R$13))/12) -> 0.4166666667 | U228: =+IF($Q228,$O228,0) -> 0 | V228: =+IF($Q228,$P228,IF($S$225,$R228,$S228)) -> 0
M229: g | N229: Feedstock 3 | O229: 0 | P229: 0 | Q229: 0 | R229: 0 | S229: 0 | T229: =ABS((12-COUNTBLANK(Planner_MFS!$G$14:$R$14))/12) -> 1 | U229: =+IF($Q229,$O229,0) -> 0 | V229: =+IF($Q229,$P229,IF($S$225,$R229,$S229)) -> 0
M230: h | N230: Feedstock 4 | O230: 0 | P230: 0 | Q230: 0 | R230: 0 | S230: 0 | T230: =ABS((12-COUNTBLANK(Planner_MFS!$G$15:$R$15))/12) -> 0 | U230: =+IF($Q230,$O230,0) -> 0 | V230: =+IF($Q230,$P230,IF($S$225,$R230,$S230)) -> 0
N231: Multifeedstock | U231: =+SUMPRODUCT($T$227:$T$230,U$227:U$230) -> 0 | V231: =+SUMPRODUCT($T$227:$T$230,V$227:V$230) -> 0

Sheet PRICE_RES1 (hidden)
C3: =+"COLLECTION COSTS CALCULATOR FOR "&UPPER('Data Entry Needs'!$E$11&" ") -> COLLECTION COSTS CALCULATOR FOR | P3: Sources of biomass | Q3: No. | R3: Selection2 | S3: Number | T3: Mechanized | U3: Number of skilled workers | V3: person-hour/ha
P4: Agriculture residues spread in the field | Q4: 1 | R4: =+$F$11 -> Mechanized | T4: Mechanized2 | U4: Skilled labour wage | V4: USD/person-hour
P5: Agriculture residues collected from field | Q5: 2 | R5: Selection1 | S5: 1 | T5: Mechanized4 | U5: Average fuel economy | V5: l/h
C6: Use white cells to input data | E6: Grey cells are used for calculations | P6: Agriculture residues from food processing plant | Q6: 3 | R6: =+VLOOKUP($C$11,$P$3:$Q$10,2,FALSE) -> 1 | S6: 2 | T6: Mechanized5 | U6: Fuel price | V6: USD/l
P7: Forestry | Q7: 4 | S7: 3 | T7: Semi-mechanized | U7: Number of skilled workers | V7: person-hour/ha
C8: Biomass Collection Definition | P8: Forestry and plantation residues | Q8: 5 | S8: 4 | T8: Semi-mechanized1 | U8: Number of unskilled workers | V8: person-hour/ha
P9: Residues from wood industry | Q9: 6 | S9: 5 | T9: Semi-mechanized2 | U9: Skilled labour wage | V9: USD/person-hour
C10: Sources of biomass | F10: Collecting method | P10: Dedicated wood energy plantation | Q10: 7 | T10: Semi-mechanized3 | U10: Unskilled labour wage | V10: USD/person-hour
C11: Agriculture residues spread in the field | F11: Mechanized | P11: Collection method | T11: Semi-mechanized4 | U11: Average fuel economy | V11: l/h
P12: Mechanized | T12: Semi-mechanized5 | U12: Fuel Price | V12: USD/l
C13: =IF($R$6=7,"Warning: Selecting this option you are assuming that briquette producer owns the wood plantation. Then, feedstock price is equal to production cost. ",IF(OR($R$6=1,$R$6=5,$R$6=4),"Biomass Collection Definition","Warning: Selecting this option you are assuming that this type of biomass is already collected. Then, only transportation cost should be considered. ")) -> Biomass Collection Definition | P13: Semi-mechanized | T13: Manual | U13: Number of unskilled workers | V13: person-hour/ha
P14: Manual | T14: Manual2 | U14: Unskilled labour wage | V14: USD/person-hour
C16: Biomass Price Definition
C17: Labour cost | D17: Quantity | E17: Unit | F17: Quantity | H17: Unit | I17: Total | J17: Unit
C18: =+IF(OR($R$6=1,$R$6=4,$R$6=5),IFERROR(VLOOKUP($R$4&$S4,$T$3:$V$14,2,FALSE),""),"") -> Number of skilled workers | E18: =IF(OR($R$6=1,$R$6=4,$R$6=5),IFERROR(VLOOKUP($R$4&$S4,$T$3:$V$23,3,FALSE),""),"") -> person-hour/ha | F18: =IF(OR($R$6=1,$R$6=4,$R$6=5),IFERROR(VLOOKUP($R$4&$S6,$T$3:$V$14,2,FALSE),""),"") -> Skilled labour wage | G18: =IF(F18="","",IF(F18="unskilled labour wage",'Data Entry Needs'!D45,IF(F18="skilled labour wage",'Data Entry Needs'!$D$46))) -> 0 | H18: =IF(OR($R$6=1,$R$6=4,$R$6=5),IFERROR(VLOOKUP($R$4&$S6,$T$3:$V$20,3,FALSE),""),"") -> USD/person-hour | I18: =+IFERROR(G18*D18*IF($F$11="Manual",(STORAGE_FS1!$F$38/STORAGE_FS1!$F$10)*(COST_FS1!$D$9/COST_FS1!$D$10),(COST_FS1!$D$9/COST_FS1!$D$10)*(STORAGE_FS1!$F$38/STORAGE_FS1!$F$10)),"") ->  | J18: =+IF(OR($R$6=1,$R$6=4,$R$6=5),"USD/year","") -> USD/year
C19: =IF(OR($R$6=1,$R$6=4,$R$6=5),IFERROR(VLOOKUP($R$4&$S5,$T$3:$V$14,2,FALSE),""),"") ->  | E19: =IF(OR($R$6=1,$R$6=4,$R$6=5),IFERROR(VLOOKUP($R$4&$S5,$T$3:$V$23,3,FALSE),""),"") ->  | F19: =IF(OR($R$6=1,$R$6=4,$R$6=5),IFERROR(VLOOKUP($R$4&$S7,$T$3:$V$14,2,FALSE),""),"") ->  | G19: =IF(F19="","",'Data Entry Needs'!$D$45) ->  | H19: =IF(OR($R$6=1,$R$6=4,$R$6=5),IFERROR(VLOOKUP($R$4&$S7,$T$3:$V$27,3,FALSE),""),"") ->  | I19: =+IFERROR(G19*D19*IF($F$11="Manual",(STORAGE_FS1!$F$38/STORAGE_FS1!$F$10)*(COST_FS1!$D$9/COST_FS1!$D$10),(COST_FS1!$D$9/COST_FS1!$D$10)*(STORAGE_FS1!$F$38/STORAGE_FS1!$F$10)),"") ->  | J19: =+IF(OR($R$6=1,$R$6=4,$R$6=5),"USD/year","") -> USD/year
D20: =+IF(AND(C18="",C19=""),0,IF(C18="",D19,IF(C19="",D18,D18+D19))) -> 0 | H20: =+IF(OR($R$6=1,$R$6=4,$R$6=5),"Subtotal","") -> Subtotal | I20: =+SUMIF($I$18:$I$19,">0") -> 0 | J20: =+IF(OR($R$6=1,$R$6=4,$R$6=5),"USD/year","") -> USD/year
C21: Machinery & operating cost | D21: Quantity | E21: Unit | F21: Quantity | H21: Unit | I21: Total | J21: Unit
C22: =IF(OR($R$6=1,$R$6=4,$R$6=5),IFERROR(VLOOKUP($R$4&$S8,$T$3:$V$14,2,FALSE),""),"") -> Average fuel economy | E22: =IF(OR($R$6=1,$R$6=4,$R$6=5),IFERROR(VLOOKUP($R$4&$S8,$T$3:$V$27,3,FALSE),""),"") -> l/h | F22: =IF(OR($R$6=1,$R$6=4,$R$6=5),IFERROR(VLOOKUP($R$4&$S9,$T$3:$V$14,2,FALSE),""),"") -> Fuel price | G22: =IF(F22="","",'Data Entry Needs'!$D$50) -> 0 | H22: =+IFERROR(VLOOKUP($R$4&$S9,$T$3:$V$14,3,FALSE),"") -> USD/l | I22: =+IFERROR(G22*D22*IF($F$11="Manual",0,$D$18*'Data Entry Needs'!$E$12/'Data Entry Needs'!$E$92),"") ->  | J22: =+IF(OR($R$6=1,$R$6=4,$R$6=5),"USD/year","") -> USD/year
H23: =+IF(OR($R$6=1,$R$6=4,$R$6=5),"Subtotal","") -> Subtotal | I23: =+I22 ->  | J23: =+IF(OR($R$6=1,$R$6=4,$R$6=5),"USD/year","") -> USD/year
H24: =+IF(OR($R$6=1,$R$6=4,$R$6=5),"Total","") -> Total | I24: =IFERROR(I20+I23,I20) -> 0 | J24: =+IF(OR($R$6=1,$R$6=4,$R$6=5),"USD/year","") -> USD/year
D26: =IF($R$6=7,"Production cost of ","Collection price of ")&'Data Entry Needs'!$E$11 -> Collection price of | I26: =IFERROR(I24/'Data Entry Needs'!$E$12,"") ->  | J26: USD/ton
O45: Collection Method | P45: Efficiency Factor
O46: Mechanized | P46: 1
O47: Semi-Mechanized | P47: 1
O48: Manual | P48: 1

Sheet STORAGE_FS1 (hidden)
C3: =UPPER("Biomass storage calculation for "&'Data Entry Needs'!$E$11) -> BIOMASS STORAGE CALCULATION FOR
C5: Biomass Safety Stock Rate Definition
F8: Capacities (Million litres per year)
D9: Unit | F9: 5 | I9: 25 | L9: 50 | O9: 100
C10: Biomass consumption | D10: t/year | F10: =+COST_FS1!$G$17 ->  | I10: =+COST_FS1!$G$18 ->  | L10: =+COST_FS1!$G$19 ->  | O10: =+COST_FS1!$G$20 -> 
D11: t/month | F11: =F10/12 ->  | I11: =I10/12 ->  | L11: =L10/12 ->  | O11: =O10/12 -> 
D12: kg/day | F12: =F10/365 ->  | I12: =I10/365 ->  | L12: =L10/365 ->  | O12: =O10/365 -> 
C14: Biomass production within a specific distance | D14: t/year | F14: =+COST_FS1!$D$9 -> 0 | I14: =F14 -> 0 | L14: =I14 -> 0 | O14: =L14 -> 0
C16: Biomass safety stock rate | F16: =+F17/100 -> 0.3 | G16: =+G17/100 -> 0 | H16: 0 | I16: 0.3 | J16: 0 | K16: 0 | L16: 0.3 | M16: 0 | N16: 0 | O16: 0.3
F17: 30 | I17: 30 | L17: 30 | O17: 30
C18: Biomass stock pile capacity | D18: t | F18: =+MAX(F25:F36) ->  | I18: =+MAX(I25:I36) ->  | L18: =+MAX(L25:L36) ->  | O18: =+MAX(O25:O36) -> 
C20: Maximum Storage Definition
F22: Capacities (Million litres per year)
F23: 5 | I23: 25 | L23: 50 | O23: 100 | AD23: Depletion time definition
C24: Harvest Month Selection | D24: Storage Month | E24: Monthly Consumption (t/month) | F24: Cumulative Storage (ton) | G24: Storage Depletion (t/month) | H24: Monthly Consumption (t/month) | I24: Cumulative Storage (ton) | J24: Storage Depletion (t/month) | K24: Monthly Consumption (t/month) | L24: Cumulative Storage (ton) | M24: Storage Depletion (t/month) | N24: Monthly Consumption (t/month) | O24: Cumulative Storage (ton) | P24: Storage Depletion (t/month) | AB24: Harvest Period | AC24: Harvest Period | AD24: Depletion term | AE24: Depletion month | AF24: EQ term | AG24: Depletion time | AH24: Storageterm | AI24: Storage month | AJ24: EQ term | AK24: Storage time
C25: January | D25: =+IF($AC25=0,0,IF($AC25>$AC36,1,IF($AC25=$AC36,$D36+1,IF($AC36>$AC25,0)))) -> 0 | E25: =+F$11 ->  | F25: =+IF(AND($D$25=1,$D$36=0,$D$26=0),$F$11*$AG25+$F$11*$F$16,IF($D25>0,($AG25*$F$11/$AK25)*$D25+$F$11*$F$16,0)) -> 0 | G25: =IF(AND($D$25=1,$D$36=0,$D$26=0),$F$11*$AG25+$G$36-E25,IF($D25>0,IFERROR(($AG25*$F$11/$AK25)*$D25,"")+$F$11*$F$16,IF($D25=0,G36-E25))) ->  | H25: =+I$11 ->  | I25: =+IF(AND($D$25=1,$D$36=0,$D$26=0),$I$11*$AG25+$I$11*$I$16,IF($D25>0,($AG25*$I$11/$AK25)*$D25+$I$11*$I$16,0)) -> 0 | J25: =IF(AND($D$25=1,$D$36=0,$D$26=0),$I$11*$AG25+$J$36-H25,IF($D25>0,IFERROR(($AG25*$I$11/$AK25)*$D25,"")+$I$11*$I$16,IF($D25=0,J36-H25))) ->  | K25: =+L$11 ->  | L25: =+IF(AND($D$25=1,$D$36=0,$D$26=0),$L$11*$AG25+$L$11*$L$16,IF($D25>0,($AG25*$L$11/$AK25)*$D25+$L$11*$L$16,0)) -> 0 | M25: =IF(AND($D$25=1,$D$36=0,$D$26=0),$L$11*$AG25+$M$36-K25,IF($D25>0,IFERROR(($AG25*$L$11/$AK25)*$D25,"")+$L$11*$L$16,IF($D25=0,M36-K25))) ->  | N25: =+O$11 ->  | O25: =+IF(AND($D$25=1,$D$36=0,$D$26=0),$O$11*$AG25+$O$11*$O$16,IF($D25>0,($AG25*$O$11/$AK25)*$D25+$O$11*$O$16,0)) -> 0 | P25: =IF(AND($D$25=1,$D$36=0,$D$26=0),$O$11*$AG25+$P$36-N25,IF($D25>0,IFERROR(($AG25*$O$11/$AK25)*$D25,"")+$O$11*$O$16,IF($D25=0,P36-N25))) ->  | AB25: FALSE | AC25: =+N(AB25) -> 0 | AD25: =+IF(AND(AC26>AC25,AC25=0),"Last"&AF25,"") -> Last1 | AE25: =+IF($AC25=1,0,IF($AC25<$AC36,1,IF($AC25=$AC36,$AE36+1,IF($AC36>$AC25,1)))) -> 2 | AF25: 1 | AG25: =IFERROR(VLOOKUP("LAST"&AF25,$AD$25:$AE$36,2,FALSE),AK25) -> 2 | AH25: =+IF(AND(AI25>AI26,AI26=0),"Last"&AJ25,"") ->  | AI25: =+IF($AC25=0,0,IF($AC25>$AC36,1,IF($AC25=$AC36,$AI36+1,IF($AC36>$AC25,0)))) -> 0 | AJ25: 1 | AK25: =IFERROR(VLOOKUP("LAST"&AJ25,$AH$25:$AI$36,2,FALSE),VLOOKUP("LAST"&1,$AH$25:$AI$36,2,FALSE)) -> 10
C26: February | D26: =+IF($AC26=0,0,IF($AC26>$AC25,1,IF($AC26=$AC25,$D25+1,IF($AC25>$AC26,0)))) -> 1 | F26: =IF($D26>0,($AG26*$F$11/$AK26)*$D26+$F$11*$F$16,0) ->  | G26: =+IF($D26>0,IFERROR(($AG26*$F$11/$AK26)*$D26,"")+$F$11*$F$16,IF($D26=0,G25-E26)) ->  | I26: =IF($D26>0,($AG26*$I$11/$AK26)*$D26+$I$11*$I$16,0) ->  | J26: =+IF($D26>0,IFERROR(($AG26*$I$11/$AK26)*$D26,"")+$I$11*$I$16,IF($D26=0,J25-H26)) ->  | L26: =IF($D26>0,($AG26*$L$11/$AK26)*$D26+$L$11*$L$16,0) ->  | M26: =+IF($D26>0,IFERROR(($AG26*$L$11/$AK26)*$D26,"")+$L$11*$L$16,IF($D26=0,M25-K26)) ->  | O26: =IF($D26>0,($AG26*$O$11/$AK26)*$D26+$O$11*$O$16,0) ->  | P26: =+IF($D26>0,IFERROR(($AG26*$O$11/$AK26)*$D26,"")+$O$11*$O$16,IF($D26=0,P25-N26)) ->  | AB26: TRUE | AC26: =+N(AB26) -> 1 | AD26: =+IF(AND(AC27>AC26,AC26=0),"Last"&AF26,"") ->  | AE26: =+IF($AC26=1,0,IF($AC26<$AC25,1,IF($AC26=$AC25,$AE25+1,IF($AC25>$AC26,1)))) -> 0 | AF26: =+IF($AE25>$AE26,$AF25+1,$AF25) -> 2 | AG26: =IFERROR(VLOOKUP("LAST"&AF26,$AD$25:$AE$36,2,FALSE),$AG$25) -> 2 | AH26: =+IF(AND(AI26>AI27,AI27=0),"Last"&AJ26,"") ->  | AI26: =+IF($AC26=0,0,IF($AC26>$AC25,1,IF($AC26=$AC25,$AI25+1,IF($AC25>$AC26,0)))) -> 1 | AJ26: =+IF($AI25>$AI26,$AJ25+1,$AJ25) -> 1 | AK26: 10
C27: March | D27: 2 | AB27: TRUE | AC27: 1 | AD27: =+IF(AND(AC28>AC27,AC27=0),"Last"&AF27,"") ->  | AE27: 0 | AF27: 2 | AG27: 2 | AH27: =+IF(AND(AI27>AI28,AI28=0),"Last"&AJ27,"") ->  | AI27: 2 | AJ27: 1 | AK27: 10
C28: April | D28: 3 | AB28: TRUE | AC28: 1 | AD28: =+IF(AND(AC29>AC28,AC28=0),"Last"&AF28,"") ->  | AE28: 0 | AF28: 2 | AG28: 2 | AH28: =+IF(AND(AI28>AI29,AI29=0),"Last"&AJ28,"") ->  | AI28: 3 | AJ28: 1 | AK28: 10
C29: May | D29: 4 | AB29: TRUE | AC29: 1 | AE29: 0 | AF29: 2 | AG29: 2 | AH29: =+IF(AND(AI29>AI30,AI30=0),"Last"&AJ29,"") ->  | AI29: 4 | AJ29: 1 | AK29: 10
C30: June | D30: 5 | AB30: TRUE | AC30: 1 | AE30: 0 | AF30: 2 | AG30: 2 | AI30: 5 | AJ30: 1 | AK30: 10
C31: July | D31: 6 | AB31: TRUE | AC31: 1 | AE31: 0 | AF31: 2 | AG31: 2 | AI31: 6 | AJ31: 1 | AK31: 10
C32: August | D32: 7 | AB32: TRUE | AC32: 1 | AE32: 0 | AF32: 2 | AG32: 2 | AI32: 7 | AJ32: 1 | AK32: 10
C33: September | D33: 8 | AB33: TRUE | AC33: 1 | AE33: 0 | AF33: 2 | AG33: 2 | AI33: 8 | AJ33: 1 | AK33: 10
C34: October | D34: 9 | AB34: TRUE | AC34: 1 | AE34: 0 | AF34: 2 | AG34: 2 | AI34: 9 | AJ34: 1 | AK34: 10
C35: November | D35: 10 | AB35: TRUE | AC35: 1 | AE35: 0 | AF35: 2 | AG35: 2 | AH35: Last1 | AI35: 10 | AJ35: 1 | AK35: 10
C36: December | D36: 0 | F36: 0 | I36: 0 | L36: 0 | O36: 0 | AB36: FALSE | AC36: 0 | AD36: =+IF(AND(AC25>AC36,AC36=0),"Last"&AF36,"") ->  | AE36: 1 | AF36: 2 | AG36: 2 | AH36: =+IF(AND(AI36>AI25,AI25=0),"Last"&AJ36,"") ->  | AI36: 0 | AJ36: 2 | AK36: 10
C38: Maximum Storage Capacity Required (ton) | F38: =+ROUNDUP(MAX(F25:F36),0) ->  | I38: =+ROUNDUP(MAX(I25:I36),0) ->  | L38: =+ROUNDUP(MAX(L25:L36),0) ->  | O38: =+ROUNDUP(MAX(O25:O36),0) -> 
C39: Minimum Safety Storage (ton) | F39: =+ROUNDUP(MIN(G25:G36),0) ->  | I39: =+ROUNDUP(MIN(J25:J36),0) ->  | L39: =+ROUNDUP(MIN(M25:M36),0) ->  | O39: =+ROUNDUP(MIN(P25:P36),0) -> 
AB40: No. Storage Months | AC40: =+COUNTIF(AC25:AC36,">0") -> 10
C41: Monthly Consumption of Biomass Stocked | AB41: Total Depletion Period | AC41: =12-AC40 -> 2
AH82: =5&" (ML/year)" -> 5 (ML/year) | AI82: =25&" (ML/year)" -> 25 (ML/year) | AJ82: =50&" (ML/year)" -> 50 (ML/year) | AK82: =100&" (ML/year)" -> 100 (ML/year)
AG83: =+LEFT(C25,3) -> Jan | AH83: =+G25 ->  | AI83: =+J25 ->  | AJ83: =+M25 ->  | AK83: =+P25 -> 
AG84: Feb
AG85: Mar
AG86: Apr
AG87: May
AG88: Jun
AG89: =+LEFT(C31,3) -> Jul | AH89: =+G31 ->  | AI89: =+J31 ->  | AJ89: =+M31 ->  | AK89: =+P31 -> 
AG90: Aug
AG91: Sep
AG92: Oct
AG93: Nov
AG94: Dec

Sheet COST_FS1
C3: =+UPPER(" Processing costs for ethanol production from "&'Data Entry Needs'!$E$11) -> PROCESSING COSTS FOR ETHANOL PRODUCTION FROM
C6: Use white cells to input data | D6: Grey cells are used for calculations
C7: Summary of Feedstock and Storage | F7: Financial Parameters | J7: Investment Cost Update
C9: Feedstock available (t/year) | D9: =+'Data Entry Needs'!$E$12 -> 0 | F9: Discount rate (%) | H9: =+'Data Entry Needs'!D79 -> 0 | J9: =+'Data Entry Needs'!$F$80 -> Plant Cost Index during 4/2017 | L9: =+'Data Entry Needs'!$H$80 -> 0
C10: ='Data Entry Needs'!$C$57&" (USD/l)" -> Ethanol storage cost (USD/l) | D10: ='Data Entry Needs'!$D$57 -> 0 | F10: Loan interest rate (%) | H10: =+'Data Entry Needs'!$D$80 -> 0
C11: ='Data Entry Needs'!$F$57 -> Storage rate of ethanol | D11: ='Data Entry Needs'!$H$57 -> 0 | F11: Loan term (years) | H11: =+'Data Entry Needs'!D81 -> 0
C12: Feedstock storage cost (USD/t) | D12: =+'Data Entry Needs'!$E$19 -> 0
C16: Transport Distance of Feedstock | E16: Transport Quantity
C17: Distance SIZE 1 (5 ML) (km) | E17: Size 1 (t/year) | G17: =+$F$42 -> 
C18: Distance SIZE 2 (25 ML) (km) | E18: Size 2 (t/year) | G18: =+$H$42 -> 
C19: Distance SIZE 3 (50 ML) (km) | E19: Size 3 (t/year) | G19: =+$J$42 -> 
C20: Distance SIZE 4 (100 ML) (km) | E20: Size 4 (t/year) | G20: =+$L$42 -> 
C22: Feedstock Production Schemes
C23: PLEASE INCLUDE AT LEAST ONE SCENARIO TO OBTAIN RESULTS
C24: Scenario 1: Own Production | F24: Scenario 2: Mixed | J24: Scenario 3: Outgrowers
C25: =+"Description: 100% of "&'Data Entry Needs'!$E$11&" feedstock collected on site" -> Description: 100% of feedstock collected on site | F25: =+"Description: "&$AC$139&"% of "&'Data Entry Needs'!$E$11&" feedstock produced directly by processing plant, and "&(100-$AC$139)&"% provided by outgrowers at market price." -> Description: 60% of feedstock produced directly by processing plant, and 40% provided by outgrowers at market price. | J25: =+"Description: 100% of "&'Data Entry Needs'!$E$11&" feedstock is provided by outgrowers at market price." -> Description: 100% of feedstock is provided by outgrowers at market price.
F28: ="Feedstock Price = "&$AC$139&"%*Own Production Cost + "&(100-$AC$139)&"%*Outgrowers Cost" -> Feedstock Price = 60%*Own Production Cost + 40%*Outgrowers Cost | J28: Feedstock Price = 100%*Market Price or Collection Cost | K28: Feedstock Price = 100%*Production Cost
C29: =IF('Data Entry Needs'!E10 = "Ligno. Residues",0,+'Data Entry Needs'!$E$14) -> 0 | F29: =C29*COST_FS1!$AB$140+J29*COST_FS1!$AB$139 -> 0 | J29: =IF('Data Entry Needs'!E10="Ligno. Energy Crops",'Data Entry Needs'!$E$15,IF('Data Entry Needs'!C18,'Data Entry Needs'!E18,'Data Entry Needs'!E17)) -> 0
C31: Production Cost Details
F33: Capacities (Million litres per year)
F34: 5 | H34: 25 | J34: 50 | L34: 100
F35: Operating hours per year | G35: =+'Data Entry Needs'!$G$43*24 -> 0 | H35: Operating hours per year | I35: =+'Data Entry Needs'!$G$43*24 -> 0 | J35: Operating hours per year | K35: =+'Data Entry Needs'!$G$43*24 -> 0 | L35: Operating hours per year | M35: =+'Data Entry Needs'!$G$43*24 -> 0
C36: Scenario 1: Own Production
C37: Scenario 2: Mixed
C38: Scenario 3: Outgrowers
C40: Feedstock | D40: Unit | E40: Unit Price | F40: Quantity | G40: Total | H40: Quantity | I40: Total | J40: Quantity | K40: Total | L40: Quantity | M40: Total
E41: (USD) | F41: (Unit) | G41: (USD/year) | H41: (Unit) | I41: (USD/year) | J41: (Unit) | K41: (USD/year) | L41: (Unit) | M41: (USD/year)
C42: =+'Data Entry Needs'!$E$11&" Scenario 1" -> Scenario 1 | D42: =Allocator!C35 -> t/year | E42: =+$C$29 -> 0 | F42: =+Allocator!$D$35 ->  | G42: =+F42*E42 ->  | H42: =+Allocator!$E$35 ->  | I42: =+H42*$E42 ->  | J42: =+Allocator!$F$35 ->  | K42: =+J42*$E42 ->  | L42: =+Allocator!$G$35 ->  | M42: =+L42*$E42 -> 
C43: =+'Data Entry Needs'!$E$11&" Scenario 2" -> Scenario 2 | D43: =D42 -> t/year | E43: =+$F$29 -> 0 | F43: =+Allocator!$D$35 ->  | G43: =+F43*E43 ->  | H43: =+Allocator!$E$35 ->  | I43: =+H43*$E43 ->  | J43: =+Allocator!$F$35 ->  | K43: =+J43*$E43 ->  | L43: =+Allocator!$G$35 ->  | M43: =+L43*$E43 -> 
C44: =+'Data Entry Needs'!$E$11&" Scenario 3" -> Scenario 3 | D44: =D43 -> t/year | E44: =+J29 -> 0 | F44: =+Allocator!$D$35 ->  | G44: =+F44*E44 ->  | H44: =+Allocator!$E$35 ->  | I44: =+H44*$E44 ->  | J44: =+Allocator!$F$35 ->  | K44: =+J44*$E44 ->  | L44: =+Allocator!$G$35 ->  | M44: =+L44*$E44 -> 
C46: Other chemical inputs | D46: Unit | E46: Unit Price | F46: Quantity | G46: Total | H46: Quantity | I46: Total | J46: Quantity | K46: Total | L46: Quantity | M46: Total
E47: (USD) | F47: (Unit) | G47: (USD/year) | H47: (Unit) | I47: (USD/year) | J47: (Unit) | K47: (USD/year) | L47: (Unit) | M47: (USD/year)
C48: =Allocator!B36 -> Sulfuric Acid | D48: =Allocator!C36 -> t/year | E48: ='Data Entry Needs'!D34 -> 0 | F48: =Allocator!D36 ->  | G48: =+F48*E48 ->  | H48: =Allocator!E36 ->  | I48: =+H48*$E48 ->  | J48: =Allocator!F36 ->  | K48: =+J48*$E48 ->  | L48: =Allocator!G36 ->  | M48: =+L48*$E48 -> 
C49: =Allocator!B37 -> Water | D49: =Allocator!C37 -> m3/year | E49: ='Data Entry Needs'!D39 -> 0 | F49: =Allocator!D37 ->  | G49: =+F49*E49 ->  | H49: =Allocator!E37 ->  | I49: =+H49*$E49 ->  | J49: =Allocator!F37 ->  | K49: =+J49*$E49 ->  | L49: =Allocator!G37 ->  | M49: =+L49*$E49 -> 
C50: =Allocator!B38 -> Ammonia | D50: =Allocator!C38 -> t/year | E50: ='Data Entry Needs'!D32 -> 0 | F50: =Allocator!D38 ->  | G50: =+F50*E50 ->  | H50: =Allocator!E38 ->  | I50: =+H50*$E50 ->  | J50: =Allocator!F38 ->  | K50: =+J50*$E50 ->  | L50: =Allocator!G38 ->  | M50: =+L50*$E50 -> 
C51: =Allocator!B39 -> Enzyme | D51: =Allocator!C39 -> t/year | E51: ='Data Entry Needs'!G32 -> 0 | F51: =Allocator!D39 ->  | G51: =+F51*E51 ->  | H51: =Allocator!E39 ->  | I51: =+H51*$E51 ->  | J51: =Allocator!F39 ->  | K51: =+J51*$E51 ->  | L51: =Allocator!G39 ->  | M51: =+L51*$E51 -> 
C52: =Allocator!B40 -> Yeast | D52: =Allocator!C40 -> t/year | E52: ='Data Entry Needs'!D33 -> 0 | F52: =Allocator!D40 ->  | G52: =+F52*E52 ->  | H52: =Allocator!E40 ->  | I52: =+H52*$E52 ->  | J52: =Allocator!F40 ->  | K52: =+J52*$E52 ->  | L52: =Allocator!G40 ->  | M52: =+L52*$E52 -> 
C53: Subtotal | G53: =SUM(G48:G52) ->  | I53: =SUM(I48:I52) ->  | K53: =SUM(K48:K52) ->  | M53: =SUM(M48:M52) -> 
C55: Energy inputs | D55: Unit | E55: Unit Price | F55: Quantity | G55: Total | H55: Quantity | I55: Total | J55: Quantity | K55: Total | L55: Quantity | M55: Total
E56: (USD) | F56: (Unit) | G56: (USD/year) | H56: (Unit/year) | I56: (USD/year) | J56: (Unit/year) | K56: (USD/year) | L56: (Unit/year) | M56: (USD/year)
C57: =Allocator!B41 -> Steam | D57: =Allocator!C41 -> t/y | E57: ='Data Entry Needs'!D38 -> 0 | F57: =Allocator!D41 ->  | G57: =+F57*E57 ->  | H57: =Allocator!E41 ->  | I57: =+H57*$E57 ->  | J57: =Allocator!F41 ->  | K57: =+J57*$E57 ->  | L57: =Allocator!G41 ->  | M57: =+L57*$E57 -> 
C58: =Allocator!B42 -> Electricity | D58: =Allocator!C42 -> kWh/y | E58: ='Data Entry Needs'!D40 -> 0 | F58: =Allocator!D42 ->  | G58: =+F58*E58 ->  | H58: =Allocator!E42 ->  | I58: =+H58*$E58 ->  | J58: =Allocator!F42 ->  | K58: =+J58*$E58 ->  | L58: =Allocator!G42 ->  | M58: =+L58*$E58 -> 
C59: Subtotal | G59: =SUM(G57:G58) ->  | I59: =SUM(I57:I58) ->  | K59: =SUM(K57:K58) ->  | M59: =SUM(M57:M58) -> 
C61: Labour and miscellaneous cost | D61: Unit | E61: Unit Price | F61: Quantity | G61: Total | H61: Quantity | I61: Total | J61: Quantity | K61: Total | L61: Quantity | M61: Total
E62: (USD/hour) | F62: (Unit) | G62: (USD/year) | H62: (Unit) | I62: (USD/year) | J62: (Unit) | K62: (USD/year) | L62: (Unit) | M62: (USD/year)
C63: Unskilled worker | D63: # Employee | E63: =+'Data Entry Needs'!$D$43 -> 0 | F63: =+IF((F34/3.785)<6,6,ROUND(F34/3.785,0))*3 -> 18 | G63: =+E63*F63*8000 -> 0 | H63: =+IF((H34/3.785)<6,6,ROUND(H34/3.785,0))*3 -> 21 | I63: =+$E63*H63*8000 -> 0 | J63: =+IF((J34/3.785)<6,6,ROUND(J34/3.785,0))*3 -> 39 | K63: =+$E63*J63*8000 -> 0 | L63: =+IF((L34/3.785)<6,6,ROUND(L34/3.785,0))*3 -> 78 | M63: =+$E63*L63*8000 -> 0
C64: Skilled worker | D64: # Employee | E64: =+'Data Entry Needs'!$D$44 -> 0 | F64: =+ROUND(F63/4,0) -> 5 | G64: =+E64*F64*8000 -> 0 | H64: =+ROUND(H63/4,0) -> 5 | I64: =+$E64*H64*8000 -> 0 | J64: =+ROUND(J63/4,0) -> 10 | K64: =+$E64*J64*8000 -> 0 | L64: =+ROUND(L63/4,0) -> 20 | M64: =+$E64*L64*8000 -> 0
C65: Miscellaneous costs | F65: =+'Data Entry Needs'!$G$44 -> 0 | G65: =+F65*SUM(G63:G64) -> 0 | H65: =+$F$65 -> 0 | I65: =+H65*SUM(I63:I64) -> 0 | J65: =+H65 -> 0 | K65: =+J65*SUM(K63:K64) -> 0 | L65: =+J65 -> 0 | M65: =+L65*SUM(M63:M64) -> 0
C66: Subtotal | G66: =SUM(G63:G65) -> 0 | I66: =SUM(I63:I65) -> 0 | K66: =SUM(K63:K65) -> 0 | M66: =SUM(M63:M65) -> 0
C68: Transportation | D68: Unit | E68: Unit Price | F68: Quantity | G68: Total | H68: Quantity | I68: Total | J68: Quantity | K68: Total | L68: Quantity | M68: Total
E69: (USD/t/unit) | F69: (Unit) | G69: (USD/year) | H69: (Unit) | I69: (USD/year) | J69: (Unit) | K69: (USD/year) | L69: (Unit) | M69: (USD/year)
C70: Feedstock (farm to plant) | D70: km | E70: =+'Data Entry Needs'!$D$53 -> 0 | F70: =+$D$17 -> 0 | G70: =+$E$70*F70*$G$17 ->  | H70: =+$D$18 -> 0 | I70: =+$E$70*H70*$G$18 ->  | J70: =+$D$19 -> 0 | K70: =+$E$70*J70*$G$19 ->  | L70: =$D$20 -> 0 | M70: =+$E$70*L70*$G$20 -> 
C72: Subtotal | G72: =SUM(G70:G70) ->  | I72: =SUM(I70:I70) ->  | K72: =SUM(K70:K70) ->  | M72: =SUM(M70:M70) -> 
C74: Investment | D74: Unit | E74: Years | F74: Total | G74: Depreciation | H74: Total | I74: Depreciation | J74: Total | K74: Depreciation | L74: Total | M74: Depreciation
C75: Investment | F75: (USD) | G75: (USD/year) | H75: (USD) | I75: (USD/year) | J75: (USD) | K75: (USD/year) | L75: (USD) | M75: (USD/year)
C76: Buildings | D76: USD | E76: 20 | F76: =Allocator!J35 -> 7418000 | G76: =+F76/$E76 -> 370900 | H76: =Allocator!K35 -> 19482000 | I76: =+H76/$E76 -> 974100 | J76: =Allocator!L35 -> 29528000 | K76: =+J76/$E76 -> 1476400 | L76: =Allocator!M35 -> 44757000 | M76: =+L76/$E76 -> 2237850
C77: Plant and Equipment | D77: USD | E77: 20 | F77: =Allocator!J36 -> 28290000 | G77: =+F77/$E77 -> 1414500 | H77: =Allocator!K36 -> 74303000 | I77: =+H77/$E77 -> 3715150 | J77: =Allocator!L36 -> 112622000 | K77: =+J77/$E77 -> 5631100 | L77: =Allocator!M36 -> 170703000 | M77: =+L77/$E77 -> 8535150
C79: Total investment | F79: =SUM(F76:F78) -> 35708000 | H79: =SUM(H76:H78) -> 93785000 | J79: =SUM(J76:J78) -> 142150000 | L79: =SUM(L76:L78) -> 215460000
F80: Total Depreciation | G80: =SUM(G76:G79) -> 1785400 | H80: Total Depreciation | I80: =SUM(I76:I79) -> 4689250 | J80: Total Depreciation | K80: =SUM(K76:K79) -> 7107500 | L80: Total Depreciation | M80: =SUM(M76:M79) -> 10773000
C81: Maintenance cost | E81: =+'Data Entry Needs'!$D$60 -> 0 | G81: =+$E$81*G80 -> 0 | I81: =+E81*$I$80 -> 0 | K81: =+$E$81*K80 -> 0 | M81: =+$E$81*M80 -> 0
C82: Subtotal | G82: =SUM(G80:G81) -> 1785400 | I82: =SUM(I80:I81) -> 4689250 | K82: =SUM(K80:K81) -> 7107500 | M82: =SUM(M80:M81) -> 10773000
C84: Storage | D84: Unit | E84: Unit Price | F84: Quantity | G84: Total | H84: Quantity | I84: Total | J84: Quantity | K84: Total | L84: Quantity | M84: Total
D85: (%) | E85: (USD) | F85: (Unit) | G85: (USD/year) | H85: (Unit) | I85: (USD/year) | J85: (Unit) | K85: (USD/year) | L85: (Unit) | M85: (USD/year)
C86: Feedstock (biomass) | D86: t | E86: =+$D$12 -> 0 | F86: =+STORAGE_FS1!$F$38 ->  | G86: =+F86*$E$86 ->  | H86: =+STORAGE_FS1!$I$38 ->  | I86: =+H86*$E$86 ->  | J86: =+STORAGE_FS1!$L$38 ->  | K86: =+J86*$E$86 ->  | L86: =+STORAGE_FS1!$O$38 ->  | M86: =+L86*$E$86 -> 
C87: =+'Data Entry Needs'!$E$10& " Ethanol" -> Please Select Ethanol | D87: litre | E87: =+$D$10 -> 0 | F87: =5000000*$D$11 -> 0 | G87: =+$E$87*F87 -> 0 | H87: =25000000*$D$11 -> 0 | I87: =+$E$87*H87 -> 0 | J87: =50000000*$D$11 -> 0 | K87: =+$E$87*J87 -> 0 | L87: =100000000*$D$11 -> 0 | M87: =+$E$87*L87 -> 0
C88: Subtotal | G88: =SUM(G86:G87) ->  | I88: =SUM(I86:I87) ->  | K88: =SUM(K86:K87) ->  | M88: =SUM(M86:M87) -> 
C90: Other costs | D90: Unit | E90: Rate (%) | G90: Total | I90: Total | K90: Total | M90: Total
G91: (USD/year) | I91: (USD/year) | K91: (USD/year) | M91: (USD/year)
C92: Plant overhead | D92: USD | E92: =+'Data Entry Needs'!$D$61 -> 0 | G92: =+(G63+G64+G81)*$E$92 -> 0 | I92: =+(I63+I64+I81)*$E$92 -> 0 | K92: =+(K63+K64+K81)*$E$92 -> 0 | M92: =+(M63+M64+M81)*$E$92 -> 0
C93: General and administrative | D93: USD | E93: =+'Data Entry Needs'!$D$62 -> 0 | G93: =+(G59+G66+G92+G81)*$E$93 ->  | I93: =+(I59+I66+I92+I81)*$E$93 ->  | K93: =+(K59+K66+K92+K81)*$E$93 ->  | M93: =+(M59+M66+M92+M81)*$E$93 -> 
C94: Loan interest | D94: USD | G94: =-FA5_FS1_SC1!$G$68 -> 0 | I94: =-FA25_FS1_SC1!$G$68 -> 0 | K94: =-FA50_FS1_SC1!$G$68 -> 0 | M94: =-FA100_FS1_SC1!$G$68 -> 0
C95: Subtotal | G95: =SUM(G92:G94) ->  | I95: =SUM(I92:I94) ->  | K95: =SUM(K92:K94) ->  | M95: =SUM(M92:M94) -> 
C97: Co-Products Credits | D97: Unit | E97: Unit Price | F97: Quantity | G97: Total | H97: Quantity | I97: Total | J97: Quantity | K97: Total | L97: Quantity | M97: Total
E98: (USD) | F98: (Unit) | G98: (USD/year) | H98: (Unit) | I98: (USD/year) | J98: (Unit) | K98: (USD/year) | L98: (Unit) | M98: (USD/year)
C99: =Allocator!B45 -> Electricity | D99: =Allocator!C45 -> kWh/y | E99: ='Data Entry Needs'!G65 -> 0 | F99: =Allocator!D45 ->  | G99: =$E$99*F99 ->  | H99: =Allocator!E45 ->  | I99: =$E$99*H99 ->  | J99: =Allocator!F45 ->  | K99: =$E$99*J99 ->  | L99: =Allocator!G45 ->  | M99: =$E$99*L99 -> 
C100: =Allocator!B47 -> CO2 | D100: =Allocator!C47 -> t/year | E100: ='Data Entry Needs'!D65 -> 0 | F100: =Allocator!D47 ->  | G100: =$E$100*F100 ->  | H100: =Allocator!E47 ->  | I100: =$E$100*H100 ->  | J100: =Allocator!F47 ->  | K100: =$E$100*J100 ->  | L100: =Allocator!G47 ->  | M100: =$E$100*L100 -> 
C101: =Allocator!B48 -> Lignin | D101: =Allocator!C48 -> t/year | E101: ='Data Entry Needs'!D66 -> 0 | F101: =Allocator!D48 ->  | G101: =$E$101*F101 ->  | H101: =Allocator!E48 ->  | I101: =$E$101*H101 ->  | J101: =Allocator!F48 ->  | K101: =$E$101*J101 ->  | L101: =Allocator!G48 ->  | M101: =$E$101*L101 -> 
C102: Subtotal | G102: =SUM(G99:G101) ->  | I102: =SUM(I99:I101) ->  | K102: =SUM(K99:K101) ->  | M102: =SUM(M99:M101) -> 
C104: Total Production Costs (USD/year)
F106: Total | G106: Total | H106: Total | I106: Total | J106: Total | K106: Total | L106: Total | M106: Total
F107: (USD/year) | G107: (USD/l) | H107: (USD/year) | I107: (USD/l) | J107: (USD/year) | K107: (USD/l) | L107: (USD/year) | M107: (USD/l)
C108: Scenario 1
C109: Total operating costs | F109: =G42+G53+G59+G66+G72 ->  | G109: =+F109/5000000 ->  | H109: =I42+I53+I59+I66+I72 ->  | I109: =+H109/25000000 ->  | J109: =K42+K53+K59+K66+K72 ->  | K109: =+J109/50000000 ->  | L109: =M42+M53+M59+M66+M72 ->  | M109: =+L109/100000000 -> 
C110: Total fixed costs | F110: =G82+G88 ->  | G110: =+F110/5000000 ->  | H110: =I82+I88 ->  | I110: =+H110/25000000 ->  | J110: =K82+K88 ->  | K110: =+J110/50000000 ->  | L110: =M82+M88 ->  | M110: =+L110/100000000 -> 
C111: Total other costs | F111: =G95 ->  | G111: =+F111/5000000 ->  | H111: =I95 ->  | I111: =+H111/25000000 ->  | J111: =K95 ->  | K111: =+J111/50000000 ->  | L111: =M95 ->  | M111: =+L111/100000000 -> 
C112: Co-Products Credits | F112: =-G102 ->  | G112: =+F112/5000000 ->  | H112: =-I102 ->  | I112: =+H112/25000000 ->  | J112: =-K102 ->  | K112: =+J112/50000000 ->  | L112: =-M102 ->  | M112: =+L112/100000000 -> 
C113: Total production costs scenario 1 (USD/year) | F113: =SUM(F109:F112) ->  | H113: =SUM(H109:H112) ->  | J113: =SUM(J109:J112) ->  | L113: =SUM(L109:L112) -> 
C114: Total production costs scenario 1 (USD/l) | G114: =SUM(G109:G112) ->  | I114: =SUM(I109:I112) ->  | K114: =SUM(K109:K113) ->  | M114: =SUM(M109:M113) -> 
C116: Scenario 2
C117: Total operating costs | F117: =G43+G53+G59+G66+G72 ->  | G117: =+F117/5000000 ->  | H117: =I43+I53+I59+I66+I72 ->  | I117: =+H117/25000000 ->  | J117: =K43+K53+K59+K66+K72 ->  | K117: =+J117/50000000 ->  | L117: =M43+M53+M59+M66+M72 ->  | M117: =+L117/100000000 -> 
C118: Total fixed costs | F118: =G82+G88 ->  | G118: =+F118/5000000 ->  | H118: =I82+I88 ->  | I118: =+H118/25000000 ->  | J118: =K82+K88 ->  | K118: =+J118/50000000 ->  | L118: =M82+M88 ->  | M118: =+L118/100000000 -> 
C119: Total other costs | F119: =G95 ->  | G119: =+F119/5000000 ->  | H119: =I95 ->  | I119: =+H119/25000000 ->  | J119: =K95 ->  | K119: =+J119/50000000 ->  | L119: =M95 ->  | M119: =+L119/100000000 -> 
C120: Co-Products Credits | F120: =-G102 ->  | G120: =G112 ->  | H120: =-I102 ->  | J120: =-K102 ->  | L120: =-M102 -> 
C121: Total production costs scenario 2 (USD/year) | F121: =SUM(F117:F120) ->  | H121: =SUM(H117:H120) ->  | J121: =SUM(J117:J120) ->  | L121: =SUM(L117:L120) ->  | AL121: 1
C122: Total production costs scenario 2 (USD/l) | G122: =SUM(G117:G121) ->  | I122: =SUM(I117:I120) ->  | K122: =SUM(K117:K121) ->  | M122: =SUM(M117:M121) ->  | AL122: 1
AL123: 1
C124: Scenario 3 | AL124: 1
C125: Total operating costs | F125: =G44+G53+G59+G66+G72 ->  | G125: =+F125/5000000 ->  | H125: =I44+I53+I59+I66+I72 ->  | I125: =+H125/25000000 ->  | J125: =K44+K53+K59+K66+K72 ->  | K125: =+J125/50000000 ->  | L125: =M44+M53+M59+M66+M72 ->  | M125: =+L125/100000000 ->  | AL125: 1
C126: Total fixed costs | F126: =G82+G88 ->  | G126: =+F126/5000000 ->  | H126: =I82+I88 ->  | I126: =+H126/25000000 ->  | J126: =K82+K88 ->  | K126: =+J126/50000000 ->  | L126: =M82+M88 ->  | M126: =+L126/100000000 -> 
C127: Total other costs | F127: =G95 ->  | G127: =+F127/5000000 ->  | H127: =I95 ->  | I127: =+H127/25000000 ->  | J127: =K95 ->  | K127: =+J127/50000000 ->  | L127: =M95 ->  | M127: =+L127/100000000 -> 
C128: Co-Products Credits | F128: =-G102 ->  | G128: =G120 ->  | H128: =-I102 ->  | J128: =-K102 ->  | L128: =-M102 -> 
C129: Total production costs scenario 3 (USD/year) | F129: =SUM(F125:F128) ->  | H129: =SUM(H125:H128) ->  | J129: =SUM(J125:J128) ->  | L129: =SUM(L125:L128) -> 
C130: Total production costs scenario 3 (USD/l) | G130: =SUM(G125:G128) ->  | I130: =SUM(I125:I128) ->  | K130: =SUM(K125:K129) ->  | M130: =SUM(M125:M129) -> 
AA138: sc2 | AC138: Ratios | AD138: sc1 | AF138: sc3
AA139: Factory (%) | AB139: =+AC139/100 -> 0.6 | AC139: 60 | AD139: Factory (%) | AE139: 1 | AF139: Factory (%) | AG139: 0 | AH139: yes
AA140: Outgrower (%) | AB140: =1-AB139 -> 0.4 | AD140: Outgrower (%) | AE140: 0 | AF140: Outgrower (%) | AG140: 1 | AH140: no

Sheet FA5_FS1_SC1 (hidden)
B2: =+UPPER("FINANCIAL EVALUATION OF ETHANOL PRODUCTION 5 Million Litres/year SCENARIO 1") -> FINANCIAL EVALUATION OF ETHANOL PRODUCTION 5 MILLION LITRES/YEAR SCENARIO 1
A5: ="Revenues of "&'Data Entry Needs'!$E$10&" production (Benefit)" -> Revenues of Please Select production (Benefit)
B7: Operating Year | C7: 0 | D7: 1 | E7: 2 | F7: 3 | G7: 4 | H7: 5 | I7: 6 | J7: 7 | K7: 8 | L7: 9 | M7: 10 | N7: 11 | O7: 12 | P7: 13 | Q7: 14 | R7: 15 | S7: 16 | T7: 17 | U7: 18 | V7: 19 | W7: 20
B9: Capacity (million of litres) | C9: 5 | D9: =C9 -> 5 | E9: 5 | F9: 5 | G9: 5 | H9: 5 | I9: 5 | J9: 5 | K9: 5 | L9: 5 | M9: 5 | N9: 5 | O9: 5 | P9: 5 | Q9: 5 | R9: 5 | S9: 5 | T9: 5 | U9: 5 | V9: 5 | W9: 5
B10: Annual production (litres per year) | C10: =+C9*1000000 -> 5000000 | D10: =+C10 -> 5000000 | E10: 5000000 | F10: 5000000 | G10: 5000000 | H10: 5000000 | I10: 5000000 | J10: 5000000 | K10: 5000000 | L10: 5000000 | M10: 5000000 | N10: 5000000 | O10: 5000000 | P10: 5000000 | Q10: 5000000 | R10: 5000000 | S10: 5000000 | T10: 5000000 | U10: 5000000 | V10: 5000000 | W10: 5000000
B11: Loss in production processing (%) | D11: 0 | E11: =+D11 -> 0 | F11: 0 | G11: 0 | H11: 0 | I11: 0 | J11: 0 | K11: 0 | L11: 0 | M11: 0 | N11: 0 | O11: 0 | P11: 0 | Q11: 0 | R11: 0 | S11: 0 | T11: 0 | U11: 0 | V11: 0 | W11: 0
B12: Sales to customers (litres per year) | C12: =+C10*(1-C11) -> 5000000 | D12: =+C12 -> 5000000 | E12: =+D12 -> 5000000 | F12: 5000000 | G12: 5000000 | H12: 5000000 | I12: 5000000 | J12: 5000000 | K12: 5000000 | L12: 5000000 | M12: 5000000 | N12: 5000000 | O12: 5000000 | P12: 5000000 | Q12: 5000000 | R12: 5000000 | S12: 5000000 | T12: 5000000 | U12: 5000000 | V12: 5000000 | W12: 5000000
B14: ="Price of ethanol (USD/litre)" -> Price of ethanol (USD/litre) | C14: =+VLOOKUP("Ethanol",'Data Entry Needs'!$T$217:$X$219,5,FALSE) -> 0 | D14: =+C14*(100%+D15) -> 0 | E14: 0 | F14: 0 | G14: 0 | H14: 0 | I14: 0 | J14: 0 | K14: 0 | L14: 0 | M14: 0 | N14: 0 | O14: 0 | P14: 0 | Q14: 0 | R14: 0 | S14: 0 | T14: 0 | U14: 0 | V14: 0 | W14: 0
B15: ="Increase rate of price of "&'Data Entry Needs'!$E$10&" (%)" -> Increase rate of price of Please Select (%) | C15: =+'Data Entry Needs'!$O$211 -> 0 | D15: =+C15 -> 0 | E15: =+D15 -> 0 | F15: 0 | G15: 0 | H15: 0 | I15: 0 | J15: 0 | K15: 0 | L15: 0 | M15: 0 | N15: 0 | O15: 0 | P15: 0 | Q15: 0 | R15: 0 | S15: 0 | T15: 0 | U15: 0 | V15: 0 | W15: 0
B16: Income (USD per year) | C16: =+C12*C14 -> 0 | D16: 0 | E16: 0 | F16: 0 | G16: 0 | H16: 0 | I16: 0 | J16: 0 | K16: 0 | L16: 0 | M16: 0 | N16: 0 | O16: 0 | P16: 0 | Q16: 0 | R16: 0 | S16: 0 | T16: 0 | U16: 0 | V16: 0 | W16: 0
B17: Income Electricity Generation (USD/year) | C17: =COST_FS1!$G$99 ->  | D17: =C17 ->  | E17: =D17 -> 
B18: By-products revenues (USD/year) | C18: =COST_FS1!$G$100+COST_FS1!$G$101 ->  | D18: =C18 ->  | E18: =D18 -> 
B20: Total income | D20: =+D16+D17+D18 ->  | E20: =+E16+E17+E18 -> 
A23: Capital and operating cost
B25: Operating Year | C25: Appraisal | D25: 1 | E25: 2 | F25: 3 | G25: 4 | H25: 5 | I25: 6 | J25: 7 | K25: 8 | L25: 9 | M25: 10 | N25: 11 | O25: 12 | P25: 13 | Q25: 14 | R25: 15 | S25: 16 | T25: 17 | U25: 18 | V25: 19 | W25: 20
B26: Direct capital cost (USD)
B27: Equipments | C27: =+COST_FS1!$F76 -> 7418000
B28: Building | C28: =+COST_FS1!$F77 -> 28290000 | N28: =+C28 -> 28290000
N29: =+C29 -> 0
B31: Total capital cost (USD) | C31: =C27+C28 -> 35708000 | D31: =D27+D28+D29 -> 0 | E31: 0 | F31: 0 | G31: 0 | H31: 0 | I31: 0 | J31: 0 | K31: 0 | L31: 0 | M31: 0 | N31: 28290000 | O31: 0 | P31: 0 | Q31: 0 | R31: 0 | S31: 0 | T31: 0 | U31: 0 | V31: 0 | W31: 0
B32: Capital cost (USD/MLN litres) | C32: =+C31/C9 -> 7141600
B33: Capital cost (USD/ litre) | C33: =+C31/C12 -> 7.1416
B36: Operating Year | C36: Appraisal | D36: 1 | E36: 2 | F36: 3 | G36: 4 | H36: 5 | I36: 6 | J36: 7 | K36: 8 | L36: 9 | M36: 10 | N36: 11 | O36: 12 | P36: 13 | Q36: 14 | R36: 15 | S36: 16 | T36: 17 | U36: 18 | V36: 19 | W36: 20
B37: Annual operating and maintenance cost
B38: Sub-total input cost (USD) | C38: =+C39+C40+C41 ->  | D38: =+D39+D40+D41 -> 
B39: Feedstock cost (USD/year) | C39: =+COST_FS1!$G$42 ->  | D39: =+C39 -> 
B40: Other raw material costs (USD/year) | C40: =COST_FS1!$G$53 ->  | D40: =+C40 -> 
B41: Cost of energy inputs (USD/year) | C41: =COST_FS1!$G$59 ->  | D41: =C41 ->  | E41: =D41 -> 
B42: Labour cost (USD/year) | C42: =+COST_FS1!$G$66 -> 0 | D42: =C42*(1+D62) -> 0 | E42: 0 | F42: 0 | G42: 0 | H42: 0 | I42: 0 | J42: 0 | K42: 0 | L42: 0 | M42: 0 | N42: 0 | O42: 0 | P42: 0 | Q42: 0 | R42: 0 | S42: 0 | T42: 0 | U42: 0 | V42: 0 | W42: 0
B43: Transportation cost (USD/year) | C43: =+COST_FS1!$G$72 ->  | D43: =+C43 -> 
B44: Investment cost (USD/year) | C44: =+COST_FS1!$G$80 -> 1785400 | D44: =+C44 -> 1785400 | E44: 1785400 | F44: 1785400 | G44: 1785400 | H44: 1785400 | I44: 1785400 | J44: 1785400 | K44: 1785400 | L44: 1785400 | M44: 1785400 | N44: 1785400 | O44: 1785400 | P44: 1785400 | Q44: 1785400 | R44: 1785400 | S44: 1785400 | T44: 1785400 | U44: 1785400 | V44: 1785400 | W44: 1785400
B45: Maintenance cost (USD/year) | C45: =+COST_FS1!$G$81 -> 0 | D45: =+C45 -> 0 | E45: 0 | F45: 0 | G45: 0 | H45: 0 | I45: 0 | J45: 0 | K45: 0 | L45: 0 | M45: 0 | N45: 0 | O45: 0 | P45: 0 | Q45: 0 | R45: 0 | S45: 0 | T45: 0 | U45: 0 | V45: 0 | W45: 0
B46: Storage cost (USD/year) | C46: =+COST_FS1!$G$88 ->  | D46: =C46 -> 
B47: Plant overhead (USD/year) | C47: =+COST_FS1!$G$92 -> 0 | D47: =+C47 -> 0 | E47: 0 | F47: 0 | G47: 0 | H47: 0 | I47: 0 | J47: 0 | K47: 0 | L47: 0 | M47: 0 | N47: 0 | O47: 0 | P47: 0 | Q47: 0 | R47: 0 | S47: 0 | T47: 0 | U47: 0 | V47: 0 | W47: 0
B48: General and administrative cost (USD/year) | C48: =+COST_FS1!$G$93 ->  | D48: =+C48 -> 
B49: Total annualized cost (USD) | C49: =SUM(C39:C48) -> 
B50: Total cost per litre (USD/l) | C50: =+C49/C12 -> 
A52: Financial parameters
B53: Operating Year | C53: Appraisal | D53: 1 | E53: 2 | F53: 3 | G53: 4 | H53: 5 | I53: 6 | J53: 7 | K53: 8 | L53: 9 | M53: 10 | N53: 11 | O53: 12 | P53: 13 | Q53: 14 | R53: 15 | S53: 16 | T53: 17 | U53: 18 | V53: 19 | W53: 20
B54: Raw material cost escalation rate (%) | D54: 0 | E54: =D54 -> 0 | F54: 0 | G54: 0 | H54: 0 | I54: 0 | J54: 0 | K54: 0 | L54: 0 | M54: 0 | N54: 0 | O54: 0 | P54: 0 | Q54: 0 | R54: 0 | S54: 0 | T54: 0 | U54: 0 | V54: 0 | W54: 0
B55: Inflation rate (%) | D55: =+'Data Entry Needs'!$O$212 -> 0 | E55: =D55 -> 0 | F55: 0 | G55: 0 | H55: 0 | I55: 0 | J55: 0 | K55: 0 | L55: 0 | M55: 0 | N55: 0 | O55: 0 | P55: 0 | Q55: 0 | R55: 0 | S55: 0 | T55: 0 | U55: 0 | V55: 0 | W55: 0
B56: Discount rate (%) | C56: =+'Data Entry Needs'!$D$79 -> 0
B57: Debt ratio (%) | C57: =+'Data Entry Needs'!$D$84 -> 0
B59: Loan | D59: 1 | E59: 2 | F59: 3 | G59: 4 | H59: 5 | I59: 6 | J59: 7 | K59: 8 | L59: 9 | M59: 10 | N59: 11 | O59: 12 | P59: 13 | Q59: 14 | R59: 15 | S59: 16 | T59: 17 | U59: 18 | V59: 19 | W59: 20
B60: Loan amount (USD ) | C60: =C57*C31 -> 0
B61: Increasing rate of price of biodiesel (%) | C61: =+'Data Entry Needs'!$O$211 -> 0 | D61: =+C61 -> 0 | E61: 0 | F61: 0 | G61: 0 | H61: 0 | I61: 0 | J61: 0 | K61: 0 | L61: 0 | M61: 0 | N61: 0 | O61: 0 | P61: 0 | Q61: 0 | R61: 0 | S61: 0 | T61: 0 | U61: 0 | V61: 0 | W61: 0
B62: Escalation rate of labour cost (%) | D62: 0 | E62: =+D62 -> 0 | F62: 0 | G62: 0 | H62: 0 | I62: 0 | J62: 0 | K62: 0 | L62: 0 | M62: 0 | N62: 0 | O62: 0 | P62: 0 | Q62: 0 | R62: 0 | S62: 0 | T62: 0 | U62: 0 | V62: 0 | W62: 0
B63: Loan interest rate (%) | C63: =+'Data Entry Needs'!$D$80 -> 0
B64: Loan term (years) | C64: =+'Data Entry Needs'!$D$81 -> 0
B65: Loan payment (USD/month) | C65: =(PMT(C63/12,(12*C64),C60)) -> 
B66: Loan payment (USD/year) | D66: =IF(D53<=$C$64,$C$65*12,0) -> 0 | E66: =IF(E53<=$C$64,$C$65*12,0) -> 0 | F66: 0 | G66: 0 | H66: 0 | I66: 0 | J66: 0 | K66: 0 | L66: 0 | M66: 0 | N66: 0 | O66: 0 | P66: 0 | Q66: 0 | R66: 0 | S66: 0 | T66: 0 | U66: 0 | V66: 0 | W66: 0
B67: Total loan payment (USD) | C67: =SUM(D66:W66) -> 0
B68: Loan interest payment (USD) | C68: =C67+C60 -> 0 | D68: Average loan interest payment for project lifetime | G68: =C68/20 -> 0 | H68: USD per year
A70: Income tax analysis
B71: Operating Year | C71: Appraisal | D71: 1 | E71: 2 | F71: 3 | G71: 4 | H71: 5 | I71: 6 | J71: 7 | K71: 8 | L71: 9 | M71: 10 | N71: 11 | O71: 12 | P71: 13 | Q71: 14 | R71: 15 | S71: 16 | T71: 17 | U71: 18 | V71: 19 | W71: 20
B72: Effective income tax rate (%) | C72: 0 | D72: =C72 -> 0 | E72: 0 | F72: 0 | G72: 0 | H72: 0 | I72: 0 | J72: 0 | K72: 0 | L72: 0 | M72: 0 | N72: 0 | O72: 0 | P72: 0 | Q72: 0 | R72: 0 | S72: 0 | T72: 0 | U72: 0 | V72: 0 | W72: 0
B73: Income tax | D73: =IF(D96<0,0,D72*D96) ->  | E73: =IF(E96<0,0,E72*E96) ->  | F73: =IF(F96<0,0,F72*F96) ->  | G73: =IF(G96<0,0,G72*G96) ->  | H73: =IF(H96<0,0,H72*H96) -> 
A75: Depreciation
B76: Operating Year | C76: Appraisal | D76: 1 | E76: 2 | F76: 3 | G76: 4 | H76: 5 | I76: 6 | J76: 7 | K76: 8 | L76: 9 | M76: 10 | N76: 11 | O76: 12 | P76: 13 | Q76: 14 | R76: 15 | S76: 16 | T76: 17 | U76: 18 | V76: 19 | W76: 20
B77: Depreciation method | C77: Straight-line
B78: Total depreciation (USD) | C78: =C44 -> 1785400 | D78: =C78 -> 1785400 | E78: =D78 -> 1785400 | F78: 1785400 | G78: 1785400 | H78: 1785400 | I78: 1785400 | J78: 1785400 | K78: 1785400 | L78: 1785400 | M78: 1785400 | N78: 1785400 | O78: 1785400 | P78: 1785400 | Q78: 1785400 | R78: 1785400 | S78: 1785400 | T78: 1785400 | U78: 1785400 | V78: 1785400 | W78: 1785400
A81: Summary of this project - before tax
B82: Operating Year | C82: Appraisal | D82: 1 | E82: 2 | F82: 3 | G82: 4 | H82: 5 | I82: 6 | J82: 7 | K82: 8 | L82: 9 | M82: 10 | N82: 11 | O82: 12 | P82: 13 | Q82: 14 | R82: 15 | S82: 16 | T82: 17 | U82: 18 | V82: 19 | W82: 20
B83: Total revenue (USD) | D83: =+D20 -> 
B84: Total capital cost (USD) | C84: =-(C31-C60) -> -35708000
B85: Total operating and maintenance cost (USD) | D85: =-(D49-D44) ->  | G85: =-(G49-G44) -> 
B86: Debt payment (USD) | D86: =D66 -> 0 | E86: 0 | F86: 0 | G86: =G66 -> 0 | H86: 0 | I86: 0 | J86: 0 | K86: 0 | L86: 0 | M86: 0 | N86: 0 | O86: 0 | P86: 0 | Q86: 0 | R86: 0 | S86: 0 | T86: 0 | U86: 0 | V86: 0 | W86: 0
B87: Cash-flow - before tax (USD) | C87: =SUM(C83:C86) -> -35708000 | D87: =SUM(D83:D86) ->  | E87: =SUM(E83:E86) ->  | F87: =SUM(F83:F86) ->  | G87: =SUM(G83:G86) -> 
B88: Present cash-flow - before tax (USD) | D88: =+D87/((1+$C56)^D82) ->  | E88: =+E87/((1+$C56)^E82) ->  | F88: =+F87/((1+$C56)^F82) ->  | G88: =+G87/((1+$C56)^G82) ->  | H88: =+H87/((1+$C56)^H82) -> 
D89: =+PV($C56,D82,,-D87,) ->  | E89: =+PV($C56,E82,,-E87,) ->  | F89: =+PV($C56,F82,,-F87,) ->  | G89: =+PV($C56,G82,,-G87,) ->  | H89: =+PV($C56,H82,,-H87,) -> 
A90: Summary of this project - after tax
B91: Operating Year | C91: Appraisal | D91: 1 | E91: 2 | F91: 3 | G91: 4 | H91: 5 | I91: 6 | J91: 7 | K91: 8 | L91: 9 | M91: 10 | N91: 11 | O91: 12 | P91: 13 | Q91: 14 | R91: 15 | S91: 16 | T91: 17 | U91: 18 | V91: 19 | W91: 20
B92: Total revenue (USD) | C92: =C83 -> 0 | D92: =D83 ->  | E92: =E83 ->  | F92: =F83 ->  | G92: =G83 -> 
B93: Total operating and maintenance cost (USD) | D93: =-(D49-D44) ->  | E93: =-(E49-E44) ->  | F93: =-(F49-F44) ->  | G93: =-(G49-G44) -> 
B94: Debt payment (USD) | D94: =D66 -> 0 | E94: 0 | F94: =F66 -> 0 | G94: =G66 -> 0 | H94: 0 | I94: 0 | J94: 0 | K94: 0 | L94: 0 | M94: 0 | N94: 0 | O94: 0 | P94: 0 | Q94: 0 | R94: 0 | S94: 0 | T94: 0 | U94: 0 | V94: 0 | W94: 0
B95: Depreciation of fixed cost (USD) | D95: =-D78 -> -1785400 | E95: =-E78 -> -1785400 | F95: -1785400 | G95: =-G78 -> -1785400 | H95: -1785400 | I95: -1785400 | J95: -1785400 | K95: -1785400 | L95: -1785400 | M95: -1785400 | N95: -1785400 | O95: -1785400 | P95: -1785400 | Q95: -1785400 | R95: -1785400 | S95: -1785400 | T95: -1785400 | U95: -1785400 | V95: -1785400 | W95: -1785400
B96: Net Profit - before tax (USD) for income tax calculation | C96: =SUM(C92:C95) -> 0 | D96: =SUM(D92:D95) ->  | E96: =SUM(E92:E95) ->  | F96: =SUM(F92:F95) ->  | G96: =SUM(G92:G95) -> 
B97: Income tax | D97: =-D73 ->  | E97: =-E73 ->  | F97: =-F73 ->  | G97: =-G73 ->  | H97: =-H73 -> 
D98: =+PV($C56,D91,,-D97) ->  | E98: =+PV($C56,E91,,-E97) ->  | F98: =+PV($C56,F91,,-F97) ->  | G98: =+PV($C56,G91,,-G97) ->  | H98: =+PV($C56,H91,,-H97) -> 
B99: Cash-flow - after tax (USD) | C99: =C84 -> -35708000 | D99: =D87+D97 ->  | E99: =E87+E97 ->  | F99: =F87+F97 ->  | G99: =G87+G97 ->  | H99: =H87+H97 -> 
B100: Present cash-flow - after tax (USD) | D100: =+PV($C56,D91,,-D99) ->  | E100: =+PV($C56,E91,,-E99) ->  | F100: =+PV($C56,F91,,-F99) ->  | G100: =+PV($C56,G91,,-G99) ->  | H100: =+PV($C56,H91,,-H99) -> 
A102: Cumulative value of Net Profit
B103: Operating Year | C103: Appraisal | D103: 1 | E103: 2 | F103: 3 | G103: 4 | H103: 5 | I103: 6 | J103: 7 | K103: 8 | L103: 9 | M103: 10 | N103: 11 | O103: 12 | P103: 13 | Q103: 14 | R103: 15 | S103: 16 | T103: 17 | U103: 18 | V103: 19 | W103: 20
B104: Cumulative value of Net Profit - before tax | C104: =C87 -> -35708000 | D104: =C104+(D88) ->  | E104: =D104+(E88) ->  | F104: =E104+(F88) ->  | G104: =F104+(G88) ->  | H104: =G104+(H88) -> 
B105: Cumulative value of Net Profit - after tax | C105: =C99 -> -35708000 | D105: =C105+(D100) ->  | E105: =D105+(E100) ->  | F105: =E105+(F100) ->  | G105: =F105+(G100) ->  | H105: =G105+(H100) -> 
A107: Financial Analysis Result
B109: Net Present Value (NPV) (USD) - before tax | C109: =NPV(C56,D87:W87)+C87 -> 
B110: Internal Rate of Return (IRR) (%) - before tax | C110: =IF(C109<0,"Not feasible",IRR(C87:W87,0.000001)) -> 
B111: Payback period (years) | C111: Please see Figure of the cumulative value of Net Profit - before tax
B114: Net Present Value (NPV) (USD) - after tax | C114: =NPV(C56,D99:W99)+C99 -> 
B115: Internal Rate of Return (IRR) (%) - after tax | C115: =IF(C114<0,"Not feasible",IRR(C99:W99,0.000001)) -> 
B116: Payback period (years) | C116: Please see Figure of the cumulative value of Net Profit - after tax
B117: Total income tax payment of project lifetime | C117: =SUM(D98:W98) -> 

Sheet FA5_FS1_SC2 (hidden)
B2: =+UPPER("FINANCIAL EVALUATION OF ETHANOL PRODUCTION 5 Million Litres/year SCENARIO 2") -> FINANCIAL EVALUATION OF ETHANOL PRODUCTION 5 MILLION LITRES/YEAR SCENARIO 2
A5: ="Revenues of "&'Data Entry Needs'!$E$10&" production (Benefit)" -> Revenues of Please Select production (Benefit)
B7: Operating Year | C7: 0 | D7: 1 | E7: 2 | F7: 3 | G7: 4 | H7: 5 | I7: 6 | J7: 7 | K7: 8 | L7: 9 | M7: 10 | N7: 11 | O7: 12 | P7: 13 | Q7: 14 | R7: 15 | S7: 16 | T7: 17 | U7: 18 | V7: 19 | W7: 20
B9: Capacity (million of litres) | C9: 5 | D9: =C9 -> 5 | E9: 5 | F9: 5 | G9: 5 | H9: 5 | I9: 5 | J9: 5 | K9: 5 | L9: 5 | M9: 5 | N9: 5 | O9: 5 | P9: 5 | Q9: 5 | R9: 5 | S9: 5 | T9: 5 | U9: 5 | V9: 5 | W9: 5
B10: Annual production (litres per year) | C10: =+C9*1000000 -> 5000000 | D10: =+C10 -> 5000000 | E10: 5000000 | F10: 5000000 | G10: 5000000 | H10: 5000000 | I10: 5000000 | J10: 5000000 | K10: 5000000 | L10: 5000000 | M10: 5000000 | N10: 5000000 | O10: 5000000 | P10: 5000000 | Q10: 5000000 | R10: 5000000 | S10: 5000000 | T10: 5000000 | U10: 5000000 | V10: 5000000 | W10: 5000000
B11: Loss in production processing (%) | D11: 0 | E11: 0 | F11: 0 | G11: 0 | H11: 0 | I11: 0 | J11: 0 | K11: 0 | L11: 0 | M11: 0 | N11: 0 | O11: 0 | P11: 0 | Q11: 0 | R11: 0 | S11: 0 | T11: 0 | U11: 0 | V11: 0 | W11: 0
B12: Sales to customers (litres per year) | C12: =+C10*(1-C11) -> 5000000 | D12: =+C12 -> 5000000 | E12: 5000000 | F12: 5000000 | G12: 5000000 | H12: 5000000 | I12: 5000000 | J12: 5000000 | K12: 5000000 | L12: 5000000 | M12: 5000000 | N12: 5000000 | O12: 5000000 | P12: 5000000 | Q12: 5000000 | R12: 5000000 | S12: 5000000 | T12: 5000000 | U12: 5000000 | V12: 5000000 | W12: 5000000
B14: ="Price of ethanol (USD/litre)" -> Price of ethanol (USD/litre) | C14: =+VLOOKUP("Ethanol",'Data Entry Needs'!$T$217:$X$219,5,FALSE) -> 0 | D14: =+C14*(100%+D15) -> 0 | E14: 0 | F14: 0 | G14: 0 | H14: 0 | I14: 0 | J14: 0 | K14: 0 | L14: 0 | M14: 0 | N14: 0 | O14: 0 | P14: 0 | Q14: 0 | R14: 0 | S14: 0 | T14: 0 | U14: 0 | V14: 0 | W14: 0
B15: ="Increase rate of price of "&'Data Entry Needs'!$E$10&" (%)" -> Increase rate of price of Please Select (%) | C15: =+'Data Entry Needs'!$O$211 -> 0 | D15: =+C15 -> 0 | E15: =+D15 -> 0 | F15: 0 | G15: 0 | H15: 0 | I15: 0 | J15: 0 | K15: 0 | L15: 0 | M15: 0 | N15: 0 | O15: 0 | P15: 0 | Q15: 0 | R15: 0 | S15: 0 | T15: 0 | U15: 0 | V15: 0 | W15: 0
B16: Income (USD per year) | C16: =+C12*C14 -> 0 | D16: 0 | E16: 0 | F16: 0 | G16: 0 | H16: 0 | I16: 0 | J16: 0 | K16: 0 | L16: 0 | M16: 0 | N16: 0 | O16: 0 | P16: 0 | Q16: 0 | R16: 0 | S16: 0 | T16: 0 | U16: 0 | V16: 0 | W16: 0
B17: Income Electricity Generation (USD/year) | C17: =COST_FS1!$G$99 ->  | D17: =C17 ->  | E17: =D17 -> 
B18: By-products revenues (USD/year) | C18: =COST_FS1!$G$100+COST_FS1!$G$101 ->  | D18: =C18 -> 
B20: Total income | D20: =+D16+D17+D18 ->  | E20: =+E16+E17+E18 -> 
A23: Capital and operating cost
B25: Operating Year | C25: Appraisal | D25: 1 | E25: 2 | F25: 3 | G25: 4 | H25: 5 | I25: 6 | J25: 7 | K25: 8 | L25: 9 | M25: 10 | N25: 11 | O25: 12 | P25: 13 | Q25: 14 | R25: 15 | S25: 16 | T25: 17 | U25: 18 | V25: 19 | W25: 20
B26: Direct capital cost (USD)
B27: Equipments | C27: =+COST_FS1!$F76 -> 7418000
B28: Building | C28: =+COST_FS1!$F77 -> 28290000 | N28: =+C28 -> 28290000
N29: =+C29 -> 0
B31: Total capital cost (USD) | C31: =C27+C28 -> 35708000 | D31: =D27+D28+D29 -> 0 | E31: 0 | F31: 0 | G31: 0 | H31: 0 | I31: 0 | J31: 0 | K31: 0 | L31: 0 | M31: 0 | N31: 28290000 | O31: 0 | P31: 0 | Q31: 0 | R31: 0 | S31: 0 | T31: 0 | U31: 0 | V31: 0 | W31: 0
B32: Capital cost (USD/MLN litres) | C32: =+C31/C9 -> 7141600
B33: Capital cost (USD/ litre) | C33: =+C31/C12 -> 7.1416
B36: Operating Year | C36: Appraisal | D36: 1 | E36: 2 | F36: 3 | G36: 4 | H36: 5 | I36: 6 | J36: 7 | K36: 8 | L36: 9 | M36: 10 | N36: 11 | O36: 12 | P36: 13 | Q36: 14 | R36: 15 | S36: 16 | T36: 17 | U36: 18 | V36: 19 | W36: 20
B37: Annual operating and maintenance cost
B38: Sub-total input cost (USD) | C38: =+C39+C40+C41 ->  | D38: =+D39+D40+D41 -> 
B39: Feedstock cost (USD/year) | C39: =+COST_FS1!$G$43 ->  | D39: =+C39 -> 
B40: Other raw material costs (USD/year) | C40: =COST_FS1!$G$53 -> 
B41: Cost of energy inputs (USD/year) | C41: =COST_FS1!$G$59 ->  | D41: =C41 ->  | E41: =D41 -> 
B42: Labour cost (USD/year) | C42: =+COST_FS1!$G$66 -> 0 | D42: =C42*(1+D62) -> 0 | E42: 0 | F42: 0 | G42: 0 | H42: 0 | I42: 0 | J42: 0 | K42: 0 | L42: 0 | M42: 0 | N42: 0 | O42: 0 | P42: 0 | Q42: 0 | R42: 0 | S42: 0 | T42: 0 | U42: 0 | V42: 0 | W42: 0
B43: Transportation cost (USD/year) | C43: =+COST_FS1!$G$72 ->  | D43: =+C43 -> 
B44: Investment cost (USD/year) | C44: =+COST_FS1!$G$80 -> 1785400 | D44: 1785400 | E44: 1785400 | F44: 1785400 | G44: 1785400 | H44: 1785400 | I44: 1785400 | J44: 1785400 | K44: 1785400 | L44: 1785400 | M44: 1785400 | N44: 1785400 | O44: 1785400 | P44: 1785400 | Q44: 1785400 | R44: 1785400 | S44: 1785400 | T44: 1785400 | U44: 1785400 | V44: 1785400 | W44: 1785400
B45: Maintenance cost (USD/year) | C45: =+COST_FS1!$G$81 -> 0 | D45: 0 | E45: 0 | F45: 0 | G45: 0 | H45: 0 | I45: 0 | J45: 0 | K45: 0 | L45: 0 | M45: 0 | N45: 0 | O45: 0 | P45: 0 | Q45: 0 | R45: 0 | S45: 0 | T45: 0 | U45: 0 | V45: 0 | W45: 0
B46: Storage cost (USD/year) | C46: =+COST_FS1!$G$88 ->  | D46: =C46 -> 
B47: Plant overhead (USD/year) | C47: =+COST_FS1!$G$92 -> 0 | D47: =+C47 -> 0 | E47: 0 | F47: 0 | G47: 0 | H47: 0 | I47: 0 | J47: 0 | K47: 0 | L47: 0 | M47: 0 | N47: 0 | O47: 0 | P47: 0 | Q47: 0 | R47: 0 | S47: 0 | T47: 0 | U47: 0 | V47: 0 | W47: 0
B48: General and administrative cost (USD/year) | C48: =+COST_FS1!$G$93 -> 
B49: Total annualized cost (USD) | C49: =SUM(C39:C48) -> 
B50: Total cost per litre (USD/l) | C50: =+C49/C12 -> 
A52: Financial parameters
B53: Operating Year | C53: Appraisal | D53: 1 | E53: 2 | F53: 3 | G53: 4 | H53: 5 | I53: 6 | J53: 7 | K53: 8 | L53: 9 | M53: 10 | N53: 11 | O53: 12 | P53: 13 | Q53: 14 | R53: 15 | S53: 16 | T53: 17 | U53: 18 | V53: 19 | W53: 20
B54: Raw material cost escalation rate (%) | D54: 0 | E54: =D54 -> 0 | F54: 0 | G54: 0 | H54: 0 | I54: 0 | J54: 0 | K54: 0 | L54: 0 | M54: 0 | N54: 0 | O54: 0 | P54: 0 | Q54: 0 | R54: 0 | S54: 0 | T54: 0 | U54: 0 | V54: 0 | W54: 0
B55: Inflation rate (%) | D55: =+'Data Entry Needs'!$O$212 -> 0 | E55: 0 | F55: 0 | G55: 0 | H55: 0 | I55: 0 | J55: 0 | K55: 0 | L55: 0 | M55: 0 | N55: 0 | O55: 0 | P55: 0 | Q55: 0 | R55: 0 | S55: 0 | T55: 0 | U55: 0 | V55: 0 | W55: 0
B56: Discount rate (%) | C56: =+'Data Entry Needs'!$D$79 -> 0
B57: Debt ratio (%) | C57: =+'Data Entry Needs'!$D$84 -> 0
B59: Loan | D59: 1 | E59: 2 | F59: 3 | G59: 4 | H59: 5 | I59: 6 | J59: 7 | K59: 8 | L59: 9 | M59: 10 | N59: 11 | O59: 12 | P59: 13 | Q59: 14 | R59: 15 | S59: 16 | T59: 17 | U59: 18 | V59: 19 | W59: 20
B60: Loan amount (USD ) | C60: =C57*C31 -> 0
B61: Increasing rate of price of biodiesel (%) | C61: =+'Data Entry Needs'!$O$211 -> 0 | D61: =+C61 -> 0 | E61: 0 | F61: 0 | G61: 0 | H61: 0 | I61: 0 | J61: 0 | K61: 0 | L61: 0 | M61: 0 | N61: 0 | O61: 0 | P61: 0 | Q61: 0 | R61: 0 | S61: 0 | T61: 0 | U61: 0 | V61: 0 | W61: 0
B62: Escalation rate of labour cost (%) | D62: 0 | E62: 0 | F62: 0 | G62: 0 | H62: 0 | I62: 0 | J62: 0 | K62: 0 | L62: 0 | M62: 0 | N62: 0 | O62: 0 | P62: 0 | Q62: 0 | R62: 0 | S62: 0 | T62: 0 | U62: 0 | V62: 0 | W62: 0
B63: Loan interest rate (%) | C63: =+'Data Entry Needs'!$D$80 -> 0
B64: Loan term (years) | C64: =+'Data Entry Needs'!$D$81 -> 0
B65: Loan payment (USD/month) | C65: =(PMT(C63/12,(12*C64),C60)) -> 
B66: Loan payment (USD/year) | D66: =IF(D53<=$C$64,$C$65*12,0) -> 0 | E66: =IF(E53<=$C$64,$C$65*12,0) -> 0 | F66: 0 | G66: 0 | H66: 0 | I66: 0 | J66: 0 | K66: 0 | L66: 0 | M66: 0 | N66: 0 | O66: 0 | P66: 0 | Q66: 0 | R66: 0 | S66: 0 | T66: 0 | U66: 0 | V66: 0 | W66: 0
B67: Total loan payment (USD) | C67: =SUM(D66:W66) -> 0
B68: Loan interest payment (USD) | C68: =C67+C60 -> 0 | D68: Average loan interest payment for project lifetime | G68: =C68/20 -> 0 | H68: USD per year
A70: Income tax analysis
B71: Operating Year | C71: Appraisal | D71: 1 | E71: 2 | F71: 3 | G71: 4 | H71: 5 | I71: 6 | J71: 7 | K71: 8 | L71: 9 | M71: 10 | N71: 11 | O71: 12 | P71: 13 | Q71: 14 | R71: 15 | S71: 16 | T71: 17 | U71: 18 | V71: 19 | W71: 20
B72: Effective income tax rate (%) | C72: 0 | D72: =C72 -> 0 | E72: 0 | F72: 0 | G72: 0 | H72: 0 | I72: 0 | J72: 0 | K72: 0 | L72: 0 | M72: 0 | N72: 0 | O72: 0 | P72: 0 | Q72: 0 | R72: 0 | S72: 0 | T72: 0 | U72: 0 | V72: 0 | W72: 0
B73: Income tax | D73: =IF(D96<0,0,D72*D96) ->  | E73: =IF(E96<0,0,E72*E96) ->  | F73: =IF(F96<0,0,F72*F96) ->  | G73: =IF(G96<0,0,G72*G96) ->  | H73: =IF(H96<0,0,H72*H96) -> 
A75: Depreciation
B76: Operating Year | C76: Appraisal | D76: 1 | E76: 2 | F76: 3 | G76: 4 | H76: 5 | I76: 6 | J76: 7 | K76: 8 | L76: 9 | M76: 10 | N76: 11 | O76: 12 | P76: 13 | Q76: 14 | R76: 15 | S76: 16 | T76: 17 | U76: 18 | V76: 19 | W76: 20
B77: Depreciation method | C77: Straight-line
B78: Total depreciation (USD) | C78: =C44 -> 1785400 | D78: =C78 -> 1785400 | E78: =D78 -> 1785400 | F78: 1785400 | G78: 1785400 | H78: 1785400 | I78: 1785400 | J78: 1785400 | K78: 1785400 | L78: 1785400 | M78: 1785400 | N78: 1785400 | O78: 1785400 | P78: 1785400 | Q78: 1785400 | R78: 1785400 | S78: 1785400 | T78: 1785400 | U78: 1785400 | V78: 1785400 | W78: 1785400
A81: Summary of this project - before tax
B82: Operating Year | C82: Appraisal | D82: 1 | E82: 2 | F82: 3 | G82: 4 | H82: 5 | I82: 6 | J82: 7 | K82: 8 | L82: 9 | M82: 10 | N82: 11 | O82: 12 | P82: 13 | Q82: 14 | R82: 15 | S82: 16 | T82: 17 | U82: 18 | V82: 19 | W82: 20
B83: Total revenue (USD) | D83: =+D20 -> 
B84: Total capital cost (USD) | C84: =-(C31-C60) -> -35708000
B85: Total operating and maintenance cost (USD) | D85: =-(D49-D44) ->  | G85: =-(G49-G44) -> 
B86: Debt payment (USD) | D86: =D66 -> 0 | E86: 0 | F86: 0 | G86: =G66 -> 0 | H86: 0 | I86: 0 | J86: 0 | K86: 0 | L86: 0 | M86: 0 | N86: 0 | O86: 0 | P86: 0 | Q86: 0 | R86: 0 | S86: 0 | T86: 0 | U86: 0 | V86: 0 | W86: 0
B87: Cash-flow - before tax (USD) | C87: =SUM(C83:C86) -> -35708000 | D87: =SUM(D83:D86) ->  | E87: =SUM(E83:E86) ->  | F87: =SUM(F83:F86) ->  | G87: =SUM(G83:G86) -> 
B88: Present cash-flow - before tax (USD) | D88: =+D87/((1+$C56)^D82) ->  | E88: =+E87/((1+$C56)^E82) ->  | F88: =+F87/((1+$C56)^F82) ->  | G88: =+G87/((1+$C56)^G82) ->  | H88: =+H87/((1+$C56)^H82) -> 
D89: =+PV($C56,D82,,-D87,) ->  | E89: =+PV($C56,E82,,-E87,) ->  | F89: =+PV($C56,F82,,-F87,) ->  | G89: =+PV($C56,G82,,-G87,) ->  | H89: =+PV($C56,H82,,-H87,) -> 
A90: Summary of this project - after tax
B91: Operating Year | C91: Appraisal | D91: 1 | E91: 2 | F91: 3 | G91: 4 | H91: 5 | I91: 6 | J91: 7 | K91: 8 | L91: 9 | M91: 10 | N91: 11 | O91: 12 | P91: 13 | Q91: 14 | R91: 15 | S91: 16 | T91: 17 | U91: 18 | V91: 19 | W91: 20
B92: Total revenue (USD) | C92: =C83 -> 0 | D92: =D83 ->  | E92: =E83 ->  | F92: =F83 ->  | G92: =G83 -> 
B93: Total operating and maintenance cost (USD) | D93: =-(D49-D44) ->  | E93: =-(E49-E44) ->  | F93: =-(F49-F44) ->  | G93: =-(G49-G44) -> 
B94: Debt payment (USD) | D94: =D66 -> 0 | E94: 0 | F94: =F66 -> 0 | G94: =G66 -> 0 | H94: 0 | I94: 0 | J94: 0 | K94: 0 | L94: 0 | M94: 0 | N94: 0 | O94: 0 | P94: 0 | Q94: 0 | R94: 0 | S94: 0 | T94: 0 | U94: 0 | V94: 0 | W94: 0
B95: Depreciation of fixed cost (USD) | D95: =-D78 -> -1785400 | E95: =-E78 -> -1785400 | F95: -1785400 | G95: =-G78 -> -1785400 | H95: -1785400 | I95: -1785400 | J95: -1785400 | K95: -1785400 | L95: -1785400 | M95: -1785400 | N95: -1785400 | O95: -1785400 | P95: -1785400 | Q95: -1785400 | R95: -1785400 | S95: -1785400 | T95: -1785400 | U95: -1785400 | V95: -1785400 | W95: -1785400
B96: Net Profit - before tax (USD) for income tax calculation | C96: =SUM(C92:C95) -> 0 | D96: =SUM(D92:D95) ->  | E96: =SUM(E92:E95) ->  | F96: =SUM(F92:F95) ->  | G96: =SUM(G92:G95) -> 
B97: Income tax | D97: =-D73 ->  | E97: =-E73 ->  | F97: =-F73 ->  | G97: =-G73 ->  | H97: =-H73 -> 
D98: =+PV($C56,D91,,-D97) ->  | E98: =+PV($C56,E91,,-E97) ->  | F98: =+PV($C56,F91,,-F97) ->  | G98: =+PV($C56,G91,,-G97) ->  | H98: =+PV($C56,H91,,-H97) -> 
B99: Cash-flow - after tax (USD) | C99: =C84 -> -35708000 | D99: =D87+D97 ->  | E99: =E87+E97 ->  | F99: =F87+F97 ->  | G99: =G87+G97 ->  | H99: =H87+H97 -> 
B100: Present cash-flow - after tax (USD) | D100: =+PV($C56,D91,,-D99) ->  | E100: =+PV($C56,E91,,-E99) ->  | F100: =+PV($C56,F91,,-F99) ->  | G100: =+PV($C56,G91,,-G99) ->  | H100: =+PV($C56,H91,,-H99) -> 
A102: Cumulative value of Net Profit
B103: Operating Year | C103: Appraisal | D103: 1 | E103: 2 | F103: 3 | G103: 4 | H103: 5 | I103: 6 | J103: 7 | K103: 8 | L103: 9 | M103: 10 | N103: 11 | O103: 12 | P103: 13 | Q103: 14 | R103: 15 | S103: 16 | T103: 17 | U103: 18 | V103: 19 | W103: 20
B104: Cumulative value of Net Profit - before tax | C104: =C87 -> -35708000 | D104: =C104+(D88) ->  | E104: =D104+(E88) ->  | F104: =E104+(F88) ->  | G104: =F104+(G88) ->  | H104: =G104+(H88) -> 
B105: Cumulative value of Net Profit - after tax | C105: =C99 -> -35708000 | D105: =C105+(D100) ->  | E105: =D105+(E100) ->  | F105: =E105+(F100) ->  | G105: =F105+(G100) ->  | H105: =G105+(H100) -> 
A107: Financial Analysis Result
B109: Net Present Value (NPV) (USD) - before tax | C109: =NPV(C56,D87:W87)+C87 -> 
B110: Internal Rate of Return (IRR) (%) - before tax | C110: =IF(C109<0,"Not feasible",IRR(C87:W87,0.000001)) -> 
B111: Payback period (years) | C111: Please see Figure of the cumulative value of Net Profit - before tax
B114: Net Present Value (NPV) (USD) - after tax | C114: =NPV(C56,D99:W99)+C99 -> 
B115: Internal Rate of Return (IRR) (%) - after tax | C115: =IF(C114<0,"Not feasible",IRR(C99:W99,0.000001)) -> 
B116: Payback period (years) | C116: Please see Figure of the cumulative value of Net Profit - after tax
B117: Total income tax payment of project lifetime | C117: =SUM(D98:W98) -> 

Sheet FA5_FS1_SC3 (hidden)
B2: =+UPPER("FINANCIAL EVALUATION OF ETHANOL PRODUCTION 5 Million Litres/year SCENARIO 3") -> FINANCIAL EVALUATION OF ETHANOL PRODUCTION 5 MILLION LITRES/YEAR SCENARIO 3
A5: ="Revenues of "&'Data Entry Needs'!$E$10&" production (Benefit)" -> Revenues of Please Select production (Benefit)
B7: Operating Year | C7: 0 | D7: 1 | E7: 2 | F7: 3 | G7: 4 | H7: 5 | I7: 6 | J7: 7 | K7: 8 | L7: 9 | M7: 10 | N7: 11 | O7: 12 | P7: 13 | Q7: 14 | R7: 15 | S7: 16 | T7: 17 | U7: 18 | V7: 19 | W7: 20
B9: Capacity (million of litres) | C9: 5 | D9: =C9 -> 5 | E9: 5 | F9: 5 | G9: 5 | H9: 5 | I9: 5 | J9: 5 | K9: 5 | L9: 5 | M9: 5 | N9: 5 | O9: 5 | P9: 5 | Q9: 5 | R9: 5 | S9: 5 | T9: 5 | U9: 5 | V9: 5 | W9: 5
B10: Annual production (litres per year) | C10: =+C9*1000000 -> 5000000 | D10: =+C10 -> 5000000 | E10: 5000000 | F10: 5000000 | G10: 5000000 | H10: 5000000 | I10: 5000000 | J10: 5000000 | K10: 5000000 | L10: 5000000 | M10: 5000000 | N10: 5000000 | O10: 5000000 | P10: 5000000 | Q10: 5000000 | R10: 5000000 | S10: 5000000 | T10: =+S10 -> 5000000 | U10: 5000000 | V10: 5000000 | W10: 5000000
B11: Loss in production processing (%) | D11: 0 | E11: 0 | F11: 0 | G11: 0 | H11: 0 | I11: 0 | J11: 0 | K11: 0 | L11: 0 | M11: 0 | N11: 0 | O11: 0 | P11: 0 | Q11: 0 | R11: 0 | S11: 0 | T11: 0 | U11: 0 | V11: 0 | W11: 0
B12: Sales to customers (litres per year) | C12: =+C10*(1-C11) -> 5000000 | D12: =+C12 -> 5000000 | E12: 5000000 | F12: 5000000 | G12: 5000000 | H12: 5000000 | I12: 5000000 | J12: 5000000 | K12: 5000000 | L12: 5000000 | M12: 5000000 | N12: 5000000 | O12: 5000000 | P12: 5000000 | Q12: 5000000 | R12: 5000000 | S12: 5000000 | T12: 5000000 | U12: 5000000 | V12: 5000000 | W12: 5000000
B14: ="Price of ethanol (USD/litre)" -> Price of ethanol (USD/litre) | C14: =+VLOOKUP("Ethanol",'Data Entry Needs'!$T$217:$X$219,5,FALSE) -> 0 | D14: =+C14*(100%+D15) -> 0 | E14: 0 | F14: 0 | G14: 0 | H14: 0 | I14: 0 | J14: 0 | K14: 0 | L14: 0 | M14: 0 | N14: 0 | O14: 0 | P14: 0 | Q14: 0 | R14: 0 | S14: 0 | T14: 0 | U14: 0 | V14: 0 | W14: 0
B15: ="Increase rate of price of "&'Data Entry Needs'!$E$10&" (%)" -> Increase rate of price of Please Select (%) | C15: =+'Data Entry Needs'!$O$211 -> 0 | D15: =+C15 -> 0 | E15: =+D15 -> 0 | F15: 0 | G15: 0 | H15: 0 | I15: 0 | J15: 0 | K15: 0 | L15: 0 | M15: 0 | N15: 0 | O15: 0 | P15: 0 | Q15: 0 | R15: 0 | S15: 0 | T15: 0 | U15: 0 | V15: 0 | W15: 0
B16: Income (USD per year) | C16: =+C12*C14 -> 0 | D16: 0 | E16: 0 | F16: 0 | G16: 0 | H16: 0 | I16: 0 | J16: 0 | K16: 0 | L16: 0 | M16: 0 | N16: 0 | O16: 0 | P16: 0 | Q16: 0 | R16: 0 | S16: 0 | T16: 0 | U16: 0 | V16: 0 | W16: 0
B17: Income Electricity Generation (USD/year) | C17: =COST_FS1!$G$99 ->  | D17: =C17 ->  | E17: =D17 -> 
B18: By-products revenues (USD/year) | C18: =COST_FS1!$G$100+COST_FS1!$G$101 ->  | D18: =C18 -> 
B20: Total income | D20: =+D16+D17+D18 ->  | E20: =+E16+E17+E18 -> 
A23: Capital and operating cost
B25: Operating Year | C25: Appraisal | D25: 1 | E25: 2 | F25: 3 | G25: 4 | H25: 5 | I25: 6 | J25: 7 | K25: 8 | L25: 9 | M25: 10 | N25: 11 | O25: 12 | P25: 13 | Q25: 14 | R25: 15 | S25: 16 | T25: 17 | U25: 18 | V25: 19 | W25: 20
B26: Direct capital cost (USD)
B27: Equipments | C27: =+COST_FS1!$F76 -> 7418000
B28: Building | C28: =+COST_FS1!$F77 -> 28290000 | N28: =+C28 -> 28290000
N29: =+C29 -> 0
B31: Total capital cost (USD) | C31: =C27+C28 -> 35708000 | D31: =D27+D28+D29 -> 0 | E31: 0 | F31: 0 | G31: 0 | H31: 0 | I31: 0 | J31: 0 | K31: 0 | L31: 0 | M31: 0 | N31: 28290000 | O31: 0 | P31: 0 | Q31: 0 | R31: 0 | S31: 0 | T31: 0 | U31: 0 | V31: 0 | W31: 0
B32: Capital cost (USD/MLN litres) | C32: =+C31/C9 -> 7141600
B33: Capital cost (USD/ litre) | C33: =+C31/C12 -> 7.1416
B36: Operating Year | C36: Appraisal | D36: 1 | E36: 2 | F36: 3 | G36: 4 | H36: 5 | I36: 6 | J36: 7 | K36: 8 | L36: 9 | M36: 10 | N36: 11 | O36: 12 | P36: 13 | Q36: 14 | R36: 15 | S36: 16 | T36: 17 | U36: 18 | V36: 19 | W36: 20
B37: Annual operating and maintenance cost
B38: Sub-total input cost (USD) | C38: =+C39+C40+C41 ->  | D38: =+D39+D40+D41 -> 
B39: Feedstock cost (USD/year) | C39: =+COST_FS1!$G$44 ->  | D39: =+C39 ->  | T39: =+S39 -> 
B40: Other raw material costs (USD/year) | C40: =COST_FS1!$G$53 -> 
B41: Cost of energy inputs (USD/year) | C41: =COST_FS1!$G$59 ->  | D41: =C41 ->  | E41: =D41 -> 
B42: Labour cost (USD/year) | C42: =+COST_FS1!$G$66 -> 0 | D42: =C42*(1+D62) -> 0 | E42: 0 | F42: 0 | G42: 0 | H42: 0 | I42: 0 | J42: 0 | K42: 0 | L42: 0 | M42: 0 | N42: 0 | O42: 0 | P42: 0 | Q42: 0 | R42: 0 | S42: 0 | T42: 0 | U42: 0 | V42: 0 | W42: 0
B43: Transportation cost (USD/year) | C43: =+COST_FS1!$G$72 ->  | D43: =+C43 ->  | T43: =+S43 -> 
B44: Investment cost (USD/year) | C44: =+COST_FS1!$G$80 -> 1785400 | D44: 1785400 | E44: 1785400 | F44: 1785400 | G44: 1785400 | H44: 1785400 | I44: 1785400 | J44: 1785400 | K44: 1785400 | L44: 1785400 | M44: 1785400 | N44: 1785400 | O44: 1785400 | P44: 1785400 | Q44: 1785400 | R44: 1785400 | S44: 1785400 | T44: 1785400 | U44: 1785400 | V44: 1785400 | W44: 1785400
B45: Maintenance cost (USD/year) | C45: =+COST_FS1!$G$81 -> 0 | D45: 0 | E45: 0 | F45: 0 | G45: 0 | H45: 0 | I45: 0 | J45: 0 | K45: 0 | L45: 0 | M45: 0 | N45: 0 | O45: 0 | P45: 0 | Q45: 0 | R45: 0 | S45: 0 | T45: 0 | U45: 0 | V45: 0 | W45: 0
B46: Storage cost (USD/year) | C46: =+COST_FS1!$G$88 ->  | D46: =C46 -> 
B47: Plant overhead (USD/year) | C47: =+COST_FS1!$G$92 -> 0 | D47: =+C47 -> 0 | E47: 0 | F47: 0 | G47: 0 | H47: 0 | I47: 0 | J47: 0 | K47: 0 | L47: 0 | M47: 0 | N47: 0 | O47: 0 | P47: 0 | Q47: 0 | R47: 0 | S47: 0 | T47: =+S47 -> 0 | U47: 0 | V47: 0 | W47: 0
B48: General and administrative cost (USD/year) | C48: =+COST_FS1!$G$93 -> 
B49: Total annualized cost (USD) | C49: =SUM(C39:C48) -> 
B50: Total cost per litre (USD/l) | C50: =+C49/C12 -> 
A52: Financial parameters
B53: Operating Year | C53: Appraisal | D53: 1 | E53: 2 | F53: 3 | G53: 4 | H53: 5 | I53: 6 | J53: 7 | K53: 8 | L53: 9 | M53: 10 | N53: 11 | O53: 12 | P53: 13 | Q53: 14 | R53: 15 | S53: 16 | T53: 17 | U53: 18 | V53: 19 | W53: 20
B54: Raw material cost escalation rate (%) | D54: 0 | E54: =D54 -> 0 | F54: 0 | G54: 0 | H54: 0 | I54: 0 | J54: 0 | K54: 0 | L54: 0 | M54: 0 | N54: 0 | O54: 0 | P54: 0 | Q54: 0 | R54: 0 | S54: 0 | T54: 0 | U54: =T54 -> 0 | V54: 0 | W54: 0
B55: Inflation rate (%) | D55: =+'Data Entry Needs'!$O$212 -> 0 | E55: 0 | F55: 0 | G55: 0 | H55: 0 | I55: 0 | J55: 0 | K55: 0 | L55: 0 | M55: 0 | N55: 0 | O55: 0 | P55: 0 | Q55: 0 | R55: 0 | S55: 0 | T55: 0 | U55: 0 | V55: 0 | W55: 0
B56: Discount rate (%) | C56: =+'Data Entry Needs'!$D$79 -> 0
B57: Debt ratio (%) | C57: =+'Data Entry Needs'!$D$84 -> 0
B59: Loan | D59: 1 | E59: 2 | F59: 3 | G59: 4 | H59: 5 | I59: 6 | J59: 7 | K59: 8 | L59: 9 | M59: 10 | N59: 11 | O59: 12 | P59: 13 | Q59: 14 | R59: 15 | S59: 16 | T59: 17 | U59: 18 | V59: 19 | W59: 20
B60: Loan amount (USD ) | C60: =C57*C31 -> 0
B61: Increasing rate of price of biodiesel (%) | C61: =+'Data Entry Needs'!$O$211 -> 0 | D61: =+C61 -> 0 | E61: 0 | F61: 0 | G61: 0 | H61: 0 | I61: 0 | J61: 0 | K61: 0 | L61: 0 | M61: 0 | N61: 0 | O61: 0 | P61: 0 | Q61: 0 | R61: 0 | S61: 0 | T61: =+S61 -> 0 | U61: 0 | V61: 0 | W61: 0
B62: Escalation rate of labour cost (%) | D62: 0 | E62: 0 | F62: 0 | G62: 0 | H62: 0 | I62: 0 | J62: 0 | K62: 0 | L62: 0 | M62: 0 | N62: 0 | O62: 0 | P62: 0 | Q62: 0 | R62: 0 | S62: 0 | T62: 0 | U62: 0 | V62: 0 | W62: 0
B63: Loan interest rate (%) | C63: =+'Data Entry Needs'!$D$80 -> 0
B64: Loan term (years) | C64: =+'Data Entry Needs'!$D$81 -> 0
B65: Loan payment (USD/month) | C65: =(PMT(C63/12,(12*C64),C60)) -> 
B66: Loan payment (USD/year) | D66: =IF(D53<=$C$64,$C$65*12,0) -> 0 | E66: =IF(E53<=$C$64,$C$65*12,0) -> 0 | F66: 0 | G66: 0 | H66: 0 | I66: 0 | J66: 0 | K66: 0 | L66: 0 | M66: 0 | N66: 0 | O66: 0 | P66: 0 | Q66: 0 | R66: 0 | S66: 0 | T66: 0 | U66: 0 | V66: 0 | W66: 0
B67: Total loan payment (USD) | C67: =SUM(D66:W66) -> 0
B68: Loan interest payment (USD) | C68: =C67+C60 -> 0 | D68: Average loan interest payment for project lifetime | G68: =C68/20 -> 0 | H68: USD per year
A70: Income tax analysis
B71: Operating Year | C71: Appraisal | D71: 1 | E71: 2 | F71: 3 | G71: 4 | H71: 5 | I71: 6 | J71: 7 | K71: 8 | L71: 9 | M71: 10 | N71: 11 | O71: 12 | P71: 13 | Q71: 14 | R71: 15 | S71: 16 | T71: 17 | U71: 18 | V71: 19 | W71: 20
B72: Effective income tax rate (%) | C72: 0 | D72: =C72 -> 0 | E72: 0 | F72: 0 | G72: 0 | H72: 0 | I72: 0 | J72: 0 | K72: 0 | L72: 0 | M72: 0 | N72: 0 | O72: 0 | P72: 0 | Q72: 0 | R72: 0 | S72: 0 | T72: 0 | U72: 0 | V72: 0 | W72: 0
B73: Income tax | D73: =IF(D96<0,0,D72*D96) ->  | E73: =IF(E96<0,0,E72*E96) ->  | F73: =IF(F96<0,0,F72*F96) ->  | G73: =IF(G96<0,0,G72*G96) ->  | H73: =IF(H96<0,0,H72*H96) -> 
A75: Depreciation
B76: Operating Year | C76: Appraisal | D76: 1 | E76: 2 | F76: 3 | G76: 4 | H76: 5 | I76: 6 | J76: 7 | K76: 8 | L76: 9 | M76: 10 | N76: 11 | O76: 12 | P76: 13 | Q76: 14 | R76: 15 | S76: 16 | T76: 17 | U76: 18 | V76: 19 | W76: 20
B77: Depreciation method | C77: Straight-line
B78: Total depreciation (USD) | C78: =C44 -> 1785400 | D78: =C78 -> 1785400 | E78: =D78 -> 1785400 | F78: 1785400 | G78: 1785400 | H78: 1785400 | I78: 1785400 | J78: 1785400 | K78: 1785400 | L78: 1785400 | M78: 1785400 | N78: 1785400 | O78: 1785400 | P78: 1785400 | Q78: 1785400 | R78: 1785400 | S78: 1785400 | T78: 1785400 | U78: 1785400 | V78: 1785400 | W78: 1785400
A81: Summary of this project - before tax
B82: Operating Year | C82: Appraisal | D82: 1 | E82: 2 | F82: 3 | G82: 4 | H82: 5 | I82: 6 | J82: 7 | K82: 8 | L82: 9 | M82: 10 | N82: 11 | O82: 12 | P82: 13 | Q82: 14 | R82: 15 | S82: 16 | T82: 17 | U82: 18 | V82: 19 | W82: 20
B83: Total revenue (USD) | D83: =+D20 -> 
B84: Total capital cost (USD) | C84: =-(C31-C60) -> -35708000
B85: Total operating and maintenance cost (USD) | D85: =-(D49-D44) ->  | G85: =-(G49-G44) -> 
B86: Debt payment (USD) | D86: =D66 -> 0 | E86: 0 | F86: 0 | G86: =G66 -> 0 | H86: 0 | I86: 0 | J86: 0 | K86: 0 | L86: 0 | M86: 0 | N86: 0 | O86: 0 | P86: 0 | Q86: 0 | R86: 0 | S86: 0 | T86: 0 | U86: 0 | V86: 0 | W86: 0
B87: Cash-flow - before tax (USD) | C87: =SUM(C83:C86) -> -35708000 | D87: =SUM(D83:D86) ->  | E87: =SUM(E83:E86) ->  | F87: =SUM(F83:F86) ->  | G87: =SUM(G83:G86) -> 
B88: Present cash-flow - before tax (USD) | D88: =+D87/((1+$C56)^D82) ->  | E88: =+E87/((1+$C56)^E82) ->  | F88: =+F87/((1+$C56)^F82) ->  | G88: =+G87/((1+$C56)^G82) ->  | H88: =+H87/((1+$C56)^H82) -> 
D89: =+PV($C56,D82,,-D87,) ->  | E89: =+PV($C56,E82,,-E87,) ->  | F89: =+PV($C56,F82,,-F87,) ->  | G89: =+PV($C56,G82,,-G87,) ->  | H89: =+PV($C56,H82,,-H87,) -> 
A90: Summary of this project - after tax
B91: Operating Year | C91: Appraisal | D91: 1 | E91: 2 | F91: 3 | G91: 4 | H91: 5 | I91: 6 | J91: 7 | K91: 8 | L91: 9 | M91: 10 | N91: 11 | O91: 12 | P91: 13 | Q91: 14 | R91: 15 | S91: 16 | T91: 17 | U91: 18 | V91: 19 | W91: 20
B92: Total revenue (USD) | C92: =C83 -> 0 | D92: =D83 ->  | E92: =E83 ->  | F92: =F83 ->  | G92: =G83 -> 
B93: Total operating and maintenance cost (USD) | D93: =-(D49-D44) ->  | E93: =-(E49-E44) ->  | F93: =-(F49-F44) ->  | G93: =-(G49-G44) -> 
B94: Debt payment (USD) | D94: =D66 -> 0 | E94: 0 | F94: =F66 -> 0 | G94: =G66 -> 0 | H94: 0 | I94: 0 | J94: 0 | K94: 0 | L94: 0 | M94: 0 | N94: 0 | O94: 0 | P94: 0 | Q94: 0 | R94: 0 | S94: 0 | T94: 0 | U94: 0 | V94: 0 | W94: 0
B95: Depreciation of fixed cost (USD) | D95: =-D78 -> -1785400 | E95: =-E78 -> -1785400 | F95: -1785400 | G95: =-G78 -> -1785400 | H95: -1785400 | I95: -1785400 | J95: -1785400 | K95: -1785400 | L95: -1785400 | M95: -1785400 | N95: -1785400 | O95: -1785400 | P95: -1785400 | Q95: -1785400 | R95: -1785400 | S95: -1785400 | T95: -1785400 | U95: -1785400 | V95: -1785400 | W95: -1785400
B96: Net Profit - before tax (USD) for income tax calculation | C96: =SUM(C92:C95) -> 0 | D96: =SUM(D92:D95) ->  | E96: =SUM(E92:E95) ->  | F96: =SUM(F92:F95) ->  | G96: =SUM(G92:G95) -> 
B97: Income tax | D97: =-D73 ->  | E97: =-E73 ->  | F97: =-F73 ->  | G97: =-G73 ->  | H97: =-H73 -> 
D98: =+PV($C56,D91,,-D97) ->  | E98: =+PV($C56,E91,,-E97) ->  | F98: =+PV($C56,F91,,-F97) ->  | G98: =+PV($C56,G91,,-G97) ->  | H98: =+PV($C56,H91,,-H97) -> 
B99: Cash-flow - after tax (USD) | C99: =C84 -> -35708000 | D99: =D87+D97 ->  | E99: =E87+E97 ->  | F99: =F87+F97 ->  | G99: =G87+G97 ->  | H99: =H87+H97 -> 
B100: Present cash-flow - after tax (USD) | D100: =+PV($C56,D91,,-D99) ->  | E100: =+PV($C56,E91,,-E99) ->  | F100: =+PV($C56,F91,,-F99) ->  | G100: =+PV($C56,G91,,-G99) ->  | H100: =+PV($C56,H91,,-H99) -> 
A102: Cumulative value of Net Profit
B103: Operating Year | C103: Appraisal | D103: 1 | E103: 2 | F103: 3 | G103: 4 | H103: 5 | I103: 6 | J103: 7 | K103: 8 | L103: 9 | M103: 10 | N103: 11 | O103: 12 | P103: 13 | Q103: 14 | R103: 15 | S103: 16 | T103: 17 | U103: 18 | V103: 19 | W103: 20
B104: Cumulative value of Net Profit - before tax | C104: =C87 -> -35708000 | D104: =C104+(D88) ->  | E104: =D104+(E88) ->  | F104: =E104+(F88) ->  | G104: =F104+(G88) ->  | H104: =G104+(H88) -> 
B105: Cumulative value of Net Profit - after tax | C105: =C99 -> -35708000 | D105: =C105+(D100) ->  | E105: =D105+(E100) ->  | F105: =E105+(F100) ->  | G105: =F105+(G100) ->  | H105: =G105+(H100) -> 
A107: Financial Analysis Result
B109: Net Present Value (NPV) (USD) - before tax | C109: =NPV(C56,D87:W87)+C87 -> 
B110: Internal Rate of Return (IRR) (%) - before tax | C110: =IF(C109<0,"Not feasible",IRR(C87:W87,0.000001)) -> 
B111: Payback period (years) | C111: Please see Figure of the cumulative value of Net Profit - before tax
B114: Net Present Value (NPV) (USD) - after tax | C114: =NPV(C56,D99:W99)+C99 -> 
B115: Internal Rate of Return (IRR) (%) - after tax | C115: =IF(C114<0,"Not feasible",IRR(C99:W99,0.000001)) -> 
B116: Payback period (years) | C116: Please see Figure of the cumulative value of Net Profit - after tax
B117: Total income tax payment of project lifetime | C117: =SUM(D98:W98) -> 

Sheet FA25_FS1_SC1 (hidden)
B2: =+UPPER("FINANCIAL EVALUATION OF ETHANOL PRODUCTION 25 Million Litres/year SCENARIO 1") -> FINANCIAL EVALUATION OF ETHANOL PRODUCTION 25 MILLION LITRES/YEAR SCENARIO 1
A5: ="Revenues of "&'Data Entry Needs'!$E$10&" production (Benefit)" -> Revenues of Please Select production (Benefit)
B7: Operating Year | C7: 0 | D7: 1 | E7: 2 | F7: 3 | G7: 4 | H7: 5 | I7: 6 | J7: 7 | K7: 8 | L7: 9 | M7: 10 | N7: 11 | O7: 12 | P7: 13 | Q7: 14 | R7: 15 | S7: 16 | T7: 17 | U7: 18 | V7: 19 | W7: 20
B9: Capacity (million of litres) | C9: 25 | D9: =C9 -> 25 | E9: 25 | F9: 25 | G9: 25 | H9: 25 | I9: 25 | J9: 25 | K9: 25 | L9: 25 | M9: 25 | N9: 25 | O9: 25 | P9: 25 | Q9: 25 | R9: 25 | S9: 25 | T9: 25 | U9: 25 | V9: 25 | W9: 25
B10: Annual production (litres per year) | C10: =+C9*1000000 -> 25000000 | D10: =+C10 -> 25000000 | E10: 25000000 | F10: 25000000 | G10: 25000000 | H10: 25000000 | I10: 25000000 | J10: 25000000 | K10: 25000000 | L10: 25000000 | M10: 25000000 | N10: 25000000 | O10: 25000000 | P10: 25000000 | Q10: 25000000 | R10: 25000000 | S10: 25000000 | T10: 25000000 | U10: 25000000 | V10: 25000000 | W10: 25000000
B11: Loss in production processing (%) | D11: 0 | E11: 0 | F11: 0 | G11: 0 | H11: 0 | I11: 0 | J11: 0 | K11: 0 | L11: 0 | M11: 0 | N11: 0 | O11: 0 | P11: 0 | Q11: 0 | R11: 0 | S11: 0 | T11: 0 | U11: 0 | V11: 0 | W11: 0
B12: Sales to customers (litres per year) | C12: =+C10*(1-C11) -> 25000000 | D12: =+C12 -> 25000000 | E12: 25000000 | F12: 25000000 | G12: 25000000 | H12: 25000000 | I12: 25000000 | J12: 25000000 | K12: 25000000 | L12: 25000000 | M12: 25000000 | N12: 25000000 | O12: 25000000 | P12: 25000000 | Q12: 25000000 | R12: 25000000 | S12: 25000000 | T12: 25000000 | U12: 25000000 | V12: 25000000 | W12: 25000000
B14: ="Price of ethanol (USD/litre)" -> Price of ethanol (USD/litre) | C14: =+VLOOKUP("Ethanol",'Data Entry Needs'!$T$217:$X$219,5,FALSE) -> 0 | D14: =+C14*(100%+D15) -> 0 | E14: 0 | F14: 0 | G14: 0 | H14: 0 | I14: 0 | J14: 0 | K14: 0 | L14: 0 | M14: 0 | N14: 0 | O14: 0 | P14: 0 | Q14: 0 | R14: 0 | S14: 0 | T14: 0 | U14: 0 | V14: 0 | W14: 0
B15: ="Increase rate of price of "&'Data Entry Needs'!$E$10&" (%)" -> Increase rate of price of Please Select (%) | C15: =+'Data Entry Needs'!$O$211 -> 0 | D15: =+C15 -> 0 | E15: =+D15 -> 0 | F15: 0 | G15: 0 | H15: 0 | I15: 0 | J15: 0 | K15: 0 | L15: 0 | M15: 0 | N15: 0 | O15: 0 | P15: 0 | Q15: 0 | R15: 0 | S15: 0 | T15: 0 | U15: 0 | V15: 0 | W15: 0
B16: Income (USD per year) | C16: =+C12*C14 -> 0 | D16: 0 | E16: 0 | F16: 0 | G16: 0 | H16: 0 | I16: 0 | J16: 0 | K16: 0 | L16: 0 | M16: 0 | N16: 0 | O16: 0 | P16: 0 | Q16: 0 | R16: 0 | S16: 0 | T16: 0 | U16: 0 | V16: 0 | W16: 0
B17: Income Electricity Generation (USD/year) | C17: =COST_FS1!$I$99 ->  | D17: =C17 ->  | E17: =D17 -> 
B18: By-products revenues (USD/year) | C18: =COST_FS1!$I$100+COST_FS1!$I$101 ->  | D18: =C18 -> 
B20: Total income | D20: =+D16+D17+D18 ->  | E20: =+E16+E17+E18 -> 
A23: Capital and operating cost
B25: Operating Year | C25: Appraisal | D25: 1 | E25: 2 | F25: 3 | G25: 4 | H25: 5 | I25: 6 | J25: 7 | K25: 8 | L25: 9 | M25: 10 | N25: 11 | O25: 12 | P25: 13 | Q25: 14 | R25: 15 | S25: 16 | T25: 17 | U25: 18 | V25: 19 | W25: 20
B26: Direct capital cost (USD)
B27: Equipments | C27: =+COST_FS1!$H76 -> 19482000
B28: Building | C28: =+COST_FS1!$H77 -> 74303000 | N28: =+C28 -> 74303000
N29: =+C29 -> 0
B31: Total capital cost (USD) | C31: =C27+C28 -> 93785000 | D31: =D27+D28+D29 -> 0 | E31: 0 | F31: 0 | G31: 0 | H31: 0 | I31: 0 | J31: 0 | K31: 0 | L31: 0 | M31: 0 | N31: 74303000 | O31: 0 | P31: 0 | Q31: 0 | R31: 0 | S31: 0 | T31: 0 | U31: 0 | V31: 0 | W31: 0
B32: Capital cost (USD/MLN litres) | C32: =+C31/C9 -> 3751400
B33: Capital cost (USD/ litre) | C33: =+C31/C12 -> 3.7514
B36: Operating Year | C36: Appraisal | D36: 1 | E36: 2 | F36: 3 | G36: 4 | H36: 5 | I36: 6 | J36: 7 | K36: 8 | L36: 9 | M36: 10 | N36: 11 | O36: 12 | P36: 13 | Q36: 14 | R36: 15 | S36: 16 | T36: 17 | U36: 18 | V36: 19 | W36: 20
B37: Annual operating and maintenance cost
B38: Sub-total input cost (USD) | C38: =+C39+C40+C41 ->  | D38: =+D39+D40+D41 -> 
B39: Feedstock cost (USD/year) | C39: =+COST_FS1!$I$42 ->  | D39: =+C39 -> 
B40: Other raw material costs (USD/year) | C40: =COST_FS1!$I$53 -> 
B41: Cost of energy inputs (USD/year) | C41: =COST_FS1!$I$59 ->  | D41: =C41 ->  | E41: =D41 -> 
B42: Labour cost (USD/year) | C42: =+COST_FS1!$I$66 -> 0 | D42: =C42*(1+D62) -> 0 | E42: 0 | F42: 0 | G42: 0 | H42: 0 | I42: 0 | J42: 0 | K42: 0 | L42: 0 | M42: 0 | N42: 0 | O42: 0 | P42: 0 | Q42: 0 | R42: 0 | S42: 0 | T42: 0 | U42: 0 | V42: 0 | W42: 0
B43: Transportation cost (USD/year) | C43: =+COST_FS1!$I$72 ->  | D43: =+C43 -> 
B44: Investment cost (USD/year) | C44: =+COST_FS1!$I$80 -> 4689250 | D44: 4689250 | E44: 4689250 | F44: 4689250 | G44: 4689250 | H44: 4689250 | I44: 4689250 | J44: 4689250 | K44: 4689250 | L44: 4689250 | M44: 4689250 | N44: 4689250 | O44: 4689250 | P44: 4689250 | Q44: 4689250 | R44: 4689250 | S44: 4689250 | T44: 4689250 | U44: 4689250 | V44: 4689250 | W44: 4689250
B45: Maintenance cost (USD/year) | C45: =+COST_FS1!$I$81 -> 0 | D45: 0 | E45: 0 | F45: 0 | G45: 0 | H45: 0 | I45: 0 | J45: 0 | K45: 0 | L45: 0 | M45: 0 | N45: 0 | O45: 0 | P45: 0 | Q45: 0 | R45: 0 | S45: 0 | T45: 0 | U45: 0 | V45: 0 | W45: 0
B46: Storage cost (USD/year) | C46: =+COST_FS1!$I$88 ->  | D46: =C46 -> 
B47: Plant overhead (USD/year) | C47: =+COST_FS1!$I$92 -> 0 | D47: =+C47 -> 0 | E47: 0 | F47: 0 | G47: 0 | H47: 0 | I47: 0 | J47: 0 | K47: 0 | L47: 0 | M47: 0 | N47: 0 | O47: 0 | P47: 0 | Q47: 0 | R47: 0 | S47: 0 | T47: 0 | U47: 0 | V47: 0 | W47: 0
B48: General and administrative cost (USD/year) | C48: =+COST_FS1!$I$93 -> 
B49: Total annualized cost (USD) | C49: =SUM(C39:C48) -> 
B50: Total cost per litre (USD/l) | C50: =+C49/C12 -> 
A52: Financial parameters
B53: Operating Year | C53: Appraisal | D53: 1 | E53: 2 | F53: 3 | G53: 4 | H53: 5 | I53: 6 | J53: 7 | K53: 8 | L53: 9 | M53: 10 | N53: 11 | O53: 12 | P53: 13 | Q53: 14 | R53: 15 | S53: 16 | T53: 17 | U53: 18 | V53: 19 | W53: 20
B54: Raw material cost escalation rate (%) | D54: 0 | E54: =D54 -> 0 | F54: 0 | G54: 0 | H54: 0 | I54: 0 | J54: 0 | K54: 0 | L54: 0 | M54: 0 | N54: 0 | O54: 0 | P54: 0 | Q54: 0 | R54: 0 | S54: 0 | T54: 0 | U54: 0 | V54: 0 | W54: 0
B55: Inflation rate (%) | D55: =+'Data Entry Needs'!$O$212 -> 0 | E55: 0 | F55: 0 | G55: 0 | H55: 0 | I55: 0 | J55: 0 | K55: 0 | L55: 0 | M55: 0 | N55: 0 | O55: 0 | P55: 0 | Q55: 0 | R55: 0 | S55: 0 | T55: 0 | U55: 0 | V55: 0 | W55: 0
B56: Discount rate (%) | C56: =+'Data Entry Needs'!$D$79 -> 0
B57: Debt ratio (%) | C57: =+'Data Entry Needs'!$D$84 -> 0
B59: Loan | D59: 1 | E59: 2 | F59: 3 | G59: 4 | H59: 5 | I59: 6 | J59: 7 | K59: 8 | L59: 9 | M59: 10 | N59: 11 | O59: 12 | P59: 13 | Q59: 14 | R59: 15 | S59: 16 | T59: 17 | U59: 18 | V59: 19 | W59: 20
B60: Loan amount (USD ) | C60: =C57*C31 -> 0
B61: Increasing rate of price of biodiesel (%) | C61: =+'Data Entry Needs'!$O$211 -> 0 | D61: =+C61 -> 0 | E61: 0 | F61: 0 | G61: 0 | H61: 0 | I61: 0 | J61: 0 | K61: 0 | L61: 0 | M61: 0 | N61: 0 | O61: 0 | P61: 0 | Q61: 0 | R61: 0 | S61: 0 | T61: 0 | U61: 0 | V61: 0 | W61: 0
B62: Escalation rate of labour cost (%) | D62: 0 | E62: 0 | F62: 0 | G62: 0 | H62: 0 | I62: 0 | J62: 0 | K62: 0 | L62: 0 | M62: 0 | N62: 0 | O62: 0 | P62: 0 | Q62: 0 | R62: 0 | S62: 0 | T62: 0 | U62: 0 | V62: 0 | W62: 0
B63: Loan interest rate (%) | C63: =+'Data Entry Needs'!$D$80 -> 0
B64: Loan term (years) | C64: =+'Data Entry Needs'!$D$81 -> 0
B65: Loan payment (USD/month) | C65: =(PMT(C63/12,(12*C64),C60)) -> 
B66: Loan payment (USD/year) | D66: =IF(D53<=$C$64,$C$65*12,0) -> 0 | E66: =IF(E53<=$C$64,$C$65*12,0) -> 0 | F66: 0 | G66: 0 | H66: 0 | I66: 0 | J66: 0 | K66: 0 | L66: 0 | M66: 0 | N66: 0 | O66: 0 | P66: 0 | Q66: 0 | R66: 0 | S66: 0 | T66: 0 | U66: 0 | V66: 0 | W66: 0
B67: Total loan payment (USD) | C67: =SUM(D66:W66) -> 0
B68: Loan interest payment (USD) | C68: =C67+C60 -> 0 | D68: Average loan interest payment for project lifetime | G68: =C68/20 -> 0 | H68: USD per year
A70: Income tax analysis
B71: Operating Year | C71: Appraisal | D71: 1 | E71: 2 | F71: 3 | G71: 4 | H71: 5 | I71: 6 | J71: 7 | K71: 8 | L71: 9 | M71: 10 | N71: 11 | O71: 12 | P71: 13 | Q71: 14 | R71: 15 | S71: 16 | T71: 17 | U71: 18 | V71: 19 | W71: 20
B72: Effective income tax rate (%) | C72: 0 | D72: =C72 -> 0 | E72: 0 | F72: 0 | G72: 0 | H72: 0 | I72: 0 | J72: 0 | K72: 0 | L72: 0 | M72: 0 | N72: 0 | O72: 0 | P72: 0 | Q72: 0 | R72: 0 | S72: 0 | T72: 0 | U72: 0 | V72: 0 | W72: 0
B73: Income tax | D73: =IF(D96<0,0,D72*D96) ->  | E73: =IF(E96<0,0,E72*E96) ->  | F73: =IF(F96<0,0,F72*F96) ->  | G73: =IF(G96<0,0,G72*G96) ->  | H73: =IF(H96<0,0,H72*H96) -> 
A75: Depreciation
B76: Operating Year | C76: Appraisal | D76: 1 | E76: 2 | F76: 3 | G76: 4 | H76: 5 | I76: 6 | J76: 7 | K76: 8 | L76: 9 | M76: 10 | N76: 11 | O76: 12 | P76: 13 | Q76: 14 | R76: 15 | S76: 16 | T76: 17 | U76: 18 | V76: 19 | W76: 20
B77: Depreciation method | C77: Straight-line
B78: Total depreciation (USD) | C78: =C44 -> 4689250 | D78: =C78 -> 4689250 | E78: =D78 -> 4689250 | F78: 4689250 | G78: 4689250 | H78: 4689250 | I78: 4689250 | J78: 4689250 | K78: 4689250 | L78: 4689250 | M78: 4689250 | N78: 4689250 | O78: 4689250 | P78: 4689250 | Q78: 4689250 | R78: 4689250 | S78: 4689250 | T78: 4689250 | U78: 4689250 | V78: 4689250 | W78: 4689250
A81: Summary of this project - before tax
B82: Operating Year | C82: Appraisal | D82: 1 | E82: 2 | F82: 3 | G82: 4 | H82: 5 | I82: 6 | J82: 7 | K82: 8 | L82: 9 | M82: 10 | N82: 11 | O82: 12 | P82: 13 | Q82: 14 | R82: 15 | S82: 16 | T82: 17 | U82: 18 | V82: 19 | W82: 20
B83: Total revenue (USD) | D83: =+D20 -> 
B84: Total capital cost (USD) | C84: =-(C31-C60) -> -93785000
B85: Total operating and maintenance cost (USD) | D85: =-(D49-D44) ->  | G85: =-(G49-G44) -> 
B86: Debt payment (USD) | D86: =D66 -> 0 | E86: 0 | F86: 0 | G86: =G66 -> 0 | H86: 0 | I86: 0 | J86: 0 | K86: 0 | L86: 0 | M86: 0 | N86: 0 | O86: 0 | P86: 0 | Q86: 0 | R86: 0 | S86: 0 | T86: 0 | U86: 0 | V86: 0 | W86: 0
B87: Cash-flow - before tax (USD) | C87: =SUM(C83:C86) -> -93785000 | D87: =SUM(D83:D86) ->  | E87: =SUM(E83:E86) ->  | F87: =SUM(F83:F86) ->  | G87: =SUM(G83:G86) -> 
B88: Present cash-flow - before tax (USD) | D88: =+D87/((1+$C56)^D82) ->  | E88: =+E87/((1+$C56)^E82) ->  | F88: =+F87/((1+$C56)^F82) ->  | G88: =+G87/((1+$C56)^G82) ->  | H88: =+H87/((1+$C56)^H82) -> 
D89: =+PV($C56,D82,,-D87,) ->  | E89: =+PV($C56,E82,,-E87,) ->  | F89: =+PV($C56,F82,,-F87,) ->  | G89: =+PV($C56,G82,,-G87,) ->  | H89: =+PV($C56,H82,,-H87,) -> 
A90: Summary of this project - after tax
B91: Operating Year | C91: Appraisal | D91: 1 | E91: 2 | F91: 3 | G91: 4 | H91: 5 | I91: 6 | J91: 7 | K91: 8 | L91: 9 | M91: 10 | N91: 11 | O91: 12 | P91: 13 | Q91: 14 | R91: 15 | S91: 16 | T91: 17 | U91: 18 | V91: 19 | W91: 20
B92: Total revenue (USD) | C92: =C83 -> 0 | D92: =D83 ->  | E92: =E83 ->  | F92: =F83 ->  | G92: =G83 -> 
B93: Total operating and maintenance cost (USD) | D93: =-(D49-D44) ->  | E93: =-(E49-E44) ->  | F93: =-(F49-F44) ->  | G93: =-(G49-G44) -> 
B94: Debt payment (USD) | D94: =D66 -> 0 | E94: 0 | F94: =F66 -> 0 | G94: =G66 -> 0 | H94: 0 | I94: 0 | J94: 0 | K94: 0 | L94: 0 | M94: 0 | N94: 0 | O94: 0 | P94: 0 | Q94: 0 | R94: 0 | S94: 0 | T94: 0 | U94: 0 | V94: 0 | W94: 0
B95: Depreciation of fixed cost (USD) | D95: =-D78 -> -4689250 | E95: =-E78 -> -4689250 | F95: -4689250 | G95: =-G78 -> -4689250 | H95: -4689250 | I95: -4689250 | J95: -4689250 | K95: -4689250 | L95: -4689250 | M95: -4689250 | N95: -4689250 | O95: -4689250 | P95: -4689250 | Q95: -4689250 | R95: -4689250 | S95: -4689250 | T95: -4689250 | U95: -4689250 | V95: -4689250 | W95: -4689250
B96: Net Profit - before tax (USD) for income tax calculation | C96: =SUM(C92:C95) -> 0 | D96: =SUM(D92:D95) ->  | E96: =SUM(E92:E95) ->  | F96: =SUM(F92:F95) ->  | G96: =SUM(G92:G95) -> 
B97: Income tax | D97: =-D73 ->  | E97: =-E73 ->  | F97: =-F73 ->  | G97: =-G73 ->  | H97: =-H73 -> 
D98: =+PV($C56,D91,,-D97) ->  | E98: =+PV($C56,E91,,-E97) ->  | F98: =+PV($C56,F91,,-F97) ->  | G98: =+PV($C56,G91,,-G97) ->  | H98: =+PV($C56,H91,,-H97) -> 
B99: Cash-flow - after tax (USD) | C99: =C84 -> -93785000 | D99: =D87+D97 ->  | E99: =E87+E97 ->  | F99: =F87+F97 ->  | G99: =G87+G97 ->  | H99: =H87+H97 -> 
B100: Present cash-flow - after tax (USD) | D100: =+PV($C56,D91,,-D99) ->  | E100: =+PV($C56,E91,,-E99) ->  | F100: =+PV($C56,F91,,-F99) ->  | G100: =+PV($C56,G91,,-G99) ->  | H100: =+PV($C56,H91,,-H99) -> 
A102: Cumulative value of Net Profit
B103: Operating Year | C103: Appraisal | D103: 1 | E103: 2 | F103: 3 | G103: 4 | H103: 5 | I103: 6 | J103: 7 | K103: 8 | L103: 9 | M103: 10 | N103: 11 | O103: 12 | P103: 13 | Q103: 14 | R103: 15 | S103: 16 | T103: 17 | U103: 18 | V103: 19 | W103: 20
B104: Cumulative value of Net Profit - before tax | C104: =C87 -> -93785000 | D104: =C104+(D88) ->  | E104: =D104+(E88) ->  | F104: =E104+(F88) ->  | G104: =F104+(G88) ->  | H104: =G104+(H88) -> 
B105: Cumulative value of Net Profit - after tax | C105: =C99 -> -93785000 | D105: =C105+(D100) ->  | E105: =D105+(E100) ->  | F105: =E105+(F100) ->  | G105: =F105+(G100) ->  | H105: =G105+(H100) -> 
A107: Financial Analysis Result
B109: Net Present Value (NPV) (USD) - before tax | C109: =NPV(C56,D87:W87)+C87 -> 
B110: Internal Rate of Return (IRR) (%) - before tax | C110: =IF(C109<0,"Not feasible",IRR(C87:W87,0.000001)) -> 
B111: Payback period (years) | C111: Please see Figure of the cumulative value of Net Profit - before tax
B114: Net Present Value (NPV) (USD) - after tax | C114: =NPV(C56,D99:W99)+C99 -> 
B115: Internal Rate of Return (IRR) (%) - after tax | C115: =IF(C114<0,"Not feasible",IRR(C99:W99,0.000001)) -> 
B116: Payback period (years) | C116: Please see Figure of the cumulative value of Net Profit - after tax
B117: Total income tax payment of project lifetime | C117: =SUM(D98:W98) -> 

Sheet FA25_FS1_SC2 (hidden)
B2: =+UPPER("FINANCIAL EVALUATION OF ETHANOL PRODUCTION 25 Million Litres/year SCENARIO 2") -> FINANCIAL EVALUATION OF ETHANOL PRODUCTION 25 MILLION LITRES/YEAR SCENARIO 2
A5: ="Revenues of "&'Data Entry Needs'!$E$10&" production (Benefit)" -> Revenues of Please Select production (Benefit)
B7: Operating Year | C7: 0 | D7: 1 | E7: 2 | F7: 3 | G7: 4 | H7: 5 | I7: 6 | J7: 7 | K7: 8 | L7: 9 | M7: 10 | N7: 11 | O7: 12 | P7: 13 | Q7: 14 | R7: 15 | S7: 16 | T7: 17 | U7: 18 | V7: 19 | W7: 20
B9: Capacity (million of litres) | C9: 25 | D9: =C9 -> 25 | E9: 25 | F9: 25 | G9: 25 | H9: 25 | I9: 25 | J9: 25 | K9: 25 | L9: 25 | M9: 25 | N9: 25 | O9: 25 | P9: 25 | Q9: 25 | R9: 25 | S9: 25 | T9: 25 | U9: 25 | V9: 25 | W9: 25
B10: Annual production (litres per year) | C10: =+C9*1000000 -> 25000000 | D10: =+C10 -> 25000000 | E10: 25000000 | F10: 25000000 | G10: 25000000 | H10: 25000000 | I10: 25000000 | J10: 25000000 | K10: 25000000 | L10: 25000000 | M10: 25000000 | N10: 25000000 | O10: 25000000 | P10: 25000000 | Q10: 25000000 | R10: 25000000 | S10: 25000000 | T10: =+S10 -> 25000000 | U10: 25000000 | V10: 25000000 | W10: 25000000
B11: Loss in production processing (%) | D11: 0 | E11: 0 | F11: 0 | G11: 0 | H11: 0 | I11: 0 | J11: 0 | K11: 0 | L11: 0 | M11: 0 | N11: 0 | O11: 0 | P11: 0 | Q11: 0 | R11: 0 | S11: 0 | T11: 0 | U11: 0 | V11: 0 | W11: 0
B12: Sales to customers (litres per year) | C12: =+C10*(1-C11) -> 25000000 | D12: =+C12 -> 25000000 | E12: 25000000 | F12: 25000000 | G12: 25000000 | H12: 25000000 | I12: 25000000 | J12: 25000000 | K12: 25000000 | L12: 25000000 | M12: 25000000 | N12: 25000000 | O12: 25000000 | P12: 25000000 | Q12: 25000000 | R12: 25000000 | S12: 25000000 | T12: 25000000 | U12: 25000000 | V12: 25000000 | W12: 25000000
B14: ="Price of ethanol (USD/litre)" -> Price of ethanol (USD/litre) | C14: =+VLOOKUP("Ethanol",'Data Entry Needs'!$T$217:$X$219,5,FALSE) -> 0 | D14: =+C14*(100%+D15) -> 0 | E14: 0 | F14: 0 | G14: 0 | H14: 0 | I14: 0 | J14: 0 | K14: 0 | L14: 0 | M14: 0 | N14: 0 | O14: 0 | P14: 0 | Q14: 0 | R14: 0 | S14: 0 | T14: 0 | U14: 0 | V14: 0 | W14: 0
B15: ="Increase rate of price of "&'Data Entry Needs'!$E$10&" (%)" -> Increase rate of price of Please Select (%) | C15: =+'Data Entry Needs'!$O$211 -> 0 | D15: =+C15 -> 0 | E15: =+D15 -> 0 | F15: 0 | G15: 0 | H15: 0 | I15: 0 | J15: 0 | K15: 0 | L15: 0 | M15: 0 | N15: 0 | O15: 0 | P15: 0 | Q15: 0 | R15: 0 | S15: 0 | T15: 0 | U15: 0 | V15: 0 | W15: 0
B16: Income (USD per year) | C16: =+C12*C14 -> 0 | D16: 0 | E16: 0 | F16: 0 | G16: 0 | H16: 0 | I16: 0 | J16: 0 | K16: 0 | L16: 0 | M16: 0 | N16: 0 | O16: 0 | P16: 0 | Q16: 0 | R16: 0 | S16: 0 | T16: 0 | U16: 0 | V16: 0 | W16: 0
B17: Income Electricity Generation (USD/year) | C17: =COST_FS1!$I$99 ->  | D17: =C17 ->  | E17: =D17 -> 
B18: By-products revenues (USD/year) | C18: =COST_FS1!$I$100+COST_FS1!$I$101 ->  | D18: =C18 -> 
B20: Total income | D20: =+D16+D17+D18 ->  | E20: =+E16+E17+E18 -> 
A23: Capital and operating cost
B25: Operating Year | C25: Appraisal | D25: 1 | E25: 2 | F25: 3 | G25: 4 | H25: 5 | I25: 6 | J25: 7 | K25: 8 | L25: 9 | M25: 10 | N25: 11 | O25: 12 | P25: 13 | Q25: 14 | R25: 15 | S25: 16 | T25: 17 | U25: 18 | V25: 19 | W25: 20
B26: Direct capital cost (USD)
B27: Equipments | C27: =+COST_FS1!$H76 -> 19482000
B28: Building | C28: =+COST_FS1!$H77 -> 74303000 | N28: =+C28 -> 74303000
N29: =+C29 -> 0
B31: Total capital cost (USD) | C31: =C27+C28 -> 93785000 | D31: =D27+D28+D29 -> 0 | E31: 0 | F31: 0 | G31: 0 | H31: 0 | I31: 0 | J31: 0 | K31: 0 | L31: 0 | M31: 0 | N31: 74303000 | O31: 0 | P31: 0 | Q31: 0 | R31: 0 | S31: 0 | T31: 0 | U31: 0 | V31: 0 | W31: 0
B32: Capital cost (USD/MLN litres) | C32: =+C31/C9 -> 3751400
B33: Capital cost (USD/ litre) | C33: =+C31/C12 -> 3.7514
B36: Operating Year | C36: Appraisal | D36: 1 | E36: 2 | F36: 3 | G36: 4 | H36: 5 | I36: 6 | J36: 7 | K36: 8 | L36: 9 | M36: 10 | N36: 11 | O36: 12 | P36: 13 | Q36: 14 | R36: 15 | S36: 16 | T36: 17 | U36: 18 | V36: 19 | W36: 20
B37: Annual operating and maintenance cost
B38: Sub-total input cost (USD) | C38: =+C39+C40+C41 ->  | D38: =+D39+D40+D41 -> 
B39: Feedstock cost (USD/year) | C39: =+COST_FS1!$I$43 ->  | D39: =+C39 ->  | T39: =+S39 -> 
B40: Other raw material costs (USD/year) | C40: =COST_FS1!$I$53 -> 
B41: Cost of energy inputs (USD/year) | C41: =COST_FS1!$I$59 ->  | D41: =C41 ->  | E41: =D41 -> 
B42: Labour cost (USD/year) | C42: =+COST_FS1!$I$66 -> 0 | D42: =C42*(1+D62) -> 0 | E42: 0 | F42: 0 | G42: 0 | H42: 0 | I42: 0 | J42: 0 | K42: 0 | L42: 0 | M42: 0 | N42: 0 | O42: 0 | P42: 0 | Q42: 0 | R42: 0 | S42: 0 | T42: 0 | U42: 0 | V42: 0 | W42: 0
B43: Transportation cost (USD/year) | C43: =+COST_FS1!$I$72 ->  | D43: =+C43 ->  | T43: =+S43 -> 
B44: Investment cost (USD/year) | C44: =+COST_FS1!$I$80 -> 4689250 | D44: 4689250 | E44: 4689250 | F44: 4689250 | G44: 4689250 | H44: 4689250 | I44: 4689250 | J44: 4689250 | K44: 4689250 | L44: 4689250 | M44: 4689250 | N44: 4689250 | O44: 4689250 | P44: 4689250 | Q44: 4689250 | R44: 4689250 | S44: 4689250 | T44: 4689250 | U44: 4689250 | V44: 4689250 | W44: 4689250
B45: Maintenance cost (USD/year) | C45: =+COST_FS1!$I$81 -> 0 | D45: 0 | E45: 0 | F45: 0 | G45: 0 | H45: 0 | I45: 0 | J45: 0 | K45: 0 | L45: 0 | M45: 0 | N45: 0 | O45: 0 | P45: 0 | Q45: 0 | R45: 0 | S45: 0 | T45: 0 | U45: 0 | V45: 0 | W45: 0
B46: Storage cost (USD/year) | C46: =+COST_FS1!$I$88 ->  | D46: =C46 -> 
B47: Plant overhead (USD/year) | C47: =+COST_FS1!$I$92 -> 0 | D47: =+C47 -> 0 | E47: 0 | F47: 0 | G47: 0 | H47: 0 | I47: 0 | J47: 0 | K47: 0 | L47: 0 | M47: 0 | N47: 0 | O47: 0 | P47: 0 | Q47: 0 | R47: 0 | S47: 0 | T47: =+S47 -> 0 | U47: 0 | V47: 0 | W47: 0
B48: General and administrative cost (USD/year) | C48: =+COST_FS1!$I$93 -> 
B49: Total annualized cost (USD) | C49: =SUM(C39:C48) -> 
B50: Total cost per litre (USD/l) | C50: =+C49/C12 -> 
A52: Financial parameters
B53: Operating Year | C53: Appraisal | D53: 1 | E53: 2 | F53: 3 | G53: 4 | H53: 5 | I53: 6 | J53: 7 | K53: 8 | L53: 9 | M53: 10 | N53: 11 | O53: 12 | P53: 13 | Q53: 14 | R53: 15 | S53: 16 | T53: 17 | U53: 18 | V53: 19 | W53: 20
B54: Raw material cost escalation rate (%) | D54: 0 | E54: =D54 -> 0 | F54: 0 | G54: 0 | H54: 0 | I54: 0 | J54: 0 | K54: 0 | L54: 0 | M54: 0 | N54: 0 | O54: 0 | P54: 0 | Q54: 0 | R54: 0 | S54: 0 | T54: 0 | U54: =T54 -> 0 | V54: 0 | W54: 0
B55: Inflation rate (%) | D55: =+'Data Entry Needs'!$O$212 -> 0 | E55: 0 | F55: 0 | G55: 0 | H55: 0 | I55: 0 | J55: 0 | K55: 0 | L55: 0 | M55: 0 | N55: 0 | O55: 0 | P55: 0 | Q55: 0 | R55: 0 | S55: 0 | T55: 0 | U55: 0 | V55: 0 | W55: 0
B56: Discount rate (%) | C56: =+'Data Entry Needs'!$D$79 -> 0
B57: Debt ratio (%) | C57: =+'Data Entry Needs'!$D$84 -> 0
B59: Loan | D59: 1 | E59: 2 | F59: 3 | G59: 4 | H59: 5 | I59: 6 | J59: 7 | K59: 8 | L59: 9 | M59: 10 | N59: 11 | O59: 12 | P59: 13 | Q59: 14 | R59: 15 | S59: 16 | T59: 17 | U59: 18 | V59: 19 | W59: 20
B60: Loan amount (USD ) | C60: =C57*C31 -> 0
B61: Increasing rate of price of biodiesel (%) | C61: =+'Data Entry Needs'!$O$211 -> 0 | D61: =+C61 -> 0 | E61: 0 | F61: 0 | G61: 0 | H61: 0 | I61: 0 | J61: 0 | K61: 0 | L61: 0 | M61: 0 | N61: 0 | O61: 0 | P61: 0 | Q61: 0 | R61: 0 | S61: 0 | T61: =+S61 -> 0 | U61: 0 | V61: 0 | W61: 0
B62: Escalation rate of labour cost (%) | D62: 0 | E62: 0 | F62: 0 | G62: 0 | H62: 0 | I62: 0 | J62: 0 | K62: 0 | L62: 0 | M62: 0 | N62: 0 | O62: 0 | P62: 0 | Q62: 0 | R62: 0 | S62: 0 | T62: 0 | U62: 0 | V62: 0 | W62: 0
B63: Loan interest rate (%) | C63: =+'Data Entry Needs'!$D$80 -> 0
B64: Loan term (years) | C64: =+'Data Entry Needs'!$D$81 -> 0
B65: Loan payment (USD/month) | C65: =(PMT(C63/12,(12*C64),C60)) -> 
B66: Loan payment (USD/year) | D66: =IF(D53<=$C$64,$C$65*12,0) -> 0 | E66: =IF(E53<=$C$64,$C$65*12,0) -> 0 | F66: 0 | G66: 0 | H66: 0 | I66: 0 | J66: 0 | K66: 0 | L66: 0 | M66: 0 | N66: 0 | O66: 0 | P66: 0 | Q66: 0 | R66: 0 | S66: 0 | T66: 0 | U66: 0 | V66: 0 | W66: 0
B67: Total loan payment (USD) | C67: =SUM(D66:W66) -> 0
B68: Loan interest payment (USD) | C68: =C67+C60 -> 0 | D68: Average loan interest payment for project lifetime | G68: =C68/20 -> 0 | H68: USD per year
A70: Income tax analysis
B71: Operating Year | C71: Appraisal | D71: 1 | E71: 2 | F71: 3 | G71: 4 | H71: 5 | I71: 6 | J71: 7 | K71: 8 | L71: 9 | M71: 10 | N71: 11 | O71: 12 | P71: 13 | Q71: 14 | R71: 15 | S71: 16 | T71: 17 | U71: 18 | V71: 19 | W71: 20
B72: Effective income tax rate (%) | C72: 0 | D72: =C72 -> 0 | E72: 0 | F72: 0 | G72: 0 | H72: 0 | I72: 0 | J72: 0 | K72: 0 | L72: 0 | M72: 0 | N72: 0 | O72: 0 | P72: 0 | Q72: 0 | R72: 0 | S72: 0 | T72: 0 | U72: 0 | V72: 0 | W72: 0
B73: Income tax | D73: =IF(D96<0,0,D72*D96) ->  | E73: =IF(E96<0,0,E72*E96) ->  | F73: =IF(F96<0,0,F72*F96) ->  | G73: =IF(G96<0,0,G72*G96) ->  | H73: =IF(H96<0,0,H72*H96) -> 
A75: Depreciation
B76: Operating Year | C76: Appraisal | D76: 1 | E76: 2 | F76: 3 | G76: 4 | H76: 5 | I76: 6 | J76: 7 | K76: 8 | L76: 9 | M76: 10 | N76: 11 | O76: 12 | P76: 13 | Q76: 14 | R76: 15 | S76: 16 | T76: 17 | U76: 18 | V76: 19 | W76: 20
B77: Depreciation method | C77: Straight-line
B78: Total depreciation (USD) | C78: =C44 -> 4689250 | D78: =C78 -> 4689250 | E78: =D78 -> 4689250 | F78: 4689250 | G78: 4689250 | H78: 4689250 | I78: 4689250 | J78: 4689250 | K78: 4689250 | L78: 4689250 | M78: 4689250 | N78: 4689250 | O78: 4689250 | P78: 4689250 | Q78: 4689250 | R78: 4689250 | S78: 4689250 | T78: 4689250 | U78: 4689250 | V78: 4689250 | W78: 4689250
A81: Summary of this project - before tax
B82: Operating Year | C82: Appraisal | D82: 1 | E82: 2 | F82: 3 | G82: 4 | H82: 5 | I82: 6 | J82: 7 | K82: 8 | L82: 9 | M82: 10 | N82: 11 | O82: 12 | P82: 13 | Q82: 14 | R82: 15 | S82: 16 | T82: 17 | U82: 18 | V82: 19 | W82: 20
B83: Total revenue (USD) | D83: =+D20 -> 
B84: Total capital cost (USD) | C84: =-(C31-C60) -> -93785000
B85: Total operating and maintenance cost (USD) | D85: =-(D49-D44) ->  | G85: =-(G49-G44) -> 
B86: Debt payment (USD) | D86: =D66 -> 0 | E86: 0 | F86: 0 | G86: =G66 -> 0 | H86: 0 | I86: 0 | J86: 0 | K86: 0 | L86: 0 | M86: 0 | N86: 0 | O86: 0 | P86: 0 | Q86: 0 | R86: 0 | S86: 0 | T86: 0 | U86: 0 | V86: 0 | W86: 0
B87: Cash-flow - before tax (USD) | C87: =SUM(C83:C86) -> -93785000 | D87: =SUM(D83:D86) ->  | E87: =SUM(E83:E86) ->  | F87: =SUM(F83:F86) ->  | G87: =SUM(G83:G86) -> 
B88: Present cash-flow - before tax (USD) | D88: =+D87/((1+$C56)^D82) ->  | E88: =+E87/((1+$C56)^E82) ->  | F88: =+F87/((1+$C56)^F82) ->  | G88: =+G87/((1+$C56)^G82) ->  | H88: =+H87/((1+$C56)^H82) -> 
D89: =+PV($C56,D82,,-D87,) ->  | E89: =+PV($C56,E82,,-E87,) ->  | F89: =+PV($C56,F82,,-F87,) ->  | G89: =+PV($C56,G82,,-G87,) ->  | H89: =+PV($C56,H82,,-H87,) -> 
A90: Summary of this project - after tax
B91: Operating Year | C91: Appraisal | D91: 1 | E91: 2 | F91: 3 | G91: 4 | H91: 5 | I91: 6 | J91: 7 | K91: 8 | L91: 9 | M91: 10 | N91: 11 | O91: 12 | P91: 13 | Q91: 14 | R91: 15 | S91: 16 | T91: 17 | U91: 18 | V91: 19 | W91: 20
B92: Total revenue (USD) | C92: =C83 -> 0 | D92: =D83 ->  | E92: =E83 ->  | F92: =F83 ->  | G92: =G83 -> 
B93: Total operating and maintenance cost (USD) | D93: =-(D49-D44) ->  | E93: =-(E49-E44) ->  | F93: =-(F49-F44) ->  | G93: =-(G49-G44) -> 
B94: Debt payment (USD) | D94: =D66 -> 0 | E94: 0 | F94: =F66 -> 0 | G94: =G66 -> 0 | H94: 0 | I94: 0 | J94: 0 | K94: 0 | L94: 0 | M94: 0 | N94: 0 | O94: 0 | P94: 0 | Q94: 0 | R94: 0 | S94: 0 | T94: 0 | U94: 0 | V94: 0 | W94: 0
B95: Depreciation of fixed cost (USD) | D95: =-D78 -> -4689250 | E95: =-E78 -> -4689250 | F95: -4689250 | G95: =-G78 -> -4689250 | H95: -4689250 | I95: -4689250 | J95: -4689250 | K95: -4689250 | L95: -4689250 | M95: -4689250 | N95: -4689250 | O95: -4689250 | P95: -4689250 | Q95: -4689250 | R95: -4689250 | S95: -4689250 | T95: -4689250 | U95: -4689250 | V95: -4689250 | W95: -4689250
B96: Net Profit - before tax (USD) for income tax calculation | C96: =SUM(C92:C95) -> 0 | D96: =SUM(D92:D95) ->  | E96: =SUM(E92:E95) ->  | F96: =SUM(F92:F95) ->  | G96: =SUM(G92:G95) -> 
B97: Income tax | D97: =-D73 ->  | E97: =-E73 ->  | F97: =-F73 ->  | G97: =-G73 ->  | H97: =-H73 -> 
D98: =+PV($C56,D91,,-D97) ->  | E98: =+PV($C56,E91,,-E97) ->  | F98: =+PV($C56,F91,,-F97) ->  | G98: =+PV($C56,G91,,-G97) ->  | H98: =+PV($C56,H91,,-H97) -> 
B99: Cash-flow - after tax (USD) | C99: =C84 -> -93785000 | D99: =D87+D97 ->  | E99: =E87+E97 ->  | F99: =F87+F97 ->  | G99: =G87+G97 ->  | H99: =H87+H97 -> 
B100: Present cash-flow - after tax (USD) | D100: =+PV($C56,D91,,-D99) ->  | E100: =+PV($C56,E91,,-E99) ->  | F100: =+PV($C56,F91,,-F99) ->  | G100: =+PV($C56,G91,,-G99) ->  | H100: =+PV($C56,H91,,-H99) -> 
A102: Cumulative value of Net Profit
B103: Operating Year | C103: Appraisal | D103: 1 | E103: 2 | F103: 3 | G103: 4 | H103: 5 | I103: 6 | J103: 7 | K103: 8 | L103: 9 | M103: 10 | N103: 11 | O103: 12 | P103: 13 | Q103: 14 | R103: 15 | S103: 16 | T103: 17 | U103: 18 | V103: 19 | W103: 20
B104: Cumulative value of Net Profit - before tax | C104: =C87 -> -93785000 | D104: =C104+(D88) ->  | E104: =D104+(E88) ->  | F104: =E104+(F88) ->  | G104: =F104+(G88) ->  | H104: =G104+(H88) -> 
B105: Cumulative value of Net Profit - after tax | C105: =C99 -> -93785000 | D105: =C105+(D100) ->  | E105: =D105+(E100) ->  | F105: =E105+(F100) ->  | G105: =F105+(G100) ->  | H105: =G105+(H100) -> 
A107: Financial Analysis Result
B109: Net Present Value (NPV) (USD) - before tax | C109: =NPV(C56,D87:W87)+C87 -> 
B110: Internal Rate of Return (IRR) (%) - before tax | C110: =IF(C109<0,"Not feasible",IRR(C87:W87,0.000001)) -> 
B111: Payback period (years) | C111: Please see Figure of the cumulative value of Net Profit - before tax
B114: Net Present Value (NPV) (USD) - after tax | C114: =NPV(C56,D99:W99)+C99 -> 
B115: Internal Rate of Return (IRR) (%) - after tax | C115: =IF(C114<0,"Not feasible",IRR(C99:W99,0.000001)) -> 
B116: Payback period (years) | C116: Please see Figure of the cumulative value of Net Profit - after tax
B117: Total income tax payment of project lifetime | C117: =SUM(D98:W98) -> 

Sheet FA25_FS1_SC3 (hidden)
B2: =+UPPER("FINANCIAL EVALUATION OF ETHANOL PRODUCTION 25 Million Litres/year SCENARIO 3") -> FINANCIAL EVALUATION OF ETHANOL PRODUCTION 25 MILLION LITRES/YEAR SCENARIO 3
A5: ="Revenues of "&'Data Entry Needs'!$E$10&" production (Benefit)" -> Revenues of Please Select production (Benefit)
B7: Operating Year | C7: 0 | D7: 1 | E7: 2 | F7: 3 | G7: 4 | H7: 5 | I7: 6 | J7: 7 | K7: 8 | L7: 9 | M7: 10 | N7: 11 | O7: 12 | P7: 13 | Q7: 14 | R7: 15 | S7: 16 | T7: 17 | U7: 18 | V7: 19 | W7: 20
B9: Capacity (million of litres) | C9: 25 | D9: =C9 -> 25 | E9: 25 | F9: 25 | G9: 25 | H9: 25 | I9: 25 | J9: 25 | K9: 25 | L9: 25 | M9: 25 | N9: 25 | O9: 25 | P9: 25 | Q9: 25 | R9: 25 | S9: 25 | T9: 25 | U9: 25 | V9: 25 | W9: 25
B10: Annual production (litres per year) | C10: =+C9*1000000 -> 25000000 | D10: =+C10 -> 25000000 | E10: 25000000 | F10: 25000000 | G10: 25000000 | H10: 25000000 | I10: 25000000 | J10: 25000000 | K10: 25000000 | L10: 25000000 | M10: 25000000 | N10: 25000000 | O10: 25000000 | P10: 25000000 | Q10: 25000000 | R10: 25000000 | S10: 25000000 | T10: =+S10 -> 25000000 | U10: 25000000 | V10: 25000000 | W10: 25000000
B11: Loss in production processing (%) | D11: 0 | E11: 0 | F11: 0 | G11: 0 | H11: 0 | I11: 0 | J11: 0 | K11: 0 | L11: 0 | M11: 0 | N11: 0 | O11: 0 | P11: 0 | Q11: 0 | R11: 0 | S11: 0 | T11: 0 | U11: 0 | V11: 0 | W11: 0
B12: Sales to customers (litres per year) | C12: =+C10*(1-C11) -> 25000000 | D12: =+C12 -> 25000000 | E12: 25000000 | F12: 25000000 | G12: 25000000 | H12: 25000000 | I12: 25000000 | J12: 25000000 | K12: 25000000 | L12: 25000000 | M12: 25000000 | N12: 25000000 | O12: 25000000 | P12: 25000000 | Q12: 25000000 | R12: 25000000 | S12: 25000000 | T12: 25000000 | U12: 25000000 | V12: 25000000 | W12: 25000000
B14: ="Price of ethanol (USD/litre)" -> Price of ethanol (USD/litre) | C14: =+VLOOKUP("Ethanol",'Data Entry Needs'!$T$217:$X$219,5,FALSE) -> 0 | D14: =+C14*(100%+D15) -> 0 | E14: 0 | F14: 0 | G14: 0 | H14: 0 | I14: 0 | J14: 0 | K14: 0 | L14: 0 | M14: 0 | N14: 0 | O14: 0 | P14: 0 | Q14: 0 | R14: 0 | S14: 0 | T14: 0 | U14: 0 | V14: 0 | W14: 0
B15: ="Increase rate of price of "&'Data Entry Needs'!$E$10&" (%)" -> Increase rate of price of Please Select (%) | C15: =+'Data Entry Needs'!$O$211 -> 0 | D15: =+C15 -> 0 | E15: =+D15 -> 0 | F15: 0 | G15: 0 | H15: 0 | I15: 0 | J15: 0 | K15: 0 | L15: 0 | M15: 0 | N15: 0 | O15: 0 | P15: 0 | Q15: 0 | R15: 0 | S15: 0 | T15: 0 | U15: 0 | V15: 0 | W15: 0
B16: Income (USD per year) | C16: =+C12*C14 -> 0 | D16: 0 | E16: 0 | F16: 0 | G16: 0 | H16: 0 | I16: 0 | J16: 0 | K16: 0 | L16: 0 | M16: 0 | N16: 0 | O16: 0 | P16: 0 | Q16: 0 | R16: 0 | S16: 0 | T16: 0 | U16: 0 | V16: 0 | W16: 0
B17: Income Electricity Generation (USD/year) | C17: =COST_FS1!$I$99 ->  | D17: =C17 ->  | E17: =D17 -> 
B18: By-products revenues (USD/year) | C18: =COST_FS1!$I$100+COST_FS1!$I$101 ->  | D18: =C18 -> 
B20: Total income | D20: =+D16+D17+D18 ->  | E20: =+E16+E17+E18 -> 
A23: Capital and operating cost
B25: Operating Year | C25: Appraisal | D25: 1 | E25: 2 | F25: 3 | G25: 4 | H25: 5 | I25: 6 | J25: 7 | K25: 8 | L25: 9 | M25: 10 | N25: 11 | O25: 12 | P25: 13 | Q25: 14 | R25: 15 | S25: 16 | T25: 17 | U25: 18 | V25: 19 | W25: 20
B26: Direct capital cost (USD)
B27: Equipments | C27: =+COST_FS1!$H76 -> 19482000
B28: Building | C28: =+COST_FS1!$H77 -> 74303000 | N28: =+C28 -> 74303000
N29: =+C29 -> 0
B31: Total capital cost (USD) | C31: =C27+C28 -> 93785000 | D31: =D27+D28+D29 -> 0 | E31: 0 | F31: 0 | G31: 0 | H31: 0 | I31: 0 | J31: 0 | K31: 0 | L31: 0 | M31: 0 | N31: 74303000 | O31: 0 | P31: 0 | Q31: 0 | R31: 0 | S31: 0 | T31: 0 | U31: 0 | V31: 0 | W31: 0
B32: Capital cost (USD/MLN litres) | C32: =+C31/C9 -> 3751400
B33: Capital cost (USD/ litre) | C33: =+C31/C12 -> 3.7514
B36: Operating Year | C36: Appraisal | D36: 1 | E36: 2 | F36: 3 | G36: 4 | H36: 5 | I36: 6 | J36: 7 | K36: 8 | L36: 9 | M36: 10 | N36: 11 | O36: 12 | P36: 13 | Q36: 14 | R36: 15 | S36: 16 | T36: 17 | U36: 18 | V36: 19 | W36: 20
B37: Annual operating and maintenance cost
B38: Sub-total input cost (USD) | C38: =+C39+C40+C41 ->  | D38: =+D39+D40+D41 -> 
B39: Feedstock cost (USD/year) | C39: =+COST_FS1!$I$44 ->  | D39: =+C39 ->  | T39: =+S39 -> 
B40: Other raw material costs (USD/year) | C40: =COST_FS1!$I$53 -> 
B41: Cost of energy inputs (USD/year) | C41: =COST_FS1!$I$59 ->  | D41: =C41 ->  | E41: =D41 -> 
B42: Labour cost (USD/year) | C42: =+COST_FS1!$I$66 -> 0 | D42: =C42*(1+D62) -> 0 | E42: 0 | F42: 0 | G42: 0 | H42: 0 | I42: 0 | J42: 0 | K42: 0 | L42: 0 | M42: 0 | N42: 0 | O42: 0 | P42: 0 | Q42: 0 | R42: 0 | S42: 0 | T42: 0 | U42: 0 | V42: 0 | W42: 0
B43: Transportation cost (USD/year) | C43: =+COST_FS1!$I$72 ->  | D43: =+C43 ->  | T43: =+S43 -> 
B44: Investment cost (USD/year) | C44: =+COST_FS1!$I$80 -> 4689250 | D44: 4689250 | E44: 4689250 | F44: 4689250 | G44: 4689250 | H44: 4689250 | I44: 4689250 | J44: 4689250 | K44: 4689250 | L44: 4689250 | M44: 4689250 | N44: 4689250 | O44: 4689250 | P44: 4689250 | Q44: 4689250 | R44: 4689250 | S44: 4689250 | T44: 4689250 | U44: 4689250 | V44: 4689250 | W44: 4689250
B45: Maintenance cost (USD/year) | C45: =+COST_FS1!$I$81 -> 0 | D45: 0 | E45: 0 | F45: 0 | G45: 0 | H45: 0 | I45: 0 | J45: 0 | K45: 0 | L45: 0 | M45: 0 | N45: 0 | O45: 0 | P45: 0 | Q45: 0 | R45: 0 | S45: 0 | T45: 0 | U45: 0 | V45: 0 | W45: 0
B46: Storage cost (USD/year) | C46: =+COST_FS1!$I$88 ->  | D46: =C46 -> 
B47: Plant overhead (USD/year) | C47: =+COST_FS1!$I$92 -> 0 | D47: =+C47 -> 0 | E47: 0 | F47: 0 | G47: 0 | H47: 0 | I47: 0 | J47: 0 | K47: 0 | L47: 0 | M47: 0 | N47: 0 | O47: 0 | P47: 0 | Q47: 0 | R47: 0 | S47: 0 | T47: =+S47 -> 0 | U47: 0 | V47: 0 | W47: 0
B48: General and administrative cost (USD/year) | C48: =+COST_FS1!$I$93 -> 
B49: Total annualized cost (USD) | C49: =SUM(C39:C48) -> 
B50: Total cost per litre (USD/l) | C50: =+C49/C12 -> 
A52: Financial parameters
B53: Operating Year | C53: Appraisal | D53: 1 | E53: 2 | F53: 3 | G53: 4 | H53: 5 | I53: 6 | J53: 7 | K53: 8 | L53: 9 | M53: 10 | N53: 11 | O53: 12 | P53: 13 | Q53: 14 | R53: 15 | S53: 16 | T53: 17 | U53: 18 | V53: 19 | W53: 20
B54: Raw material cost escalation rate (%) | D54: 0 | E54: =D54 -> 0 | F54: 0 | G54: 0 | H54: 0 | I54: 0 | J54: 0 | K54: 0 | L54: 0 | M54: 0 | N54: 0 | O54: 0 | P54: 0 | Q54: 0 | R54: 0 | S54: 0 | T54: 0 | U54: =T54 -> 0 | V54: 0 | W54: 0
B55: Inflation rate (%) | D55: =+'Data Entry Needs'!$O$212 -> 0 | E55: 0 | F55: 0 | G55: 0 | H55: 0 | I55: 0 | J55: 0 | K55: 0 | L55: 0 | M55: 0 | N55: 0 | O55: 0 | P55: 0 | Q55: 0 | R55: 0 | S55: 0 | T55: 0 | U55: 0 | V55: 0 | W55: 0
B56: Discount rate (%) | C56: =+'Data Entry Needs'!$D$79 -> 0
B57: Debt ratio (%) | C57: =+'Data Entry Needs'!$D$84 -> 0
B59: Loan | D59: 1 | E59: 2 | F59: 3 | G59: 4 | H59: 5 | I59: 6 | J59: 7 | K59: 8 | L59: 9 | M59: 10 | N59: 11 | O59: 12 | P59: 13 | Q59: 14 | R59: 15 | S59: 16 | T59: 17 | U59: 18 | V59: 19 | W59: 20
B60: Loan amount (USD ) | C60: =C57*C31 -> 0
B61: Increasing rate of price of biodiesel (%) | C61: =+'Data Entry Needs'!$O$211 -> 0 | D61: =+C61 -> 0 | E61: 0 | F61: 0 | G61: 0 | H61: 0 | I61: 0 | J61: 0 | K61: 0 | L61: 0 | M61: 0 | N61: 0 | O61: 0 | P61: 0 | Q61: 0 | R61: 0 | S61: 0 | T61: =+S61 -> 0 | U61: 0 | V61: 0 | W61: 0
B62: Escalation rate of labour cost (%) | D62: 0 | E62: 0 | F62: 0 | G62: 0 | H62: 0 | I62: 0 | J62: 0 | K62: 0 | L62: 0 | M62: 0 | N62: 0 | O62: 0 | P62: 0 | Q62: 0 | R62: 0 | S62: 0 | T62: 0 | U62: 0 | V62: 0 | W62: 0
B63: Loan interest rate (%) | C63: =+'Data Entry Needs'!$D$80 -> 0
B64: Loan term (years) | C64: =+'Data Entry Needs'!$D$81 -> 0
B65: Loan payment (USD/month) | C65: =(PMT(C63/12,(12*C64),C60)) -> 
B66: Loan payment (USD/year) | D66: =IF(D53<=$C$64,$C$65*12,0) -> 0 | E66: =IF(E53<=$C$64,$C$65*12,0) -> 0 | F66: 0 | G66: 0 | H66: 0 | I66: 0 | J66: 0 | K66: 0 | L66: 0 | M66: 0 | N66: 0 | O66: 0 | P66: 0 | Q66: 0 | R66: 0 | S66: 0 | T66: 0 | U66: 0 | V66: 0 | W66: 0
B67: Total loan payment (USD) | C67: =SUM(D66:W66) -> 0
B68: Loan interest payment (USD) | C68: =C67+C60 -> 0 | D68: Average loan interest payment for project lifetime | G68: =C68/20 -> 0 | H68: USD per year
A70: Income tax analysis
B71: Operating Year | C71: Appraisal | D71: 1 | E71: 2 | F71: 3 | G71: 4 | H71: 5 | I71: 6 | J71: 7 | K71: 8 | L71: 9 | M71: 10 | N71: 11 | O71: 12 | P71: 13 | Q71: 14 | R71: 15 | S71: 16 | T71: 17 | U71: 18 | V71: 19 | W71: 20
B72: Effective income tax rate (%) | C72: 0 | D72: =C72 -> 0 | E72: 0 | F72: 0 | G72: 0 | H72: 0 | I72: 0 | J72: 0 | K72: 0 | L72: 0 | M72: 0 | N72: 0 | O72: 0 | P72: 0 | Q72: 0 | R72: 0 | S72: 0 | T72: 0 | U72: 0 | V72: 0 | W72: 0
B73: Income tax | D73: =IF(D96<0,0,D72*D96) ->  | E73: =IF(E96<0,0,E72*E96) ->  | F73: =IF(F96<0,0,F72*F96) ->  | G73: =IF(G96<0,0,G72*G96) ->  | H73: =IF(H96<0,0,H72*H96) -> 
A75: Depreciation
B76: Operating Year | C76: Appraisal | D76: 1 | E76: 2 | F76: 3 | G76: 4 | H76: 5 | I76: 6 | J76: 7 | K76: 8 | L76: 9 | M76: 10 | N76: 11 | O76: 12 | P76: 13 | Q76: 14 | R76: 15 | S76: 16 | T76: 17 | U76: 18 | V76: 19 | W76: 20
B77: Depreciation method | C77: Straight-line
B78: Total depreciation (USD) | C78: =C44 -> 4689250 | D78: =C78 -> 4689250 | E78: =D78 -> 4689250 | F78: 4689250 | G78: 4689250 | H78: 4689250 | I78: 4689250 | J78: 4689250 | K78: 4689250 | L78: 4689250 | M78: 4689250 | N78: 4689250 | O78: 4689250 | P78: 4689250 | Q78: 4689250 | R78: 4689250 | S78: 4689250 | T78: 4689250 | U78: 4689250 | V78: 4689250 | W78: 4689250
A81: Summary of this project - before tax
B82: Operating Year | C82: Appraisal | D82: 1 | E82: 2 | F82: 3 | G82: 4 | H82: 5 | I82: 6 | J82: 7 | K82: 8 | L82: 9 | M82: 10 | N82: 11 | O82: 12 | P82: 13 | Q82: 14 | R82: 15 | S82: 16 | T82: 17 | U82: 18 | V82: 19 | W82: 20
B83: Total revenue (USD) | D83: =+D20 -> 
B84: Total capital cost (USD) | C84: =-(C31-C60) -> -93785000
B85: Total operating and maintenance cost (USD) | D85: =-(D49-D44) ->  | G85: =-(G49-G44) -> 
B86: Debt payment (USD) | D86: =D66 -> 0 | E86: 0 | F86: 0 | G86: =G66 -> 0 | H86: 0 | I86: 0 | J86: 0 | K86: 0 | L86: 0 | M86: 0 | N86: 0 | O86: 0 | P86: 0 | Q86: 0 | R86: 0 | S86: 0 | T86: 0 | U86: 0 | V86: 0 | W86: 0
B87: Cash-flow - before tax (USD) | C87: =SUM(C83:C86) -> -93785000 | D87: =SUM(D83:D86) ->  | E87: =SUM(E83:E86) ->  | F87: =SUM(F83:F86) ->  | G87: =SUM(G83:G86) -> 
B88: Present cash-flow - before tax (USD) | D88: =+D87/((1+$C56)^D82) ->  | E88: =+E87/((1+$C56)^E82) ->  | F88: =+F87/((1+$C56)^F82) ->  | G88: =+G87/((1+$C56)^G82) ->  | H88: =+H87/((1+$C56)^H82) -> 
D89: =+PV($C56,D82,,-D87,) ->  | E89: =+PV($C56,E82,,-E87,) ->  | F89: =+PV($C56,F82,,-F87,) ->  | G89: =+PV($C56,G82,,-G87,) ->  | H89: =+PV($C56,H82,,-H87,) -> 
A90: Summary of this project - after tax
B91: Operating Year | C91: Appraisal | D91: 1 | E91: 2 | F91: 3 | G91: 4 | H91: 5 | I91: 6 | J91: 7 | K91: 8 | L91: 9 | M91: 10 | N91: 11 | O91: 12 | P91: 13 | Q91: 14 | R91: 15 | S91: 16 | T91: 17 | U91: 18 | V91: 19 | W91: 20
B92: Total revenue (USD) | C92: =C83 -> 0 | D92: =D83 ->  | E92: =E83 ->  | F92: =F83 ->  | G92: =G83 -> 
B93: Total operating and maintenance cost (USD) | D93: =-(D49-D44) ->  | E93: =-(E49-E44) ->  | F93: =-(F49-F44) ->  | G93: =-(G49-G44) -> 
B94: Debt payment (USD) | D94: =D66 -> 0 | E94: 0 | F94: =F66 -> 0 | G94: =G66 -> 0 | H94: 0 | I94: 0 | J94: 0 | K94: 0 | L94: 0 | M94: 0 | N94: 0 | O94: 0 | P94: 0 | Q94: 0 | R94: 0 | S94: 0 | T94: 0 | U94: 0 | V94: 0 | W94: 0
B95: Depreciation of fixed cost (USD) | D95: =-D78 -> -4689250 | E95: =-E78 -> -4689250 | F95: -4689250 | G95: =-G78 -> -4689250 | H95: -4689250 | I95: -4689250 | J95: -4689250 | K95: -4689250 | L95: -4689250 | M95: -4689250 | N95: -4689250 | O95: -4689250 | P95: -4689250 | Q95: -4689250 | R95: -4689250 | S95: -4689250 | T95: -4689250 | U95: -4689250 | V95: -4689250 | W95: -4689250
B96: Net Profit - before tax (USD) for income tax calculation | C96: =SUM(C92:C95) -> 0 | D96: =SUM(D92:D95) ->  | E96: =SUM(E92:E95) ->  | F96: =SUM(F92:F95) ->  | G96: =SUM(G92:G95) -> 
B97: Income tax | D97: =-D73 ->  | E97: =-E73 ->  | F97: =-F73 ->  | G97: =-G73 ->  | H97: =-H73 -> 
D98: =+PV($C56,D91,,-D97) ->  | E98: =+PV($C56,E91,,-E97) ->  | F98: =+PV($C56,F91,,-F97) ->  | G98: =+PV($C56,G91,,-G97) ->  | H98: =+PV($C56,H91,,-H97) -> 
B99: Cash-flow - after tax (USD) | C99: =C84 -> -93785000 | D99: =D87+D97 ->  | E99: =E87+E97 ->  | F99: =F87+F97 ->  | G99: =G87+G97 ->  | H99: =H87+H97 -> 
B100: Present cash-flow - after tax (USD) | D100: =+PV($C56,D91,,-D99) ->  | E100: =+PV($C56,E91,,-E99) ->  | F100: =+PV($C56,F91,,-F99) ->  | G100: =+PV($C56,G91,,-G99) ->  | H100: =+PV($C56,H91,,-H99) -> 
A102: Cumulative value of Net Profit
B103: Operating Year | C103: Appraisal | D103: 1 | E103: 2 | F103: 3 | G103: 4 | H103: 5 | I103: 6 | J103: 7 | K103: 8 | L103: 9 | M103: 10 | N103: 11 | O103: 12 | P103: 13 | Q103: 14 | R103: 15 | S103: 16 | T103: 17 | U103: 18 | V103: 19 | W103: 20
B104: Cumulative value of Net Profit - before tax | C104: =C87 -> -93785000 | D104: =C104+(D88) ->  | E104: =D104+(E88) ->  | F104: =E104+(F88) ->  | G104: =F104+(G88) ->  | H104: =G104+(H88) -> 
B105: Cumulative value of Net Profit - after tax | C105: =C99 -> -93785000 | D105: =C105+(D100) ->  | E105: =D105+(E100) ->  | F105: =E105+(F100) ->  | G105: =F105+(G100) ->  | H105: =G105+(H100) -> 
A107: Financial Analysis Result
B109: Net Present Value (NPV) (USD) - before tax | C109: =NPV(C56,D87:W87)+C87 -> 
B110: Internal Rate of Return (IRR) (%) - before tax | C110: =IF(C109<0,"Not feasible",IRR(C87:W87,0.000001)) -> 
B111: Payback period (years) | C111: Please see Figure of the cumulative value of Net Profit - before tax
B114: Net Present Value (NPV) (USD) - after tax | C114: =NPV(C56,D99:W99)+C99 -> 
B115: Internal Rate of Return (IRR) (%) - after tax | C115: =IF(C114<0,"Not feasible",IRR(C99:W99,0.000001)) -> 
B116: Payback period (years) | C116: Please see Figure of the cumulative value of Net Profit - after tax
B117: Total income tax payment of project lifetime | C117: =SUM(D98:W98) -> 

Sheet FA50_FS1_SC1 (hidden)
B2: =+UPPER("FINANCIAL EVALUATION OF ETHANOL PRODUCTION 50 Million Litres/year SCENARIO 1") -> FINANCIAL EVALUATION OF ETHANOL PRODUCTION 50 MILLION LITRES/YEAR SCENARIO 1
A5: ="Revenues of "&'Data Entry Needs'!$E$10&" production (Benefit)" -> Revenues of Please Select production (Benefit)
B7: Operating Year | C7: 0 | D7: 1 | E7: 2 | F7: 3 | G7: 4 | H7: 5 | I7: 6 | J7: 7 | K7: 8 | L7: 9 | M7: 10 | N7: 11 | O7: 12 | P7: 13 | Q7: 14 | R7: 15 | S7: 16 | T7: 17 | U7: 18 | V7: 19 | W7: 20
B9: Capacity (million of litres) | C9: 50 | D9: =C9 -> 50 | E9: 50 | F9: 50 | G9: 50 | H9: 50 | I9: 50 | J9: 50 | K9: 50 | L9: 50 | M9: 50 | N9: 50 | O9: 50 | P9: 50 | Q9: 50 | R9: 50 | S9: 50 | T9: 50 | U9: 50 | V9: 50 | W9: 50
B10: Annual production (litres per year) | C10: =+C9*1000000 -> 50000000 | D10: =+C10 -> 50000000 | E10: 50000000 | F10: 50000000 | G10: 50000000 | H10: 50000000 | I10: 50000000 | J10: 50000000 | K10: 50000000 | L10: 50000000 | M10: 50000000 | N10: 50000000 | O10: 50000000 | P10: 50000000 | Q10: 50000000 | R10: 50000000 | S10: 50000000 | T10: =+S10 -> 50000000 | U10: 50000000 | V10: 50000000 | W10: 50000000
B11: Loss in production processing (%) | D11: 0 | E11: 0 | F11: 0 | G11: 0 | H11: 0 | I11: 0 | J11: 0 | K11: 0 | L11: 0 | M11: 0 | N11: 0 | O11: 0 | P11: 0 | Q11: 0 | R11: 0 | S11: 0 | T11: 0 | U11: 0 | V11: 0 | W11: 0
B12: Sales to customers (litres per year) | C12: =+C10*(1-C11) -> 50000000 | D12: =+C12 -> 50000000 | E12: 50000000 | F12: 50000000 | G12: 50000000 | H12: 50000000 | I12: 50000000 | J12: 50000000 | K12: 50000000 | L12: 50000000 | M12: 50000000 | N12: 50000000 | O12: 50000000 | P12: 50000000 | Q12: 50000000 | R12: 50000000 | S12: 50000000 | T12: 50000000 | U12: 50000000 | V12: 50000000 | W12: 50000000
B14: ="Price of ethanol (USD/litre)" -> Price of ethanol (USD/litre) | C14: =+VLOOKUP("Ethanol",'Data Entry Needs'!$T$217:$X$219,5,FALSE) -> 0 | D14: =+C14*(100%+D15) -> 0 | E14: 0 | F14: 0 | G14: 0 | H14: 0 | I14: 0 | J14: 0 | K14: 0 | L14: 0 | M14: 0 | N14: 0 | O14: 0 | P14: 0 | Q14: 0 | R14: 0 | S14: 0 | T14: 0 | U14: 0 | V14: 0 | W14: 0
B15: ="Increase rate of price of "&'Data Entry Needs'!$E$10&" (%)" -> Increase rate of price of Please Select (%) | C15: =+'Data Entry Needs'!$O$211 -> 0 | D15: =+C15 -> 0 | E15: =+D15 -> 0 | F15: 0 | G15: 0 | H15: 0 | I15: 0 | J15: 0 | K15: 0 | L15: 0 | M15: 0 | N15: 0 | O15: 0 | P15: 0 | Q15: 0 | R15: 0 | S15: 0 | T15: 0 | U15: 0 | V15: 0 | W15: 0
B16: Income (USD per year) | C16: =+C12*C14 -> 0 | D16: 0 | E16: 0 | F16: 0 | G16: 0 | H16: 0 | I16: 0 | J16: 0 | K16: 0 | L16: 0 | M16: 0 | N16: 0 | O16: 0 | P16: 0 | Q16: 0 | R16: 0 | S16: 0 | T16: 0 | U16: 0 | V16: 0 | W16: 0
B17: Income Electricity Generation (USD/year) | C17: =COST_FS1!$K$99 ->  | D17: =C17 ->  | E17: =D17 -> 
B18: By-products revenues (USD/year) | C18: =COST_FS1!$K$100+COST_FS1!$K$101 ->  | D18: =C18 -> 
B20: Total income | D20: =+D16+D17+D18 ->  | E20: =+E16+E17+E18 -> 
A23: Capital and operating cost
B25: Operating Year | C25: Appraisal | D25: 1 | E25: 2 | F25: 3 | G25: 4 | H25: 5 | I25: 6 | J25: 7 | K25: 8 | L25: 9 | M25: 10 | N25: 11 | O25: 12 | P25: 13 | Q25: 14 | R25: 15 | S25: 16 | T25: 17 | U25: 18 | V25: 19 | W25: 20
B26: Direct capital cost (USD)
B27: Equipments | C27: =+COST_FS1!$J76 -> 29528000
B28: Building | C28: =+COST_FS1!$J77 -> 112622000 | N28: =+C28 -> 112622000
N29: =+C29 -> 0
B31: Total capital cost (USD) | C31: =C27+C28 -> 142150000 | D31: =D27+D28+D29 -> 0 | E31: 0 | F31: 0 | G31: 0 | H31: 0 | I31: 0 | J31: 0 | K31: 0 | L31: 0 | M31: 0 | N31: 112622000 | O31: 0 | P31: 0 | Q31: 0 | R31: 0 | S31: 0 | T31: 0 | U31: 0 | V31: 0 | W31: 0
B32: Capital cost (USD/MLN litres) | C32: =+C31/C9 -> 2843000
B33: Capital cost (USD/ litre) | C33: =+C31/C12 -> 2.843
B36: Operating Year | C36: Appraisal | D36: 1 | E36: 2 | F36: 3 | G36: 4 | H36: 5 | I36: 6 | J36: 7 | K36: 8 | L36: 9 | M36: 10 | N36: 11 | O36: 12 | P36: 13 | Q36: 14 | R36: 15 | S36: 16 | T36: 17 | U36: 18 | V36: 19 | W36: 20
B37: Annual operating and maintenance cost
B38: Sub-total input cost (USD) | C38: =+C39+C40+C41 ->  | D38: =+D39+D40+D41 -> 
B39: Feedstock cost (USD/year) | C39: =+COST_FS1!$K$42 ->  | D39: =+C39 ->  | T39: =+S39 -> 
B40: Other raw material costs (USD/year) | C40: =COST_FS1!$K$53 -> 
B41: Cost of energy inputs (USD/year) | C41: =COST_FS1!$K$59 ->  | D41: =C41 ->  | E41: =D41 -> 
B42: Labour cost (USD/year) | C42: =+COST_FS1!$K$66 -> 0 | D42: =C42*(1+D62) -> 0 | E42: 0 | F42: 0 | G42: 0 | H42: 0 | I42: 0 | J42: 0 | K42: 0 | L42: 0 | M42: 0 | N42: 0 | O42: 0 | P42: 0 | Q42: 0 | R42: 0 | S42: 0 | T42: 0 | U42: 0 | V42: 0 | W42: 0
B43: Transportation cost (USD/year) | C43: =+COST_FS1!$K$72 ->  | D43: =+C43 ->  | T43: =+S43 -> 
B44: Investment cost (USD/year) | C44: =+COST_FS1!$K$80 -> 7107500 | D44: 7107500 | E44: 7107500 | F44: 7107500 | G44: 7107500 | H44: 7107500 | I44: 7107500 | J44: 7107500 | K44: 7107500 | L44: 7107500 | M44: 7107500 | N44: 7107500 | O44: 7107500 | P44: 7107500 | Q44: 7107500 | R44: 7107500 | S44: 7107500 | T44: 7107500 | U44: 7107500 | V44: 7107500 | W44: 7107500
B45: Maintenance cost (USD/year) | C45: =+COST_FS1!$K$81 -> 0 | D45: 0 | E45: 0 | F45: 0 | G45: 0 | H45: 0 | I45: 0 | J45: 0 | K45: 0 | L45: 0 | M45: 0 | N45: 0 | O45: 0 | P45: 0 | Q45: 0 | R45: 0 | S45: 0 | T45: 0 | U45: 0 | V45: 0 | W45: 0
B46: Storage cost (USD/year) | C46: =+COST_FS1!$K$88 ->  | D46: =C46 -> 
B47: Plant overhead (USD/year) | C47: =+COST_FS1!$K$92 -> 0 | D47: =+C47 -> 0 | E47: 0 | F47: 0 | G47: 0 | H47: 0 | I47: 0 | J47: 0 | K47: 0 | L47: 0 | M47: 0 | N47: 0 | O47: 0 | P47: 0 | Q47: 0 | R47: 0 | S47: 0 | T47: =+S47 -> 0 | U47: 0 | V47: 0 | W47: 0
B48: General and administrative cost (USD/year) | C48: =+COST_FS1!$K$93 -> 
B49: Total annualized cost (USD) | C49: =SUM(C39:C48) -> 
B50: Total cost per litre (USD/l) | C50: =+C49/C12 -> 
A52: Financial parameters
B53: Operating Year | C53: Appraisal | D53: 1 | E53: 2 | F53: 3 | G53: 4 | H53: 5 | I53: 6 | J53: 7 | K53: 8 | L53: 9 | M53: 10 | N53: 11 | O53: 12 | P53: 13 | Q53: 14 | R53: 15 | S53: 16 | T53: 17 | U53: 18 | V53: 19 | W53: 20
B54: Raw material cost escalation rate (%) | D54: 0 | E54: =D54 -> 0 | F54: 0 | G54: 0 | H54: 0 | I54: 0 | J54: 0 | K54: 0 | L54: 0 | M54: 0 | N54: 0 | O54: 0 | P54: 0 | Q54: 0 | R54: 0 | S54: 0 | T54: 0 | U54: =T54 -> 0 | V54: 0 | W54: 0
B55: Inflation rate (%) | D55: =+'Data Entry Needs'!$O$212 -> 0 | E55: 0 | F55: 0 | G55: 0 | H55: 0 | I55: 0 | J55: 0 | K55: 0 | L55: 0 | M55: 0 | N55: 0 | O55: 0 | P55: 0 | Q55: 0 | R55: 0 | S55: 0 | T55: 0 | U55: 0 | V55: 0 | W55: 0
B56: Discount rate (%) | C56: =+'Data Entry Needs'!$D$79 -> 0
B57: Debt ratio (%) | C57: =+'Data Entry Needs'!$D$84 -> 0
B59: Loan | D59: 1 | E59: 2 | F59: 3 | G59: 4 | H59: 5 | I59: 6 | J59: 7 | K59: 8 | L59: 9 | M59: 10 | N59: 11 | O59: 12 | P59: 13 | Q59: 14 | R59: 15 | S59: 16 | T59: 17 | U59: 18 | V59: 19 | W59: 20
B60: Loan amount (USD ) | C60: =C57*C31 -> 0
B61: Increasing rate of price of biodiesel (%) | C61: =+'Data Entry Needs'!$O$211 -> 0 | D61: =+C61 -> 0 | E61: 0 | F61: 0 | G61: 0 | H61: 0 | I61: 0 | J61: 0 | K61: 0 | L61: 0 | M61: 0 | N61: 0 | O61: 0 | P61: 0 | Q61: 0 | R61: 0 | S61: 0 | T61: =+S61 -> 0 | U61: 0 | V61: 0 | W61: 0
B62: Escalation rate of labour cost (%) | D62: 0 | E62: 0 | F62: 0 | G62: 0 | H62: 0 | I62: 0 | J62: 0 | K62: 0 | L62: 0 | M62: 0 | N62: 0 | O62: 0 | P62: 0 | Q62: 0 | R62: 0 | S62: 0 | T62: 0 | U62: 0 | V62: 0 | W62: 0
B63: Loan interest rate (%) | C63: =+'Data Entry Needs'!$D$80 -> 0
B64: Loan term (years) | C64: =+'Data Entry Needs'!$D$81 -> 0
B65: Loan payment (USD/month) | C65: =(PMT(C63/12,(12*C64),C60)) -> 
B66: Loan payment (USD/year) | D66: =IF(D53<=$C$64,$C$65*12,0) -> 0 | E66: =IF(E53<=$C$64,$C$65*12,0) -> 0 | F66: 0 | G66: 0 | H66: 0 | I66: 0 | J66: 0 | K66: 0 | L66: 0 | M66: 0 | N66: 0 | O66: 0 | P66: 0 | Q66: 0 | R66: 0 | S66: 0 | T66: 0 | U66: 0 | V66: 0 | W66: 0
B67: Total loan payment (USD) | C67: =SUM(D66:W66) -> 0
B68: Loan interest payment (USD) | C68: =C67+C60 -> 0 | D68: Average loan interest payment for project lifetime | G68: =C68/20 -> 0 | H68: USD per year
A70: Income tax analysis
B71: Operating Year | C71: Appraisal | D71: 1 | E71: 2 | F71: 3 | G71: 4 | H71: 5 | I71: 6 | J71: 7 | K71: 8 | L71: 9 | M71: 10 | N71: 11 | O71: 12 | P71: 13 | Q71: 14 | R71: 15 | S71: 16 | T71: 17 | U71: 18 | V71: 19 | W71: 20
B72: Effective income tax rate (%) | C72: 0 | D72: =C72 -> 0 | E72: 0 | F72: 0 | G72: 0 | H72: 0 | I72: 0 | J72: 0 | K72: 0 | L72: 0 | M72: 0 | N72: 0 | O72: 0 | P72: 0 | Q72: 0 | R72: 0 | S72: 0 | T72: 0 | U72: 0 | V72: 0 | W72: 0
B73: Income tax | D73: =IF(D96<0,0,D72*D96) ->  | E73: =IF(E96<0,0,E72*E96) ->  | F73: =IF(F96<0,0,F72*F96) ->  | G73: =IF(G96<0,0,G72*G96) ->  | H73: =IF(H96<0,0,H72*H96) -> 
A75: Depreciation
B76: Operating Year | C76: Appraisal | D76: 1 | E76: 2 | F76: 3 | G76: 4 | H76: 5 | I76: 6 | J76: 7 | K76: 8 | L76: 9 | M76: 10 | N76: 11 | O76: 12 | P76: 13 | Q76: 14 | R76: 15 | S76: 16 | T76: 17 | U76: 18 | V76: 19 | W76: 20
B77: Depreciation method | C77: Straight-line
B78: Total depreciation (USD) | C78: =C44 -> 7107500 | D78: =C78 -> 7107500 | E78: =D78 -> 7107500 | F78: 7107500 | G78: 7107500 | H78: 7107500 | I78: 7107500 | J78: 7107500 | K78: 7107500 | L78: 7107500 | M78: 7107500 | N78: 7107500 | O78: 7107500 | P78: 7107500 | Q78: 7107500 | R78: 7107500 | S78: 7107500 | T78: 7107500 | U78: 7107500 | V78: 7107500 | W78: 7107500
A81: Summary of this project - before tax
B82: Operating Year | C82: Appraisal | D82: 1 | E82: 2 | F82: 3 | G82: 4 | H82: 5 | I82: 6 | J82: 7 | K82: 8 | L82: 9 | M82: 10 | N82: 11 | O82: 12 | P82: 13 | Q82: 14 | R82: 15 | S82: 16 | T82: 17 | U82: 18 | V82: 19 | W82: 20
B83: Total revenue (USD) | D83: =+D20 -> 
B84: Total capital cost (USD) | C84: =-(C31-C60) -> -142150000
B85: Total operating and maintenance cost (USD) | D85: =-(D49-D44) ->  | G85: =-(G49-G44) -> 
B86: Debt payment (USD) | D86: =D66 -> 0 | E86: 0 | F86: 0 | G86: =G66 -> 0 | H86: 0 | I86: 0 | J86: 0 | K86: 0 | L86: 0 | M86: 0 | N86: 0 | O86: 0 | P86: 0 | Q86: 0 | R86: 0 | S86: 0 | T86: 0 | U86: 0 | V86: 0 | W86: 0
B87: Cash-flow - before tax (USD) | C87: =SUM(C83:C86) -> -142150000 | D87: =SUM(D83:D86) ->  | E87: =SUM(E83:E86) ->  | F87: =SUM(F83:F86) ->  | G87: =SUM(G83:G86) -> 
B88: Present cash-flow - before tax (USD) | D88: =+D87/((1+$C56)^D82) ->  | E88: =+E87/((1+$C56)^E82) ->  | F88: =+F87/((1+$C56)^F82) ->  | G88: =+G87/((1+$C56)^G82) ->  | H88: =+H87/((1+$C56)^H82) -> 
D89: =+PV($C56,D82,,-D87,) ->  | E89: =+PV($C56,E82,,-E87,) ->  | F89: =+PV($C56,F82,,-F87,) ->  | G89: =+PV($C56,G82,,-G87,) ->  | H89: =+PV($C56,H82,,-H87,) -> 
A90: Summary of this project - after tax
B91: Operating Year | C91: Appraisal | D91: 1 | E91: 2 | F91: 3 | G91: 4 | H91: 5 | I91: 6 | J91: 7 | K91: 8 | L91: 9 | M91: 10 | N91: 11 | O91: 12 | P91: 13 | Q91: 14 | R91: 15 | S91: 16 | T91: 17 | U91: 18 | V91: 19 | W91: 20
B92: Total revenue (USD) | C92: =C83 -> 0 | D92: =D83 ->  | E92: =E83 ->  | F92: =F83 ->  | G92: =G83 -> 
B93: Total operating and maintenance cost (USD) | D93: =-(D49-D44) ->  | E93: =-(E49-E44) ->  | F93: =-(F49-F44) ->  | G93: =-(G49-G44) -> 
B94: Debt payment (USD) | D94: =D66 -> 0 | E94: 0 | F94: =F66 -> 0 | G94: =G66 -> 0 | H94: 0 | I94: 0 | J94: 0 | K94: 0 | L94: 0 | M94: 0 | N94: 0 | O94: 0 | P94: 0 | Q94: 0 | R94: 0 | S94: 0 | T94: 0 | U94: 0 | V94: 0 | W94: 0
B95: Depreciation of fixed cost (USD) | D95: =-D78 -> -7107500 | E95: =-E78 -> -7107500 | F95: -7107500 | G95: =-G78 -> -7107500 | H95: -7107500 | I95: -7107500 | J95: -7107500 | K95: -7107500 | L95: -7107500 | M95: -7107500 | N95: -7107500 | O95: -7107500 | P95: -7107500 | Q95: -7107500 | R95: -7107500 | S95: -7107500 | T95: -7107500 | U95: -7107500 | V95: -7107500 | W95: -7107500
B96: Net Profit - before tax (USD) for income tax calculation | C96: =SUM(C92:C95) -> 0 | D96: =SUM(D92:D95) ->  | E96: =SUM(E92:E95) ->  | F96: =SUM(F92:F95) ->  | G96: =SUM(G92:G95) -> 
B97: Income tax | D97: =-D73 ->  | E97: =-E73 ->  | F97: =-F73 ->  | G97: =-G73 ->  | H97: =-H73 -> 
D98: =+PV($C56,D91,,-D97) ->  | E98: =+PV($C56,E91,,-E97) ->  | F98: =+PV($C56,F91,,-F97) ->  | G98: =+PV($C56,G91,,-G97) ->  | H98: =+PV($C56,H91,,-H97) -> 
B99: Cash-flow - after tax (USD) | C99: =C84 -> -142150000 | D99: =D87+D97 ->  | E99: =E87+E97 ->  | F99: =F87+F97 ->  | G99: =G87+G97 ->  | H99: =H87+H97 -> 
B100: Present cash-flow - after tax (USD) | D100: =+PV($C56,D91,,-D99) ->  | E100: =+PV($C56,E91,,-E99) ->  | F100: =+PV($C56,F91,,-F99) ->  | G100: =+PV($C56,G91,,-G99) ->  | H100: =+PV($C56,H91,,-H99) -> 
A102: Cumulative value of Net Profit
B103: Operating Year | C103: Appraisal | D103: 1 | E103: 2 | F103: 3 | G103: 4 | H103: 5 | I103: 6 | J103: 7 | K103: 8 | L103: 9 | M103: 10 | N103: 11 | O103: 12 | P103: 13 | Q103: 14 | R103: 15 | S103: 16 | T103: 17 | U103: 18 | V103: 19 | W103: 20
B104: Cumulative value of Net Profit - before tax | C104: =C87 -> -142150000 | D104: =C104+(D88) ->  | E104: =D104+(E88) ->  | F104: =E104+(F88) ->  | G104: =F104+(G88) ->  | H104: =G104+(H88) -> 
B105: Cumulative value of Net Profit - after tax | C105: =C99 -> -142150000 | D105: =C105+(D100) ->  | E105: =D105+(E100) ->  | F105: =E105+(F100) ->  | G105: =F105+(G100) ->  | H105: =G105+(H100) -> 
A107: Financial Analysis Result
B109: Net Present Value (NPV) (USD) - before tax | C109: =NPV(C56,D87:W87)+C87 -> 
B110: Internal Rate of Return (IRR) (%) - before tax | C110: =IF(C109<0,"Not feasible",IRR(C87:W87,0.000001)) -> 
B111: Payback period (years) | C111: Please see Figure of the cumulative value of Net Profit - before tax
B114: Net Present Value (NPV) (USD) - after tax | C114: =NPV(C56,D99:W99)+C99 -> 
B115: Internal Rate of Return (IRR) (%) - after tax | C115: =IF(C114<0,"Not feasible",IRR(C99:W99,0.000001)) -> 
B116: Payback period (years) | C116: Please see Figure of the cumulative value of Net Profit - after tax
B117: Total income tax payment of project lifetime | C117: =SUM(D98:W98) -> 

Sheet FA50_FS1_SC2 (hidden)
B2: =+UPPER("FINANCIAL EVALUATION OF ETHANOL PRODUCTION 50 Million Litres/year SCENARIO 2") -> FINANCIAL EVALUATION OF ETHANOL PRODUCTION 50 MILLION LITRES/YEAR SCENARIO 2
A5: ="Revenues of "&'Data Entry Needs'!$E$10&" production (Benefit)" -> Revenues of Please Select production (Benefit)
B7: Operating Year | C7: 0 | D7: 1 | E7: 2 | F7: 3 | G7: 4 | H7: 5 | I7: 6 | J7: 7 | K7: 8 | L7: 9 | M7: 10 | N7: 11 | O7: 12 | P7: 13 | Q7: 14 | R7: 15 | S7: 16 | T7: 17 | U7: 18 | V7: 19 | W7: 20
B9: Capacity (million of litres) | C9: 50 | D9: =C9 -> 50 | E9: 50 | F9: 50 | G9: 50 | H9: 50 | I9: 50 | J9: 50 | K9: 50 | L9: 50 | M9: 50 | N9: 50 | O9: 50 | P9: 50 | Q9: 50 | R9: 50 | S9: 50 | T9: 50 | U9: 50 | V9: 50 | W9: 50
B10: Annual production (litres per year) | C10: =+C9*1000000 -> 50000000 | D10: =+C10 -> 50000000 | E10: 50000000 | F10: 50000000 | G10: 50000000 | H10: 50000000 | I10: 50000000 | J10: 50000000 | K10: 50000000 | L10: 50000000 | M10: 50000000 | N10: 50000000 | O10: 50000000 | P10: 50000000 | Q10: 50000000 | R10: 50000000 | S10: 50000000 | T10: =+S10 -> 50000000 | U10: 50000000 | V10: 50000000 | W10: 50000000
B11: Loss in production processing (%) | D11: 0 | E11: 0 | F11: 0 | G11: 0 | H11: 0 | I11: 0 | J11: 0 | K11: 0 | L11: 0 | M11: 0 | N11: 0 | O11: 0 | P11: 0 | Q11: 0 | R11: 0 | S11: 0 | T11: 0 | U11: 0 | V11: 0 | W11: 0
B12: Sales to customers (litres per year) | C12: =+C10*(1-C11) -> 50000000 | D12: =+C12 -> 50000000 | E12: 50000000 | F12: 50000000 | G12: 50000000 | H12: 50000000 | I12: 50000000 | J12: 50000000 | K12: 50000000 | L12: 50000000 | M12: 50000000 | N12: 50000000 | O12: 50000000 | P12: 50000000 | Q12: 50000000 | R12: 50000000 | S12: 50000000 | T12: 50000000 | U12: 50000000 | V12: 50000000 | W12: 50000000
B14: ="Price of ethanol (USD/litre)" -> Price of ethanol (USD/litre) | C14: =+VLOOKUP("Ethanol",'Data Entry Needs'!$T$217:$X$219,5,FALSE) -> 0 | D14: =+C14*(100%+D15) -> 0 | E14: 0 | F14: 0 | G14: 0 | H14: 0 | I14: 0 | J14: 0 | K14: 0 | L14: 0 | M14: 0 | N14: 0 | O14: 0 | P14: 0 | Q14: 0 | R14: 0 | S14: 0 | T14: 0 | U14: 0 | V14: 0 | W14: 0
B15: ="Increase rate of price of "&'Data Entry Needs'!$E$10&" (%)" -> Increase rate of price of Please Select (%) | C15: =+'Data Entry Needs'!$O$211 -> 0 | D15: =+C15 -> 0 | E15: =+D15 -> 0 | F15: 0 | G15: 0 | H15: 0 | I15: 0 | J15: 0 | K15: 0 | L15: 0 | M15: 0 | N15: 0 | O15: 0 | P15: 0 | Q15: 0 | R15: 0 | S15: 0 | T15: 0 | U15: 0 | V15: 0 | W15: 0
B16: Income (USD per year) | C16: =+C12*C14 -> 0 | D16: 0 | E16: 0 | F16: 0 | G16: 0 | H16: 0 | I16: 0 | J16: 0 | K16: 0 | L16: 0 | M16: 0 | N16: 0 | O16: 0 | P16: 0 | Q16: 0 | R16: 0 | S16: 0 | T16: 0 | U16: 0 | V16: 0 | W16: 0
B17: Income Electricity Generation (USD/year) | C17: =COST_FS1!$K$99 ->  | D17: =C17 ->  | E17: =D17 -> 
B18: By-products revenues (USD/year) | C18: =COST_FS1!$K$100+COST_FS1!$K$101 ->  | D18: =C18 -> 
B20: Total income | D20: =+D16+D17+D18 ->  | E20: =+E16+E17+E18 -> 
A23: Capital and operating cost
B25: Operating Year | C25: Appraisal | D25: 1 | E25: 2 | F25: 3 | G25: 4 | H25: 5 | I25: 6 | J25: 7 | K25: 8 | L25: 9 | M25: 10 | N25: 11 | O25: 12 | P25: 13 | Q25: 14 | R25: 15 | S25: 16 | T25: 17 | U25: 18 | V25: 19 | W25: 20
B26: Direct capital cost (USD)
B27: Equipments | C27: =+COST_FS1!$J76 -> 29528000
B28: Building | C28: =+COST_FS1!$J77 -> 112622000 | N28: =+C28 -> 112622000
N29: =+C29 -> 0
B31: Total capital cost (USD) | C31: =C27+C28 -> 142150000 | D31: =D27+D28+D29 -> 0 | E31: 0 | F31: 0 | G31: 0 | H31: 0 | I31: 0 | J31: 0 | K31: 0 | L31: 0 | M31: 0 | N31: 112622000 | O31: 0 | P31: 0 | Q31: 0 | R31: 0 | S31: 0 | T31: 0 | U31: 0 | V31: 0 | W31: 0
B32: Capital cost (USD/MLN litres) | C32: =+C31/C9 -> 2843000
B33: Capital cost (USD/ litre) | C33: =+C31/C12 -> 2.843
B36: Operating Year | C36: Appraisal | D36: 1 | E36: 2 | F36: 3 | G36: 4 | H36: 5 | I36: 6 | J36: 7 | K36: 8 | L36: 9 | M36: 10 | N36: 11 | O36: 12 | P36: 13 | Q36: 14 | R36: 15 | S36: 16 | T36: 17 | U36: 18 | V36: 19 | W36: 20
B37: Annual operating and maintenance cost
B38: Sub-total input cost (USD) | C38: =+C39+C40+C41 ->  | D38: =+D39+D40+D41 -> 
B39: Feedstock cost (USD/year) | C39: =+COST_FS1!$K$43 ->  | D39: =+C39 ->  | T39: =+S39 -> 
B40: Other raw material costs (USD/year) | C40: =COST_FS1!$K$53 -> 
B41: Cost of energy inputs (USD/year) | C41: =COST_FS1!$K$59 ->  | D41: =C41 ->  | E41: =D41 -> 
B42: Labour cost (USD/year) | C42: =+COST_FS1!$K$66 -> 0 | D42: =C42*(1+D62) -> 0 | E42: 0 | F42: 0 | G42: 0 | H42: 0 | I42: 0 | J42: 0 | K42: 0 | L42: 0 | M42: 0 | N42: 0 | O42: 0 | P42: 0 | Q42: 0 | R42: 0 | S42: 0 | T42: 0 | U42: 0 | V42: 0 | W42: 0
B43: Transportation cost (USD/year) | C43: =+COST_FS1!$K$72 ->  | D43: =+C43 ->  | T43: =+S43 -> 
B44: Investment cost (USD/year) | C44: =+COST_FS1!$K$80 -> 7107500 | D44: 7107500 | E44: 7107500 | F44: 7107500 | G44: 7107500 | H44: 7107500 | I44: 7107500 | J44: 7107500 | K44: 7107500 | L44: 7107500 | M44: 7107500 | N44: 7107500 | O44: 7107500 | P44: 7107500 | Q44: 7107500 | R44: 7107500 | S44: 7107500 | T44: 7107500 | U44: 7107500 | V44: 7107500 | W44: 7107500
B45: Maintenance cost (USD/year) | C45: =+COST_FS1!$K$81 -> 0 | D45: 0 | E45: 0 | F45: 0 | G45: 0 | H45: 0 | I45: 0 | J45: 0 | K45: 0 | L45: 0 | M45: 0 | N45: 0 | O45: 0 | P45: 0 | Q45: 0 | R45: 0 | S45: 0 | T45: 0 | U45: 0 | V45: 0 | W45: 0
B46: Storage cost (USD/year) | C46: =+COST_FS1!$K$88 ->  | D46: =C46 -> 
B47: Plant overhead (USD/year) | C47: =+COST_FS1!$K$92 -> 0 | D47: =+C47 -> 0 | E47: 0 | F47: 0 | G47: 0 | H47: 0 | I47: 0 | J47: 0 | K47: 0 | L47: 0 | M47: 0 | N47: 0 | O47: 0 | P47: 0 | Q47: 0 | R47: 0 | S47: 0 | T47: =+S47 -> 0 | U47: 0 | V47: 0 | W47: 0
B48: General and administrative cost (USD/year) | C48: =+COST_FS1!$K$93 -> 
B49: Total annualized cost (USD) | C49: =SUM(C39:C48) -> 
B50: Total cost per litre (USD/l) | C50: =+C49/C12 -> 
A52: Financial parameters
B53: Operating Year | C53: Appraisal | D53: 1 | E53: 2 | F53: 3 | G53: 4 | H53: 5 | I53: 6 | J53: 7 | K53: 8 | L53: 9 | M53: 10 | N53: 11 | O53: 12 | P53: 13 | Q53: 14 | R53: 15 | S53: 16 | T53: 17 | U53: 18 | V53: 19 | W53: 20
B54: Raw material cost escalation rate (%) | D54: 0 | E54: =D54 -> 0 | F54: 0 | G54: 0 | H54: 0 | I54: 0 | J54: 0 | K54: 0 | L54: 0 | M54: 0 | N54: 0 | O54: 0 | P54: 0 | Q54: 0 | R54: 0 | S54: 0 | T54: 0 | U54: =T54 -> 0 | V54: 0 | W54: 0
B55: Inflation rate (%) | D55: =+'Data Entry Needs'!$O$212 -> 0 | E55: 0 | F55: 0 | G55: 0 | H55: 0 | I55: 0 | J55: 0 | K55: 0 | L55: 0 | M55: 0 | N55: 0 | O55: 0 | P55: 0 | Q55: 0 | R55: 0 | S55: 0 | T55: 0 | U55: 0 | V55: 0 | W55: 0
B56: Discount rate (%) | C56: =+'Data Entry Needs'!$D$79 -> 0
B57: Debt ratio (%) | C57: =+'Data Entry Needs'!$D$84 -> 0
B59: Loan | D59: 1 | E59: 2 | F59: 3 | G59: 4 | H59: 5 | I59: 6 | J59: 7 | K59: 8 | L59: 9 | M59: 10 | N59: 11 | O59: 12 | P59: 13 | Q59: 14 | R59: 15 | S59: 16 | T59: 17 | U59: 18 | V59: 19 | W59: 20
B60: Loan amount (USD ) | C60: =C57*C31 -> 0
B61: Increasing rate of price of biodiesel (%) | C61: =+'Data Entry Needs'!$O$211 -> 0 | D61: =+C61 -> 0 | E61: 0 | F61: 0 | G61: 0 | H61: 0 | I61: 0 | J61: 0 | K61: 0 | L61: 0 | M61: 0 | N61: 0 | O61: 0 | P61: 0 | Q61: 0 | R61: 0 | S61: 0 | T61: =+S61 -> 0 | U61: 0 | V61: 0 | W61: 0
B62: Escalation rate of labour cost (%) | D62: 0 | E62: 0 | F62: 0 | G62: 0 | H62: 0 | I62: 0 | J62: 0 | K62: 0 | L62: 0 | M62: 0 | N62: 0 | O62: 0 | P62: 0 | Q62: 0 | R62: 0 | S62: 0 | T62: 0 | U62: 0 | V62: 0 | W62: 0
B63: Loan interest rate (%) | C63: =+'Data Entry Needs'!$D$80 -> 0
B64: Loan term (years) | C64: =+'Data Entry Needs'!$D$81 -> 0
B65: Loan payment (USD/month) | C65: =(PMT(C63/12,(12*C64),C60)) -> 
B66: Loan payment (USD/year) | D66: =IF(D53<=$C$64,$C$65*12,0) -> 0 | E66: =IF(E53<=$C$64,$C$65*12,0) -> 0 | F66: 0 | G66: 0 | H66: 0 | I66: 0 | J66: 0 | K66: 0 | L66: 0 | M66: 0 | N66: 0 | O66: 0 | P66: 0 | Q66: 0 | R66: 0 | S66: 0 | T66: 0 | U66: 0 | V66: 0 | W66: 0
B67: Total loan payment (USD) | C67: =SUM(D66:W66) -> 0
B68: Loan interest payment (USD) | C68: =C67+C60 -> 0 | D68: Average loan interest payment for project lifetime | G68: =C68/20 -> 0 | H68: USD per year
A70: Income tax analysis
B71: Operating Year | C71: Appraisal | D71: 1 | E71: 2 | F71: 3 | G71: 4 | H71: 5 | I71: 6 | J71: 7 | K71: 8 | L71: 9 | M71: 10 | N71: 11 | O71: 12 | P71: 13 | Q71: 14 | R71: 15 | S71: 16 | T71: 17 | U71: 18 | V71: 19 | W71: 20
B72: Effective income tax rate (%) | C72: 0 | D72: =C72 -> 0 | E72: 0 | F72: 0 | G72: 0 | H72: 0 | I72: 0 | J72: 0 | K72: 0 | L72: 0 | M72: 0 | N72: 0 | O72: 0 | P72: 0 | Q72: 0 | R72: 0 | S72: 0 | T72: 0 | U72: 0 | V72: 0 | W72: 0
B73: Income tax | D73: =IF(D96<0,0,D72*D96) ->  | E73: =IF(E96<0,0,E72*E96) ->  | F73: =IF(F96<0,0,F72*F96) ->  | G73: =IF(G96<0,0,G72*G96) ->  | H73: =IF(H96<0,0,H72*H96) -> 
A75: Depreciation
B76: Operating Year | C76: Appraisal | D76: 1 | E76: 2 | F76: 3 | G76: 4 | H76: 5 | I76: 6 | J76: 7 | K76: 8 | L76: 9 | M76: 10 | N76: 11 | O76: 12 | P76: 13 | Q76: 14 | R76: 15 | S76: 16 | T76: 17 | U76: 18 | V76: 19 | W76: 20
B77: Depreciation method | C77: Straight-line
B78: Total depreciation (USD) | C78: =C44 -> 7107500 | D78: =C78 -> 7107500 | E78: =D78 -> 7107500 | F78: 7107500 | G78: 7107500 | H78: 7107500 | I78: 7107500 | J78: 7107500 | K78: 7107500 | L78: 7107500 | M78: 7107500 | N78: 7107500 | O78: 7107500 | P78: 7107500 | Q78: 7107500 | R78: 7107500 | S78: 7107500 | T78: 7107500 | U78: 7107500 | V78: 7107500 | W78: 7107500
A81: Summary of this project - before tax
B82: Operating Year | C82: Appraisal | D82: 1 | E82: 2 | F82: 3 | G82: 4 | H82: 5 | I82: 6 | J82: 7 | K82: 8 | L82: 9 | M82: 10 | N82: 11 | O82: 12 | P82: 13 | Q82: 14 | R82: 15 | S82: 16 | T82: 17 | U82: 18 | V82: 19 | W82: 20
B83: Total revenue (USD) | D83: =+D20 -> 
B84: Total capital cost (USD) | C84: =-(C31-C60) -> -142150000
B85: Total operating and maintenance cost (USD) | D85: =-(D49-D44) ->  | G85: =-(G49-G44) -> 
B86: Debt payment (USD) | D86: =D66 -> 0 | E86: 0 | F86: 0 | G86: =G66 -> 0 | H86: 0 | I86: 0 | J86: 0 | K86: 0 | L86: 0 | M86: 0 | N86: 0 | O86: 0 | P86: 0 | Q86: 0 | R86: 0 | S86: 0 | T86: 0 | U86: 0 | V86: 0 | W86: 0
B87: Cash-flow - before tax (USD) | C87: =SUM(C83:C86) -> -142150000 | D87: =SUM(D83:D86) ->  | E87: =SUM(E83:E86) ->  | F87: =SUM(F83:F86) ->  | G87: =SUM(G83:G86) -> 
B88: Present cash-flow - before tax (USD) | D88: =+D87/((1+$C56)^D82) ->  | E88: =+E87/((1+$C56)^E82) ->  | F88: =+F87/((1+$C56)^F82) ->  | G88: =+G87/((1+$C56)^G82) ->  | H88: =+H87/((1+$C56)^H82) -> 
D89: =+PV($C56,D82,,-D87,) ->  | E89: =+PV($C56,E82,,-E87,) ->  | F89: =+PV($C56,F82,,-F87,) ->  | G89: =+PV($C56,G82,,-G87,) ->  | H89: =+PV($C56,H82,,-H87,) -> 
A90: Summary of this project - after tax
B91: Operating Year | C91: Appraisal | D91: 1 | E91: 2 | F91: 3 | G91: 4 | H91: 5 | I91: 6 | J91: 7 | K91: 8 | L91: 9 | M91: 10 | N91: 11 | O91: 12 | P91: 13 | Q91: 14 | R91: 15 | S91: 16 | T91: 17 | U91: 18 | V91: 19 | W91: 20
B92: Total revenue (USD) | C92: =C83 -> 0 | D92: =D83 ->  | E92: =E83 ->  | F92: =F83 ->  | G92: =G83 -> 
B93: Total operating and maintenance cost (USD) | D93: =-(D49-D44) ->  | E93: =-(E49-E44) ->  | F93: =-(F49-F44) ->  | G93: =-(G49-G44) -> 
B94: Debt payment (USD) | D94: =D66 -> 0 | E94: 0 | F94: =F66 -> 0 | G94: =G66 -> 0 | H94: 0 | I94: 0 | J94: 0 | K94: 0 | L94: 0 | M94: 0 | N94: 0 | O94: 0 | P94: 0 | Q94: 0 | R94: 0 | S94: 0 | T94: 0 | U94: 0 | V94: 0 | W94: 0
B95: Depreciation of fixed cost (USD) | D95: =-D78 -> -7107500 | E95: =-E78 -> -7107500 | F95: -7107500 | G95: =-G78 -> -7107500 | H95: -7107500 | I95: -7107500 | J95: -7107500 | K95: -7107500 | L95: -7107500 | M95: -7107500 | N95: -7107500 | O95: -7107500 | P95: -7107500 | Q95: -7107500 | R95: -7107500 | S95: -7107500 | T95: -7107500 | U95: -7107500 | V95: -7107500 | W95: -7107500
B96: Net Profit - before tax (USD) for income tax calculation | C96: =SUM(C92:C95) -> 0 | D96: =SUM(D92:D95) ->  | E96: =SUM(E92:E95) ->  | F96: =SUM(F92:F95) ->  | G96: =SUM(G92:G95) -> 
B97: Income tax | D97: =-D73 ->  | E97: =-E73 ->  | F97: =-F73 ->  | G97: =-G73 ->  | H97: =-H73 -> 
D98: =+PV($C56,D91,,-D97) ->  | E98: =+PV($C56,E91,,-E97) ->  | F98: =+PV($C56,F91,,-F97) ->  | G98: =+PV($C56,G91,,-G97) ->  | H98: =+PV($C56,H91,,-H97) -> 
B99: Cash-flow - after tax (USD) | C99: =C84 -> -142150000 | D99: =D87+D97 ->  | E99: =E87+E97 ->  | F99: =F87+F97 ->  | G99: =G87+G97 ->  | H99: =H87+H97 -> 
B100: Present cash-flow - after tax (USD) | D100: =+PV($C56,D91,,-D99) ->  | E100: =+PV($C56,E91,,-E99) ->  | F100: =+PV($C56,F91,,-F99) ->  | G100: =+PV($C56,G91,,-G99) ->  | H100: =+PV($C56,H91,,-H99) -> 
A102: Cumulative value of Net Profit
B103: Operating Year | C103: Appraisal | D103: 1 | E103: 2 | F103: 3 | G103: 4 | H103: 5 | I103: 6 | J103: 7 | K103: 8 | L103: 9 | M103: 10 | N103: 11 | O103: 12 | P103: 13 | Q103: 14 | R103: 15 | S103: 16 | T103: 17 | U103: 18 | V103: 19 | W103: 20
B104: Cumulative value of Net Profit - before tax | C104: =C87 -> -142150000 | D104: =C104+(D88) ->  | E104: =D104+(E88) ->  | F104: =E104+(F88) ->  | G104: =F104+(G88) ->  | H104: =G104+(H88) -> 
B105: Cumulative value of Net Profit - after tax | C105: =C99 -> -142150000 | D105: =C105+(D100) ->  | E105: =D105+(E100) ->  | F105: =E105+(F100) ->  | G105: =F105+(G100) ->  | H105: =G105+(H100) -> 
A107: Financial Analysis Result
B109: Net Present Value (NPV) (USD) - before tax | C109: =NPV(C56,D87:W87)+C87 -> 
B110: Internal Rate of Return (IRR) (%) - before tax | C110: =IF(C109<0,"Not feasible",IRR(C87:W87,0.000001)) -> 
B111: Payback period (years) | C111: Please see Figure of the cumulative value of Net Profit - before tax
B114: Net Present Value (NPV) (USD) - after tax | C114: =NPV(C56,D99:W99)+C99 -> 
B115: Internal Rate of Return (IRR) (%) - after tax | C115: =IF(C114<0,"Not feasible",IRR(C99:W99,0.000001)) -> 
B116: Payback period (years) | C116: Please see Figure of the cumulative value of Net Profit - after tax
B117: Total income tax payment of project lifetime | C117: =SUM(D98:W98) -> 

Sheet FA50_FS1_SC3 (hidden)
B2: =+UPPER("FINANCIAL EVALUATION OF ETHANOL PRODUCTION 50 Million Litres/year SCENARIO 3") -> FINANCIAL EVALUATION OF ETHANOL PRODUCTION 50 MILLION LITRES/YEAR SCENARIO 3
A5: ="Revenues of "&'Data Entry Needs'!$E$10&" production (Benefit)" -> Revenues of Please Select production (Benefit)
B7: Operating Year | C7: 0 | D7: 1 | E7: 2 | F7: 3 | G7: 4 | H7: 5 | I7: 6 | J7: 7 | K7: 8 | L7: 9 | M7: 10 | N7: 11 | O7: 12 | P7: 13 | Q7: 14 | R7: 15 | S7: 16 | T7: 17 | U7: 18 | V7: 19 | W7: 20
B9: Capacity (million of litres) | C9: 50 | D9: =C9 -> 50 | E9: 50 | F9: 50 | G9: 50 | H9: 50 | I9: 50 | J9: 50 | K9: 50 | L9: 50 | M9: 50 | N9: 50 | O9: 50 | P9: 50 | Q9: 50 | R9: 50 | S9: 50 | T9: 50 | U9: 50 | V9: 50 | W9: 50
B10: Annual production (litres per year) | C10: =+C9*1000000 -> 50000000 | D10: =+C10 -> 50000000 | E10: 50000000 | F10: 50000000 | G10: 50000000 | H10: 50000000 | I10: 50000000 | J10: 50000000 | K10: 50000000 | L10: 50000000 | M10: 50000000 | N10: 50000000 | O10: 50000000 | P10: 50000000 | Q10: 50000000 | R10: 50000000 | S10: 50000000 | T10: =+S10 -> 50000000 | U10: 50000000 | V10: 50000000 | W10: 50000000
B11: Loss in production processing (%) | D11: 0 | E11: 0 | F11: 0 | G11: 0 | H11: 0 | I11: 0 | J11: 0 | K11: 0 | L11: 0 | M11: 0 | N11: 0 | O11: 0 | P11: 0 | Q11: 0 | R11: 0 | S11: 0 | T11: 0 | U11: 0 | V11: 0 | W11: 0
B12: Sales to customers (litres per year) | C12: =+C10*(1-C11) -> 50000000 | D12: =+C12 -> 50000000 | E12: 50000000 | F12: 50000000 | G12: 50000000 | H12: 50000000 | I12: 50000000 | J12: 50000000 | K12: 50000000 | L12: 50000000 | M12: 50000000 | N12: 50000000 | O12: 50000000 | P12: 50000000 | Q12: 50000000 | R12: 50000000 | S12: 50000000 | T12: 50000000 | U12: 50000000 | V12: 50000000 | W12: 50000000
B14: ="Price of ethanol (USD/litre)" -> Price of ethanol (USD/litre) | C14: =+VLOOKUP("Ethanol",'Data Entry Needs'!$T$217:$X$219,5,FALSE) -> 0 | D14: =+C14*(100%+D15) -> 0 | E14: 0 | F14: 0 | G14: 0 | H14: 0 | I14: 0 | J14: 0 | K14: 0 | L14: 0 | M14: 0 | N14: 0 | O14: 0 | P14: 0 | Q14: 0 | R14: 0 | S14: 0 | T14: 0 | U14: 0 | V14: 0 | W14: 0
B15: ="Increase rate of price of "&'Data Entry Needs'!$E$10&" (%)" -> Increase rate of price of Please Select (%) | C15: =+'Data Entry Needs'!$O$211 -> 0 | D15: =+C15 -> 0 | E15: =+D15 -> 0 | F15: 0 | G15: 0 | H15: 0 | I15: 0 | J15: 0 | K15: 0 | L15: 0 | M15: 0 | N15: 0 | O15: 0 | P15: 0 | Q15: 0 | R15: 0 | S15: 0 | T15: 0 | U15: 0 | V15: 0 | W15: 0
B16: Income (USD per year) | C16: =+C12*C14 -> 0 | D16: 0 | E16: 0 | F16: 0 | G16: 0 | H16: 0 | I16: 0 | J16: 0 | K16: 0 | L16: 0 | M16: 0 | N16: 0 | O16: 0 | P16: 0 | Q16: 0 | R16: 0 | S16: 0 | T16: 0 | U16: 0 | V16: 0 | W16: 0
B17: Income Electricity Generation (USD/year) | C17: =COST_FS1!$K$99 ->  | D17: =C17 ->  | E17: =D17 -> 
B18: By-products revenues (USD/year) | C18: =COST_FS1!$K$100+COST_FS1!$K$101 ->  | D18: =C18 -> 
B20: Total income | D20: =+D16+D17+D18 ->  | E20: =+E16+E17+E18 -> 
A23: Capital and operating cost
B25: Operating Year | C25: Appraisal | D25: 1 | E25: 2 | F25: 3 | G25: 4 | H25: 5 | I25: 6 | J25: 7 | K25: 8 | L25: 9 | M25: 10 | N25: 11 | O25: 12 | P25: 13 | Q25: 14 | R25: 15 | S25: 16 | T25: 17 | U25: 18 | V25: 19 | W25: 20
B26: Direct capital cost (USD)
B27: Equipments | C27: =+COST_FS1!$J76 -> 29528000
B28: Building | C28: =+COST_FS1!$J77 -> 112622000 | N28: =+C28 -> 112622000
N29: =+C29 -> 0
B31: Total capital cost (USD) | C31: =C27+C28 -> 142150000 | D31: =D27+D28+D29 -> 0 | E31: 0 | F31: 0 | G31: 0 | H31: 0 | I31: 0 | J31: 0 | K31: 0 | L31: 0 | M31: 0 | N31: 112622000 | O31: 0 | P31: 0 | Q31: 0 | R31: 0 | S31: 0 | T31: 0 | U31: 0 | V31: 0 | W31: 0
B32: Capital cost (USD/MLN litres) | C32: =+C31/C9 -> 2843000
B33: Capital cost (USD/ litre) | C33: =+C31/C12 -> 2.843
B36: Operating Year | C36: Appraisal | D36: 1 | E36: 2 | F36: 3 | G36: 4 | H36: 5 | I36: 6 | J36: 7 | K36: 8 | L36: 9 | M36: 10 | N36: 11 | O36: 12 | P36: 13 | Q36: 14 | R36: 15 | S36: 16 | T36: 17 | U36: 18 | V36: 19 | W36: 20
B37: Annual operating and maintenance cost
B38: Sub-total input cost (USD) | C38: =+C39+C40+C41 ->  | D38: =+D39+D40+D41 -> 
B39: Feedstock cost (USD/year) | C39: =+COST_FS1!$K$44 ->  | D39: =+C39 ->  | T39: =+S39 -> 
B40: Other raw material costs (USD/year) | C40: =COST_FS1!$K$53 -> 
B41: Cost of energy inputs (USD/year) | C41: =COST_FS1!$K$59 ->  | D41: =C41 ->  | E41: =D41 -> 
B42: Labour cost (USD/year) | C42: =+COST_FS1!$K$66 -> 0 | D42: =C42*(1+D62) -> 0 | E42: 0 | F42: 0 | G42: 0 | H42: 0 | I42: 0 | J42: 0 | K42: 0 | L42: 0 | M42: 0 | N42: 0 | O42: 0 | P42: 0 | Q42: 0 | R42: 0 | S42: 0 | T42: 0 | U42: 0 | V42: 0 | W42: 0
B43: Transportation cost (USD/year) | C43: =+COST_FS1!$K$72 ->  | D43: =+C43 ->  | T43: =+S43 -> 
B44: Investment cost (USD/year) | C44: =+COST_FS1!$K$80 -> 7107500 | D44: 7107500 | E44: 7107500 | F44: 7107500 | G44: 7107500 | H44: 7107500 | I44: 7107500 | J44: 7107500 | K44: 7107500 | L44: 7107500 | M44: 7107500 | N44: 7107500 | O44: 7107500 | P44: 7107500 | Q44: 7107500 | R44: 7107500 | S44: 7107500 | T44: 7107500 | U44: 7107500 | V44: 7107500 | W44: 7107500
B45: Maintenance cost (USD/year) | C45: =+COST_FS1!$K$81 -> 0 | D45: 0 | E45: 0 | F45: 0 | G45: 0 | H45: 0 | I45: 0 | J45: 0 | K45: 0 | L45: 0 | M45: 0 | N45: 0 | O45: 0 | P45: 0 | Q45: 0 | R45: 0 | S45: 0 | T45: 0 | U45: 0 | V45: 0 | W45: 0
B46: Storage cost (USD/year) | C46: =+COST_FS1!$K$88 ->  | D46: =C46 -> 
B47: Plant overhead (USD/year) | C47: =+COST_FS1!$K$92 -> 0 | D47: =+C47 -> 0 | E47: 0 | F47: 0 | G47: 0 | H47: 0 | I47: 0 | J47: 0 | K47: 0 | L47: 0 | M47: 0 | N47: 0 | O47: 0 | P47: 0 | Q47: 0 | R47: 0 | S47: 0 | T47: =+S47 -> 0 | U47: 0 | V47: 0 | W47: 0
B48: General and administrative cost (USD/year) | C48: =+COST_FS1!$K$93 -> 
B49: Total annualized cost (USD) | C49: =SUM(C39:C48) -> 
B50: Total cost per litre (USD/l) | C50: =+C49/C12 -> 
A52: Financial parameters
B53: Operating Year | C53: Appraisal | D53: 1 | E53: 2 | F53: 3 | G53: 4 | H53: 5 | I53: 6 | J53: 7 | K53: 8 | L53: 9 | M53: 10 | N53: 11 | O53: 12 | P53: 13 | Q53: 14 | R53: 15 | S53: 16 | T53: 17 | U53: 18 | V53: 19 | W53: 20
B54: Raw material cost escalation rate (%) | D54: 0 | E54: =D54 -> 0 | F54: 0 | G54: 0 | H54: 0 | I54: 0 | J54: 0 | K54: 0 | L54: 0 | M54: 0 | N54: 0 | O54: 0 | P54: 0 | Q54: 0 | R54: 0 | S54: 0 | T54: 0 | U54: =T54 -> 0 | V54: 0 | W54: 0
B55: Inflation rate (%) | D55: =+'Data Entry Needs'!$O$212 -> 0 | E55: 0 | F55: 0 | G55: 0 | H55: 0 | I55: 0 | J55: 0 | K55: 0 | L55: 0 | M55: 0 | N55: 0 | O55: 0 | P55: 0 | Q55: 0 | R55: 0 | S55: 0 | T55: 0 | U55: 0 | V55: 0 | W55: 0
B56: Discount rate (%) | C56: =+'Data Entry Needs'!$D$79 -> 0
B57: Debt ratio (%) | C57: =+'Data Entry Needs'!$D$84 -> 0
B59: Loan | D59: 1 | E59: 2 | F59: 3 | G59: 4 | H59: 5 | I59: 6 | J59: 7 | K59: 8 | L59: 9 | M59: 10 | N59: 11 | O59: 12 | P59: 13 | Q59: 14 | R59: 15 | S59: 16 | T59: 17 | U59: 18 | V59: 19 | W59: 20
B60: Loan amount (USD ) | C60: =C57*C31 -> 0
B61: Increasing rate of price of biodiesel (%) | C61: =+'Data Entry Needs'!$O$211 -> 0 | D61: =+C61 -> 0 | E61: 0 | F61: 0 | G61: 0 | H61: 0 | I61: 0 | J61: 0 | K61: 0 | L61: 0 | M61: 0 | N61: 0 | O61: 0 | P61: 0 | Q61: 0 | R61: 0 | S61: 0 | T61: =+S61 -> 0 | U61: 0 | V61: 0 | W61: 0
B62: Escalation rate of labour cost (%) | D62: 0 | E62: 0 | F62: 0 | G62: 0 | H62: 0 | I62: 0 | J62: 0 | K62: 0 | L62: 0 | M62: 0 | N62: 0 | O62: 0 | P62: 0 | Q62: 0 | R62: 0 | S62: 0 | T62: 0 | U62: 0 | V62: 0 | W62: 0
B63: Loan interest rate (%) | C63: =+'Data Entry Needs'!$D$80 -> 0
B64: Loan term (years) | C64: =+'Data Entry Needs'!$D$81 -> 0
B65: Loan payment (USD/month) | C65: =(PMT(C63/12,(12*C64),C60)) -> 
B66: Loan payment (USD/year) | D66: =IF(D53<=$C$64,$C$65*12,0) -> 0 | E66: =IF(E53<=$C$64,$C$65*12,0) -> 0 | F66: 0 | G66: 0 | H66: 0 | I66: 0 | J66: 0 | K66: 0 | L66: 0 | M66: 0 | N66: 0 | O66: 0 | P66: 0 | Q66: 0 | R66: 0 | S66: 0 | T66: 0 | U66: 0 | V66: 0 | W66: 0
B67: Total loan payment (USD) | C67: =SUM(D66:W66) -> 0
B68: Loan interest payment (USD) | C68: =C67+C60 -> 0 | D68: Average loan interest payment for project lifetime | G68: =C68/20 -> 0 | H68: USD per year
A70: Income tax analysis
B71: Operating Year | C71: Appraisal | D71: 1 | E71: 2 | F71: 3 | G71: 4 | H71: 5 | I71: 6 | J71: 7 | K71: 8 | L71: 9 | M71: 10 | N71: 11 | O71: 12 | P71: 13 | Q71: 14 | R71: 15 | S71: 16 | T71: 17 | U71: 18 | V71: 19 | W71: 20
B72: Effective income tax rate (%) | C72: 0 | D72: =C72 -> 0 | E72: 0 | F72: 0 | G72: 0 | H72: 0 | I72: 0 | J72: 0 | K72: 0 | L72: 0 | M72: 0 | N72: 0 | O72: 0 | P72: 0 | Q72: 0 | R72: 0 | S72: 0 | T72: 0 | U72: 0 | V72: 0 | W72: 0
B73: Income tax | D73: =IF(D96<0,0,D72*D96) ->  | E73: =IF(E96<0,0,E72*E96) ->  | F73: =IF(F96<0,0,F72*F96) ->  | G73: =IF(G96<0,0,G72*G96) ->  | H73: =IF(H96<0,0,H72*H96) -> 
A75: Depreciation
B76: Operating Year | C76: Appraisal | D76: 1 | E76: 2 | F76: 3 | G76: 4 | H76: 5 | I76: 6 | J76: 7 | K76: 8 | L76: 9 | M76: 10 | N76: 11 | O76: 12 | P76: 13 | Q76: 14 | R76: 15 | S76: 16 | T76: 17 | U76: 18 | V76: 19 | W76: 20
B77: Depreciation method | C77: Straight-line
B78: Total depreciation (USD) | C78: =C44 -> 7107500 | D78: =C78 -> 7107500 | E78: =D78 -> 7107500 | F78: 7107500 | G78: 7107500 | H78: 7107500 | I78: 7107500 | J78: 7107500 | K78: 7107500 | L78: 7107500 | M78: 7107500 | N78: 7107500 | O78: 7107500 | P78: 7107500 | Q78: 7107500 | R78: 7107500 | S78: 7107500 | T78: 7107500 | U78: 7107500 | V78: 7107500 | W78: 7107500
A81: Summary of this project - before tax
B82: Operating Year | C82: Appraisal | D82: 1 | E82: 2 | F82: 3 | G82: 4 | H82: 5 | I82: 6 | J82: 7 | K82: 8 | L82: 9 | M82: 10 | N82: 11 | O82: 12 | P82: 13 | Q82: 14 | R82: 15 | S82: 16 | T82: 17 | U82: 18 | V82: 19 | W82: 20
B83: Total revenue (USD) | D83: =+D20 -> 
B84: Total capital cost (USD) | C84: =-(C31-C60) -> -142150000
B85: Total operating and maintenance cost (USD) | D85: =-(D49-D44) ->  | G85: =-(G49-G44) -> 
B86: Debt payment (USD) | D86: =D66 -> 0 | E86: 0 | F86: 0 | G86: =G66 -> 0 | H86: 0 | I86: 0 | J86: 0 | K86: 0 | L86: 0 | M86: 0 | N86: 0 | O86: 0 | P86: 0 | Q86: 0 | R86: 0 | S86: 0 | T86: 0 | U86: 0 | V86: 0 | W86: 0
B87: Cash-flow - before tax (USD) | C87: =SUM(C83:C86) -> -142150000 | D87: =SUM(D83:D86) ->  | E87: =SUM(E83:E86) ->  | F87: =SUM(F83:F86) ->  | G87: =SUM(G83:G86) -> 
B88: Present cash-flow - before tax (USD) | D88: =+D87/((1+$C56)^D82) ->  | E88: =+E87/((1+$C56)^E82) ->  | F88: =+F87/((1+$C56)^F82) ->  | G88: =+G87/((1+$C56)^G82) ->  | H88: =+H87/((1+$C56)^H82) -> 
D89: =+PV($C56,D82,,-D87,) ->  | E89: =+PV($C56,E82,,-E87,) ->  | F89: =+PV($C56,F82,,-F87,) ->  | G89: =+PV($C56,G82,,-G87,) ->  | H89: =+PV($C56,H82,,-H87,) -> 
A90: Summary of this project - after tax
B91: Operating Year | C91: Appraisal | D91: 1 | E91: 2 | F91: 3 | G91: 4 | H91: 5 | I91: 6 | J91: 7 | K91: 8 | L91: 9 | M91: 10 | N91: 11 | O91: 12 | P91: 13 | Q91: 14 | R91: 15 | S91: 16 | T91: 17 | U91: 18 | V91: 19 | W91: 20
B92: Total revenue (USD) | C92: =C83 -> 0 | D92: =D83 ->  | E92: =E83 ->  | F92: =F83 ->  | G92: =G83 -> 
B93: Total operating and maintenance cost (USD) | D93: =-(D49-D44) ->  | E93: =-(E49-E44) ->  | F93: =-(F49-F44) ->  | G93: =-(G49-G44) -> 
B94: Debt payment (USD) | D94: =D66 -> 0 | E94: 0 | F94: =F66 -> 0 | G94: =G66 -> 0 | H94: 0 | I94: 0 | J94: 0 | K94: 0 | L94: 0 | M94: 0 | N94: 0 | O94: 0 | P94: 0 | Q94: 0 | R94: 0 | S94: 0 | T94: 0 | U94: 0 | V94: 0 | W94: 0
B95: Depreciation of fixed cost (USD) | D95: =-D78 -> -7107500 | E95: =-E78 -> -7107500 | F95: -7107500 | G95: =-G78 -> -7107500 | H95: -7107500 | I95: -7107500 | J95: -7107500 | K95: -7107500 | L95: -7107500 | M95: -7107500 | N95: -7107500 | O95: -7107500 | P95: -7107500 | Q95: -7107500 | R95: -7107500 | S95: -7107500 | T95: -7107500 | U95: -7107500 | V95: -7107500 | W95: -7107500
B96: Net Profit - before tax (USD) for income tax calculation | C96: =SUM(C92:C95) -> 0 | D96: =SUM(D92:D95) ->  | E96: =SUM(E92:E95) ->  | F96: =SUM(F92:F95) ->  | G96: =SUM(G92:G95) -> 
B97: Income tax | D97: =-D73 ->  | E97: =-E73 ->  | F97: =-F73 ->  | G97: =-G73 ->  | H97: =-H73 -> 
D98: =+PV($C56,D91,,-D97) ->  | E98: =+PV($C56,E91,,-E97) ->  | F98: =+PV($C56,F91,,-F97) ->  | G98: =+PV($C56,G91,,-G97) ->  | H98: =+PV($C56,H91,,-H97) -> 
B99: Cash-flow - after tax (USD) | C99: =C84 -> -142150000 | D99: =D87+D97 ->  | E99: =E87+E97 ->  | F99: =F87+F97 ->  | G99: =G87+G97 ->  | H99: =H87+H97 -> 
B100: Present cash-flow - after tax (USD) | D100: =+PV($C56,D91,,-D99) ->  | E100: =+PV($C56,E91,,-E99) ->  | F100: =+PV($C56,F91,,-F99) ->  | G100: =+PV($C56,G91,,-G99) ->  | H100: =+PV($C56,H91,,-H99) -> 
A102: Cumulative value of Net Profit
B103: Operating Year | C103: Appraisal | D103: 1 | E103: 2 | F103: 3 | G103: 4 | H103: 5 | I103: 6 | J103: 7 | K103: 8 | L103: 9 | M103: 10 | N103: 11 | O103: 12 | P103: 13 | Q103: 14 | R103: 15 | S103: 16 | T103: 17 | U103: 18 | V103: 19 | W103: 20
B104: Cumulative value of Net Profit - before tax | C104: =C87 -> -142150000 | D104: =C104+(D88) ->  | E104: =D104+(E88) ->  | F104: =E104+(F88) ->  | G104: =F104+(G88) ->  | H104: =G104+(H88) -> 
B105: Cumulative value of Net Profit - after tax | C105: =C99 -> -142150000 | D105: =C105+(D100) ->  | E105: =D105+(E100) ->  | F105: =E105+(F100) ->  | G105: =F105+(G100) ->  | H105: =G105+(H100) -> 
A107: Financial Analysis Result
B109: Net Present Value (NPV) (USD) - before tax | C109: =NPV(C56,D87:W87)+C87 -> 
B110: Internal Rate of Return (IRR) (%) - before tax | C110: =IF(C109<0,"Not feasible",IRR(C87:W87,0.000001)) -> 
B111: Payback period (years) | C111: Please see Figure of the cumulative value of Net Profit - before tax
B114: Net Present Value (NPV) (USD) - after tax | C114: =NPV(C56,D99:W99)+C99 -> 
B115: Internal Rate of Return (IRR) (%) - after tax | C115: =IF(C114<0,"Not feasible",IRR(C99:W99,0.000001)) -> 
B116: Payback period (years) | C116: Please see Figure of the cumulative value of Net Profit - after tax
B117: Total income tax payment of project lifetime | C117: =SUM(D98:W98) -> 

Sheet FA100_FS1_SC1 (hidden)
B2: =+UPPER("FINANCIAL EVALUATION OF ETHANOL PRODUCTION 100 Million Litres/year SCENARIO 1") -> FINANCIAL EVALUATION OF ETHANOL PRODUCTION 100 MILLION LITRES/YEAR SCENARIO 1
A5: ="Revenues of "&'Data Entry Needs'!$E$10&" production (Benefit)" -> Revenues of Please Select production (Benefit)
B7: Operating Year | C7: 0 | D7: 1 | E7: 2 | F7: 3 | G7: 4 | H7: 5 | I7: 6 | J7: 7 | K7: 8 | L7: 9 | M7: 10 | N7: 11 | O7: 12 | P7: 13 | Q7: 14 | R7: 15 | S7: 16 | T7: 17 | U7: 18 | V7: 19 | W7: 20
B9: Capacity (million of litres) | C9: 100 | D9: =C9 -> 100 | E9: 100 | F9: 100 | G9: 100 | H9: 100 | I9: 100 | J9: 100 | K9: 100 | L9: 100 | M9: 100 | N9: 100 | O9: 100 | P9: 100 | Q9: 100 | R9: 100 | S9: 100 | T9: 100 | U9: 100 | V9: 100 | W9: 100
B10: Annual production (litres per year) | C10: =+C9*1000000 -> 100000000 | D10: =+C10 -> 100000000 | E10: 100000000 | F10: 100000000 | G10: 100000000 | H10: 100000000 | I10: 100000000 | J10: 100000000 | K10: 100000000 | L10: 100000000 | M10: 100000000 | N10: 100000000 | O10: 100000000 | P10: 100000000 | Q10: 100000000 | R10: 100000000 | S10: 100000000 | T10: =+S10 -> 100000000 | U10: 100000000 | V10: 100000000 | W10: 100000000
B11: Loss in production processing (%) | D11: 0 | E11: 0 | F11: 0 | G11: 0 | H11: 0 | I11: 0 | J11: 0 | K11: 0 | L11: 0 | M11: 0 | N11: 0 | O11: 0 | P11: 0 | Q11: 0 | R11: 0 | S11: 0 | T11: 0 | U11: 0 | V11: 0 | W11: 0
B12: Sales to customers (litres per year) | C12: =+C10*(1-C11) -> 100000000 | D12: =+C12 -> 100000000 | E12: 100000000 | F12: 100000000 | G12: 100000000 | H12: 100000000 | I12: 100000000 | J12: 100000000 | K12: 100000000 | L12: 100000000 | M12: 100000000 | N12: 100000000 | O12: 100000000 | P12: 100000000 | Q12: 100000000 | R12: 100000000 | S12: 100000000 | T12: 100000000 | U12: 100000000 | V12: 100000000 | W12: 100000000
B14: ="Price of ethanol (USD/litre)" -> Price of ethanol (USD/litre) | C14: =+VLOOKUP("Ethanol",'Data Entry Needs'!$T$217:$X$219,5,FALSE) -> 0 | D14: =+C14*(100%+D15) -> 0 | E14: 0 | F14: 0 | G14: 0 | H14: 0 | I14: 0 | J14: 0 | K14: 0 | L14: 0 | M14: 0 | N14: 0 | O14: 0 | P14: 0 | Q14: 0 | R14: 0 | S14: 0 | T14: 0 | U14: 0 | V14: 0 | W14: 0
B15: ="Increase rate of price of "&'Data Entry Needs'!$E$10&" (%)" -> Increase rate of price of Please Select (%) | C15: =+'Data Entry Needs'!$O$211 -> 0 | D15: =+C15 -> 0 | E15: =+D15 -> 0 | F15: 0 | G15: 0 | H15: 0 | I15: 0 | J15: 0 | K15: 0 | L15: 0 | M15: 0 | N15: 0 | O15: 0 | P15: 0 | Q15: 0 | R15: 0 | S15: 0 | T15: 0 | U15: 0 | V15: 0 | W15: 0
B16: Income (USD per year) | C16: =+C12*C14 -> 0 | D16: 0 | E16: 0 | F16: 0 | G16: 0 | H16: 0 | I16: 0 | J16: 0 | K16: 0 | L16: 0 | M16: 0 | N16: 0 | O16: 0 | P16: 0 | Q16: 0 | R16: 0 | S16: 0 | T16: 0 | U16: 0 | V16: 0 | W16: 0
B17: Income Electricity Generation (USD/year) | C17: =COST_FS1!$M$99 ->  | D17: =C17 ->  | E17: =D17 -> 
B18: By-products revenues (USD/year) | C18: =COST_FS1!$M$100+COST_FS1!$M$101 ->  | D18: =C18 -> 
B20: Total income | D20: =+D16+D17+D18 ->  | E20: =+E16+E17+E18 -> 
A23: Capital and operating cost
B25: Operating Year | C25: Appraisal | D25: 1 | E25: 2 | F25: 3 | G25: 4 | H25: 5 | I25: 6 | J25: 7 | K25: 8 | L25: 9 | M25: 10 | N25: 11 | O25: 12 | P25: 13 | Q25: 14 | R25: 15 | S25: 16 | T25: 17 | U25: 18 | V25: 19 | W25: 20
B26: Direct capital cost (USD)
B27: Equipments | C27: =+COST_FS1!$L76 -> 44757000
B28: Building | C28: =+COST_FS1!$L77 -> 170703000 | N28: =+C28 -> 170703000
N29: =+C29 -> 0
B31: Total capital cost (USD) | C31: =C27+C28 -> 215460000 | D31: =D27+D28+D29 -> 0 | E31: 0 | F31: 0 | G31: 0 | H31: 0 | I31: 0 | J31: 0 | K31: 0 | L31: 0 | M31: 0 | N31: 170703000 | O31: 0 | P31: 0 | Q31: 0 | R31: 0 | S31: 0 | T31: 0 | U31: 0 | V31: 0 | W31: 0
B32: Capital cost (USD/MLN litres) | C32: =+C31/C9 -> 2154600
B33: Capital cost (USD/ litre) | C33: =+C31/C12 -> 2.1546
B36: Operating Year | C36: Appraisal | D36: 1 | E36: 2 | F36: 3 | G36: 4 | H36: 5 | I36: 6 | J36: 7 | K36: 8 | L36: 9 | M36: 10 | N36: 11 | O36: 12 | P36: 13 | Q36: 14 | R36: 15 | S36: 16 | T36: 17 | U36: 18 | V36: 19 | W36: 20
B37: Annual operating and maintenance cost
B38: Sub-total input cost (USD) | C38: =+C39+C40+C41 ->  | D38: =+D39+D40+D41 -> 
B39: Feedstock cost (USD/year) | C39: =+COST_FS1!$M$42 ->  | D39: =+C39 ->  | T39: =+S39 -> 
B40: Other raw material costs (USD/year) | C40: =COST_FS1!$M$53 -> 
B41: Cost of energy inputs (USD/year) | C41: =COST_FS1!$M$59 ->  | D41: =C41 ->  | E41: =D41 -> 
B42: Labour cost (USD/year) | C42: =+COST_FS1!$M$66 -> 0 | D42: =C42*(1+D62) -> 0 | E42: 0 | F42: 0 | G42: 0 | H42: 0 | I42: 0 | J42: 0 | K42: 0 | L42: 0 | M42: 0 | N42: 0 | O42: 0 | P42: 0 | Q42: 0 | R42: 0 | S42: 0 | T42: 0 | U42: 0 | V42: 0 | W42: 0
B43: Transportation cost (USD/year) | C43: =+COST_FS1!$M$72 ->  | D43: =+C43 ->  | T43: =+S43 -> 
B44: Investment cost (USD/year) | C44: =+COST_FS1!$M$80 -> 10773000 | D44: 10773000 | E44: 10773000 | F44: 10773000 | G44: 10773000 | H44: 10773000 | I44: 10773000 | J44: 10773000 | K44: 10773000 | L44: 10773000 | M44: 10773000 | N44: 10773000 | O44: 10773000 | P44: 10773000 | Q44: 10773000 | R44: 10773000 | S44: 10773000 | T44: 10773000 | U44: 10773000 | V44: 10773000 | W44: 10773000
B45: Maintenance cost (USD/year) | C45: =+COST_FS1!$M$81 -> 0 | D45: 0 | E45: 0 | F45: 0 | G45: 0 | H45: 0 | I45: 0 | J45: 0 | K45: 0 | L45: 0 | M45: 0 | N45: 0 | O45: 0 | P45: 0 | Q45: 0 | R45: 0 | S45: 0 | T45: 0 | U45: 0 | V45: 0 | W45: 0
B46: Storage cost (USD/year) | C46: =+COST_FS1!$M$88 ->  | D46: =C46 -> 
B47: Plant overhead (USD/year) | C47: =+COST_FS1!$M$92 -> 0 | D47: =+C47 -> 0 | E47: 0 | F47: 0 | G47: 0 | H47: 0 | I47: 0 | J47: 0 | K47: 0 | L47: 0 | M47: 0 | N47: 0 | O47: 0 | P47: 0 | Q47: 0 | R47: 0 | S47: 0 | T47: =+S47 -> 0 | U47: 0 | V47: 0 | W47: 0
B48: General and administrative cost (USD/year) | C48: =+COST_FS1!$M$93 -> 
B49: Total annualized cost (USD) | C49: =SUM(C39:C48) -> 
B50: Total cost per litre (USD/l) | C50: =+C49/C12 -> 
A52: Financial parameters
B53: Operating Year | C53: Appraisal | D53: 1 | E53: 2 | F53: 3 | G53: 4 | H53: 5 | I53: 6 | J53: 7 | K53: 8 | L53: 9 | M53: 10 | N53: 11 | O53: 12 | P53: 13 | Q53: 14 | R53: 15 | S53: 16 | T53: 17 | U53: 18 | V53: 19 | W53: 20
B54: Raw material cost escalation rate (%) | D54: 0 | E54: =D54 -> 0 | F54: 0 | G54: 0 | H54: 0 | I54: 0 | J54: 0 | K54: 0 | L54: 0 | M54: 0 | N54: 0 | O54: 0 | P54: 0 | Q54: 0 | R54: 0 | S54: 0 | T54: 0 | U54: =T54 -> 0 | V54: 0 | W54: 0
B55: Inflation rate (%) | D55: =+'Data Entry Needs'!$O$212 -> 0 | E55: 0 | F55: 0 | G55: 0 | H55: 0 | I55: 0 | J55: 0 | K55: 0 | L55: 0 | M55: 0 | N55: 0 | O55: 0 | P55: 0 | Q55: 0 | R55: 0 | S55: 0 | T55: 0 | U55: 0 | V55: 0 | W55: 0
B56: Discount rate (%) | C56: =+'Data Entry Needs'!$D$79 -> 0
B57: Debt ratio (%) | C57: =+'Data Entry Needs'!$D$84 -> 0
B59: Loan | D59: 1 | E59: 2 | F59: 3 | G59: 4 | H59: 5 | I59: 6 | J59: 7 | K59: 8 | L59: 9 | M59: 10 | N59: 11 | O59: 12 | P59: 13 | Q59: 14 | R59: 15 | S59: 16 | T59: 17 | U59: 18 | V59: 19 | W59: 20
B60: Loan amount (USD ) | C60: =C57*C31 -> 0
B61: Increasing rate of price of biodiesel (%) | C61: =+'Data Entry Needs'!$O$211 -> 0 | D61: =+C61 -> 0 | E61: 0 | F61: 0 | G61: 0 | H61: 0 | I61: 0 | J61: 0 | K61: 0 | L61: 0 | M61: 0 | N61: 0 | O61: 0 | P61: 0 | Q61: 0 | R61: 0 | S61: 0 | T61: =+S61 -> 0 | U61: 0 | V61: 0 | W61: 0
B62: Escalation rate of labour cost (%) | D62: 0 | E62: 0 | F62: 0 | G62: 0 | H62: 0 | I62: 0 | J62: 0 | K62: 0 | L62: 0 | M62: 0 | N62: 0 | O62: 0 | P62: 0 | Q62: 0 | R62: 0 | S62: 0 | T62: 0 | U62: 0 | V62: 0 | W62: 0
B63: Loan interest rate (%) | C63: =+'Data Entry Needs'!$D$80 -> 0
B64: Loan term (years) | C64: =+'Data Entry Needs'!$D$81 -> 0
B65: Loan payment (USD/month) | C65: =(PMT(C63/12,(12*C64),C60)) -> 
B66: Loan payment (USD/year) | D66: =IF(D53<=$C$64,$C$65*12,0) -> 0 | E66: =IF(E53<=$C$64,$C$65*12,0) -> 0 | F66: 0 | G66: 0 | H66: 0 | I66: 0 | J66: 0 | K66: 0 | L66: 0 | M66: 0 | N66: 0 | O66: 0 | P66: 0 | Q66: 0 | R66: 0 | S66: 0 | T66: 0 | U66: 0 | V66: 0 | W66: 0
B67: Total loan payment (USD) | C67: =SUM(D66:W66) -> 0
B68: Loan interest payment (USD) | C68: =C67+C60 -> 0 | D68: Average loan interest payment for project lifetime | G68: =C68/20 -> 0 | H68: USD per year
A70: Income tax analysis
B71: Operating Year | C71: Appraisal | D71: 1 | E71: 2 | F71: 3 | G71: 4 | H71: 5 | I71: 6 | J71: 7 | K71: 8 | L71: 9 | M71: 10 | N71: 11 | O71: 12 | P71: 13 | Q71: 14 | R71: 15 | S71: 16 | T71: 17 | U71: 18 | V71: 19 | W71: 20
B72: Effective income tax rate (%) | C72: 0 | D72: =C72 -> 0 | E72: 0 | F72: 0 | G72: 0 | H72: 0 | I72: 0 | J72: 0 | K72: 0 | L72: 0 | M72: 0 | N72: 0 | O72: 0 | P72: 0 | Q72: 0 | R72: 0 | S72: 0 | T72: 0 | U72: 0 | V72: 0 | W72: 0
B73: Income tax | D73: =IF(D96<0,0,D72*D96) ->  | E73: =IF(E96<0,0,E72*E96) ->  | F73: =IF(F96<0,0,F72*F96) ->  | G73: =IF(G96<0,0,G72*G96) ->  | H73: =IF(H96<0,0,H72*H96) -> 
A75: Depreciation
B76: Operating Year | C76: Appraisal | D76: 1 | E76: 2 | F76: 3 | G76: 4 | H76: 5 | I76: 6 | J76: 7 | K76: 8 | L76: 9 | M76: 10 | N76: 11 | O76: 12 | P76: 13 | Q76: 14 | R76: 15 | S76: 16 | T76: 17 | U76: 18 | V76: 19 | W76: 20
B77: Depreciation method | C77: Straight-line
B78: Total depreciation (USD) | C78: =C44 -> 10773000 | D78: =C78 -> 10773000 | E78: =D78 -> 10773000 | F78: 10773000 | G78: 10773000 | H78: 10773000 | I78: 10773000 | J78: 10773000 | K78: 10773000 | L78: 10773000 | M78: 10773000 | N78: 10773000 | O78: 10773000 | P78: 10773000 | Q78: 10773000 | R78: 10773000 | S78: 10773000 | T78: 10773000 | U78: 10773000 | V78: 10773000 | W78: 10773000
A81: Summary of this project - before tax
B82: Operating Year | C82: Appraisal | D82: 1 | E82: 2 | F82: 3 | G82: 4 | H82: 5 | I82: 6 | J82: 7 | K82: 8 | L82: 9 | M82: 10 | N82: 11 | O82: 12 | P82: 13 | Q82: 14 | R82: 15 | S82: 16 | T82: 17 | U82: 18 | V82: 19 | W82: 20
B83: Total revenue (USD) | D83: =+D20 -> 
B84: Total capital cost (USD) | C84: =-(C31-C60) -> -215460000
B85: Total operating and maintenance cost (USD) | D85: =-(D49-D44) ->  | G85: =-(G49-G44) -> 
B86: Debt payment (USD) | D86: =D66 -> 0 | E86: 0 | F86: 0 | G86: =G66 -> 0 | H86: 0 | I86: 0 | J86: 0 | K86: 0 | L86: 0 | M86: 0 | N86: 0 | O86: 0 | P86: 0 | Q86: 0 | R86: 0 | S86: 0 | T86: 0 | U86: 0 | V86: 0 | W86: 0
B87: Cash-flow - before tax (USD) | C87: =SUM(C83:C86) -> -215460000 | D87: =SUM(D83:D86) ->  | E87: =SUM(E83:E86) ->  | F87: =SUM(F83:F86) ->  | G87: =SUM(G83:G86) -> 
B88: Present cash-flow - before tax (USD) | D88: =+D87/((1+$C56)^D82) ->  | E88: =+E87/((1+$C56)^E82) ->  | F88: =+F87/((1+$C56)^F82) ->  | G88: =+G87/((1+$C56)^G82) ->  | H88: =+H87/((1+$C56)^H82) -> 
D89: =+PV($C56,D82,,-D87,) ->  | E89: =+PV($C56,E82,,-E87,) ->  | F89: =+PV($C56,F82,,-F87,) ->  | G89: =+PV($C56,G82,,-G87,) ->  | H89: =+PV($C56,H82,,-H87,) -> 
A90: Summary of this project - after tax
B91: Operating Year | C91: Appraisal | D91: 1 | E91: 2 | F91: 3 | G91: 4 | H91: 5 | I91: 6 | J91: 7 | K91: 8 | L91: 9 | M91: 10 | N91: 11 | O91: 12 | P91: 13 | Q91: 14 | R91: 15 | S91: 16 | T91: 17 | U91: 18 | V91: 19 | W91: 20
B92: Total revenue (USD) | C92: =C83 -> 0 | D92: =D83 ->  | E92: =E83 ->  | F92: =F83 ->  | G92: =G83 -> 
B93: Total operating and maintenance cost (USD) | D93: =-(D49-D44) ->  | E93: =-(E49-E44) ->  | F93: =-(F49-F44) ->  | G93: =-(G49-G44) -> 
B94: Debt payment (USD) | D94: =D66 -> 0 | E94: 0 | F94: =F66 -> 0 | G94: =G66 -> 0 | H94: 0 | I94: 0 | J94: 0 | K94: 0 | L94: 0 | M94: 0 | N94: 0 | O94: 0 | P94: 0 | Q94: 0 | R94: 0 | S94: 0 | T94: 0 | U94: 0 | V94: 0 | W94: 0
B95: Depreciation of fixed cost (USD) | D95: =-D78 -> -10773000 | E95: =-E78 -> -10773000 | F95: -10773000 | G95: =-G78 -> -10773000 | H95: -10773000 | I95: -10773000 | J95: -10773000 | K95: -10773000 | L95: -10773000 | M95: -10773000 | N95: -10773000 | O95: -10773000 | P95: -10773000 | Q95: -10773000 | R95: -10773000 | S95: -10773000 | T95: -10773000 | U95: -10773000 | V95: -10773000 | W95: -10773000
B96: Net Profit - before tax (USD) for income tax calculation | C96: =SUM(C92:C95) -> 0 | D96: =SUM(D92:D95) ->  | E96: =SUM(E92:E95) ->  | F96: =SUM(F92:F95) ->  | G96: =SUM(G92:G95) -> 
B97: Income tax | D97: =-D73 ->  | E97: =-E73 ->  | F97: =-F73 ->  | G97: =-G73 ->  | H97: =-H73 -> 
D98: =+PV($C56,D91,,-D97) ->  | E98: =+PV($C56,E91,,-E97) ->  | F98: =+PV($C56,F91,,-F97) ->  | G98: =+PV($C56,G91,,-G97) ->  | H98: =+PV($C56,H91,,-H97) -> 
B99: Cash-flow - after tax (USD) | C99: =C84 -> -215460000 | D99: =D87+D97 ->  | E99: =E87+E97 ->  | F99: =F87+F97 ->  | G99: =G87+G97 ->  | H99: =H87+H97 -> 
B100: Present cash-flow - after tax (USD) | D100: =+PV($C56,D91,,-D99) ->  | E100: =+PV($C56,E91,,-E99) ->  | F100: =+PV($C56,F91,,-F99) ->  | G100: =+PV($C56,G91,,-G99) ->  | H100: =+PV($C56,H91,,-H99) -> 
A102: Cumulative value of Net Profit
B103: Operating Year | C103: Appraisal | D103: 1 | E103: 2 | F103: 3 | G103: 4 | H103: 5 | I103: 6 | J103: 7 | K103: 8 | L103: 9 | M103: 10 | N103: 11 | O103: 12 | P103: 13 | Q103: 14 | R103: 15 | S103: 16 | T103: 17 | U103: 18 | V103: 19 | W103: 20
B104: Cumulative value of Net Profit - before tax | C104: =C87 -> -215460000 | D104: =C104+(D88) ->  | E104: =D104+(E88) ->  | F104: =E104+(F88) ->  | G104: =F104+(G88) ->  | H104: =G104+(H88) -> 
B105: Cumulative value of Net Profit - after tax | C105: =C99 -> -215460000 | D105: =C105+(D100) ->  | E105: =D105+(E100) ->  | F105: =E105+(F100) ->  | G105: =F105+(G100) ->  | H105: =G105+(H100) -> 
A107: Financial Analysis Result
B109: Net Present Value (NPV) (USD) - before tax | C109: =NPV(C56,D87:W87)+C87 -> 
B110: Internal Rate of Return (IRR) (%) - before tax | C110: =IF(C109<0,"Not feasible",IRR(C87:W87,0.000001)) -> 
B111: Payback period (years) | C111: Please see Figure of the cumulative value of Net Profit - before tax
B114: Net Present Value (NPV) (USD) - after tax | C114: =NPV(C56,D99:W99)+C99 -> 
B115: Internal Rate of Return (IRR) (%) - after tax | C115: =IF(C114<0,"Not feasible",IRR(C99:W99,0.000001)) -> 
B116: Payback period (years) | C116: Please see Figure of the cumulative value of Net Profit - after tax
B117: Total income tax payment of project lifetime | C117: =SUM(D98:W98) -> 

Sheet FA100_FS1_SC2 (hidden)
B2: =+UPPER("FINANCIAL EVALUATION OF ETHANOL PRODUCTION 100 Million Litres/year SCENARIO 2") -> FINANCIAL EVALUATION OF ETHANOL PRODUCTION 100 MILLION LITRES/YEAR SCENARIO 2
A5: ="Revenues of "&'Data Entry Needs'!$E$10&" production (Benefit)" -> Revenues of Please Select production (Benefit)
B7: Operating Year | C7: 0 | D7: 1 | E7: 2 | F7: 3 | G7: 4 | H7: 5 | I7: 6 | J7: 7 | K7: 8 | L7: 9 | M7: 10 | N7: 11 | O7: 12 | P7: 13 | Q7: 14 | R7: 15 | S7: 16 | T7: 17 | U7: 18 | V7: 19 | W7: 20
B9: Capacity (million of litres) | C9: 100 | D9: =C9 -> 100 | E9: 100 | F9: 100 | G9: 100 | H9: 100 | I9: 100 | J9: 100 | K9: 100 | L9: 100 | M9: 100 | N9: 100 | O9: 100 | P9: 100 | Q9: 100 | R9: 100 | S9: 100 | T9: 100 | U9: 100 | V9: 100 | W9: 100
B10: Annual production (litres per year) | C10: =+C9*1000000 -> 100000000 | D10: =+C10 -> 100000000 | E10: 100000000 | F10: 100000000 | G10: 100000000 | H10: 100000000 | I10: 100000000 | J10: 100000000 | K10: 100000000 | L10: 100000000 | M10: 100000000 | N10: 100000000 | O10: 100000000 | P10: 100000000 | Q10: 100000000 | R10: 100000000 | S10: 100000000 | T10: =+S10 -> 100000000 | U10: 100000000 | V10: 100000000 | W10: 100000000
B11: Loss in production processing (%) | D11: 0 | E11: 0 | F11: 0 | G11: 0 | H11: 0 | I11: 0 | J11: 0 | K11: 0 | L11: 0 | M11: 0 | N11: 0 | O11: 0 | P11: 0 | Q11: 0 | R11: 0 | S11: 0 | T11: 0 | U11: 0 | V11: 0 | W11: 0
B12: Sales to customers (litres per year) | C12: =+C10*(1-C11) -> 100000000 | D12: =+C12 -> 100000000 | E12: 100000000 | F12: 100000000 | G12: 100000000 | H12: 100000000 | I12: 100000000 | J12: 100000000 | K12: 100000000 | L12: 100000000 | M12: 100000000 | N12: 100000000 | O12: 100000000 | P12: 100000000 | Q12: 100000000 | R12: 100000000 | S12: 100000000 | T12: 100000000 | U12: 100000000 | V12: 100000000 | W12: 100000000
B14: ="Price of ethanol (USD/litre)" -> Price of ethanol (USD/litre) | C14: =+VLOOKUP("Ethanol",'Data Entry Needs'!$T$217:$X$219,5,FALSE) -> 0 | D14: =+C14*(100%+D15) -> 0 | E14: 0 | F14: 0 | G14: 0 | H14: 0 | I14: 0 | J14: 0 | K14: 0 | L14: 0 | M14: 0 | N14: 0 | O14: 0 | P14: 0 | Q14: 0 | R14: 0 | S14: 0 | T14: 0 | U14: 0 | V14: 0 | W14: 0
B15: ="Increase rate of price of "&'Data Entry Needs'!$E$10&" (%)" -> Increase rate of price of Please Select (%) | C15: =+'Data Entry Needs'!$O$211 -> 0 | D15: =+C15 -> 0 | E15: =+D15 -> 0 | F15: 0 | G15: 0 | H15: 0 | I15: 0 | J15: 0 | K15: 0 | L15: 0 | M15: 0 | N15: 0 | O15: 0 | P15: 0 | Q15: 0 | R15: 0 | S15: 0 | T15: 0 | U15: 0 | V15: 0 | W15: 0
B16: Income (USD per year) | C16: =+C12*C14 -> 0 | D16: 0 | E16: 0 | F16: 0 | G16: 0 | H16: 0 | I16: 0 | J16: 0 | K16: 0 | L16: 0 | M16: 0 | N16: 0 | O16: 0 | P16: 0 | Q16: 0 | R16: 0 | S16: 0 | T16: 0 | U16: 0 | V16: 0 | W16: 0
B17: Income Electricity Generation (USD/year) | C17: =COST_FS1!$M$99 ->  | D17: =C17 ->  | E17: =D17 -> 
B18: By-products revenues (USD/year) | C18: =COST_FS1!$M$100+COST_FS1!$M$101 ->  | D18: =C18 -> 
B20: Total income | D20: =+D16+D17+D18 ->  | E20: =+E16+E17+E18 -> 
A23: Capital and operating cost
B25: Operating Year | C25: Appraisal | D25: 1 | E25: 2 | F25: 3 | G25: 4 | H25: 5 | I25: 6 | J25: 7 | K25: 8 | L25: 9 | M25: 10 | N25: 11 | O25: 12 | P25: 13 | Q25: 14 | R25: 15 | S25: 16 | T25: 17 | U25: 18 | V25: 19 | W25: 20
B26: Direct capital cost (USD)
B27: Equipments | C27: =+COST_FS1!$L76 -> 44757000
B28: Building | C28: =+COST_FS1!$L77 -> 170703000 | N28: =+C28 -> 170703000
N29: =+C29 -> 0
B31: Total capital cost (USD) | C31: =C27+C28 -> 215460000 | D31: =D27+D28+D29 -> 0 | E31: 0 | F31: 0 | G31: 0 | H31: 0 | I31: 0 | J31: 0 | K31: 0 | L31: 0 | M31: 0 | N31: 170703000 | O31: 0 | P31: 0 | Q31: 0 | R31: 0 | S31: 0 | T31: 0 | U31: 0 | V31: 0 | W31: 0
B32: Capital cost (USD/MLN litres) | C32: =+C31/C9 -> 2154600
B33: Capital cost (USD/ litre) | C33: =+C31/C12 -> 2.1546
B36: Operating Year | C36: Appraisal | D36: 1 | E36: 2 | F36: 3 | G36: 4 | H36: 5 | I36: 6 | J36: 7 | K36: 8 | L36: 9 | M36: 10 | N36: 11 | O36: 12 | P36: 13 | Q36: 14 | R36: 15 | S36: 16 | T36: 17 | U36: 18 | V36: 19 | W36: 20
B37: Annual operating and maintenance cost
B38: Sub-total input cost (USD) | C38: =+C39+C40+C41 ->  | D38: =+D39+D40+D41 -> 
B39: Feedstock cost (USD/year) | C39: =+COST_FS1!$M$43 ->  | D39: =+C39 ->  | T39: =+S39 -> 
B40: Other raw material costs (USD/year) | C40: =COST_FS1!$M$53 -> 
B41: Cost of energy inputs (USD/year) | C41: =COST_FS1!$M$59 ->  | D41: =C41 ->  | E41: =D41 -> 
B42: Labour cost (USD/year) | C42: =+COST_FS1!$M$66 -> 0 | D42: =C42*(1+D62) -> 0 | E42: 0 | F42: 0 | G42: 0 | H42: 0 | I42: 0 | J42: 0 | K42: 0 | L42: 0 | M42: 0 | N42: 0 | O42: 0 | P42: 0 | Q42: 0 | R42: 0 | S42: 0 | T42: 0 | U42: 0 | V42: 0 | W42: 0
B43: Transportation cost (USD/year) | C43: =+COST_FS1!$M$72 ->  | D43: =+C43 ->  | T43: =+S43 -> 
B44: Investment cost (USD/year) | C44: =+COST_FS1!$M$80 -> 10773000 | D44: 10773000 | E44: 10773000 | F44: 10773000 | G44: 10773000 | H44: 10773000 | I44: 10773000 | J44: 10773000 | K44: 10773000 | L44: 10773000 | M44: 10773000 | N44: 10773000 | O44: 10773000 | P44: 10773000 | Q44: 10773000 | R44: 10773000 | S44: 10773000 | T44: 10773000 | U44: 10773000 | V44: 10773000 | W44: 10773000
B45: Maintenance cost (USD/year) | C45: =+COST_FS1!$M$81 -> 0 | D45: 0 | E45: 0 | F45: 0 | G45: 0 | H45: 0 | I45: 0 | J45: 0 | K45: 0 | L45: 0 | M45: 0 | N45: 0 | O45: 0 | P45: 0 | Q45: 0 | R45: 0 | S45: 0 | T45: 0 | U45: 0 | V45: 0 | W45: 0
B46: Storage cost (USD/year) | C46: =+COST_FS1!$M$88 ->  | D46: =C46 -> 
B47: Plant overhead (USD/year) | C47: =+COST_FS1!$M$92 -> 0 | D47: =+C47 -> 0 | E47: 0 | F47: 0 | G47: 0 | H47: 0 | I47: 0 | J47: 0 | K47: 0 | L47: 0 | M47: 0 | N47: 0 | O47: 0 | P47: 0 | Q47: 0 | R47: 0 | S47: 0 | T47: =+S47 -> 0 | U47: 0 | V47: 0 | W47: 0
B48: General and administrative cost (USD/year) | C48: =+COST_FS1!$M$93 -> 
B49: Total annualized cost (USD) | C49: =SUM(C39:C48) -> 
B50: Total cost per litre (USD/l) | C50: =+C49/C12 -> 
A52: Financial parameters
B53: Operating Year | C53: Appraisal | D53: 1 | E53: 2 | F53: 3 | G53: 4 | H53: 5 | I53: 6 | J53: 7 | K53: 8 | L53: 9 | M53: 10 | N53: 11 | O53: 12 | P53: 13 | Q53: 14 | R53: 15 | S53: 16 | T53: 17 | U53: 18 | V53: 19 | W53: 20
B54: Raw material cost escalation rate (%) | D54: 0 | E54: =D54 -> 0 | F54: 0 | G54: 0 | H54: 0 | I54: 0 | J54: 0 | K54: 0 | L54: 0 | M54: 0 | N54: 0 | O54: 0 | P54: 0 | Q54: 0 | R54: 0 | S54: 0 | T54: 0 | U54: =T54 -> 0 | V54: 0 | W54: 0
B55: Inflation rate (%) | D55: =+'Data Entry Needs'!$O$212 -> 0 | E55: 0 | F55: 0 | G55: 0 | H55: 0 | I55: 0 | J55: 0 | K55: 0 | L55: 0 | M55: 0 | N55: 0 | O55: 0 | P55: 0 | Q55: 0 | R55: 0 | S55: 0 | T55: 0 | U55: 0 | V55: 0 | W55: 0
B56: Discount rate (%) | C56: =+'Data Entry Needs'!$D$79 -> 0
B57: Debt ratio (%) | C57: =+'Data Entry Needs'!$D$84 -> 0
B59: Loan | D59: 1 | E59: 2 | F59: 3 | G59: 4 | H59: 5 | I59: 6 | J59: 7 | K59: 8 | L59: 9 | M59: 10 | N59: 11 | O59: 12 | P59: 13 | Q59: 14 | R59: 15 | S59: 16 | T59: 17 | U59: 18 | V59: 19 | W59: 20
B60: Loan amount (USD ) | C60: =C57*C31 -> 0
B61: Increasing rate of price of biodiesel (%) | C61: =+'Data Entry Needs'!$O$211 -> 0 | D61: =+C61 -> 0 | E61: 0 | F61: 0 | G61: 0 | H61: 0 | I61: 0 | J61: 0 | K61: 0 | L61: 0 | M61: 0 | N61: 0 | O61: 0 | P61: 0 | Q61: 0 | R61: 0 | S61: 0 | T61: =+S61 -> 0 | U61: 0 | V61: 0 | W61: 0
B62: Escalation rate of labour cost (%) | D62: 0 | E62: 0 | F62: 0 | G62: 0 | H62: 0 | I62: 0 | J62: 0 | K62: 0 | L62: 0 | M62: 0 | N62: 0 | O62: 0 | P62: 0 | Q62: 0 | R62: 0 | S62: 0 | T62: 0 | U62: 0 | V62: 0 | W62: 0
B63: Loan interest rate (%) | C63: =+'Data Entry Needs'!$D$80 -> 0
B64: Loan term (years) | C64: =+'Data Entry Needs'!$D$81 -> 0
B65: Loan payment (USD/month) | C65: =(PMT(C63/12,(12*C64),C60)) -> 
B66: Loan payment (USD/year) | D66: =IF(D53<=$C$64,$C$65*12,0) -> 0 | E66: =IF(E53<=$C$64,$C$65*12,0) -> 0 | F66: 0 | G66: 0 | H66: 0 | I66: 0 | J66: 0 | K66: 0 | L66: 0 | M66: 0 | N66: 0 | O66: 0 | P66: 0 | Q66: 0 | R66: 0 | S66: 0 | T66: 0 | U66: 0 | V66: 0 | W66: 0
B67: Total loan payment (USD) | C67: =SUM(D66:W66) -> 0
B68: Loan interest payment (USD) | C68: =C67+C60 -> 0 | D68: Average loan interest payment for project lifetime | G68: =C68/20 -> 0 | H68: USD per year
A70: Income tax analysis
B71: Operating Year | C71: Appraisal | D71: 1 | E71: 2 | F71: 3 | G71: 4 | H71: 5 | I71: 6 | J71: 7 | K71: 8 | L71: 9 | M71: 10 | N71: 11 | O71: 12 | P71: 13 | Q71: 14 | R71: 15 | S71: 16 | T71: 17 | U71: 18 | V71: 19 | W71: 20
B72: Effective income tax rate (%) | C72: 0 | D72: =C72 -> 0 | E72: 0 | F72: 0 | G72: 0 | H72: 0 | I72: 0 | J72: 0 | K72: 0 | L72: 0 | M72: 0 | N72: 0 | O72: 0 | P72: 0 | Q72: 0 | R72: 0 | S72: 0 | T72: 0 | U72: 0 | V72: 0 | W72: 0
B73: Income tax | D73: =IF(D96<0,0,D72*D96) ->  | E73: =IF(E96<0,0,E72*E96) ->  | F73: =IF(F96<0,0,F72*F96) ->  | G73: =IF(G96<0,0,G72*G96) ->  | H73: =IF(H96<0,0,H72*H96) -> 
A75: Depreciation
B76: Operating Year | C76: Appraisal | D76: 1 | E76: 2 | F76: 3 | G76: 4 | H76: 5 | I76: 6 | J76: 7 | K76: 8 | L76: 9 | M76: 10 | N76: 11 | O76: 12 | P76: 13 | Q76: 14 | R76: 15 | S76: 16 | T76: 17 | U76: 18 | V76: 19 | W76: 20
B77: Depreciation method | C77: Straight-line
B78: Total depreciation (USD) | C78: =C44 -> 10773000 | D78: =C78 -> 10773000 | E78: =D78 -> 10773000 | F78: 10773000 | G78: 10773000 | H78: 10773000 | I78: 10773000 | J78: 10773000 | K78: 10773000 | L78: 10773000 | M78: 10773000 | N78: 10773000 | O78: 10773000 | P78: 10773000 | Q78: 10773000 | R78: 10773000 | S78: 10773000 | T78: 10773000 | U78: 10773000 | V78: 10773000 | W78: 10773000
A81: Summary of this project - before tax
B82: Operating Year | C82: Appraisal | D82: 1 | E82: 2 | F82: 3 | G82: 4 | H82: 5 | I82: 6 | J82: 7 | K82: 8 | L82: 9 | M82: 10 | N82: 11 | O82: 12 | P82: 13 | Q82: 14 | R82: 15 | S82: 16 | T82: 17 | U82: 18 | V82: 19 | W82: 20
B83: Total revenue (USD) | D83: =+D20 -> 
B84: Total capital cost (USD) | C84: =-(C31-C60) -> -215460000
B85: Total operating and maintenance cost (USD) | D85: =-(D49-D44) ->  | G85: =-(G49-G44) -> 
B86: Debt payment (USD) | D86: =D66 -> 0 | E86: 0 | F86: 0 | G86: =G66 -> 0 | H86: 0 | I86: 0 | J86: 0 | K86: 0 | L86: 0 | M86: 0 | N86: 0 | O86: 0 | P86: 0 | Q86: 0 | R86: 0 | S86: 0 | T86: 0 | U86: 0 | V86: 0 | W86: 0
B87: Cash-flow - before tax (USD) | C87: =SUM(C83:C86) -> -215460000 | D87: =SUM(D83:D86) ->  | E87: =SUM(E83:E86) ->  | F87: =SUM(F83:F86) ->  | G87: =SUM(G83:G86) -> 
B88: Present cash-flow - before tax (USD) | D88: =+D87/((1+$C56)^D82) ->  | E88: =+E87/((1+$C56)^E82) ->  | F88: =+F87/((1+$C56)^F82) ->  | G88: =+G87/((1+$C56)^G82) ->  | H88: =+H87/((1+$C56)^H82) -> 
D89: =+PV($C56,D82,,-D87,) ->  | E89: =+PV($C56,E82,,-E87,) ->  | F89: =+PV($C56,F82,,-F87,) ->  | G89: =+PV($C56,G82,,-G87,) ->  | H89: =+PV($C56,H82,,-H87,) -> 
A90: Summary of this project - after tax
B91: Operating Year | C91: Appraisal | D91: 1 | E91: 2 | F91: 3 | G91: 4 | H91: 5 | I91: 6 | J91: 7 | K91: 8 | L91: 9 | M91: 10 | N91: 11 | O91: 12 | P91: 13 | Q91: 14 | R91: 15 | S91: 16 | T91: 17 | U91: 18 | V91: 19 | W91: 20
B92: Total revenue (USD) | C92: =C83 -> 0 | D92: =D83 ->  | E92: =E83 ->  | F92: =F83 ->  | G92: =G83 -> 
B93: Total operating and maintenance cost (USD) | D93: =-(D49-D44) ->  | E93: =-(E49-E44) ->  | F93: =-(F49-F44) ->  | G93: =-(G49-G44) -> 
B94: Debt payment (USD) | D94: =D66 -> 0 | E94: 0 | F94: =F66 -> 0 | G94: =G66 -> 0 | H94: 0 | I94: 0 | J94: 0 | K94: 0 | L94: 0 | M94: 0 | N94: 0 | O94: 0 | P94: 0 | Q94: 0 | R94: 0 | S94: 0 | T94: 0 | U94: 0 | V94: 0 | W94: 0
B95: Depreciation of fixed cost (USD) | D95: =-D78 -> -10773000 | E95: =-E78 -> -10773000 | F95: -10773000 | G95: =-G78 -> -10773000 | H95: -10773000 | I95: -10773000 | J95: -10773000 | K95: -10773000 | L95: -10773000 | M95: -10773000 | N95: -10773000 | O95: -10773000 | P95: -10773000 | Q95: -10773000 | R95: -10773000 | S95: -10773000 | T95: -10773000 | U95: -10773000 | V95: -10773000 | W95: -10773000
B96: Net Profit - before tax (USD) for income tax calculation | C96: =SUM(C92:C95) -> 0 | D96: =SUM(D92:D95) ->  | E96: =SUM(E92:E95) ->  | F96: =SUM(F92:F95) ->  | G96: =SUM(G92:G95) -> 
B97: Income tax | D97: =-D73 ->  | E97: =-E73 ->  | F97: =-F73 ->  | G97: =-G73 ->  | H97: =-H73 -> 
D98: =+PV($C56,D91,,-D97) ->  | E98: =+PV($C56,E91,,-E97) ->  | F98: =+PV($C56,F91,,-F97) ->  | G98: =+PV($C56,G91,,-G97) ->  | H98: =+PV($C56,H91,,-H97) -> 
B99: Cash-flow - after tax (USD) | C99: =C84 -> -215460000 | D99: =D87+D97 ->  | E99: =E87+E97 ->  | F99: =F87+F97 ->  | G99: =G87+G97 ->  | H99: =H87+H97 -> 
B100: Present cash-flow - after tax (USD) | D100: =+PV($C56,D91,,-D99) ->  | E100: =+PV($C56,E91,,-E99) ->  | F100: =+PV($C56,F91,,-F99) ->  | G100: =+PV($C56,G91,,-G99) ->  | H100: =+PV($C56,H91,,-H99) -> 
A102: Cumulative value of Net Profit
B103: Operating Year | C103: Appraisal | D103: 1 | E103: 2 | F103: 3 | G103: 4 | H103: 5 | I103: 6 | J103: 7 | K103: 8 | L103: 9 | M103: 10 | N103: 11 | O103: 12 | P103: 13 | Q103: 14 | R103: 15 | S103: 16 | T103: 17 | U103: 18 | V103: 19 | W103: 20
B104: Cumulative value of Net Profit - before tax | C104: =C87 -> -215460000 | D104: =C104+(D88) ->  | E104: =D104+(E88) ->  | F104: =E104+(F88) ->  | G104: =F104+(G88) ->  | H104: =G104+(H88) -> 
B105: Cumulative value of Net Profit - after tax | C105: =C99 -> -215460000 | D105: =C105+(D100) ->  | E105: =D105+(E100) ->  | F105: =E105+(F100) ->  | G105: =F105+(G100) ->  | H105: =G105+(H100) -> 
A107: Financial Analysis Result
B109: Net Present Value (NPV) (USD) - before tax | C109: =NPV(C56,D87:W87)+C87 -> 
B110: Internal Rate of Return (IRR) (%) - before tax | C110: =IF(C109<0,"Not feasible",IRR(C87:W87,0.000001)) -> 
B111: Payback period (years) | C111: Please see Figure of the cumulative value of Net Profit - before tax
B114: Net Present Value (NPV) (USD) - after tax | C114: =NPV(C56,D99:W99)+C99 -> 
B115: Internal Rate of Return (IRR) (%) - after tax | C115: =IF(C114<0,"Not feasible",IRR(C99:W99,0.000001)) -> 
B116: Payback period (years) | C116: Please see Figure of the cumulative value of Net Profit - after tax
B117: Total income tax payment of project lifetime | C117: =SUM(D98:W98) -> 

Sheet FA100_FS1_SC3 (hidden)
B2: =+UPPER("FINANCIAL EVALUATION OF ETHANOL PRODUCTION 100 Million Litres/year SCENARIO 2") -> FINANCIAL EVALUATION OF ETHANOL PRODUCTION 100 MILLION LITRES/YEAR SCENARIO 2
A5: ="Revenues of "&'Data Entry Needs'!$E$10&" production (Benefit)" -> Revenues of Please Select production (Benefit)
B7: Operating Year | C7: 0 | D7: 1 | E7: 2 | F7: 3 | G7: 4 | H7: 5 | I7: 6 | J7: 7 | K7: 8 | L7: 9 | M7: 10 | N7: 11 | O7: 12 | P7: 13 | Q7: 14 | R7: 15 | S7: 16 | T7: 17 | U7: 18 | V7: 19 | W7: 20
B9: Capacity (million of litres) | C9: 100 | D9: =C9 -> 100 | E9: 100 | F9: 100 | G9: 100 | H9: 100 | I9: 100 | J9: 100 | K9: 100 | L9: 100 | M9: 100 | N9: 100 | O9: 100 | P9: 100 | Q9: 100 | R9: 100 | S9: 100 | T9: 100 | U9: 100 | V9: 100 | W9: 100
B10: Annual production (litres per year) | C10: =+C9*1000000 -> 100000000 | D10: =+C10 -> 100000000 | E10: 100000000 | F10: 100000000 | G10: 100000000 | H10: 100000000 | I10: 100000000 | J10: 100000000 | K10: 100000000 | L10: 100000000 | M10: 100000000 | N10: 100000000 | O10: 100000000 | P10: 100000000 | Q10: 100000000 | R10: 100000000 | S10: 100000000 | T10: =+S10 -> 100000000 | U10: 100000000 | V10: 100000000 | W10: 100000000
B11: Loss in production processing (%) | D11: 0 | E11: 0 | F11: 0 | G11: 0 | H11: 0 | I11: 0 | J11: 0 | K11: 0 | L11: 0 | M11: 0 | N11: 0 | O11: 0 | P11: 0 | Q11: 0 | R11: 0 | S11: 0 | T11: 0 | U11: 0 | V11: 0 | W11: 0
B12: Sales to customers (litres per year) | C12: =+C10*(1-C11) -> 100000000 | D12: =+C12 -> 100000000 | E12: 100000000 | F12: 100000000 | G12: 100000000 | H12: 100000000 | I12: 100000000 | J12: 100000000 | K12: 100000000 | L12: 100000000 | M12: 100000000 | N12: 100000000 | O12: 100000000 | P12: 100000000 | Q12: 100000000 | R12: 100000000 | S12: 100000000 | T12: 100000000 | U12: 100000000 | V12: 100000000 | W12: 100000000
B14: ="Price of ethanol (USD/litre)" -> Price of ethanol (USD/litre) | C14: =+VLOOKUP("Ethanol",'Data Entry Needs'!$T$217:$X$219,5,FALSE) -> 0 | D14: =+C14*(100%+D15) -> 0 | E14: 0 | F14: 0 | G14: 0 | H14: 0 | I14: 0 | J14: 0 | K14: 0 | L14: 0 | M14: 0 | N14: 0 | O14: 0 | P14: 0 | Q14: 0 | R14: 0 | S14: 0 | T14: 0 | U14: 0 | V14: 0 | W14: 0
B15: ="Increase rate of price of "&'Data Entry Needs'!$E$10&" (%)" -> Increase rate of price of Please Select (%) | C15: =+'Data Entry Needs'!$O$211 -> 0 | D15: =+C15 -> 0 | E15: =+D15 -> 0 | F15: 0 | G15: 0 | H15: 0 | I15: 0 | J15: 0 | K15: 0 | L15: 0 | M15: 0 | N15: 0 | O15: 0 | P15: 0 | Q15: 0 | R15: 0 | S15: 0 | T15: 0 | U15: 0 | V15: 0 | W15: 0
B16: Income (USD per year) | C16: =+C12*C14 -> 0 | D16: 0 | E16: 0 | F16: 0 | G16: 0 | H16: 0 | I16: 0 | J16: 0 | K16: 0 | L16: 0 | M16: 0 | N16: 0 | O16: 0 | P16: 0 | Q16: 0 | R16: 0 | S16: 0 | T16: 0 | U16: 0 | V16: 0 | W16: 0
B17: Income Electricity Generation (USD/year) | C17: =COST_FS1!$M$99 ->  | D17: =C17 ->  | E17: =D17 -> 
B18: By-products revenues (USD/year) | C18: =COST_FS1!$M$100+COST_FS1!$M$101 ->  | D18: =C18 -> 
B20: Total income | D20: =+D16+D17+D18 ->  | E20: =+E16+E17+E18 -> 
A23: Capital and operating cost
B25: Operating Year | C25: Appraisal | D25: 1 | E25: 2 | F25: 3 | G25: 4 | H25: 5 | I25: 6 | J25: 7 | K25: 8 | L25: 9 | M25: 10 | N25: 11 | O25: 12 | P25: 13 | Q25: 14 | R25: 15 | S25: 16 | T25: 17 | U25: 18 | V25: 19 | W25: 20
B26: Direct capital cost (USD)
B27: Equipments | C27: =+COST_FS1!$L76 -> 44757000
B28: Building | C28: =+COST_FS1!$L77 -> 170703000 | N28: =+C28 -> 170703000
N29: =+C29 -> 0
B31: Total capital cost (USD) | C31: =C27+C28 -> 215460000 | D31: =D27+D28+D29 -> 0 | E31: 0 | F31: 0 | G31: 0 | H31: 0 | I31: 0 | J31: 0 | K31: 0 | L31: 0 | M31: 0 | N31: 170703000 | O31: 0 | P31: 0 | Q31: 0 | R31: 0 | S31: 0 | T31: 0 | U31: 0 | V31: 0 | W31: 0
B32: Capital cost (USD/MLN litres) | C32: =+C31/C9 -> 2154600
B33: Capital cost (USD/ litre) | C33: =+C31/C12 -> 2.1546
B36: Operating Year | C36: Appraisal | D36: 1 | E36: 2 | F36: 3 | G36: 4 | H36: 5 | I36: 6 | J36: 7 | K36: 8 | L36: 9 | M36: 10 | N36: 11 | O36: 12 | P36: 13 | Q36: 14 | R36: 15 | S36: 16 | T36: 17 | U36: 18 | V36: 19 | W36: 20
B37: Annual operating and maintenance cost
B38: Sub-total input cost (USD) | C38: =+C39+C40+C41 ->  | D38: =+D39+D40+D41 -> 
B39: Feedstock cost (USD/year) | C39: =+COST_FS1!$M$44 ->  | D39: =+C39 ->  | T39: =+S39 -> 
B40: Other raw material costs (USD/year) | C40: =COST_FS1!$M$53 -> 
B41: Cost of energy inputs (USD/year) | C41: =COST_FS1!$M$59 ->  | D41: =C41 ->  | E41: =D41 -> 
B42: Labour cost (USD/year) | C42: =+COST_FS1!$M$66 -> 0 | D42: =C42*(1+D62) -> 0 | E42: 0 | F42: 0 | G42: 0 | H42: 0 | I42: 0 | J42: 0 | K42: 0 | L42: 0 | M42: 0 | N42: 0 | O42: 0 | P42: 0 | Q42: 0 | R42: 0 | S42: 0 | T42: 0 | U42: 0 | V42: 0 | W42: 0
B43: Transportation cost (USD/year) | C43: =+COST_FS1!$M$72 ->  | D43: =+C43 ->  | T43: =+S43 -> 
B44: Investment cost (USD/year) | C44: =+COST_FS1!$M$80 -> 10773000 | D44: 10773000 | E44: 10773000 | F44: 10773000 | G44: 10773000 | H44: 10773000 | I44: 10773000 | J44: 10773000 | K44: 10773000 | L44: 10773000 | M44: 10773000 | N44: 10773000 | O44: 10773000 | P44: 10773000 | Q44: 10773000 | R44: 10773000 | S44: 10773000 | T44: 10773000 | U44: 10773000 | V44: 10773000 | W44: 10773000
B45: Maintenance cost (USD/year) | C45: =+COST_FS1!$M$81 -> 0 | D45: 0 | E45: 0 | F45: 0 | G45: 0 | H45: 0 | I45: 0 | J45: 0 | K45: 0 | L45: 0 | M45: 0 | N45: 0 | O45: 0 | P45: 0 | Q45: 0 | R45: 0 | S45: 0 | T45: 0 | U45: 0 | V45: 0 | W45: 0
B46: Storage cost (USD/year) | C46: =+COST_FS1!$M$88 ->  | D46: =C46 -> 
B47: Plant overhead (USD/year) | C47: =+COST_FS1!$M$92 -> 0 | D47: =+C47 -> 0 | E47: 0 | F47: 0 | G47: 0 | H47: 0 | I47: 0 | J47: 0 | K47: 0 | L47: 0 | M47: 0 | N47: 0 | O47: 0 | P47: 0 | Q47: 0 | R47: 0 | S47: 0 | T47: =+S47 -> 0 | U47: 0 | V47: 0 | W47: 0
B48: General and administrative cost (USD/year) | C48: =+COST_FS1!$M$93 -> 
B49: Total annualized cost (USD) | C49: =SUM(C39:C48) -> 
B50: Total cost per litre (USD/l) | C50: =+C49/C12 -> 
A52: Financial parameters
B53: Operating Year | C53: Appraisal | D53: 1 | E53: 2 | F53: 3 | G53: 4 | H53: 5 | I53: 6 | J53: 7 | K53: 8 | L53: 9 | M53: 10 | N53: 11 | O53: 12 | P53: 13 | Q53: 14 | R53: 15 | S53: 16 | T53: 17 | U53: 18 | V53: 19 | W53: 20
B54: Raw material cost escalation rate (%) | D54: 0 | E54: =D54 -> 0 | F54: 0 | G54: 0 | H54: 0 | I54: 0 | J54: 0 | K54: 0 | L54: 0 | M54: 0 | N54: 0 | O54: 0 | P54: 0 | Q54: 0 | R54: 0 | S54: 0 | T54: 0 | U54: =T54 -> 0 | V54: 0 | W54: 0
B55: Inflation rate (%) | D55: =+'Data Entry Needs'!$O$212 -> 0 | E55: 0 | F55: 0 | G55: 0 | H55: 0 | I55: 0 | J55: 0 | K55: 0 | L55: 0 | M55: 0 | N55: 0 | O55: 0 | P55: 0 | Q55: 0 | R55: 0 | S55: 0 | T55: 0 | U55: 0 | V55: 0 | W55: 0
B56: Discount rate (%) | C56: =+'Data Entry Needs'!$D$79 -> 0
B57: Debt ratio (%) | C57: =+'Data Entry Needs'!$D$84 -> 0
B59: Loan | D59: 1 | E59: 2 | F59: 3 | G59: 4 | H59: 5 | I59: 6 | J59: 7 | K59: 8 | L59: 9 | M59: 10 | N59: 11 | O59: 12 | P59: 13 | Q59: 14 | R59: 15 | S59: 16 | T59: 17 | U59: 18 | V59: 19 | W59: 20
B60: Loan amount (USD ) | C60: =C57*C31 -> 0
B61: Increasing rate of price of biodiesel (%) | C61: =+'Data Entry Needs'!$O$211 -> 0 | D61: =+C61 -> 0 | E61: 0 | F61: 0 | G61: 0 | H61: 0 | I61: 0 | J61: 0 | K61: 0 | L61: 0 | M61: 0 | N61: 0 | O61: 0 | P61: 0 | Q61: 0 | R61: 0 | S61: 0 | T61: =+S61 -> 0 | U61: 0 | V61: 0 | W61: 0
B62: Escalation rate of labour cost (%) | D62: 0 | E62: 0 | F62: 0 | G62: 0 | H62: 0 | I62: 0 | J62: 0 | K62: 0 | L62: 0 | M62: 0 | N62: 0 | O62: 0 | P62: 0 | Q62: 0 | R62: 0 | S62: 0 | T62: 0 | U62: 0 | V62: 0 | W62: 0
B63: Loan interest rate (%) | C63: =+'Data Entry Needs'!$D$80 -> 0
B64: Loan term (years) | C64: =+'Data Entry Needs'!$D$81 -> 0
B65: Loan payment (USD/month) | C65: =(PMT(C63/12,(12*C64),C60)) -> 
B66: Loan payment (USD/year) | D66: =IF(D53<=$C$64,$C$65*12,0) -> 0 | E66: =IF(E53<=$C$64,$C$65*12,0) -> 0 | F66: 0 | G66: 0 | H66: 0 | I66: 0 | J66: 0 | K66: 0 | L66: 0 | M66: 0 | N66: 0 | O66: 0 | P66: 0 | Q66: 0 | R66: 0 | S66: 0 | T66: 0 | U66: 0 | V66: 0 | W66: 0
B67: Total loan payment (USD) | C67: =SUM(D66:W66) -> 0
B68: Loan interest payment (USD) | C68: =C67+C60 -> 0 | D68: Average loan interest payment for project lifetime | G68: =C68/20 -> 0 | H68: USD per year
A70: Income tax analysis
B71: Operating Year | C71: Appraisal | D71: 1 | E71: 2 | F71: 3 | G71: 4 | H71: 5 | I71: 6 | J71: 7 | K71: 8 | L71: 9 | M71: 10 | N71: 11 | O71: 12 | P71: 13 | Q71: 14 | R71: 15 | S71: 16 | T71: 17 | U71: 18 | V71: 19 | W71: 20
B72: Effective income tax rate (%) | C72: 0 | D72: =C72 -> 0 | E72: 0 | F72: 0 | G72: 0 | H72: 0 | I72: 0 | J72: 0 | K72: 0 | L72: 0 | M72: 0 | N72: 0 | O72: 0 | P72: 0 | Q72: 0 | R72: 0 | S72: 0 | T72: 0 | U72: 0 | V72: 0 | W72: 0
B73: Income tax | D73: =IF(D96<0,0,D72*D96) ->  | E73: =IF(E96<0,0,E72*E96) ->  | F73: =IF(F96<0,0,F72*F96) ->  | G73: =IF(G96<0,0,G72*G96) ->  | H73: =IF(H96<0,0,H72*H96) -> 
A75: Depreciation
B76: Operating Year | C76: Appraisal | D76: 1 | E76: 2 | F76: 3 | G76: 4 | H76: 5 | I76: 6 | J76: 7 | K76: 8 | L76: 9 | M76: 10 | N76: 11 | O76: 12 | P76: 13 | Q76: 14 | R76: 15 | S76: 16 | T76: 17 | U76: 18 | V76: 19 | W76: 20
B77: Depreciation method | C77: Straight-line
B78: Total depreciation (USD) | C78: =C44 -> 10773000 | D78: =C78 -> 10773000 | E78: =D78 -> 10773000 | F78: 10773000 | G78: 10773000 | H78: 10773000 | I78: 10773000 | J78: 10773000 | K78: 10773000 | L78: 10773000 | M78: 10773000 | N78: 10773000 | O78: 10773000 | P78: 10773000 | Q78: 10773000 | R78: 10773000 | S78: 10773000 | T78: 10773000 | U78: 10773000 | V78: 10773000 | W78: 10773000
A81: Summary of this project - before tax
B82: Operating Year | C82: Appraisal | D82: 1 | E82: 2 | F82: 3 | G82: 4 | H82: 5 | I82: 6 | J82: 7 | K82: 8 | L82: 9 | M82: 10 | N82: 11 | O82: 12 | P82: 13 | Q82: 14 | R82: 15 | S82: 16 | T82: 17 | U82: 18 | V82: 19 | W82: 20
B83: Total revenue (USD) | D83: =+D20 -> 
B84: Total capital cost (USD) | C84: =-(C31-C60) -> -215460000
B85: Total operating and maintenance cost (USD) | D85: =-(D49-D44) ->  | G85: =-(G49-G44) -> 
B86: Debt payment (USD) | D86: =D66 -> 0 | E86: 0 | F86: 0 | G86: =G66 -> 0 | H86: 0 | I86: 0 | J86: 0 | K86: 0 | L86: 0 | M86: 0 | N86: 0 | O86: 0 | P86: 0 | Q86: 0 | R86: 0 | S86: 0 | T86: 0 | U86: 0 | V86: 0 | W86: 0
B87: Cash-flow - before tax (USD) | C87: =SUM(C83:C86) -> -215460000 | D87: =SUM(D83:D86) ->  | E87: =SUM(E83:E86) ->  | F87: =SUM(F83:F86) ->  | G87: =SUM(G83:G86) -> 
B88: Present cash-flow - before tax (USD) | D88: =+D87/((1+$C56)^D82) ->  | E88: =+E87/((1+$C56)^E82) ->  | F88: =+F87/((1+$C56)^F82) ->  | G88: =+G87/((1+$C56)^G82) ->  | H88: =+H87/((1+$C56)^H82) -> 
D89: =+PV($C56,D82,,-D87,) ->  | E89: =+PV($C56,E82,,-E87,) ->  | F89: =+PV($C56,F82,,-F87,) ->  | G89: =+PV($C56,G82,,-G87,) ->  | H89: =+PV($C56,H82,,-H87,) -> 
A90: Summary of this project - after tax
B91: Operating Year | C91: Appraisal | D91: 1 | E91: 2 | F91: 3 | G91: 4 | H91: 5 | I91: 6 | J91: 7 | K91: 8 | L91: 9 | M91: 10 | N91: 11 | O91: 12 | P91: 13 | Q91: 14 | R91: 15 | S91: 16 | T91: 17 | U91: 18 | V91: 19 | W91: 20
B92: Total revenue (USD) | C92: =C83 -> 0 | D92: =D83 ->  | E92: =E83 ->  | F92: =F83 ->  | G92: =G83 -> 
B93: Total operating and maintenance cost (USD) | D93: =-(D49-D44) ->  | E93: =-(E49-E44) ->  | F93: =-(F49-F44) ->  | G93: =-(G49-G44) -> 
B94: Debt payment (USD) | D94: =D66 -> 0 | E94: 0 | F94: =F66 -> 0 | G94: =G66 -> 0 | H94: 0 | I94: 0 | J94: 0 | K94: 0 | L94: 0 | M94: 0 | N94: 0 | O94: 0 | P94: 0 | Q94: 0 | R94: 0 | S94: 0 | T94: 0 | U94: 0 | V94: 0 | W94: 0
B95: Depreciation of fixed cost (USD) | D95: =-D78 -> -10773000 | E95: =-E78 -> -10773000 | F95: -10773000 | G95: =-G78 -> -10773000 | H95: -10773000 | I95: -10773000 | J95: -10773000 | K95: -10773000 | L95: -10773000 | M95: -10773000 | N95: -10773000 | O95: -10773000 | P95: -10773000 | Q95: -10773000 | R95: -10773000 | S95: -10773000 | T95: -10773000 | U95: -10773000 | V95: -10773000 | W95: -10773000
B96: Net Profit - before tax (USD) for income tax calculation | C96: =SUM(C92:C95) -> 0 | D96: =SUM(D92:D95) ->  | E96: =SUM(E92:E95) ->  | F96: =SUM(F92:F95) ->  | G96: =SUM(G92:G95) -> 
B97: Income tax | D97: =-D73 ->  | E97: =-E73 ->  | F97: =-F73 ->  | G97: =-G73 ->  | H97: =-H73 -> 
D98: =+PV($C56,D91,,-D97) ->  | E98: =+PV($C56,E91,,-E97) ->  | F98: =+PV($C56,F91,,-F97) ->  | G98: =+PV($C56,G91,,-G97) ->  | H98: =+PV($C56,H91,,-H97) -> 
B99: Cash-flow - after tax (USD) | C99: =C84 -> -215460000 | D99: =D87+D97 ->  | E99: =E87+E97 ->  | F99: =F87+F97 ->  | G99: =G87+G97 ->  | H99: =H87+H97 -> 
B100: Present cash-flow - after tax (USD) | D100: =+PV($C56,D91,,-D99) ->  | E100: =+PV($C56,E91,,-E99) ->  | F100: =+PV($C56,F91,,-F99) ->  | G100: =+PV($C56,G91,,-G99) ->  | H100: =+PV($C56,H91,,-H99) -> 
A102: Cumulative value of Net Profit
B103: Operating Year | C103: Appraisal | D103: 1 | E103: 2 | F103: 3 | G103: 4 | H103: 5 | I103: 6 | J103: 7 | K103: 8 | L103: 9 | M103: 10 | N103: 11 | O103: 12 | P103: 13 | Q103: 14 | R103: 15 | S103: 16 | T103: 17 | U103: 18 | V103: 19 | W103: 20
B104: Cumulative value of Net Profit - before tax | C104: =C87 -> -215460000 | D104: =C104+(D88) ->  | E104: =D104+(E88) ->  | F104: =E104+(F88) ->  | G104: =F104+(G88) ->  | H104: =G104+(H88) -> 
B105: Cumulative value of Net Profit - after tax | C105: =C99 -> -215460000 | D105: =C105+(D100) ->  | E105: =D105+(E100) ->  | F105: =E105+(F100) ->  | G105: =F105+(G100) ->  | H105: =G105+(H100) -> 
A107: Financial Analysis Result
B109: Net Present Value (NPV) (USD) - before tax | C109: =NPV(C56,D87:W87)+C87 -> 
B110: Internal Rate of Return (IRR) (%) - before tax | C110: =IF(C109<0,"Not feasible",IRR(C87:W87,0.000001)) -> 
B111: Payback period (years) | C111: Please see Figure of the cumulative value of Net Profit - before tax
B114: Net Present Value (NPV) (USD) - after tax | C114: =NPV(C56,D99:W99)+C99 -> 
B115: Internal Rate of Return (IRR) (%) - after tax | C115: =IF(C114<0,"Not feasible",IRR(C99:W99,0.000001)) -> 
B116: Payback period (years) | C116: Please see Figure of the cumulative value of Net Profit - after tax
B117: Total income tax payment of project lifetime | C117: =SUM(D98:W98) -> 

Sheet GHG_FS1 (hidden)
D3: =UPPER("GHG EMISSIONS FOR 2G ETHANOL PRODUCTION FROM "&'Data Entry Needs'!$E$11&"") -> GHG EMISSIONS FOR 2G ETHANOL PRODUCTION FROM
C13: Feedstock Production Emissions
D16: Step 1: Input Emissions for Crop/Residues Production
F18: ="kgCO2eq/kg "&$E$20 -> kgCO2eq/kg
F19: Own Production | G19: Outgrowers
D20: Feedstock | E20: =+'Data Entry Needs'!$E$11 -> 
E22: tCO2eq/year
E23: Scenario 1 | F23: Scenario 2 | G23: Scenario 3
E24: =+COST_FS1!$C$25 -> Description: 100% of feedstock collected on site | F24: =+COST_FS1!$F$25 -> Description: 60% of feedstock produced directly by processing plant, and 40% provided by outgrowers at market price. | G24: =+COST_FS1!$J$25 -> Description: 100% of feedstock is provided by outgrowers at market price. | I24: =COST_FS3!AC139 -> 60
D25: 5 ML | E25: =$F$20*COST_FS1!$F$42 ->  | F25: =$F$20*COST_FS1!$F$42*($I$24/100)+$G$20*COST_FS1!$F$42*(1-$I$24/100) ->  | G25: =$G$20*COST_FS1!$F$42 -> 
D26: 25 ML | E26: =$F$20*COST_FS1!$H$42 ->  | F26: =$F$20*COST_FS1!$H$42*($I$24/100)+$G$20*COST_FS1!$H$42*(1-$I$24/100) ->  | G26: =$G$20*COST_FS1!$H$42 -> 
D27: 50 ML | E27: =$F$20*COST_FS1!$J$42 ->  | F27: =$F$20*COST_FS1!$J$42*($I$24/100)+$G$20*COST_FS1!$J$42*(1-$I$24/100) ->  | G27: =$G$20*COST_FS1!$J$42 -> 
D28: 100ML | E28: =$F$20*COST_FS1!$L$42 ->  | F28: =$F$20*COST_FS1!$L$42*($I$24/100)+$G$20*COST_FS1!$L$42*(1-$I$24/100) ->  | G28: =$G$20*COST_FS1!$L$42 -> 
C32: Feedstock and Residues Transportation
D35: Step 2: Input transportation distances for residues
D37: Feedstock Transported | F37: =+'Data Entry Needs'!$E$11 ->  | I37: Residues Transported | K37: =+VLOOKUP($F$37,$T$325:$V$340,2,FALSE) -> 
D38: Mean of Transport | F38: =+VLOOKUP($F$37,$Q$325:$R$340,2,FALSE) ->  | I38: Mean of Transport | K38: =+VLOOKUP($F$37,$T$325:$V$340,3,FALSE) -> 
D41: Plants | E41: Quantity (t/year) | F41: Distance (km) | G41: tCO2eq/year | I41: Plants | J41: Quantity (t/year) | K41: Distance (km) | L41: tCO2eq/year
D42: 5 ML | E42: =+COST_FS1!$G17 ->  | F42: =+COST_FS1!$D17 -> 0 | G42: =+VLOOKUP($F$38,$Q$239:$V$248,6,FALSE)*E42*F42 ->  | I42: 5 ML | J42: =X329*1000 ->  | L42: =VLOOKUP($K$38,$Q$239:$V$248,6,FALSE)*J42*K42 -> 
D43: 25 ML | E43: =+COST_FS1!$G18 ->  | F43: =+COST_FS1!$D18 -> 0 | G43: =+VLOOKUP($F$38,$Q$239:$V$248,6,FALSE)*E43*F43 ->  | I43: 25 ML | J43: =Y329*1000 ->  | L43: =VLOOKUP($K$38,$Q$239:$V$248,6,FALSE)*J43*K43 -> 
D44: 50 ML | E44: =+COST_FS1!$G19 ->  | F44: =+COST_FS1!$D19 -> 0 | G44: =+VLOOKUP($F$38,$Q$239:$V$248,6,FALSE)*E44*F44 ->  | I44: 50 ML | J44: =Z329*1000 ->  | L44: =VLOOKUP($K$38,$Q$239:$V$248,6,FALSE)*J44*K44 -> 
D45: 100 ML | E45: =+COST_FS1!$G20 ->  | F45: =+COST_FS1!$D20 -> 0 | G45: =+VLOOKUP($F$38,$Q$239:$V$248,6,FALSE)*E45*F45 ->  | I45: 100 ML | J45: =AA329*1000 ->  | L45: =VLOOKUP($K$38,$Q$239:$V$248,6,FALSE)*J45*K45 -> 
D48: Biofuel Processing Emissions
D51: ="Annual Energy Consumption for Ethanol Production" -> Annual Energy Consumption for Ethanol Production | I51: Capacities (Million L/year)
D52: Consumption before integration with cogeneration system | G52: Unit | I52: 5 | J52: 25 | K52: 50 | L52: 100
D53: Heating (Steam) | G53: 1000 MJ/year | I53: =X338 ->  | J53: =Y338 -> 
D54: Electricity Consumption | G54: 1000 kWh/year | I54: =X339 -> 
D58: Step 3: Select an option to supply energy | I58: =+IF(NOT($D$60),"Method 1: All energy consumption(heat and electricity) of processing plant is supplied using external sources: fossil fuels, and/or electricity from central grid.","Method 2: All energy consumption(heat and electricity) of processing plant is supplied using a cogeneration system fueled using either biomass or fossil fuels") -> Method 2: All energy consumption(heat and electricity) of processing plant is supplied using a cogeneration system fueled using either biomass or fossil fuels
D60: TRUE
D63: Method 1: Energy supplied with fossil fuels
D65: Step 3.1: Select how external energy is supplied
H66: TRUE
H67: 1
F68: =+IF($F$69="USER defined",TRUE,FALSE) -> FALSE | K68: =+NOT(F68) -> TRUE
D69: Origin of Electricity Emissions | F69: Default by Country | G69: Colombia | H69: =+IF($K$68,$I$69,$K$69) -> 175 | I69: =IFERROR(VLOOKUP($G$69,'dummy database'!$A$28:$B$161,2,FALSE),"") -> 175 | J69: gCO2/kWh | K69: 200 | L69: gCO2/kWh
I71: Capacities (Million L/year)
I72: 5 | J72: 25 | K72: 50 | L72: 100
D73: =IF($K$68,"Emissions from Electricity Production in "&$G$69,"Emissions from Electricity Production "&$F$69) -> Emissions from Electricity Production in Colombia | G73: tCO2eq/year | I73: =IF($H$66,0,$H$69*I$54/1000) -> 0 | J73: =IF($H$66,0,$H$69*J$54/1000) -> 0 | K73: =IF($H$66,0,$H$69*K$54/1000) -> 0 | L73: =IF($H$66,0,$H$69*L$54/1000) -> 0
D74: Fossil fuel Source | G74: Unit | I74: Natural Gas | J74: Natural Gas | K74: Natural Gas | L74: Natural Gas
D75: Calorific Value | G75: MJ/kg | I75: =+IFERROR(VLOOKUP(I$74,GHG_FS1!$Q$261:$T$277,2,FALSE),"?") -> 48 | J75: =+IFERROR(VLOOKUP(J$74,GHG_FS1!$Q$261:$T$277,2,FALSE),"?") -> 48 | K75: =+IFERROR(VLOOKUP(K$74,GHG_FS1!$Q$261:$T$277,2,FALSE),"?") -> 48 | L75: =+IFERROR(VLOOKUP(L$74,GHG_FS1!$Q$261:$T$277,2,FALSE),"?") -> 48
D76: Fossil Fuel Requirement | G76: t/year | I76: =IF(NOT($H$66),I$53/(I75*$X$245),(I$53/(I75*$X$245)+3.6*I$54/(I75*$X$246))) ->  | J76: =IF(NOT($H$66),J$53/(J75*$X$245),(J$53/(J75*$X$245)+3.6*J$54/(J75*$X$246))) ->  | K76: =IF(NOT($H$66),K$53/(K75*$X$245),(K$53/(K75*$X$245)+3.6*K$54/(K75*$X$246))) ->  | L76: =IF(NOT($H$66),L$53/(L75*$X$245),(L$53/(L75*$X$245)+3.6*L$54/(L75*$X$246))) -> 
D77: =IF(NOT($H$66),"Emissions from Heat Production using Fossil Fuels","Total Emissions from Energy Production using Fossil Fuels") -> Total Emissions from Energy Production using Fossil Fuels | G77: tCO2eq/year | I77: =VLOOKUP(I$74,$Q$262:$T$277,4,FALSE)*IF(NOT($H$66),I$53/$X$245,(I$53/$X$245+3.6*I54/$X$246)) ->  | J77: =VLOOKUP(J$74,$Q$262:$T$277,4,FALSE)*IF(NOT($H$66),J$53/$X$245,(J$53/$X$245+3.6*J54/$X$246)) ->  | K77: =VLOOKUP(K$74,$Q$262:$T$277,4,FALSE)*IF(NOT($H$66),K$53/$X$245,(K$53/$X$245+3.6*K54/$X$246)) ->  | L77: =VLOOKUP(L$74,$Q$262:$T$277,4,FALSE)*IF(NOT($H$66),L$53/$X$245,(L$53/$X$245+3.6*L54/$X$246)) -> 
D79: Total emissions | G79: tCO2eq/year | I79: =IF(NOT($H$66),I77+I73,I77) ->  | J79: =IF(NOT($H$66),J77+J73,J77) ->  | K79: =IF(NOT($H$66),K77+K73,K77) ->  | L79: =IF(NOT($H$66),L77+L73,L77) -> 
D94: Method 2: Self-generated Energy
D96: Step 3.2a: Technology level for energy production
D99: Technology Level for Cogeneration | F99: ='Data Entry Needs'!F26 -> Simple
J100: Total Thermal Efficency | K100: =VLOOKUP($F$99,$Q$254:$V$256,5,FALSE) -> 0.2
D101: Technology | E101: =IFERROR(VLOOKUP($F$99,$Q$254:$R$256,2,FALSE),"") -> Condensing Turbine | J101: Effective Electrical Efficiency | K101: =IFERROR(VLOOKUP($F$99,$Q$254:$V$256,6,FALSE),"") -> 0.2
D102: Product | E102: =IFERROR(VLOOKUP($F$99,$Q$254:$S$256,3,FALSE),"") -> Power Only
D104: Fuel Type | E104: Solids residues from ethanol production
D108: Step 3.2b: define biomas available
D110: ="Lignin Available from "&'Data Entry Needs'!$E$11 -> Lignin Available from
J111: =+IF($F$111="Use Fossil Fuel","Select Fossil Fuel","") -> 
D113: Average Calorific value | F113: =AD332 ->  | G113: MJ/kg | I113: Capacities (Million L/year)
I114: 5 | J114: 25 | K114: 50 | L114: 100
G115: Unit
D116: Solid Residues Potentially Available | G116: t/year | I116: =AD331*1000 ->  | J116: =AE331*1000 ->  | K116: =AF331*1000 ->  | L116: =AG331*1000 -> 
D117: Energy Theoretical Potential | G117: 1000 MJ/yr | I117: =I116*$F$113 ->  | J117: =J116*$F$113 ->  | K117: =K116*$F$113 ->  | L117: =L116*$F$113 -> 
D119: Heat | E119: Cogenerated | G119: 1000 MJ/yr | I119: =AD340 ->  | J119: =AE340 ->  | K119: =AF340 ->  | L119: =AG340 -> 
E120: Demand Supplied | G120: % | I120: =IFERROR(IF(I$119/I$53>1,"fullly supplied",I$119/(I$53)),"") ->  | J120: =IFERROR(IF(J$119/J$53>1,"fullly supplied",J$119/(J$53)),"") ->  | K120: =IFERROR(IF(K$119/K$53>1,"fullly supplied",K$119/(K$53)),"") ->  | L120: =IFERROR(IF(L$119/L$53>1,"fullly supplied",L$119/(L$53)),"") -> 
D122: Electricity | E122: Cogenerated | G122: 1000 kWh/yr | I122: =AD339 ->  | J122: =AE339 ->  | K122: =AF339 ->  | L122: =AG339 -> 
E123: Demand Supplied | G123: % | I123: =IFERROR(IF(I$122/I$54>1,"Surplus",I$122/(I$54)),"") ->  | J123: =IFERROR(IF(J$122/J$54>1,"Surplus",J$122/(J$54)),"") ->  | K123: =IFERROR(IF(K$122/K$54>1,"Surplus",K$122/(K$54)),"") ->  | L123: =IFERROR(IF(L$122/L$54>1,"Surplus",L$122/(L$54)),"") -> 
D125: External fossil fuel requirement for heating | G125: % | I125: =+IF(I120<=1,(1-I120),0%) -> 0 | J125: =+IF(J120<=1,(1-J120),0%) -> 0 | K125: =+IF(K120<=1,(1-K120),0%) -> 0 | L125: =+IF(L120<=1,(1-L120),0%) -> 0
D126: External fossil fuel requirement for electricity | G126: % | I126: =+IF(I123<=1,(1-I123),0%) -> 0 | J126: =+IF(J123<=1,(1-J123),0%) -> 0 | K126: =+IF(K123<=1,(1-K123),0%) -> 0 | L126: =+IF(L123<=1,(1-L123),0%) -> 0
D130: Step 3.2c: define a suplementary fuel to complete energy demand
I132: Capacities (Million L/year)
D133: Co-firing Options | I133: 5 | J133: 25 | K133: 50 | L133: 100
I134: =+IF(AND(I125=0%,I126=0%),"Not needed","select a fuel") -> Not needed | J134: =+IF(AND(J125=0%,J126=0%),"Not needed","select a fuel") -> Not needed | K134: =+IF(AND(K125=0%,K126=0%),"Not needed","select a fuel") -> Not needed | L134: =+IF(AND(L125=0%,L126=0%),"Not needed","select a fuel") -> Not needed
D135: Suplementary fossil fuel source | G135: Unit | I135: Natural Gas | J135: Natural Gas | K135: Natural Gas | L135: Natural Gas
D136: Calorific Value | G136: MJ/kg | I136: =+IFERROR(VLOOKUP(I$135,GHG_FS1!$Q$261:$T$277,2,FALSE),"") -> 48 | J136: =+IFERROR(VLOOKUP(J$135,GHG_FS1!$Q$261:$T$277,2,FALSE),"") -> 48 | K136: =+IFERROR(VLOOKUP(K$135,GHG_FS1!$Q$261:$T$277,2,FALSE),"") -> 48 | L136: =+IFERROR(VLOOKUP(L$135,GHG_FS1!$Q$261:$T$277,2,FALSE),"") -> 48
D137: Additional Fossil Fuel Demand | G137: t/year | I137: =IF(OR($F$99="No Cogeneration",$F$99="Simple"),R355,R350) ->  | J137: =IF(OR($F$99="No Cogeneration",$F$99="Simple"),S355,S350) ->  | K137: =IF(OR($F$99="No Cogeneration",$F$99="Simple"),T355,T350) ->  | L137: =IF(OR($F$99="No Cogeneration",$F$99="Simple"),U355,U350) -> 
D141: Step 3.2d: Define emission factor for electricity generation
F142: =+IF($F$143="USER defined",TRUE,FALSE) -> FALSE | H142: =IF($H$67=2,TRUE,FALSE) -> FALSE | K142: =+NOT($F$142) -> TRUE
D143: Origin of Electricity Emissions | F143: Default by Country | G143: Colombia | H143: =+IF($K$68,$I$69,$K$69) -> 175 | I143: =IFERROR(VLOOKUP($G$143,'dummy database'!$A$28:$B$161,2,FALSE),"") -> 175 | J143: gCO2/kWh | K143: 400 | L143: gCO2/kWh
I145: 5 ML | J145: 25 ML | K145: 50 ML | L145: 100 ML
D146: Emissions from additional energy requirement | G146: tCO2 eq/year | I146: =+VLOOKUP(I135,$Q$262:$T$277,4,FALSE)*I137*I136 ->  | J146: =+VLOOKUP(J135,$Q$262:$T$277,4,FALSE)*J137*J136 ->  | K146: =+VLOOKUP(K135,$Q$262:$T$277,4,FALSE)*K137*K136 ->  | L146: =+VLOOKUP(L135,$Q$262:$T$277,4,FALSE)*L137*L136 -> 
D147: =IF($F$99="No Cogeneration","Emissions from additional electricity requirement","Credits from electricity generation") -> Credits from electricity generation | G147: tCO2 eq/year | I147: =IF($F$99="No Cogeneration",I54,-I122)*IF($F$142,$K$143,$I$143)*1000/1000000 ->  | J147: =IF($F$99="No Cogeneration",J54,-J122)*IF($F$142,$K$143,$I$143)*1000/1000000 ->  | K147: =IF($F$99="No Cogeneration",K54,-K122)*IF($F$142,$K$143,$I$143)*1000/1000000 ->  | L147: =IF($F$99="No Cogeneration",L54,-L122)*IF($F$142,$K$143,$I$143)*1000/1000000 -> 
D148: Total Industrial Emissions | G148: tCO2 eq/year | I148: =+(I146+I147) ->  | J148: =+(J146+J147) ->  | K148: =+(K146+K147) ->  | L148: =+(L146+L147) -> 
D152: Summary of technical and environmental results from cogeneration
I153: =IF(I$154=LARGE($I$154:$L$154,1),4,IF(I$154=LARGE($I$154:$L$154,2),3,IF(I$154=LARGE($I$154:$L$154,3),2,IF(I$154=LARGE($I$154:$L$154,4),1)))) ->  | J153: =IF(J$154=LARGE($I$154:$L$154,1),4,IF(J$154=LARGE($I$154:$L$154,2),3,IF(J$154=LARGE($I$154:$L$154,3),2,IF(J$154=LARGE($I$154:$L$154,4),1)))) ->  | K153: =IF(K$154=LARGE($I$154:$L$154,1),4,IF(K$154=LARGE($I$154:$L$154,2),3,IF(K$154=LARGE($I$154:$L$154,3),2,IF(K$154=LARGE($I$154:$L$154,4),1)))) ->  | L153: =IF(L$154=LARGE($I$154:$L$154,1),4,IF(L$154=LARGE($I$154:$L$154,2),3,IF(L$154=LARGE($I$154:$L$154,3),2,IF(L$154=LARGE($I$154:$L$154,4),1)))) -> 
C154: Heat (1000 MJ/year) | F154: Heat (1000 MJ/year) | I154: =+ABS(I148) ->  | J154: =+ABS(J148) ->  | K154: =+ABS(K148) ->  | L154: =+ABS(L148) -> 
J155: Positive | K155: Negative | L155: Size
C156: 5 ML | G156: 1 | I156: 5 ML | J156: =+IF($I$148>0,$I$148,NA()) ->  | K156: =+IF($I$148<0,$I$148,NA()) ->  | L156: =+$I$153 -> 
C157: 25 ML | G157: 1 | I157: 25 ML | J157: =+IF($J$148>0,$J$148,NA()) ->  | K157: =+IF($J$148<0,$J$148,NA()) ->  | L157: =+$J$153 -> 
C158: 50 ML | G158: 1 | I158: 50 ML | J158: =+IF($K$148>0,$K$148,NA()) ->  | K158: =+IF($K$148<0,$K$148,NA()) ->  | L158: =+$K$153 -> 
C159: 100 ML | G159: 1 | I159: 100 ML | J159: =+IF($L$148>0,$L$148,NA()) ->  | K159: =+IF($L$148<0,$L$148,NA()) ->  | L159: =+$L$153 -> 
C163: 5 ML | G163: 1
C164: 25 ML | G164: 1
C165: 50 ML | G165: 1
C166: 100 ML | G166: 1
D171: ="Total GHG Emissions for Ethanol production from "&'Data Entry Needs'!$E$11&" " -> Total GHG Emissions for Ethanol production from
I174: Feedstock Transport | J174: =+$F$38 ->  | K174: Residue Transport | L174: =+$K$38 -> 
E175: Results expressed in kgCO2eq per liter
D176: ="Comparative emissions of "&"gasoline fuel" -> Comparative emissions of gasoline fuel | F176: =$T$263*$R$263*$S$263 -> 2.798725595 | I176: Energy Technology | J176: =+IF(NOT(D$60),"Conventional fossil fuel based",$F$99&"-"&$E$101) -> Simple-Condensing Turbine
D177: Capacities | E177: Scenario 1 | F177: Scenario 2 | G177: Scenario 3 | I177: Fuel Efficiency Utilization Factor
D178: 5 ML | E178: =+AI261 ->  | F178: =+AJ261 ->  | I178: 5 ML | J178: 25 ML | K178: 50 ML | L178: 100 ML
D179: 25 ML | I179: =+IF(NOT($D$60),I$74&" ",$E$20&" "&$F$111&IF(AND(I$125=0%,I$126=0%)," only"," & "&$I$135)) -> only | J179: =+IF(NOT($D$60),J$74&" ",$E$20&" "&$F$111&IF(AND(J$125=0%,J$126=0%)," only"," & "&$I$135)) -> only | K179: =+IF(NOT($D$60),K$74&" ",$E$20&" "&$F$111&IF(AND(K$125=0%,K$126=0%)," only"," & "&$I$135)) -> only | L179: =+IF(NOT($D$60),L$74&" ",$E$20&" "&$F$111&IF(AND(L$125=0%,L$126=0%)," only"," & "&$I$135)) -> only
D180: 50 ML
D181: 100 ML | I181: =+Y$308 ->  | J181: =+Z$308 ->  | K181: =+AA$308 ->  | L181: =+AB$308 -> 
Q235: Feedstock | R235: =+'Data Entry Needs'!$G$11 ->  | U235: Cogen Selection | V235: =+VLOOKUP($F$99,$Q$254:$T$256,4,FALSE) -> 1 | W235: CH4 | X235: 21
W236: NO2 | X236: 310
R238: Emission Factor (KG CO2/MJ) | S238: Fuel efficiency (MJ/t.km) | T238: Transport exhaust gas emissions (gCH4/t.km) | U238: Transport exhaust gas emissions (gN2O/t.km) | V238: tCO2eq/tkm
Q239: Truck for liquids (Diesel) | R239: 0.0753909 | S239: 1.008 | T239: 0.005 | U239: 0 | V239: =+R239*S239/1000+T239*$X$235/1000000+U239*$X$236/1000000 -> 7.60990272e-05
Q240: Truck for dry product (Diesel) | R240: 0.0753909 | S240: 2.012285714 | T240: 0.005 | U240: 0 | V240: =+R240*S240/1000+T240*$X$235/1000000+U240*$X$236/1000000 -> 0.0001518130311
Q241: Ocean bulk carrier | R241: 0.070985 | S241: 0.20358 | T241: 0.0003 | U241: 0.00072 | V241: 1.46806263e-05
Q242: Ship /product tanker 50kt | R242: 0.070985 | S242: 0.12384 | T242: 0 | U242: 0 | V242: 8.7907824e-06
Q243: Local (10 km) pipeline | R243: 0 | S243: 0 | T243: 0 | U243: 0 | V243: 0
Q244: Rail | R244: =AVERAGE(T274:T276) -> 0.02518518519 | S244: 0.21 | T244: 0 | U244: 0 | V244: 5.288888889e-06
Q245: Truck for FFB transport (Diesel) | R245: 0.0753909 | S245: 2.012285714 | T245: 0.005 | U245: 0 | V245: 0.0001518130311 | X245: 0.63 | Y245: Boiler for heating
Q246: Tanker truck MB2318 (Diesel) | R246: 0.0753909 | S246: 2.16 | T246: 0 | U246: 0 | V246: 0.000162844344 | X246: 0.2 | Y246: Boiler for electricity
Q247: Tanker truck with water cannons(Diesel) | R247: 0.0753909 | S247: 0.936 | T247: 0 | U247: 0 | V247: 7.05658824e-05
Q248: Dumpster truck MB2213 for filter mud transport | R248: 0.0753909 | S248: 3.6 | T248: 0 | U248: 0 | V248: 0.00027140724
Q251: Output calculated using formulas presented in: | S251: http://www.epa.gov/chp/basic/methods.html
Q252: Cogeneration | T252: Number | U252: Thermal Efficiency | V252: Electric efficiency
Q253: Please select | R253: Technolgy | S253: Product | T253: 0 | U253: 0.2 | V253: 0.2
Q254: Simple | R254: Condensing Turbine | S254: Power Only | T254: 1 | U254: 0.2 | V254: 0.2
Q255: Semi-Advanced | R255: Back-pressure Steam Turbine | S255: Heat and Power | T255: 2 | U255: 0.63 | V255: 0.2
Q256: Advanced | R256: BIGCC (Biomass Gasification Combined Cycle) | S256: Heat and Power | T256: 3 | U256: 0.71 | V256: 0.3
Q257: Options
Q258: Please select | AB258: AB | AC258: AC | AD258: AD | AE258: AE | AF258: AF | AG258: AG
Q259: Option 1 | AB259: SC1 | AC259: SC2 | AD259: SC3 | AH259: TOTAL
Q260: Option 2 | AB260: Feedstock Production | AC260: Feedstock Production | AD260: Feedstock Production | AE260: Feedstock Transportation | AF260: Biofuel Production | AG260: Residues Transportation | AI260: SC1 | AJ260: SC2 | AK260: SC3
Q261: Fuel | R261: Calorific Value (MJ/Kg) | S261: Density (kg/L) | T261: kg CO2e/MJ | AA261: 5 | AB261: =+E25 ->  | AE261: =+$G42 ->  | AF261: =+IF($D$60,I$148,I$79) ->  | AG261: =+$L42 ->  | AH261: 5000000 | AI261: =+(AB261+$AE261+$AF$261+$AG261)*1000/$AH261 ->  | AJ261: =+(AC261+$AE261+$AF$261+$AG261)*1000/$AH261 ->  | AK261: =+(AD261+$AE261+$AF$261+$AG261)*1000/$AH261 -> 
Q262: Please Select | AA262: 25 | AE262: =+$G43 ->  | AF262: =+IF($D$60,J$148,J$79) ->  | AG262: =+$L43 ->  | AH262: 25000000 | AI262: =+(AB262+$AE262+$AF262+$AG262)*1000/$AH262 ->  | AJ262: =+(AC262+$AE262+$AF262+$AG262)*1000/$AH262 -> 
Q263: Gasoline | R263: 44.3 | S263: 0.89 | T263: 0.070985 | AA263: 50 | AE263: =+$G44 ->  | AF263: =+IF($D$60,K$148,K$79) ->  | AG263: =+$L44 ->  | AH263: 50000000 | AI263: =+(AB263+$AE263+$AF263+$AG263)*1000/$AH263 -> 
Q264: Diesel Oil | R264: 43 | S264: 0.73722 | T264: 0.0753909 | AA264: 100 | AE264: =+$G45 ->  | AF264: =+IF($D$60,L$148,L$79) ->  | AG264: =+$L45 ->  | AH264: 100000000 | AI264: =+(AB264+$AE264+$AF264+$AG264)*1000/$AH264 -> 
Q265: Waste Oil / Lubrificants | R265: 40.2 | S265: 0.95 | T265: 0.0745909
Q266: LPG | R266: 47.3 | S266: 0.545 | T266: 0.064464
Q267: Natural Gas | R267: 48 | S267: 0.65 | T267: =0.0156 -> 0.0156
Q268: Peat | R268: 9.76 | S268: 0.6823529412 | T268: 0.000486
Q269: Butane | R269: 45.27677204 | S269: 2 | T269: 0.01948001062
Q270: Propane | R270: 46.29553566 | S270: 1.92 | T270: 0.01725760354
Q271: Methanol | R271: 20.09356275 | S271: 0.7918 | T271: 0.08642318218
Q272: Ethanol | R272: 26.95163409 | S272: 0.789 | T272: 0.004227793194
Q273: Biodiesel | R273: =35.7/0.88 -> 40.56818182 | S273: 0.88 | T273: 0.004259035631
Q274: Other bituminous coal | R274: 22.732203 | S274: 0 | T274: 0.02333333333
Q275: Sub bituminous coal | R275: 26.12151245 | S275: 0 | T275: 0.02583333333
Q276: Lignite brown coal | R276: 28.61019707 | S276: 0 | T276: 0.02638888889
Q277: Wood | R277: 19.55106924 | S277: 0 | T277: 5.196646729e-07
Q279: Please select | R279: 1 | S279: Steam @10 Bar | T279: 2013.56 | U279: MJ/t
Q280: Feedstock | R280: 2 | S280: syngas yield | T280: 3.29 | U280: m3/kg biomass | V280: Assuming optimal conditions | W280: Peres, A., B. H. Lunelli, et al. (2013). "Application of biomass to hydrogen and syngas production." Chemical Engineering Transactions 32: 589-594.
Q281: Product | R281: 3 | S281: Density Syngas | T281: 0.95 | U281: Kg/m3
S282: Calorific Value | T282: 9 | U282: MJ/m3 | V282: Cogeneration plant using o2 as oxygenant | W282: http://scialert.net/fulltext/?doi=ajsr.2013.187.196&org=11
Q285: Total Emissions
Q306: Step 1 - Feedstock
R307: tCO2eq/year | Y307: 5 | Z307: 25 | AA307: 50 | AB307: 100
R308: Scenario 1 | S308: Scenario 2 | T308: Scenario 3 | X308: Fuel Utilization Efficiency | Y308: =IF(NOT($D$60),(I$54*3.6+I$53)/(I$76*I$75),(I$122*3.6+I$119)/($F$113*I116+I$136*I$137)) ->  | Z308: =IF(NOT($D$60),(J$54*3.6+J$53)/(J$76*J$75),(J$122*3.6+J$119)/($F$113*J116+J$136*J$137)) ->  | AA308: =IF(NOT($D$60),(K$54*3.6+K$53)/(K$76*K$75),(K$122*3.6+K$119)/($F$113*K116+K$136*K$137)) ->  | AB308: =IF(NOT($D$60),(L$54*3.6+L$53)/(L$76*L$75),(L$122*3.6+L$119)/($F$113*L116+L$136*L$137)) ->  | AC308: http://www.colpan.org/publications/thesis/MSc.pdf
Q309: 5 ML | R309: =E25 -> 
Q310: 25 ML
Q311: 50 ML
Q312: 100ML
R315: =IFERROR(IF(SUM(R316:R319)>0,"Sc1+",""),"") ->  | S315: =IFERROR(IF(SUM(S316:S319)<0,"Sc1-",""),"") ->  | T315: =IFERROR(IF(SUM(T316:T319)>0,"Sc2+",""),"") ->  | U315: =IFERROR(IF(SUM(U316:U319)<0,"Sc2-",""),"") ->  | V315: =IFERROR(IF(SUM(V316:V319)>0,"Sc3+",""),"") ->  | W315: =IFERROR(IF(SUM(W316:W319)<0,"Sc3-",""),"") -> 
Q316: 5 ML | R316: =+IF($R309>0,$R309,"") ->  | S316: =+IF($R309<0,$R309,"") ->  | T316: =+IF($S309>0,$S309,"") ->  | U316: =+IF($S309<0,$S309,"") ->  | V316: =+IF($T309>0,$T309,"") ->  | W316: =+IF($T309<0,$T309,"") -> 
Q317: 25 ML | R317: =+IF($R310>0,$R310,"") ->  | S317: =+IF($R310<0,$R310,"") ->  | T317: =+IF($S310>0,$S310,"") ->  | U317: =+IF($S310<0,$S310,"") ->  | V317: =+IF($T310>0,$T310,"") ->  | W317: =+IF($T310<0,$T310,"") -> 
Q318: 50 ML | R318: =+IF($R311>0,$R311,"") ->  | S318: =+IF($R311<0,$R311,"") ->  | T318: =+IF($S311>0,$S311,"") ->  | U318: =+IF($S311<0,$S311,"") ->  | V318: =+IF($T311>0,$T311,"") ->  | W318: =+IF($T311<0,$T311,"") -> 
Q319: 100ML | R319: =+IF($R312>0,$R312,"") ->  | S319: =+IF($R312<0,$R312,"") ->  | T319: =+IF($S312>0,$S312,"") ->  | U319: =+IF($S312<0,$S312,"") ->  | V319: =+IF($T312>0,$T312,"") ->  | W319: =+IF($T312<0,$T312,"") -> 
Q322: Step 2 - Transport
AC323: operating hours per year | AD323: ='Data Entry Needs'!$G$43*24 -> 0 | AE323: h/y
Q324: Feedstock Transport | R324: Transport | U324: Processing Residue | V324: Transport type | X324: _FS1 | Y324: Feedstock type | Z324: Pretreatment Technology | AD324: Solids available for cogeneration
Q325: Barley straw | R325: Truck for dry product (Diesel) | T325: Barley straw | U325: Sludge | V325: Tanker truck MB2318 (Diesel) | X325: residue production | Z325: =Allocator!$D$4 -> DA
Q326: Maize stover | R326: Truck for dry product (Diesel) | T326: Maize stover | U326: Sludge | V326: Tanker truck MB2318 (Diesel) | X326: AJ | Y326: AL | Z326: AN | AA326: AP | AD326: AI | AE326: AK | AF326: AM | AG326: AO
Q327: Oat straw | R327: Truck for dry product (Diesel) | T327: Oat straw | U327: Sludge | V327: Tanker truck MB2318 (Diesel) | X327: 5ML | Y327: 25ML | Z327: 50ML | AA327: 100ML | AD327: 5ML | AE327: 25ML | AF327: 50ML | AG327: 100ML
Q328: Rice straw | R328: Truck for dry product (Diesel) | T328: Rice straw | U328: Sludge | V328: Tanker truck MB2318 (Diesel) | X328: ktonne/year | Y328: ktonne/year | Z328: ktonne/year | AA328: ktonne/year | AD328: ktonne/year | AE328: ktonne/year | AF328: ktonne/year | AG328: ktonne/year
Q329: Sorghum straw | R329: Truck for dry product (Diesel) | T329: Sorghum straw | U329: Sludge | V329: Tanker truck MB2318 (Diesel) | X329: =INDIRECT("B_"&$Z$325&$X$324&"!"&X$326&38) ->  | Y329: =INDIRECT("B_"&$Z$325&$X$324&"!"&Y$326&38) ->  | Z329: =INDIRECT("B_"&$Z$325&$X$324&"!"&Z$326&38) ->  | AA329: =INDIRECT("B_"&$Z$325&$X$324&"!"&AA$326&38) ->  | AC329: Lignin | AD329: =INDIRECT("B_"&$Z$325&$X$324&"!"&AD$326&43) ->  | AE329: =INDIRECT("B_"&$Z$325&$X$324&"!"&AE$326&43) ->  | AF329: =INDIRECT("B_"&$Z$325&$X$324&"!"&AF$326&43) ->  | AG329: =INDIRECT("B_"&$Z$325&$X$324&"!"&AG$326&43) -> 
Q330: Wheat straw | R330: Truck for dry product (Diesel) | T330: Wheat straw | U330: Sludge | V330: Tanker truck MB2318 (Diesel) | AC330: Yeast | AD330: =INDIRECT("B_"&$Z$325&$X$324&"!"&AD$326&44) ->  | AE330: =INDIRECT("B_"&$Z$325&$X$324&"!"&AE$326&44) ->  | AF330: =INDIRECT("B_"&$Z$325&$X$324&"!"&AF$326&44) ->  | AG330: =INDIRECT("B_"&$Z$325&$X$324&"!"&AG$326&44) -> 
Q331: Sugarcane bagasse | R331: Truck for dry product (Diesel) | T331: Sugarcane bagasse | U331: Sludge | V331: Tanker truck MB2318 (Diesel) | X331: Energy consumption before integration with cogeneration system | AC331: Total | AD331: =SUM(AD329:AD330) ->  | AE331: =SUM(AE329:AE330) ->  | AF331: =SUM(AF329:AF330) ->  | AG331: =SUM(AG329:AG330) -> 
Q332: Oil palm empty fruit bunch | R332: Truck for dry product (Diesel) | T332: Oil palm empty fruit bunch | U332: Sludge | V332: Tanker truck MB2318 (Diesel) | X332: Steam required - MJ/h | Y332: =INDIRECT(("B_"&$Z$325&X324&"!AB25")) -> 2690 | Z332: Steam - MJ/L | AA332: =Y332/Y334 ->  | AC332: Average Heating Value | AD332: =INDIRECT(("B_"&$Z$325&X324&"!j103")) ->  | AE332: MJ/kg
Q333: Spruce forest residues | R333: Truck for dry product (Diesel) | T333: Spruce forest residues | U333: Sludge | V333: Tanker truck MB2318 (Diesel) | X333: Electricity required -kWh/h | Y333: =INDIRECT(("B_"&$Z$325&X324&"!AB26")) -> 190 | Z333: Electricity - kWh/L | AA333: =Y333/Y334 ->  | AD333: Energy cogenerated
Q334: Miscanthus giganteus | R334: Truck for dry product (Diesel) | T334: Miscanthus giganteus | U334: Sludge | V334: Tanker truck MB2318 (Diesel) | X334: Ethanol produced - L/h | Y334: =INDIRECT(("B_"&$Z$325&X324&"!P72")) -> 0 | AD334: AI | AE334: AJ | AF334: AK | AG334: AL
Q335: Napier grass | R335: Truck for dry product (Diesel) | T335: Napier grass | U335: Sludge | V335: Tanker truck MB2318 (Diesel) | AD335: 5ML | AE335: 25ML | AF335: 50ML | AG335: 100ML
Q336: Arundo donax | R336: Truck for dry product (Diesel) | T336: Arundo donax | U336: Sludge | V336: Tanker truck MB2318 (Diesel) | X336: 5ML | Y336: 25ML | Z336: 50ML | AA336: 100ML | AC336: Electricity - kW | AD336: =INDIRECT("B_"&$Z$325&$X$324&"!"&AD$334&81) ->  | AE336: =INDIRECT("B_"&$Z$325&$X$324&"!"&AE$334&81) ->  | AF336: =INDIRECT("B_"&$Z$325&$X$324&"!"&AF$334&81) ->  | AG336: =INDIRECT("B_"&$Z$325&$X$324&"!"&AG$334&81) -> 
Q337: Switchgrass | R337: Truck for dry product (Diesel) | T337: Switchgrass | U337: Sludge | V337: Tanker truck MB2318 (Diesel) | X337: 5 | Y337: 25 | Z337: 50 | AA337: 100 | AC337: Steam - MW | AD337: =INDIRECT("B_"&$Z$325&$X$324&"!"&AD$334&82) ->  | AE337: =INDIRECT("B_"&$Z$325&$X$324&"!"&AE$334&82) ->  | AF337: =INDIRECT("B_"&$Z$325&$X$324&"!"&AF$334&82) ->  | AG337: =INDIRECT("B_"&$Z$325&$X$324&"!"&AG$334&82) -> 
Q338: Willow | R338: Truck for dry product (Diesel) | T338: Willow | U338: Sludge | V338: Tanker truck MB2318 (Diesel) | W338: Steam - 1000 MJ/y | X338: =$AA$332*X337*1000000/1000 ->  | Y338: =$AA$332*Y337*1000000/1000 ->  | Z338: =$AA$332*Z337*1000000/1000 ->  | AA338: =$AA$332*AA337*1000000/1000 -> 
Q339: Poplar | R339: Truck for dry product (Diesel) | T339: Poplar | U339: Sludge | V339: Tanker truck MB2318 (Diesel) | W339: Electricity - 1000 kWh/y | X339: =$AA$333*X337*1000000/1000 ->  | Y339: =$AA$333*Y337*1000000/1000 ->  | Z339: =$AA$333*Z337*1000000/1000 ->  | AA339: =$AA$333*AA337*1000000/1000 ->  | AC339: Electricity - 1000 kWh/y | AD339: =AD336*3600*$AD$323/(1000*3.6*1000) ->  | AE339: =AE336*3600*$AD$323/(1000*3.6*1000) ->  | AF339: =AF336*3600*$AD$323/(1000*3.6*1000) ->  | AG339: =AG336*3600*$AD$323/(1000*3.6*1000) -> 
Q340: Spruce | R340: Truck for dry product (Diesel) | T340: Spruce | U340: Sludge | V340: Tanker truck MB2318 (Diesel) | AC340: Steam - 1000 MJ/y | AD340: =AD337*3600*$AD$323/1000 ->  | AE340: =AE337*3600*$AD$323/1000 ->  | AF340: =AF337*3600*$AD$323/1000 ->  | AG340: =AG337*3600*$AD$323/1000 -> 
W342: energy supplied | X342: AI | Y342: AJ | Z342: AK | AA342: AL
Q343: Cogeneration fossil energy | X343: 5ML | Y343: 25ML | Z343: 50ML | AA343: 100ML
Q344: Electrical efficiency | R344: =Allocator!$J$24 -> 0.2 | X344: 5 | Y344: 25 | Z344: 50 | AA344: 100
Q345: Thermal Efficiency | R345: =Allocator!$J$25 -> 0.2 | W345: Electricity Supplied (%) | X345: =INDIRECT("B_"&$Z$325&$X$324&"!"&X$342&83) ->  | Y345: =INDIRECT("B_"&$Z$325&$X$324&"!"&Y$342&83) ->  | Z345: =INDIRECT("B_"&$Z$325&$X$324&"!"&Z$342&83) ->  | AA345: =INDIRECT("B_"&$Z$325&$X$324&"!"&AA$342&83) -> 
R346: =(R345-R344)/(1-(R344/Allocator!$I$15)) -> 0 | W346: Steam Supplied (%) | X346: =INDIRECT("B_"&$Z$325&$X$324&"!"&X$342&84) ->  | Y346: =INDIRECT("B_"&$Z$325&$X$324&"!"&Y$342&84) ->  | Z346: =INDIRECT("B_"&$Z$325&$X$324&"!"&Z$342&84) ->  | AA346: =INDIRECT("B_"&$Z$325&$X$324&"!"&AA$342&84) -> 
R347: 5ML | S347: 25ML | T347: 50ML | U347: 100ML | W347: For figures | X347: 1 | Y347: 1 | Z347: 1 | AA347: 1
Q348: Electricity required - MJ/year | R348: =(I126*I54*1000*3.6) ->  | S348: =(J126*J54*1000*3.6) ->  | T348: =(K126*K54*1000*3.6) ->  | U348: =(L126*L54*1000*3.6) -> 
Q349: Fuel required - MJ/year | R349: =R348/($R$345-$R$346) ->  | S349: =S348/($R$345-$R$346) ->  | T349: =T348/($R$345-$R$346) ->  | U349: =U348/($R$345-$R$346) -> 
Q350: Fuel required - t/year | R350: =R349/(I136*1000) ->  | S350: =S349/(J136*1000) ->  | T350: =T349/(K136*1000) ->  | U350: =U349/(L136*1000) -> 
R352: 5ML | S352: 25ML | T352: 50ML | U352: 100ML
Q353: Extra steam required - MJ/year | R353: =I125*I53*1000 ->  | S353: =J125*J53*1000 ->  | T353: =K125*K53*1000 ->  | U353: =L125*L53*1000 -> 
Q354: Fuel required - MJ/year | R354: =R353/0.63 ->  | S354: =S353/0.63 ->  | T354: =T353/0.63 ->  | U354: =U353/0.63 -> 
Q355: Fuel required - tonne/year | R355: =R354/(I136*1000) ->  | S355: =S354/(J136*1000) ->  | T355: =T354/(K136*1000) ->  | U355: =U354/(L136*1000) -> 
L1123: TRUE

Sheet PRICE_RES2 (hidden)
C3: =+"COLLECTION COSTS CALCULATOR FOR "&UPPER('Data Entry Needs'!$F$11) -> COLLECTION COSTS CALCULATOR FOR | P3: Sources of biomass | Q3: No. | R3: Selection2 | S3: Number | T3: Mechanized | U3: Number of skilled workers | V3: person-hour/ha
P4: Agriculture residues spread in the field | Q4: 1 | R4: =+$F$11 -> Mechanized | T4: Mechanized2 | U4: Skilled labour wage | V4: USD/person-hour
P5: Agriculture residues collected from field | Q5: 2 | R5: Selection1 | S5: 1 | T5: Mechanized4 | U5: Average fuel economy | V5: l/h
C6: Use white cells to input data | E6: Grey cells are used for calculations | P6: Agriculture residues from food processing plant | Q6: 3 | R6: =+VLOOKUP($C$11,$P$3:$Q$10,2,FALSE) -> 1 | S6: 2 | T6: Mechanized5 | U6: Fuel price | V6: USD/l
P7: Forestry | Q7: 4 | S7: 3 | T7: Semi-mechanized | U7: Number of skilled workers | V7: person-hour/ha
C8: Biomass Collection Definition | P8: Forestry and plantation residues | Q8: 5 | S8: 4 | T8: Semi-mechanized1 | U8: Number of unskilled workers | V8: person-hour/ha
P9: Residues from wood industry | Q9: 6 | S9: 5 | T9: Semi-mechanized2 | U9: Skilled labour wage | V9: USD/person-hour
C10: Sources of biomass | F10: Collecting method | P10: Dedicated wood energy plantation | Q10: 7 | T10: Semi-mechanized3 | U10: Unskilled labour wage | V10: USD/person-hour
C11: Agriculture residues spread in the field | F11: Mechanized | P11: Collection method | T11: Semi-mechanized4 | U11: Average fuel economy | V11: l/h
P12: Mechanized | T12: Semi-mechanized5 | U12: Fuel Price | V12: USD/l
C13: =IF($R$6=7,"Warning: Selecting this option you are assuming that briquette producer owns the wood plantation. Then, feedstock price is equal to production cost. ",IF(OR($R$6=1,$R$6=5,$R$6=4),"Biomass Collection Definition","Warning: Selecting this option you are assuming that this type of biomass is already collected. Then, only transportation cost should be considered. ")) -> Biomass Collection Definition | P13: Semi-mechanized | T13: Manual | U13: Number of unskilled workers | V13: person-hour/ha
P14: Manual | T14: Manual2 | U14: Unskilled labour wage | V14: USD/person-hour
C16: Biomass Price Definition
C17: Labour cost | D17: Quantity | E17: Unit | F17: Quantity | H17: Unit | I17: Total | J17: Unit
C18: =+IF(OR($R$6=1,$R$6=4,$R$6=5),IFERROR(VLOOKUP($R$4&$S4,$T$3:$V$14,2,FALSE),""),"") -> Number of skilled workers | E18: =IF(OR($R$6=1,$R$6=4,$R$6=5),IFERROR(VLOOKUP($R$4&$S4,$T$3:$V$23,3,FALSE),""),"") -> person-hour/ha | F18: =IF(OR($R$6=1,$R$6=4,$R$6=5),IFERROR(VLOOKUP($R$4&$S6,$T$3:$V$14,2,FALSE),""),"") -> Skilled labour wage | G18: =IF(F18="","",IF(F18="unskilled labour wage",'Data Entry Needs'!D45,IF(F18="skilled labour wage",'Data Entry Needs'!$D$46))) -> 0 | H18: =IF(OR($R$6=1,$R$6=4,$R$6=5),IFERROR(VLOOKUP($R$4&$S6,$T$3:$V$20,3,FALSE),""),"") -> USD/person-hour | I18: =+IFERROR(G18*D18*IF($F$11="Manual",(STORAGE_FS2!$F$38/STORAGE_FS2!$F$10)*(COST_FS2!$D$9/COST_FS2!$D$10),(COST_FS2!$D$9/COST_FS2!$D$10)*(STORAGE_FS2!$F$38/STORAGE_FS2!$F$10)),"") ->  | J18: =+IF(OR($R$6=1,$R$6=4,$R$6=5),"USD/year","") -> USD/year
C19: =IF(OR($R$6=1,$R$6=4,$R$6=5),IFERROR(VLOOKUP($R$4&$S5,$T$3:$V$14,2,FALSE),""),"") ->  | E19: =IF(OR($R$6=1,$R$6=4,$R$6=5),IFERROR(VLOOKUP($R$4&$S5,$T$3:$V$23,3,FALSE),""),"") ->  | F19: =IF(OR($R$6=1,$R$6=4,$R$6=5),IFERROR(VLOOKUP($R$4&$S7,$T$3:$V$14,2,FALSE),""),"") ->  | G19: =IF(F19="","",'Data Entry Needs'!$D$45) ->  | H19: =IF(OR($R$6=1,$R$6=4,$R$6=5),IFERROR(VLOOKUP($R$4&$S7,$T$3:$V$27,3,FALSE),""),"") ->  | I19: =+IFERROR(G19*D19*IF($F$11="Manual",(STORAGE_FS2!$F$38/STORAGE_FS2!$F$10)*(COST_FS2!$D$9/COST_FS2!$D$10),(COST_FS2!$D$9/COST_FS2!$D$10)*(STORAGE_FS2!$F$38/STORAGE_FS2!$F$10)),"") ->  | J19: =+IF(OR($R$6=1,$R$6=4,$R$6=5),"USD/year","") -> USD/year
D20: =+IF(AND(C18="",C19=""),0,IF(C18="",D19,IF(C19="",D18,D18+D19))) -> 0 | H20: =+IF(OR($R$6=1,$R$6=4,$R$6=5),"Subtotal","") -> Subtotal | I20: =+SUMIF($I$18:$I$19,">0") -> 0 | J20: =+IF(OR($R$6=1,$R$6=4,$R$6=5),"USD/year","") -> USD/year
C21: Machinery & operating cost | D21: Quantity | E21: Unit | F21: Quantity | H21: Unit | I21: Total | J21: Unit
C22: =IF(OR($R$6=1,$R$6=4,$R$6=5),IFERROR(VLOOKUP($R$4&$S8,$T$3:$V$14,2,FALSE),""),"") -> Average fuel economy | E22: =IF(OR($R$6=1,$R$6=4,$R$6=5),IFERROR(VLOOKUP($R$4&$S8,$T$3:$V$27,3,FALSE),""),"") -> l/h | F22: =IF(OR($R$6=1,$R$6=4,$R$6=5),IFERROR(VLOOKUP($R$4&$S9,$T$3:$V$14,2,FALSE),""),"") -> Fuel price | G22: =IF(F22="","",'Data Entry Needs'!$D$50) -> 0 | H22: =+IFERROR(VLOOKUP($R$4&$S9,$T$3:$V$14,3,FALSE),"") -> USD/l | I22: =+IFERROR(G22*D22*IF($F$11="Manual",0,$D$18*'Data Entry Needs'!$F$12/'Data Entry Needs'!$F$92),"") ->  | J22: =+IF(OR($R$6=1,$R$6=4,$R$6=5),"USD/year","") -> USD/year
H23: =+IF(OR($R$6=1,$R$6=4,$R$6=5),"Subtotal","") -> Subtotal | I23: =+I22 ->  | J23: =+IF(OR($R$6=1,$R$6=4,$R$6=5),"USD/year","") -> USD/year
H24: =+IF(OR($R$6=1,$R$6=4,$R$6=5),"Total","") -> Total | I24: =IFERROR(I20+I23,I20) -> 0 | J24: =+IF(OR($R$6=1,$R$6=4,$R$6=5),"USD/year","") -> USD/year
D26: =IF($R$6=7,"Production cost of ","Collection price of ")&'Data Entry Needs'!$F$11 -> Collection price of | I26: =IFERROR(I24/'Data Entry Needs'!$F$12,"") ->  | J26: USD/ton
O45: Collection Method | P45: Efficiency Factor
O46: Mechanized | P46: 1
O47: Semi-Mechanized | P47: 1
O48: Manual | P48: 1

Sheet STORAGE_FS2 (hidden)
C3: =+UPPER("Biomass storage calculation for "&'Data Entry Needs'!$F$11) -> BIOMASS STORAGE CALCULATION FOR
C5: Biomass Safety Stock Rate Definition
F8: Capacities (Million litres per year)
D9: Unit | F9: 5 | I9: 25 | L9: 50 | O9: 100
C10: Biomass consumption | D10: t/year | F10: =+COST_FS2!$G$17 ->  | I10: =+COST_FS2!$G$18 ->  | L10: =+COST_FS2!$G$19 ->  | O10: =+COST_FS2!$G$20 -> 
D11: t/month | F11: =F10/12 ->  | I11: =I10/12 ->  | L11: =L10/12 ->  | O11: =O10/12 -> 
D12: kg/day | F12: =F10/365 ->  | I12: =I10/365 ->  | L12: =L10/365 ->  | O12: =O10/365 -> 
C14: Biomass production within a specific distance | D14: t/year | F14: =+COST_FS2!$D$9 -> 0 | I14: =F14 -> 0 | L14: =I14 -> 0 | O14: =L14 -> 0
C16: Biomass safety stock rate | F16: =+F17/100 -> 0.3 | G16: =+G17/100 -> 0 | H16: 0 | I16: 0.3 | J16: 0 | K16: 0 | L16: 0.3 | M16: 0 | N16: 0 | O16: 0.3
F17: 30 | I17: 30 | L17: 30 | O17: 30
C18: Biomass stock pile capacity | D18: t | F18: =+MAX(F25:F36) ->  | I18: =+MAX(I25:I36) ->  | L18: =+MAX(L25:L36) ->  | O18: =+MAX(O25:O36) -> 
C20: Maximum Storage Definition
F22: Capacities (Million litres per year)
E23: =+F9 -> 5 | F23: 5 | H23: =+I9 -> 25 | I23: 25 | K23: =+L9 -> 50 | L23: 50 | N23: =+O9 -> 100 | O23: 100 | AD23: Depletion time definition
C24: Harvest Month Selection | D24: Storage Month | E24: Monthly Consumption (Ton/month) | F24: Cumulative Storage (ton) | G24: Storage Depletion (Ton/month) | H24: Monthly Consumption (Ton/month) | I24: Cumulative Storage (ton) | J24: Storage Depletion (Ton/month) | K24: Monthly Consumption (Ton/month) | L24: Cumulative Storage (ton) | M24: Storage Depletion (Ton/month) | N24: Monthly Consumption (Ton/month) | O24: Cumulative Storage (ton) | P24: Storage Depletion (Ton/month) | AB24: Harvest Period | AC24: Harvest Period | AD24: Depletion term | AE24: Depletion month | AF24: EQ term | AG24: Depletion time | AH24: Storageterm | AI24: Storage month | AJ24: EQ term | AK24: Storage time
C25: January | D25: =+IF($AC25=0,0,IF($AC25>$AC36,1,IF($AC25=$AC36,$D36+1,IF($AC36>$AC25,0)))) -> 1 | E25: =+F$11 ->  | F25: =+IF(AND($D$25=1,$D$36=0,$D$26=0),$F$11*$AG25+$F$11*$F$16,IF($D25>0,($AG25*$F$11/$AK25)*$D25+$F$11*$F$16,0)) ->  | G25: =IF(AND($D$25=1,$D$36=0,$D$26=0),$F$11*$AG25+$G$36-E25,IF($D25>0,IFERROR(($AG25*$F$11/$AK25)*$D25,"")+$F$11*$F$16,IF($D25=0,G36-E25))) ->  | H25: =+I$11 ->  | I25: =+IF(AND($D$25=1,$D$36=0,$D$26=0),$I$11*$AG25+$I$11*$I$16,IF($D25>0,($AG25*$I$11/$AK25)*$D25+$I$11*$I$16,0)) ->  | J25: =IF(AND($D$25=1,$D$36=0,$D$26=0),$I$11*$AG25+$J$36-H25,IF($D25>0,IFERROR(($AG25*$I$11/$AK25)*$D25,"")+$I$11*$I$16,IF($D25=0,J36-H25))) ->  | K25: =+L$11 ->  | L25: =+IF(AND($D$25=1,$D$36=0,$D$26=0),$L$11*$AG25+$L$11*$L$16,IF($D25>0,($AG25*$L$11/$AK25)*$D25+$L$11*$L$16,0)) ->  | M25: =IF(AND($D$25=1,$D$36=0,$D$26=0),$L$11*$AG25+$M$36-K25,IF($D25>0,IFERROR(($AG25*$L$11/$AK25)*$D25,"")+$L$11*$L$16,IF($D25=0,M36-K25))) ->  | N25: =+O$11 ->  | O25: =+IF(AND($D$25=1,$D$36=0,$D$26=0),$O$11*$AG25+$O$11*$O$16,IF($D25>0,($AG25*$O$11/$AK25)*$D25+$O$11*$O$16,0)) ->  | P25: =IF(AND($D$25=1,$D$36=0,$D$26=0),$O$11*$AG25+$P$36-N25,IF($D25>0,IFERROR(($AG25*$O$11/$AK25)*$D25,"")+$O$11*$O$16,IF($D25=0,P36-N25))) ->  | AB25: TRUE | AC25: =+N(AB25) -> 1 | AD25: =+IF(AND(AC26>AC25,AC25=0),"Last"&AF25,"") ->  | AE25: =+IF($AC25=1,0,IF($AC25<$AC36,1,IF($AC25=$AC36,$AE36+1,IF($AC36>$AC25,1)))) -> 0 | AF25: 1 | AG25: =IFERROR(VLOOKUP("LAST"&AF25,$AD$25:$AE$36,2,FALSE),AK25) -> 1 | AH25: =+IF(AND(AI25>AI26,AI26=0),"Last"&AJ25,"") ->  | AI25: =+IF($AC25=0,0,IF($AC25>$AC36,1,IF($AC25=$AC36,$AI36+1,IF($AC36>$AC25,0)))) -> 1 | AJ25: 1 | AK25: =IFERROR(VLOOKUP("LAST"&AJ25,$AH$25:$AI$36,2,FALSE),VLOOKUP("LAST"&1,$AH$25:$AI$36,2,FALSE)) -> 5
C26: February | D26: =+IF($AC26=0,0,IF($AC26>$AC25,1,IF($AC26=$AC25,$D25+1,IF($AC25>$AC26,0)))) -> 2 | F26: =IF($D26>0,($AG26*$F$11/$AK26)*$D26+$F$11*$F$16,0) ->  | G26: =+IF($D26>0,IFERROR(($AG26*$F$11/$AK26)*$D26,"")+$F$11*$F$16,IF($D26=0,G25-E26)) ->  | I26: =IF($D26>0,($AG26*$I$11/$AK26)*$D26+$I$11*$I$16,0) ->  | J26: =+IF($D26>0,IFERROR(($AG26*$I$11/$AK26)*$D26,"")+$I$11*$I$16,IF($D26=0,J25-H26)) ->  | L26: =IF($D26>0,($AG26*$L$11/$AK26)*$D26+$L$11*$L$16,0) ->  | M26: =+IF($D26>0,IFERROR(($AG26*$L$11/$AK26)*$D26,"")+$L$11*$L$16,IF($D26=0,M25-K26)) ->  | O26: =IF($D26>0,($AG26*$O$11/$AK26)*$D26+$O$11*$O$16,0) ->  | P26: =+IF($D26>0,IFERROR(($AG26*$O$11/$AK26)*$D26,"")+$O$11*$O$16,IF($D26=0,P25-N26)) ->  | AB26: TRUE | AC26: =+N(AB26) -> 1 | AD26: =+IF(AND(AC27>AC26,AC26=0),"Last"&AF26,"") ->  | AE26: =+IF($AC26=1,0,IF($AC26<$AC25,1,IF($AC26=$AC25,$AE25+1,IF($AC25>$AC26,1)))) -> 0 | AF26: =+IF($AE25>$AE26,$AF25+1,$AF25) -> 1 | AG26: =IFERROR(VLOOKUP("LAST"&AF26,$AD$25:$AE$36,2,FALSE),$AG$25) -> 1 | AH26: =+IF(AND(AI26>AI27,AI27=0),"Last"&AJ26,"") ->  | AI26: =+IF($AC26=0,0,IF($AC26>$AC25,1,IF($AC26=$AC25,$AI25+1,IF($AC25>$AC26,0)))) -> 2 | AJ26: =+IF($AI25>$AI26,$AJ25+1,$AJ25) -> 1 | AK26: 5
C27: March | D27: 3 | AB27: TRUE | AC27: 1 | AD27: =+IF(AND(AC28>AC27,AC27=0),"Last"&AF27,"") ->  | AE27: 0 | AF27: 1 | AG27: 1 | AH27: =+IF(AND(AI27>AI28,AI28=0),"Last"&AJ27,"") ->  | AI27: 3 | AJ27: 1 | AK27: 5
C28: April | D28: 4 | AB28: TRUE | AC28: 1 | AD28: =+IF(AND(AC29>AC28,AC28=0),"Last"&AF28,"") ->  | AE28: 0 | AF28: 1 | AG28: 1 | AH28: =+IF(AND(AI28>AI29,AI29=0),"Last"&AJ28,"") ->  | AI28: 4 | AJ28: 1 | AK28: 5
C29: May | D29: 5 | AB29: TRUE | AC29: 1 | AE29: 0 | AF29: 1 | AG29: 1 | AH29: =+IF(AND(AI29>AI30,AI30=0),"Last"&AJ29,"") -> Last1 | AI29: 5 | AJ29: 1 | AK29: 5
C30: June | D30: 0 | F30: 0 | I30: 0 | L30: 0 | O30: 0 | AB30: FALSE | AC30: 0 | AD30: Last1 | AE30: 1 | AF30: 1 | AG30: 1 | AI30: 0 | AJ30: 2 | AK30: 3
C31: July | D31: 1 | AB31: TRUE | AC31: 1 | AE31: 0 | AF31: 2 | AG31: 3 | AI31: 1 | AJ31: 2 | AK31: 3
C32: August | D32: 2 | AB32: TRUE | AC32: 1 | AE32: 0 | AF32: 2 | AG32: 3 | AI32: 2 | AJ32: 2 | AK32: 3
C33: September | D33: 3 | AB33: TRUE | AC33: 1 | AE33: 0 | AF33: 2 | AG33: 3 | AH33: Last2 | AI33: 3 | AJ33: 2 | AK33: 3
C34: October | D34: 0 | F34: 0 | I34: 0 | L34: 0 | O34: 0 | AB34: FALSE | AC34: 0 | AE34: 1 | AF34: 2 | AG34: 3 | AI34: 0 | AJ34: 3 | AK34: 5
C35: November | D35: 0 | F35: 0 | I35: 0 | L35: 0 | O35: 0 | AB35: FALSE | AC35: 0 | AE35: 2 | AF35: 2 | AG35: 3 | AI35: 0 | AJ35: 3 | AK35: 5
C36: December | D36: 0 | F36: 0 | I36: 0 | L36: 0 | O36: 0 | AB36: FALSE | AC36: 0 | AD36: =+IF(AND(AC25>AC36,AC36=0),"Last"&AF36,"") -> Last2 | AE36: 3 | AF36: 2 | AG36: 3 | AH36: =+IF(AND(AI36>AI25,AI25=0),"Last"&AJ36,"") ->  | AI36: 0 | AJ36: 3 | AK36: 5
C38: Maximum Storage Capacity Required (ton) | F38: =+ROUNDUP(MAX(F25:F36),0) ->  | I38: =+ROUNDUP(MAX(I25:I36),0) ->  | L38: =+ROUNDUP(MAX(L25:L36),0) ->  | O38: =+ROUNDUP(MAX(O25:O36),0) -> 
C39: Minimum Safety Storage (ton) | F39: =+ROUNDUP(MIN(G25:G36),0) ->  | I39: =+ROUNDUP(MIN(J25:J36),0) ->  | L39: =+ROUNDUP(MIN(M25:M36),0) ->  | O39: =+ROUNDUP(MIN(P25:P36),0) -> 
AB40: No. Storage Months | AC40: =+COUNTIF(AC25:AC36,">0") -> 8
C41: Monthly Consumption of Biomass Stocked | AB41: Total Depletion Period | AC41: =12-AC40 -> 4
AE81: =5&" (ML/year)" -> 5 (ML/year) | AF81: =25&" (ML/year)" -> 25 (ML/year) | AG81: =50&" (ML/year)" -> 50 (ML/year) | AH81: =100&" (ML/year)" -> 100 (ML/year)
AD82: =+LEFT(C25,3) -> Jan | AE82: =+G25 ->  | AF82: =+J25 ->  | AG82: =+M25 ->  | AH82: =+P25 -> 
AD83: Feb
AD84: Mar
AD85: Apr
AD86: May
AD87: Jun
AD88: =+LEFT(C31,3) -> Jul | AE88: =+G31 ->  | AF88: =+J31 ->  | AG88: =+M31 ->  | AH88: =+P31 -> 
AD89: Aug
AD90: Sep
AD91: Oct
AD92: Nov
AD93: Dec

Sheet COST_FS2
C3: =+UPPER(" Processing costs for ethanol production from "&'Data Entry Needs'!$F$11) -> PROCESSING COSTS FOR ETHANOL PRODUCTION FROM
C6: Use white cells to input data | D6: Grey cells are used for calculations
C7: Summary of Feedstock and Storage | F7: Financial Parameters | J7: Investment Cost Update
C9: Feedstock available (t/year) | D9: =+'Data Entry Needs'!$F$12 -> 0 | F9: Discount rate (%) | H9: =+'Data Entry Needs'!D79 -> 0 | J9: =+'Data Entry Needs'!$F$80 -> Plant Cost Index during 4/2017 | L9: =+'Data Entry Needs'!$H$80 -> 0
C10: ='Data Entry Needs'!$C$57&" (USD/l)" -> Ethanol storage cost (USD/l) | D10: ='Data Entry Needs'!$D$57 -> 0 | F10: Loan interest rate (%) | H10: =+'Data Entry Needs'!$D$80 -> 0
C11: ='Data Entry Needs'!$F$57 -> Storage rate of ethanol | D11: ='Data Entry Needs'!$H$57 -> 0 | F11: Loan term (years) | H11: =+'Data Entry Needs'!D81 -> 0
C12: Feedstock storage cost (USD/t) | D12: =+'Data Entry Needs'!$E$19 -> 0
C16: Transport Distance of Feedstock | E16: Transport Quantity
C17: Distance SIZE 1 (5 ML) (km) | E17: Size 1 (t/year) | G17: =+$F$42 -> 
C18: Distance SIZE 2 (25 ML) (km) | E18: Size 2 (t/year) | G18: =+$H$42 -> 
C19: Distance SIZE 3 (50 ML) (km) | E19: Size 3 (t/year) | G19: =+$J$42 -> 
C20: Distance SIZE 4 (100 ML) (km) | E20: Size 4 (t/year) | G20: =+$L$42 -> 
C22: Feedstock Production Schemes
C23: PLEASE INCLUDE AT LEAST ONE SCENARIO TO OBTAIN RESULTS
C24: Scenario 1: Own Production | F24: Scenario 2: Mixed | J24: Scenario 3: Outgrowers
C25: =+"Description: 100% of "&'Data Entry Needs'!$F$11&" feedstock collected on site" -> Description: 100% of feedstock collected on site | F25: =+"Description: "&$AC$139&"% of "&'Data Entry Needs'!$F$11&" feedstock produced directly by processing plant, and "&(100-$AC$139)&"% provided by outgrowers at market price." -> Description: 60% of feedstock produced directly by processing plant, and 40% provided by outgrowers at market price. | J25: =+"Description: 100% of "&'Data Entry Needs'!$F$11&" feedstock is provided by outgrowers at market price." -> Description: 100% of feedstock is provided by outgrowers at market price.
F28: ="Feedstock Price = "&$AC$139&"%*Own Production Cost + "&(100-$AC$139)&"%*Outgrowers Cost" -> Feedstock Price = 60%*Own Production Cost + 40%*Outgrowers Cost | J28: Feedstock Price = 100%*Market Price or Collection Cost | K28: Feedstock Price = 100%*Production Cost
C29: =IF('Data Entry Needs'!F10 = "Ligno. Residues",0,+'Data Entry Needs'!$F$14) -> 0 | F29: =C29*COST_FS2!$AB$140+J29*COST_FS2!$AB$139 -> 0 | J29: =IF('Data Entry Needs'!F10="Ligno. Energy Crops",'Data Entry Needs'!$F$15,IF('Data Entry Needs'!C18,'Data Entry Needs'!F18,'Data Entry Needs'!F17)) -> 0
C31: Production Cost Details
F33: Capacities (Million litres per year)
F34: 5 | H34: 25 | J34: 50 | L34: 100
F35: Operating hours per year | G35: =+'Data Entry Needs'!$G$43*24 -> 0 | H35: Operating hours per year | I35: =+'Data Entry Needs'!$G$43*24 -> 0 | J35: Operating hours per year | K35: =+'Data Entry Needs'!$G$43*24 -> 0 | L35: Operating hours per year | M35: =+'Data Entry Needs'!$G$43*24 -> 0
C36: Scenario 1: Own Production
C37: Scenario 2: Mixed
C38: Scenario 3: Outgrowers
C40: Feedstock | D40: Unit | E40: Unit Price | F40: Quantity | G40: Total | H40: Quantity | I40: Total | J40: Quantity | K40: Total | L40: Quantity | M40: Total
E41: (USD) | F41: (Unit) | G41: (USD/year) | H41: (Unit) | I41: (USD/year) | J41: (Unit) | K41: (USD/year) | L41: (Unit) | M41: (USD/year)
C42: =+'Data Entry Needs'!$F$11&" Scenario 1" -> Scenario 1 | D42: =Allocator!C35 -> t/year | E42: =+$C$29 -> 0 | F42: =+Allocator!$D$51 ->  | G42: =+F42*E42 ->  | H42: =+Allocator!$E$51 ->  | I42: =+H42*$E42 ->  | J42: =+Allocator!$F$51 ->  | K42: =+J42*$E42 ->  | L42: =+Allocator!$G$51 ->  | M42: =+L42*$E42 -> 
C43: =+'Data Entry Needs'!$F$11&" Scenario 2" -> Scenario 2 | D43: =D42 -> t/year | E43: =+$F$29 -> 0 | F43: =+Allocator!$D$51 ->  | G43: =+F43*E43 ->  | H43: =+Allocator!$E$51 ->  | I43: =+H43*$E43 ->  | J43: =+Allocator!$F$51 ->  | K43: =+J43*$E43 ->  | L43: =+Allocator!$G$51 ->  | M43: =+L43*$E43 -> 
C44: =+'Data Entry Needs'!$F$11&" Scenario 3" -> Scenario 3 | D44: =D43 -> t/year | E44: =+J29 -> 0 | F44: =+Allocator!$D$51 ->  | G44: =+F44*E44 ->  | H44: =+Allocator!$E$51 ->  | I44: =+H44*$E44 ->  | J44: =+Allocator!$F$51 ->  | K44: =+J44*$E44 ->  | L44: =+Allocator!$G$51 ->  | M44: =+L44*$E44 -> 
C46: Other chemical inputs | D46: Unit | E46: Unit Price | F46: Quantity | G46: Total | H46: Quantity | I46: Total | J46: Quantity | K46: Total | L46: Quantity | M46: Total
E47: (USD) | F47: (Unit) | G47: (USD/year) | H47: (Unit) | I47: (USD/year) | J47: (Unit) | K47: (USD/year) | L47: (Unit) | M47: (USD/year)
C48: =Allocator!B36 -> Sulfuric Acid | D48: =Allocator!C36 -> t/year | E48: ='Data Entry Needs'!D34 -> 0 | F48: =Allocator!D52 ->  | G48: =+F48*E48 ->  | H48: =Allocator!E52 ->  | I48: =+H48*$E48 ->  | J48: =Allocator!F52 ->  | K48: =+J48*$E48 ->  | L48: =Allocator!G52 ->  | M48: =+L48*$E48 -> 
C49: =Allocator!B37 -> Water | D49: =Allocator!C37 -> m3/year | E49: ='Data Entry Needs'!D39 -> 0 | F49: =Allocator!D53 ->  | G49: =+F49*E49 ->  | H49: =Allocator!E53 ->  | I49: =+H49*$E49 ->  | J49: =Allocator!F53 ->  | K49: =+J49*$E49 ->  | L49: =Allocator!G53 ->  | M49: =+L49*$E49 -> 
C50: =Allocator!B38 -> Ammonia | D50: =Allocator!C38 -> t/year | E50: ='Data Entry Needs'!D32 -> 0 | F50: =Allocator!D54 ->  | G50: =+F50*E50 ->  | H50: =Allocator!E54 ->  | I50: =+H50*$E50 ->  | J50: =Allocator!F54 ->  | K50: =+J50*$E50 ->  | L50: =Allocator!G54 ->  | M50: =+L50*$E50 -> 
C51: =Allocator!B39 -> Enzyme | D51: =Allocator!C39 -> t/year | E51: ='Data Entry Needs'!G32 -> 0 | F51: =Allocator!D55 ->  | G51: =+F51*E51 ->  | H51: =Allocator!E55 ->  | I51: =+H51*$E51 ->  | J51: =Allocator!F55 ->  | K51: =+J51*$E51 ->  | L51: =Allocator!G55 ->  | M51: =+L51*$E51 -> 
C52: =Allocator!B40 -> Yeast | D52: =Allocator!C40 -> t/year | E52: ='Data Entry Needs'!D33 -> 0 | F52: =Allocator!D56 ->  | G52: =+F52*E52 ->  | H52: =Allocator!E56 ->  | I52: =+H52*$E52 ->  | J52: =Allocator!F56 ->  | K52: =+J52*$E52 ->  | L52: =Allocator!G56 ->  | M52: =+L52*$E52 -> 
C53: Subtotal | G53: =SUM(G48:G52) ->  | I53: =SUM(I48:I52) ->  | K53: =SUM(K48:K52) ->  | M53: =SUM(M48:M52) -> 
C55: Energy inputs | D55: Unit | E55: Unit Price | F55: Quantity | G55: Total | H55: Quantity | I55: Total | J55: Quantity | K55: Total | L55: Quantity | M55: Total
E56: (USD) | F56: (Unit) | G56: (USD/year) | H56: (Unit/year) | I56: (USD/year) | J56: (Unit/year) | K56: (USD/year) | L56: (Unit/year) | M56: (USD/year)
C57: =Allocator!B41 -> Steam | D57: =Allocator!C41 -> t/y | E57: ='Data Entry Needs'!D38 -> 0 | F57: =Allocator!D57 ->  | G57: =+F57*E57 ->  | H57: =Allocator!E57 ->  | I57: =+H57*$E57 ->  | J57: =Allocator!F57 ->  | K57: =+J57*$E57 ->  | L57: =Allocator!G57 ->  | M57: =+L57*$E57 -> 
C58: =Allocator!B42 -> Electricity | D58: =Allocator!C42 -> kWh/y | E58: ='Data Entry Needs'!D40 -> 0 | F58: =Allocator!D58 ->  | G58: =+F58*E58 ->  | H58: =Allocator!E58 ->  | I58: =+H58*$E58 ->  | J58: =Allocator!F58 ->  | K58: =+J58*$E58 ->  | L58: =Allocator!G58 ->  | M58: =+L58*$E58 -> 
C59: Subtotal | G59: =SUM(G57:G58) ->  | I59: =SUM(I57:I58) ->  | K59: =SUM(K57:K58) ->  | M59: =SUM(M57:M58) -> 
C61: Labour and miscellaneous cost | D61: Unit | E61: Unit Price | F61: Quantity | G61: Total | H61: Quantity | I61: Total | J61: Quantity | K61: Total | L61: Quantity | M61: Total
E62: (USD/hour) | F62: (Unit) | G62: (USD/year) | H62: (Unit) | I62: (USD/year) | J62: (Unit) | K62: (USD/year) | L62: (Unit) | M62: (USD/year)
